Workbook

Sheet Sizing
A2: Calculation Hydraulic Accumulator | H2: Calculation Hydraulic Accumulator
A5: Minimum system pressure | B5: 160 | C5: bar | J5: Berechnungsschritt | K5: 0 | L5: 1 | M5: 2 | N5: 3 | O5: 4 | P5: 5 | Q5: 6 | R5: 7 | S5: 8 | T5: 9 | U5: 10 | V5: 11 | W5: 12 | X5: 13 | Y5: 14 | Z5: 15 | AA5: 16 | AB5: 17 | AC5: 18 | AD5: 19 | AE5: 20 | AF5: 21 | AG5: 22 | AH5: 23 | AI5: 24 | AJ5: 25 | AK5: 26 | AL5: 27 | AM5: 28 | AN5: 29 | AO5: 30 | AP5: 31 | AQ5: 32 | AR5: 33 | AS5: 34 | AT5: 35 | AU5: 36 | AV5: 37 | AW5: 38 | AX5: 39 | AY5: 40 | AZ5: 41 | BA5: 42 | BB5: 43 | BC5: 44 | BD5: 45 | BE5: 46 | BF5: 47 | BG5: 48 | BH5: 49 | BI5: 50 | BJ5: 51 | BK5: 52 | BL5: 53 | BM5: 54 | BN5: 55 | BO5: 56 | BP5: 57 | BQ5: 58 | BR5: 59 | BS5: 60 | BT5: 61 | BU5: 62 | BV5: 63 | BW5: 64 | BX5: 65 | BY5: 66 | BZ5: 67 | CA5: 68 | CB5: 69 | CC5: 70 | CD5: 71 | CE5: 72 | CF5: 73 | CG5: 74 | CH5: 75 | CI5: 76 | CJ5: 77 | CK5: 78 | CL5: 79 | CM5: 80 | CN5: 81 | CO5: 82 | CP5: 83 | CQ5: 84 | CR5: 85 | CS5: 86 | CT5: 87 | CU5: 88 | CV5: 89 | CW5: 90 | CX5: 91 | CY5: 92 | CZ5: 93 | DA5: 94 | DB5: 95 | DC5: 96 | DD5: 97 | DE5: 98 | DF5: 99 | DG5: 100
A6: Maximum system pressure | B6: 210 | C6: bar | E6: Volume | F6: 97.4 | H6: Notes according to the pre-charge pressure: | J6: Zeit | K6: 0 | L6: =B12/100 -> 0.0024 | M6: =$L$6*M5 -> 0.0048 | N6: =$L$6*N5 -> 0.0072 | O6: =$L$6*O5 -> 0.0096 | P6: 0.012 | Q6: 0.0144 | R6: 0.0168 | S6: 0.0192 | T6: 0.0216 | U6: =$L$6*U5 -> 0.024 | V6: 0.0264 | W6: 0.0288 | X6: 0.0312 | Y6: 0.0336 | Z6: 0.036 | AA6: 0.0384 | AB6: 0.0408 | AC6: 0.0432 | AD6: 0.0456 | AE6: 0.048 | AF6: 0.0504 | AG6: 0.0528 | AH6: 0.0552 | AI6: 0.0576 | AJ6: 0.06 | AK6: 0.0624 | AL6: 0.0648 | AM6: 0.0672 | AN6: 0.0696 | AO6: 0.072 | AP6: 0.0744 | AQ6: 0.0768 | AR6: 0.0792 | AS6: 0.0816 | AT6: 0.084 | AU6: 0.0864 | AV6: 0.0888 | AW6: 0.0912 | AX6: 0.0936 | AY6: 0.096 | AZ6: 0.0984 | BA6: =$L$6*BA5 -> 0.1008 | BB6: 0.1032 | BC6: 0.1056 | BD6: 0.108 | BE6: 0.1104 | BF6: 0.1128 | BG6: 0.1152 | BH6: 0.1176 | BI6: 0.12 | BJ6: 0.1224 | BK6: 0.1248 | BL6: 0.1272 | BM6: 0.1296 | BN6: 0.132 | BO6: 0.1344 | BP6: 0.1368 | BQ6: 0.1392 | BR6: 0.1416 | BS6: 0.144 | BT6: 0.1464 | BU6: 0.1488 | BV6: 0.1512 | BW6: 0.1536 | BX6: 0.156 | BY6: 0.1584 | BZ6: 0.1608 | CA6: 0.1632 | CB6: 0.1656 | CC6: 0.168 | CD6: 0.1704 | CE6: 0.1728 | CF6: 0.1752 | CG6: =$L$6*CG5 -> 0.1776 | CH6: 0.18 | CI6: 0.1824 | CJ6: 0.1848 | CK6: 0.1872 | CL6: 0.1896 | CM6: 0.192 | CN6: 0.1944 | CO6: 0.1968 | CP6: 0.1992 | CQ6: 0.2016 | CR6: 0.204 | CS6: 0.2064 | CT6: 0.2088 | CU6: 0.2112 | CV6: 0.2136 | CW6: 0.216 | CX6: 0.2184 | CY6: 0.2208 | CZ6: 0.2232 | DA6: 0.2256 | DB6: 0.228 | DC6: 0.2304 | DD6: 0.2328 | DE6: 0.2352 | DF6: 0.2376 | DG6: 0.24
J7: Druck | K7: =E20 -> 210 | L7: =K7+K72/100000 -> 209.1684122 | M7: =L7+L72/100000 -> 208.3420657 | N7: 207.521931 | O7: 206.7071359 | P7: 205.8974366 | Q7: 205.093785 | R7: 204.2951335 | S7: 203.5014386 | T7: 202.7138255 | U7: 201.9310752 | V7: 201.1531457 | W7: 200.380955 | X7: 199.6134959 | Y7: 198.8509116 | Z7: 198.0936606 | AA7: 197.3407584 | AB7: 196.5921684 | AC7: 195.8482891 | AD7: 195.1095578 | AE7: 194.3750202 | AF7: 193.6446412 | AG7: 192.9197051 | AH7: 192.1988482 | AI7: 191.4820368 | AJ7: 190.7701043 | AK7: 190.0625688 | AL7: 189.3589693 | AM7: 188.66012 | AN7: 187.9655572 | AO7: 187.2748245 | AP7: 186.5878906 | AQ7: 185.9059654 | AR7: 185.2277681 | AS7: 184.5532684 | AT7: 183.8836546 | AU7: 183.2176696 | AV7: 182.5552843 | AW7: 181.8968812 | AX7: 181.2427982 | AY7: 180.5922201 | AZ7: 179.945527 | BA7: 179.3030433 | BB7: 178.6639728 | BC7: 178.0286933 | BD7: 177.3977702 | BE7: 176.7701695 | BF7: 176.1462669 | BG7: 175.5256328 | BH7: 174.9096104 | BI7: 174.2967957 | BJ7: 173.6871635 | BK7: 173.0810849 | BL7: 172.4790792 | BM7: 171.8801729 | BN7: 171.2847347 | BO7: 170.6932656 | BP7: 170.1052057 | BQ7: 169.5201397 | BR7: 168.9384324 | BS7: 168.3605646 | BT7: 167.7856135 | BU7: 167.2139416 | BV7: 166.6460127 | BW7: 166.0813084 | BX7: 165.5194228 | BY7: =BX7+BX72/100000 -> 164.9607148 | BZ7: 164.4056291 | CA7: 163.8532903 | CB7: 163.3040553 | CC7: 162.7575246 | CD7: 162.214877 | CE7: 161.6748852 | CF7: 161.1379025 | CG7: 160.6035348 | CH7: 160.0729343 | CI7: 159.5449023 | CJ7: 159.0197883 | CK7: 158.4972036 | CL7: 157.9779081 | CM7: 157.4614647 | CN7: 156.9474876 | CO7: 156.4363225 | CP7: 155.9283438 | CQ7: 155.4231323 | CR7: 154.9203073 | CS7: 154.4209517 | CT7: 153.923941 | CU7: 153.4296159 | CV7: 152.9376005 | CW7: 152.4489544 | CX7: 151.9625781 | CY7: 151.4788089 | CZ7: 150.9972756 | DA7: 150.5183139 | DB7: 150.0426031 | DC7: 149.5690728 | DD7: 149.0980558 | DE7: 148.6291871 | DF7: 148.1634772 | DG7: 147.6998789
B8: °C | C8: °K | H8: 1. At maximum temperature the pre-charge pressure should not exceed 90 % of the mimimum | J8: Temperatur in °K | K8: =Tmin -> 293 | L8: =K8+K73 -> 292.6686983 | M8: =L8+L73 -> 292.3383397 | N8: 292.009949 | O8: 291.6826895 | P8: 291.3563552 | Q8: 291.0319584 | R8: 290.7084748 | S8: 290.3858994 | T8: 290.065429 | U8: 289.7458545 | V8: 289.4271712 | W8: 289.1103688 | X8: 288.7944462 | Y8: 288.4795898 | Z8: 288.1663175 | AA8: 287.8536406 | AB8: 287.541555 | AC8: 287.2305145 | AD8: 286.9210177 | AE8: 286.6120962 | AF8: 286.3037461 | AG8: 285.997365 | AH8: 285.6915436 | AI8: 285.3862778 | AJ8: 285.0824924 | AK8: 284.7797086 | AL8: 284.4774652 | AM8: 284.1766719 | AN8: 283.8768645 | AO8: 283.5775828 | AP8: 283.278823 | AQ8: 282.9819329 | AR8: 282.6855538 | AS8: 282.3896822 | AT8: 282.0956509 | AU8: 281.8021166 | AV8: 281.5090756 | AW8: 281.2169792 | AX8: 280.9262333 | AY8: 280.635967 | AZ8: 280.3466312 | BA8: 280.0586184 | BB8: 279.7710718 | BC8: 279.484442 | BD8: 279.1993938 | BE8: 278.9147979 | BF8: 278.6311045 | BG8: 278.347857 | BH8: 278.0666041 | BI8: 277.7857868 | BJ8: 277.505402 | BK8: 277.2258984 | BL8: 276.9478986 | BM8: 276.6703181 | BN8: 276.3936055 | BO8: 276.1183654 | BP8: 275.8439829 | BQ8: 275.5700041 | BR8: 275.2968759 | BS8: 275.0251841 | BT8: 274.7538836 | BU8: 274.4834211 | BV8: 274.2143653 | BW8: 273.9461378 | BX8: 273.6782867 | BY8: =BX8+BX73 -> 273.4112574 | BZ8: 273.1456004 | CA8: 272.8803082 | CB8: 272.6158257 | CC8: 272.3517026 | CD8: 272.0893651 | CE8: 271.8273783 | CF8: 271.566186 | CG8: 271.3053391 | CH8: 271.0462439 | CI8: 270.7874857 | CJ8: 270.5295071 | CK8: 270.2718605 | CL8: 270.0154878 | CM8: 269.7598838 | CN8: 269.504601 | CO8: 269.250081 | CP8: 268.9968042 | CQ8: 268.7442819 | CR8: 268.492068 | CS8: 268.2415153 | CT8: 267.9912631 | CU8: 267.7417518 | CV8: 267.4925364 | CW8: 267.2449516 | CX8: 266.9976552 | CY8: 266.7510862 | CZ8: 266.5048012 | DA8: 266.2592384 | DB8: 266.0152708 | DC8: 265.7715778 | DD8: 265.528596 | DE8: 265.2858845 | DF8: 265.0447393 | DG8: 264.8038572
A9: Minimum temperature | B9: 20 | C9: =B9+273 -> 293 | H9: system pressure in order to prevent the bladder from touching the oil valve with a certain safety factor. | J9: Temperatur in °C | K9: =K8-273 -> 20 | L9: =L8-273 -> 19.66869828 | M9: 19.33833975 | N9: 19.00994902 | O9: 18.68268949 | P9: 18.35635519 | Q9: 18.03195841 | R9: 17.70847482 | S9: 17.38589939 | T9: 17.06542895 | U9: 16.74585452 | V9: 16.4271712 | W9: 16.11036884 | X9: 15.79444618 | Y9: 15.47958983 | Z9: 15.16631749 | AA9: 14.85364057 | AB9: 14.54155502 | AC9: 14.23051452 | AD9: 13.92101774 | AE9: 13.61209623 | AF9: 13.30374605 | AG9: 12.99736505 | AH9: 12.69154358 | AI9: 12.38627783 | AJ9: 12.08249245 | AK9: 11.7797086 | AL9: 11.47746522 | AM9: 11.17667188 | AN9: 10.87686454 | AO9: 10.5775828 | AP9: 10.27882303 | AQ9: 9.981932864 | AR9: 9.68555377 | AS9: 9.389682211 | AT9: 9.095650947 | AU9: 8.802116572 | AV9: 8.50907563 | AW9: 8.216979249 | AX9: 7.926233312 | AY9: 7.635967034 | AZ9: 7.346631234 | BA9: 7.058618442 | BB9: 6.771071849 | BC9: 6.484442003 | BD9: 6.199393827 | BE9: 5.91479794 | BF9: 5.631104505 | BG9: 5.347856965 | BH9: 5.066604073 | BI9: 4.78578678 | BJ9: 4.505401971 | BK9: 4.225898397 | BL9: 3.947898554 | BM9: 3.6703181 | BN9: 3.393605488 | BO9: 3.11836543 | BP9: 2.843982902 | BQ9: 2.570004084 | BR9: 2.296875925 | BS9: 2.025184109 | BT9: 1.753883594 | BU9: 1.483421098 | BV9: 1.21436531 | BW9: 0.9461377803 | BX9: =BX8-273 -> 0.67828672 | BY9: 0.4112574289 | BZ9: 0.1456004443 | CA9: -0.1196918457 | CB9: -0.3841743027 | CC9: -0.6482974021 | CD9: -0.9106348581 | CE9: -1.172621667 | CF9: -1.433814024 | CG9: -1.694660904 | CH9: -1.953756091 | CI9: -2.212514263 | CJ9: -2.470492898 | CK9: -2.72813953 | CL9: -2.984512182 | CM9: -3.240116229 | CN9: -3.495399038 | CO9: -3.749918963 | CP9: -4.00319576 | CQ9: -4.255718085 | CR9: -4.507931963 | CS9: -4.758484727 | CT9: -5.008736861 | CU9: -5.258248239 | CV9: -5.507463592 | CW9: -5.755048418 | CX9: -6.002344823 | CY9: -6.248913785 | CZ9: -6.495198799 | DA9: -6.740761583 | DB9: -6.984729168 | DC9: -7.228422236 | DD9: -7.471403966 | DE9: -7.714115491 | DF9: -7.95526067 | DG9: -8.196142802
A10: Maximum temperature | B10: 50 | C10: =B10+273 -> 323 | J10: H | K10: =1250*Volumen^(-0.3) -> 316.477126 | L10: 316.477126 | M10: 316.477126 | N10: 316.477126 | O10: 316.477126 | P10: 316.477126 | Q10: 316.477126 | R10: 316.477126 | S10: 316.477126 | T10: 316.477126 | U10: 316.477126 | V10: 316.477126 | W10: 316.477126 | X10: 316.477126 | Y10: 316.477126 | Z10: 316.477126 | AA10: 316.477126 | AB10: 316.477126 | AC10: 316.477126 | AD10: 316.477126 | AE10: 316.477126 | AF10: 316.477126 | AG10: 316.477126 | AH10: 316.477126 | AI10: 316.477126 | AJ10: 316.477126 | AK10: 316.477126 | AL10: 316.477126 | AM10: 316.477126 | AN10: 316.477126 | AO10: 316.477126 | AP10: 316.477126 | AQ10: =1250*Volumen^(-0.3) -> 316.477126 | AR10: 316.477126 | AS10: 316.477126 | AT10: 316.477126 | AU10: 316.477126 | AV10: 316.477126 | AW10: 316.477126 | AX10: 316.477126 | AY10: 316.477126 | AZ10: 316.477126 | BA10: 316.477126 | BB10: 316.477126 | BC10: 316.477126 | BD10: 316.477126 | BE10: 316.477126 | BF10: 316.477126 | BG10: 316.477126 | BH10: 316.477126 | BI10: 316.477126 | BJ10: 316.477126 | BK10: 316.477126 | BL10: 316.477126 | BM10: 316.477126 | BN10: 316.477126 | BO10: 316.477126 | BP10: 316.477126 | BQ10: 316.477126 | BR10: 316.477126 | BS10: 316.477126 | BT10: 316.477126 | BU10: 316.477126 | BV10: 316.477126 | BW10: =1250*Volumen^(-0.3) -> 316.477126 | BX10: 316.477126 | BY10: 316.477126 | BZ10: 316.477126 | CA10: 316.477126 | CB10: 316.477126 | CC10: 316.477126 | CD10: 316.477126 | CE10: 316.477126 | CF10: 316.477126 | CG10: 316.477126 | CH10: 316.477126 | CI10: 316.477126 | CJ10: 316.477126 | CK10: 316.477126 | CL10: 316.477126 | CM10: 316.477126 | CN10: 316.477126 | CO10: 316.477126 | CP10: 316.477126 | CQ10: 316.477126 | CR10: 316.477126 | CS10: 316.477126 | CT10: 316.477126 | CU10: 316.477126 | CV10: 316.477126 | CW10: 316.477126 | CX10: 316.477126 | CY10: 316.477126 | CZ10: 316.477126 | DA10: 316.477126 | DB10: 316.477126 | DC10: 316.477126 | DD10: 316.477126 | DE10: 316.477126 | DF10: 316.477126 | DG10: 316.477126
A11: Exchange volume | B11: 13 | C11: L | H11: 2. The pre-charge pressure at room temperature results of the calculated pre-charge pressure at | J11: A | K11: =Volumen/50 -> 1.948 | L11: 1.948 | M11: 1.948 | N11: 1.948 | O11: 1.948 | P11: 1.948 | Q11: 1.948 | R11: 1.948 | S11: 1.948 | T11: 1.948 | U11: 1.948 | V11: 1.948 | W11: 1.948 | X11: 1.948 | Y11: 1.948 | Z11: 1.948 | AA11: 1.948 | AB11: 1.948 | AC11: 1.948 | AD11: 1.948 | AE11: 1.948 | AF11: 1.948 | AG11: 1.948 | AH11: 1.948 | AI11: 1.948 | AJ11: 1.948 | AK11: 1.948 | AL11: 1.948 | AM11: 1.948 | AN11: 1.948 | AO11: 1.948 | AP11: 1.948 | AQ11: =Volumen/50 -> 1.948 | AR11: 1.948 | AS11: 1.948 | AT11: 1.948 | AU11: 1.948 | AV11: 1.948 | AW11: 1.948 | AX11: 1.948 | AY11: 1.948 | AZ11: 1.948 | BA11: 1.948 | BB11: 1.948 | BC11: 1.948 | BD11: 1.948 | BE11: 1.948 | BF11: 1.948 | BG11: 1.948 | BH11: 1.948 | BI11: 1.948 | BJ11: 1.948 | BK11: 1.948 | BL11: 1.948 | BM11: 1.948 | BN11: 1.948 | BO11: 1.948 | BP11: 1.948 | BQ11: 1.948 | BR11: 1.948 | BS11: 1.948 | BT11: 1.948 | BU11: 1.948 | BV11: 1.948 | BW11: =Volumen/50 -> 1.948 | BX11: 1.948 | BY11: 1.948 | BZ11: 1.948 | CA11: 1.948 | CB11: 1.948 | CC11: 1.948 | CD11: 1.948 | CE11: 1.948 | CF11: 1.948 | CG11: 1.948 | CH11: 1.948 | CI11: 1.948 | CJ11: 1.948 | CK11: 1.948 | CL11: 1.948 | CM11: 1.948 | CN11: 1.948 | CO11: 1.948 | CP11: 1.948 | CQ11: 1.948 | CR11: 1.948 | CS11: 1.948 | CT11: 1.948 | CU11: 1.948 | CV11: 1.948 | CW11: 1.948 | CX11: 1.948 | CY11: 1.948 | CZ11: 1.948 | DA11: 1.948 | DB11: 1.948 | DC11: 1.948 | DD11: 1.948 | DE11: 1.948 | DF11: 1.948 | DG11: 1.948
A12: Time to unload | B12: 0.24 | C12: sec | H12: maximum temperature and is therefore not arbitrary.
J13: ∆t | K13: =$B$12/100 -> 0.0024 | L13: =$B$12/100 -> 0.0024 | M13: 0.0024 | N13: 0.0024 | O13: 0.0024 | P13: 0.0024 | Q13: 0.0024 | R13: 0.0024 | S13: 0.0024 | T13: 0.0024 | U13: 0.0024 | V13: 0.0024 | W13: 0.0024 | X13: 0.0024 | Y13: 0.0024 | Z13: 0.0024 | AA13: 0.0024 | AB13: 0.0024 | AC13: 0.0024 | AD13: 0.0024 | AE13: 0.0024 | AF13: 0.0024 | AG13: 0.0024 | AH13: 0.0024 | AI13: 0.0024 | AJ13: 0.0024 | AK13: 0.0024 | AL13: 0.0024 | AM13: 0.0024 | AN13: 0.0024 | AO13: 0.0024 | AP13: 0.0024 | AQ13: 0.0024 | AR13: 0.0024 | AS13: 0.0024 | AT13: 0.0024 | AU13: 0.0024 | AV13: 0.0024 | AW13: 0.0024 | AX13: 0.0024 | AY13: 0.0024 | AZ13: 0.0024 | BA13: 0.0024 | BB13: 0.0024 | BC13: 0.0024 | BD13: 0.0024 | BE13: 0.0024 | BF13: 0.0024 | BG13: 0.0024 | BH13: 0.0024 | BI13: 0.0024 | BJ13: 0.0024 | BK13: 0.0024 | BL13: 0.0024 | BM13: 0.0024 | BN13: 0.0024 | BO13: 0.0024 | BP13: 0.0024 | BQ13: 0.0024 | BR13: 0.0024 | BS13: 0.0024 | BT13: 0.0024 | BU13: 0.0024 | BV13: 0.0024 | BW13: 0.0024 | BX13: =$B$12/100 -> 0.0024 | BY13: 0.0024 | BZ13: 0.0024 | CA13: 0.0024 | CB13: 0.0024 | CC13: 0.0024 | CD13: 0.0024 | CE13: 0.0024 | CF13: 0.0024 | CG13: 0.0024 | CH13: 0.0024 | CI13: 0.0024 | CJ13: 0.0024 | CK13: 0.0024 | CL13: 0.0024 | CM13: 0.0024 | CN13: 0.0024 | CO13: 0.0024 | CP13: 0.0024 | CQ13: 0.0024 | CR13: 0.0024 | CS13: 0.0024 | CT13: 0.0024 | CU13: 0.0024 | CV13: 0.0024 | CW13: 0.0024 | CX13: 0.0024 | CY13: 0.0024 | CZ13: 0.0024 | DA13: 0.0024 | DB13: 0.0024 | DC13: 0.0024 | DD13: 0.0024 | DE13: 0.0024 | DF13: 0.0024 | DG13: 0.0024
A14: Pressure compensation at temperature drop? | H14: 3. The following diagram shows further limitations of the pre-charge pressure and the operating range. | J14: ∆V | K14: =$B$11/100000 -> 0.00013 | L14: 0.00013 | M14: 0.00013 | N14: 0.00013 | O14: 0.00013 | P14: 0.00013 | Q14: 0.00013 | R14: 0.00013 | S14: 0.00013 | T14: 0.00013 | U14: 0.00013 | V14: 0.00013 | W14: 0.00013 | X14: 0.00013 | Y14: 0.00013 | Z14: 0.00013 | AA14: 0.00013 | AB14: 0.00013 | AC14: 0.00013 | AD14: 0.00013 | AE14: 0.00013 | AF14: 0.00013 | AG14: 0.00013 | AH14: 0.00013 | AI14: 0.00013 | AJ14: 0.00013 | AK14: 0.00013 | AL14: 0.00013 | AM14: 0.00013 | AN14: 0.00013 | AO14: 0.00013 | AP14: 0.00013 | AQ14: =$B$11/100000 -> 0.00013 | AR14: 0.00013 | AS14: 0.00013 | AT14: 0.00013 | AU14: 0.00013 | AV14: 0.00013 | AW14: 0.00013 | AX14: 0.00013 | AY14: 0.00013 | AZ14: 0.00013 | BA14: 0.00013 | BB14: 0.00013 | BC14: 0.00013 | BD14: 0.00013 | BE14: 0.00013 | BF14: 0.00013 | BG14: 0.00013 | BH14: 0.00013 | BI14: 0.00013 | BJ14: 0.00013 | BK14: 0.00013 | BL14: 0.00013 | BM14: 0.00013 | BN14: 0.00013 | BO14: 0.00013 | BP14: 0.00013 | BQ14: 0.00013 | BR14: 0.00013 | BS14: 0.00013 | BT14: 0.00013 | BU14: 0.00013 | BV14: 0.00013 | BW14: =$B$11/100000 -> 0.00013 | BX14: 0.00013 | BY14: 0.00013 | BZ14: 0.00013 | CA14: 0.00013 | CB14: 0.00013 | CC14: 0.00013 | CD14: 0.00013 | CE14: 0.00013 | CF14: 0.00013 | CG14: 0.00013 | CH14: 0.00013 | CI14: 0.00013 | CJ14: 0.00013 | CK14: 0.00013 | CL14: 0.00013 | CM14: 0.00013 | CN14: 0.00013 | CO14: 0.00013 | CP14: 0.00013 | CQ14: 0.00013 | CR14: 0.00013 | CS14: 0.00013 | CT14: 0.00013 | CU14: 0.00013 | CV14: 0.00013 | CW14: 0.00013 | CX14: 0.00013 | CY14: 0.00013 | CZ14: 0.00013 | DA14: 0.00013 | DB14: 0.00013 | DC14: 0.00013 | DD14: 0.00013 | DE14: 0.00013 | DF14: 0.00013 | DG14: 0.00013
A16: Pre-charge pressure at maximum temperature | B16: =B5*0.9 -> 144 | C16: bar | D16: Pre-charge pressure at 20 °C | E16: =ROUND(B16/Tmax*293,0) -> 131 | F16: bar | J16: Alpha T | K16: =(1 + m * (1 - (K8 / Tc) ^ 0.5)) ^ 2 -> 0.5139930333 | L16: 0.5146615686 | M16: 0.5153290106 | N16: 0.5159932798 | O16: 0.5166560585 | P16: 0.5173177576 | Q16: 0.5179763156 | R16: 0.5186338027 | S16: 0.5192902239 | T16: 0.5199431342 | U16: 0.5205949871 | V16: 0.5212457874 | W16: 0.521893505 | X16: 0.5225401784 | Y16: 0.5231854198 | Z16: 0.52382816 | AA16: 0.5244704209 | AB16: 0.5251122077 | AC16: 0.5257525828 | AD16: 0.5263905115 | AE16: 0.5270279838 | AF16: 0.5276650048 | AG16: 0.5282986788 | AH16: 0.5289319137 | AI16: 0.5295647146 | AJ16: 0.5301951587 | AK16: 0.5308242322 | AL16: 0.5314528886 | AM16: 0.5320792303 | AN16: 0.5327042161 | AO16: 0.5333288017 | AP16: 0.5339529921 | AQ16: =(1 + m * (1 - (AQ8 / Tc) ^ 0.5)) ^ 2 -> 0.5345739644 | AR16: 0.5351945529 | AS16: 0.5358147627 | AT16: 0.5364317929 | AU16: 0.5370484557 | AV16: 0.5376647559 | AW16: 0.5382797408 | AX16: 0.5388925492 | AY16: 0.539505011 | AZ16: 0.5401161712 | BA16: 0.540725194 | BB16: 0.5413338861 | BC16: 0.54194129 | BD16: 0.5425459891 | BE16: 0.5431503735 | BF16: 0.5437534833 | BG16: 0.5443562858 | BH16: 0.5449554775 | BI16: 0.5455543727 | BJ16: 0.546152976 | BK16: 0.5467503259 | BL16: 0.547345085 | BM16: 0.5479395675 | BN16: 0.5485328097 | BO16: 0.5491235083 | BP16: 0.5497129762 | BQ16: 0.5503021851 | BR16: 0.5508901707 | BS16: 0.5514756653 | BT16: 0.5520609158 | BU16: 0.5526449553 | BV16: 0.5532265494 | BW16: =(1 + m * (1 - (BW8 / Tc) ^ 0.5)) ^ 2 -> 0.5538069419 | BX16: 0.5543871072 | BY16: 0.5549660778 | BZ16: 0.5555426537 | CA16: 0.5561190169 | CB16: 0.5566941973 | CC16: 0.5572691716 | CD16: 0.5578408287 | CE16: 0.5584122895 | CF16: 0.5589825831 | CG16: 0.5595526868 | CH16: 0.5601195213 | CI16: 0.5606861755 | CJ16: 0.5612516776 | CK16: 0.5618170058 | CL16: 0.5623800888 | CM16: 0.5629420309 | CN16: 0.5635038128 | CO16: 0.5640644599 | CP16: 0.5646229087 | CQ16: 0.5651802311 | CR16: 0.5657374087 | CS16: 0.5662914479 | CT16: 0.5668453515 | CU16: 0.5673981428 | CV16: 0.5679508046 | CW16: 0.568500372 | CX16: 0.5690498189 | CY16: 0.5695981674 | CZ16: 0.5701464012 | DA16: 0.5706935423 | DB16: 0.5712376391 | DC16: 0.5717816318 | DD16: 0.5723245429 | DE16: 0.5728673557 | DF16: 0.5734071664 | DG16: 0.5739468874
J17: e | K17: =-Rs * K8 /K7 / 100000 -> -0.004141066667 | L17: -0.004152829232 | M17: -0.004164594362 | N17: -0.004176356323 | O17: -0.004188119672 | P17: -0.004199885519 | Q17: -0.004211648114 | R17: -0.00422341315 | S17: -0.004235180623 | T17: -0.004246943647 | U17: -0.004258709045 | V17: -0.004270476812 | W17: -0.004282241168 | X17: -0.004294007839 | Y17: -0.004305775698 | Z17: -0.004317541651 | AA17: -0.004329311451 | AB17: -0.004341085112 | AC17: -0.004352859916 | AD17: -0.004364632826 | AE17: -0.004376409586 | AF17: -0.004388190207 | AG17: -0.004399966188 | AH17: -0.004411746008 | AI17: -0.004423529679 | AJ17: -0.0044353115 | AK17: -0.004447094346 | AL17: -0.004458881035 | AM17: -0.004470665883 | AN17: -0.004482451714 | AO17: -0.004494241381 | AP17: -0.004506034898 | AQ17: =-Rs * AQ8 /AQ7 / 100000 -> -0.0045178237 | AR17: -0.004529616332 | AS17: -0.004541412808 | AT17: -0.004553204546 | AU17: -0.00456500011 | AV17: -0.004576799513 | AW17: -0.00458859981 | AX17: -0.004600398299 | AY17: -0.004612200624 | AZ17: -0.004624003805 | BA17: -0.004635805194 | BB17: -0.004647610418 | BC17: -0.004659416459 | BD17: -0.004671218811 | BE17: -0.004683024985 | BF17: -0.004694831931 | BG17: -0.004706642707 | BH17: -0.004718446739 | BI17: -0.004730254574 | BJ17: -0.004742066232 | BK17: -0.004753878605 | BL17: -0.004765687332 | BM17: -0.004777499873 | BN17: -0.004789313085 | BO17: -0.00480112268 | BP17: -0.004812932901 | BQ17: -0.00482474692 | BR17: -0.004836561557 | BS17: -0.004848372588 | BT17: -0.004860187412 | BU17: -0.004872002811 | BV17: -0.004883814637 | BW17: =-Rs * BW8 /BW7 / 100000 -> -0.004895626995 | BX17: -0.004907443133 | BY17: -0.004919259796 | BZ17: -0.0049310729 | CA17: -0.004942889783 | CB17: -0.00495470715 | CC17: -0.004966528308 | CD17: -0.00497834262 | CE17: -0.004990160702 | CF17: -0.005001979219 | CG17: -0.005013801518 | CH17: -0.00502561695 | CI17: -0.005037436146 | CJ17: -0.005049255728 | CK17: -0.005061079084 | CL17: -0.005072898974 | CM17: -0.005084719215 | CN17: -0.005096543233 | CO17: -0.005108367595 | CP17: -0.005120188514 | CQ17: -0.005132009738 | CR17: -0.005143834736 | CS17: -0.005155652833 | CT17: -0.005167474688 | CU17: -0.005179296803 | CV17: -0.00519112269 | CW17: -0.005202941661 | CX17: -0.005214764389 | CY17: -0.005226587334 | CZ17: -0.00523841405 | DA17: -0.005250240977 | DB17: -0.005262060957 | DC17: -0.005273884688 | DD17: -0.005285708583 | DE17: -0.005297536243 | DF17: -0.005309356944 | DG17: -0.005321181398
A18: Mass of nitrogen | B18: =Volumen/Vs/1000 -> 14.26115843 | C18: kg | D18: Min. temperature during onloading | E18: =MIN(K9:DG9) -> -8.196142802 | F18: °C | J18: f | K18: =-(100000 *K7* b ^ 2 + Rs * K8 * b - a * K16) /K7/ 100000 -> -5.512258335e-07 | L18: -5.395648898e-07 | M18: -5.278429814e-07 | N18: -5.16094025e-07 | O18: -5.042910144e-07 | P18: -4.924273227e-07 | Q18: -4.805370768e-07 | R18: -4.685864142e-07 | S18: -4.565752919e-07 | T18: -4.445447686e-07 | U18: -4.324541177e-07 | V18: -4.203032978e-07 | W18: -4.081269027e-07 | X18: -3.958906073e-07 | Y18: -3.836011153e-07 | Z18: -3.712770239e-07 | AA18: -3.588836614e-07 | AB18: -3.464208408e-07 | AC18: -3.339048855e-07 | AD18: -3.213541387e-07 | AE18: -3.087338179e-07 | AF18: -2.960437325e-07 | AG18: -2.833354565e-07 | AH18: -2.705574841e-07 | AI18: -2.577096229e-07 | AJ18: -2.448265672e-07 | AK18: -2.318907729e-07 | AL18: -2.188849591e-07 | AM18: -2.058438441e-07 | AN18: -1.927501322e-07 | AO18: -1.795862637e-07 | AP18: -1.663520407e-07 | AQ18: =-(100000 *AQ7* b ^ 2 + Rs * AQ8 * b - a * AQ16) /AQ7/ 100000 -> -1.531001121e-07 | AR18: -1.39777883e-07 | AS18: -1.26385153e-07 | AT18: -1.129748774e-07 | AU18: -9.949415065e-08 | AV18: -8.594277018e-08 | AW18: -7.233892122e-08 | AX18: -5.869935825e-08 | AY18: -4.498898133e-08 | AZ18: -3.122626729e-08 | BA18: -1.74276951e-08 | BB18: -3.558141895e-09 | BC18: 1.036361999e-08 | BD18: 2.430938594e-08 | BE18: 3.832620676e-08 | BF18: 5.239501686e-08 | BG18: 6.653509335e-08 | BH18: 8.067994025e-08 | BI18: 9.489592381e-08 | BJ18: 1.09183257e-07 | BK18: 1.235224136e-07 | BL18: 1.378858103e-07 | BM18: 1.523206482e-07 | BN18: 1.668070984e-07 | BO18: 1.813179281e-07 | BP18: 1.958800618e-07 | BQ18: 2.10513735e-07 | BR18: 2.251987609e-07 | BS18: 2.39908195e-07 | BT18: 2.546892748e-07 | BU18: 2.695215033e-07 | BV18: 2.843782981e-07 | BW18: =-(100000 *BW7* b ^ 2 + Rs * BW8 * b - a * BW16) /BW7/ 100000 -> 2.992859397e-07 | BX18: 3.142653394e-07 | BY18: 3.292956344e-07 | BZ18: 3.443505451e-07 | CA18: 3.594773354e-07 | CB18: 3.746548242e-07 | CC18: 3.899044174e-07 | CD18: 4.051573314e-07 | CE18: 4.204822533e-07 | CF18: 4.35857627e-07 | CG18: 4.513052353e-07 | CH18: 4.667558595e-07 | CI18: 4.822786272e-07 | CJ18: 4.978516029e-07 | CK18: 5.134969512e-07 | CL18: 5.291673876e-07 | CM18: 5.448878467e-07 | CN18: 5.606808272e-07 | CO18: 5.765238792e-07 | CP18: 5.923921171e-07 | CQ18: 6.08310141e-07 | CR18: 6.243008409e-07 | CS18: 6.402938464e-07 | CT18: 6.563594535e-07 | CU18: 6.724746125e-07 | CV18: 6.886626094e-07 | CW18: 7.048526324e-07 | CX18: 7.211154246e-07 | CY18: 7.374275376e-07 | CZ18: 7.538126587e-07 | DA18: 7.702471494e-07 | DB18: 7.8668323e-07 | DC18: 8.03192252e-07 | DD18: 8.197503099e-07 | DE18: 8.363815505e-07 | DF18: 8.530141157e-07 | DG18: 8.697198063e-07
J19: g | K19: =-b * a * K16 /K7/ 100000 -> -4.172246203e-09 | L19: -4.194282032e-09 | M19: -4.216378753e-09 | N19: -4.23849852e-09 | O19: -4.26067146e-09 | P19: -4.282904957e-09 | Q19: -4.30516095e-09 | R19: -4.327477195e-09 | S19: -4.349853729e-09 | T19: -4.372244787e-09 | U19: -4.394695758e-09 | V19: -4.417206676e-09 | W19: -4.439739003e-09 | X19: -4.46233097e-09 | Y19: -4.484975103e-09 | Z19: -4.507650694e-09 | AA19: -4.530396334e-09 | AB19: -4.553212213e-09 | AC19: -4.576080157e-09 | AD19: -4.598979757e-09 | AE19: -4.621949696e-09 | AF19: -4.644990172e-09 | AG19: -4.668043834e-09 | AH19: -4.691167944e-09 | AI19: -4.714362699e-09 | AJ19: -4.737589536e-09 | AK19: -4.760867949e-09 | AL19: -4.784217125e-09 | AM19: -4.807598493e-09 | AN19: -4.831031263e-09 | AO19: -4.85453492e-09 | AP19: -4.878109667e-09 | AQ19: =-b * a * AQ16 /AQ7/ 100000 -> -4.901697067e-09 | AR19: -4.925355487e-09 | AS19: -4.949085132e-09 | AT19: -4.972827256e-09 | AU19: -4.99664054e-09 | AV19: -5.020525193e-09 | AW19: -5.04446104e-09 | AX19: -5.068429507e-09 | AY19: -5.092469494e-09 | AZ19: -5.116560514e-09 | BA19: -5.140684308e-09 | BB19: -5.16487978e-09 | BC19: -5.189126127e-09 | BD19: -5.213392117e-09 | BE19: -5.237729846e-09 | BF19: -5.262118197e-09 | BG19: -5.286578496e-09 | BH19: -5.311037158e-09 | BI19: -5.33556762e-09 | BJ19: -5.360170101e-09 | BK19: -5.384822994e-09 | BL19: -5.409495798e-09 | BM19: -5.434240702e-09 | BN19: -5.459035775e-09 | BO19: -5.483850918e-09 | BP19: -5.508715892e-09 | BQ19: -5.533653046e-09 | BR19: -5.558640069e-09 | BS19: -5.583647202e-09 | BT19: -5.608726612e-09 | BU19: -5.633855657e-09 | BV19: -5.659004993e-09 | BW19: =-b * a * BW16 /BW7/ 100000 -> -5.684203632e-09 | BX19: -5.709474647e-09 | BY19: -5.734795005e-09 | BZ19: -5.760135715e-09 | CA19: -5.785548915e-09 | CB19: -5.811011233e-09 | CC19: -5.836546266e-09 | CD19: -5.862078179e-09 | CE19: -5.887682696e-09 | CF19: -5.913336048e-09 | CG19: -5.939062233e-09 | CH19: -5.964784985e-09 | CI19: -5.990580465e-09 | CJ19: -6.016424503e-09 | CK19: -6.042341499e-09 | CL19: -6.068279385e-09 | CM19: -6.094265618e-09 | CN19: -6.120324954e-09 | CO19: -6.146432678e-09 | CP19: -6.172561408e-09 | CQ19: -6.198738214e-09 | CR19: -6.22498827e-09 | CS19: -6.251234179e-09 | CT19: -6.277553251e-09 | CU19: -6.303920134e-09 | CV19: -6.33036042e-09 | CW19: -6.356796276e-09 | CX19: -6.383305456e-09 | CY19: -6.409862185e-09 | CZ19: -6.43649248e-09 | DA19: -6.463170365e-09 | DB19: -6.489843373e-09 | DC19: -6.516589865e-09 | DD19: -6.543383583e-09 | DE19: -6.570251029e-09 | DF19: -6.597113333e-09 | DG19: -6.624049299e-09
A20: Gasvolume at maximum pressure | B20: =K26*mGas*1000 -> 63.78802939 | C20: L | D20: Start pressure | E20: 210 | F20: bar
J21: o | K21: =(3 * K18 - K17 ^ 2) / 3 -> -6.267370213e-06 | L21: =(3 * L18 - L17 ^ 2) / 3 -> -6.288228433e-06 | M21: =(3 * M18 - M17 ^ 2) / 3 -> -6.309125049e-06 | N21: =(3 * N18 - N17 ^ 2) / 3 -> -6.330078069e-06 | O21: =(3 * O18 - O17 ^ 2) / 3 -> -6.351073145e-06 | P21: =(3 * P18 - P17 ^ 2) / 3 -> -6.37210678e-06 | Q21: -6.393197021e-06 | R21: -6.41432596e-06 | S21: -6.435493594e-06 | T21: -6.456721548e-06 | U21: -6.47798836e-06 | V21: -6.49929403e-06 | W21: -6.520656708e-06 | X21: -6.54205838e-06 | Y21: -6.563502569e-06 | Z21: -6.584998992e-06 | AA21: -6.606529541e-06 | AB21: -6.628094157e-06 | AC21: -6.649701368e-06 | AD21: -6.671360709e-06 | AE21: -6.693054105e-06 | AF21: -6.714781497e-06 | AG21: -6.736569609e-06 | AH21: -6.758391763e-06 | AI21: -6.780247897e-06 | AJ21: -6.802155934e-06 | AK21: -6.824106813e-06 | AL21: -6.846091654e-06 | AM21: -6.868128323e-06 | AN21: -6.890207922e-06 | AO21: -6.912321461e-06 | AP21: -6.934468876e-06 | AQ21: -6.956677108e-06 | AR21: -6.978919254e-06 | AS21: -7.001195249e-06 | AT21: -7.023532091e-06 | AU21: -7.045902818e-06 | AV21: -7.068307364e-06 | AW21: -7.090754992e-06 | AX21: -7.113254193e-06 | AY21: -7.13578718e-06 | AZ21: -7.158363329e-06 | BA21: -7.18099096e-06 | BB21: -7.20365234e-06 | BC21: -7.22635696e-06 | BD21: -7.249119006e-06 | BE21: -7.271914797e-06 | BF21: -7.294753935e-06 | BG21: -7.317626765e-06 | BH21: -7.340566601e-06 | BI21: -7.363540189e-06 | BJ21: -7.386547458e-06 | BK21: -7.409598183e-06 | BL21: -7.432706105e-06 | BM21: -7.455847696e-06 | BN21: -7.479032844e-06 | BO21: -7.502275068e-06 | BP21: -7.525560975e-06 | BQ21: -7.548880546e-06 | BR21: -7.572243803e-06 | BS21: -7.595664055e-06 | BT21: -7.619117951e-06 | BU21: -7.642615628e-06 | BV21: -7.666170172e-06 | BW21: -7.689768618e-06 | BX21: -7.713400696e-06 | BY21: -7.737076678e-06 | BZ21: -7.760809436e-06 | CA21: -7.7845758e-06 | CB21: =(3 * CB18 - CB17 ^ 2) / 3 -> -7.808386158e-06 | CC21: -7.832230059e-06 | CD21: -7.856141082e-06 | CE21: -7.880085691e-06 | CF21: -7.90407441e-06 | CG21: -7.928096651e-06 | CH21: -7.952186051e-06 | CI21: -7.976309014e-06 | CJ21: -8.000476198e-06 | CK21: -8.024676882e-06 | CL21: -8.048933948e-06 | CM21: -8.073235319e-06 | CN21: -8.097570149e-06 | CO21: -8.121949283e-06 | CP21: -8.146384691e-06 | CQ21: -8.170864511e-06 | CR21: -8.195377758e-06 | CS21: -8.219958199e-06 | CT21: -8.244572098e-06 | CU21: -8.269230513e-06 | CV21: -8.29392232e-06 | CW21: -8.318681344e-06 | CX21: -8.343473787e-06 | CY21: -8.368310849e-06 | CZ21: -8.393181262e-06 | DA21: -8.418096291e-06 | DB21: -8.443078609e-06 | DC21: -8.468094315e-06 | DD21: -8.493154764e-06 | DE21: -8.518248531e-06 | DF21: -8.543409605e-06 | DG21: -8.568604019e-06
A22: Gasvolume at minimum pressure | B22: =B20+B11 -> 76.78802939 | C22: L | D22: End pressure | E22: =DG7 -> 147.6998789 | F22: bar | J22: q | K22: =2 * K17 ^ 3 / 27 - K17 * K18 / 3 + K19 -> -1.019334161e-08 | L22: =2 * L17 ^ 3 / 27 - L17 * L18 / 3 + L19 -> -1.024634854e-08 | M22: =2 * M17 ^ 3 / 27 - M17 * M18 / 3 + M19 -> -1.029950599e-08 | N22: =2 * N17 ^ 3 / 27 - N17 * N18 / 3 + N19 -> -1.035280026e-08 | O22: =2 * O17 ^ 3 / 27 - O17 * O18 / 3 + O19 -> -1.040624256e-08 | P22: =2 * P17 ^ 3 / 27 - P17 * P18 / 3 + P19 -> -1.045983566e-08 | Q22: -1.0513566e-08 | R22: -1.056744733e-08 | S22: -1.062147977e-08 | T22: -1.06756472e-08 | U22: -1.072996593e-08 | V22: -1.078443605e-08 | W22: -1.083904423e-08 | X22: -1.0893804e-08 | Y22: -1.094871289e-08 | Z22: -1.10037639e-08 | AA22: -1.105897046e-08 | AB22: -1.111433267e-08 | AC22: -1.116984441e-08 | AD22: -1.122549895e-08 | AE22: -1.128130947e-08 | AF22: -1.133727606e-08 | AG22: -1.139337977e-08 | AH22: -1.144963979e-08 | AI22: -1.150605623e-08 | AJ22: -1.156261653e-08 | AK22: -1.161932726e-08 | AL22: -1.167619473e-08 | AM22: -1.17332066e-08 | AN22: -1.179036924e-08 | AO22: -1.184768895e-08 | AP22: -1.190516585e-08 | AQ22: -1.196278159e-08 | AR22: -1.202055476e-08 | AS22: -1.207848543e-08 | AT22: -1.21365555e-08 | AU22: -1.219478333e-08 | AV22: -1.2253169e-08 | AW22: -1.231170642e-08 | AX22: -1.237039011e-08 | AY22: -1.242923198e-08 | AZ22: -1.248822595e-08 | BA22: -1.254736673e-08 | BB22: -1.260666602e-08 | BC22: -1.266611776e-08 | BD22: -1.272571297e-08 | BE22: -1.278546704e-08 | BF22: -1.284537393e-08 | BG22: -1.290543987e-08 | BH22: -1.296564394e-08 | BI22: -1.302600734e-08 | BJ22: -1.308653013e-08 | BK22: -1.314720633e-08 | BL22: -1.320802758e-08 | BM22: -1.326900859e-08 | BN22: -1.333014337e-08 | BO22: -1.339142385e-08 | BP22: -1.345285838e-08 | BQ22: -1.351445314e-08 | BR22: -1.357620217e-08 | BS22: -1.36380977e-08 | BT22: -1.37001538e-08 | BU22: -1.376236456e-08 | BV22: -1.382472247e-08 | BW22: -1.388723534e-08 | BX22: -1.394990923e-08 | BY22: -1.40127383e-08 | BZ22: -1.407571533e-08 | CA22: -1.413885375e-08 | CB22: =2 * CB17 ^ 3 / 27 - CB17 * CB18 / 3 + CB19 -> -1.420214774e-08 | CC22: -1.42656033e-08 | CD22: -1.432920173e-08 | CE22: -1.439296202e-08 | CF22: -1.445687839e-08 | CG22: -1.452095681e-08 | CH22: -1.458517897e-08 | CI22: -1.464956345e-08 | CJ22: -1.471410456e-08 | CK22: -1.477880816e-08 | CL22: -1.484366215e-08 | CM22: -1.490867315e-08 | CN22: -1.497384702e-08 | CO22: -1.503917814e-08 | CP22: -1.510466045e-08 | CQ22: -1.517030032e-08 | CR22: -1.523610352e-08 | CS22: -1.530205293e-08 | CT22: -1.536816596e-08 | CU22: -1.54344371e-08 | CV22: -1.550087204e-08 | CW22: -1.556745409e-08 | CX22: -1.563420023e-08 | CY22: -1.570110502e-08 | CZ22: -1.576817409e-08 | DA22: -1.583540204e-08 | DB22: -1.590277821e-08 | DC22: -1.597031904e-08 | DD22: -1.603801923e-08 | DE22: -1.610588426e-08 | DF22: -1.617389842e-08 | DG22: -1.624207772e-08
J23: D | K23: =(K21 / 3) ^ 3 + (K22 / 2) ^ 2 -> 1.685820666e-17 | L23: 1.703773026e-17 | M23: 1.721865613e-17 | N23: 1.740083974e-17 | O23: 1.758440761e-17 | P23: 1.776939617e-17 | Q23: 1.795565867e-17 | R23: 1.814335366e-17 | S23: 1.833248828e-17 | T23: 1.852288303e-17 | U23: 1.871472878e-17 | V23: 1.890803272e-17 | W23: 1.910264338e-17 | X23: 1.929872409e-17 | Y23: 1.9496251e-17 | Z23: 1.969514497e-17 | AA23: 1.989557265e-17 | AB23: 2.009754231e-17 | AC23: 2.030098537e-17 | AD23: 2.050582297e-17 | AE23: 2.071222412e-17 | AF23: 2.092019716e-17 | AG23: 2.112950681e-17 | AH23: 2.134040172e-17 | AI23: 2.155289028e-17 | AJ23: 2.176681542e-17 | AK23: 2.198226681e-17 | AL23: 2.219933379e-17 | AM23: 2.241785789e-17 | AN23: 2.263792831e-17 | AO23: 2.28596364e-17 | AP23: 2.308299071e-17 | AQ23: =(AQ21 / 3) ^ 3 + (AQ22 / 2) ^ 2 -> 2.330774446e-17 | AR23: 2.353415812e-17 | AS23: 2.37622403e-17 | AT23: 2.399174082e-17 | AU23: 2.422292364e-17 | AV23: 2.445579743e-17 | AW23: 2.469028067e-17 | AX23: 2.492629801e-17 | AY23: 2.516402893e-17 | AZ23: 2.540338985e-17 | BA23: 2.56443062e-17 | BB23: 2.58869589e-17 | BC23: 2.613126226e-17 | BD23: 2.637708263e-17 | BE23: 2.662466149e-17 | BF23: 2.687391103e-17 | BG23: 2.712493528e-17 | BH23: 2.737740706e-17 | BI23: 2.763166698e-17 | BJ23: 2.788772398e-17 | BK23: 2.814548686e-17 | BL23: 2.840482251e-17 | BM23: 2.866597778e-17 | BN23: 2.892885925e-17 | BO23: 2.919333466e-17 | BP23: 2.94595485e-17 | BQ23: 2.972761208e-17 | BR23: 2.999742928e-17 | BS23: 3.026886809e-17 | BT23: 3.054217951e-17 | BU23: 3.081726512e-17 | BV23: 3.109399389e-17 | BW23: =(BW21 / 3) ^ 3 + (BW22 / 2) ^ 2 -> 3.137250924e-17 | BX23: 3.165292774e-17 | BY23: 3.193514815e-17 | BZ23: 3.221903985e-17 | CA23: 3.250485789e-17 | CB23: 3.279249868e-17 | CC23: 3.308208264e-17 | CD23: 3.337325369e-17 | CE23: 3.366638204e-17 | CF23: 3.396136117e-17 | CG23: 3.425831453e-17 | CH23: 3.455688063e-17 | CI23: 3.48574352e-17 | CJ23: 3.515986876e-17 | CK23: 3.546430782e-17 | CL23: 3.577050596e-17 | CM23: 3.607860431e-17 | CN23: 3.638873197e-17 | CO23: 3.670077552e-17 | CP23: 3.701460732e-17 | CQ23: 3.733036786e-17 | CR23: 3.764818938e-17 | CS23: 3.79676958e-17 | CT23: 3.828927777e-17 | CU23: 3.861281715e-17 | CV23: 3.893844942e-17 | CW23: 3.926579303e-17 | CX23: 3.959524419e-17 | CY23: 3.992668161e-17 | CZ23: 4.026024404e-17 | DA23: 4.059580863e-17 | DB23: 4.093311737e-17 | DC23: =(DC21 / 3) ^ 3 + (DC22 / 2) ^ 2 -> 4.127257371e-17 | DD23: =(DD21 / 3) ^ 3 + (DD22 / 2) ^ 2 -> 4.161405262e-17 | DE23: =(DE21 / 3) ^ 3 + (DE22 / 2) ^ 2 -> 4.195769668e-17 | DF23: =(DF21 / 3) ^ 3 + (DF22 / 2) ^ 2 -> 4.230311178e-17 | DG23: =(DG21 / 3) ^ 3 + (DG22 / 2) ^ 2 -> 4.265070697e-17
J24: u | K24: =(-K22 / 2 +K23 ^ (1 / 2)) ^ (1 / 3) -> 0.002095572338 | L24: 0.002099232737 | M24: 0.002102890189 | N24: 0.002106542822 | O24: 0.00211019217 | P24: 0.002113838613 | Q24: 0.002117480303 | R24: 0.002121119117 | S24: 0.002124755064 | T24: 0.002128385966 | U24: 0.002132014031 | V24: 0.00213563927 | W24: 0.002139259883 | X24: 0.002142877698 | Y24: 0.002146492378 | Z24: 0.002150102984 | AA24: 0.002153711316 | AB24: 0.002157317385 | AC24: 0.002160920367 | AD24: 0.002164519361 | AE24: 0.002168116127 | AF24: 0.002171710674 | AG24: 0.002175300471 | AH24: 0.002178888076 | AI24: 0.002182473497 | AJ24: 0.002186055063 | AK24: 0.002189633644 | AL24: 0.002193210076 | AM24: 0.002196782717 | AN24: 0.00220035241 | AO24: 0.002203919987 | AP24: 0.002207485455 | AQ24: =(-AQ22 / 2 +AQ23 ^ (1 / 2)) ^ (1 / 3) -> 0.00221104639 | AR24: 0.002214605242 | AS24: 0.002218162018 | AT24: 0.002221714325 | AU24: 0.002225264581 | AV24: 0.002228812791 | AW24: 0.00223235815 | AX24: 0.002235899933 | AY24: 0.002239439703 | AZ24: 0.002242976653 | BA24: 0.002246510087 | BB24: 0.002250041537 | BC24: 0.002253570201 | BD24: 0.002257094897 | BE24: 0.002260617641 | BF24: 0.002264137633 | BG24: 0.002267655687 | BH24: 0.002271169055 | BI24: 0.002274680509 | BJ24: 0.002278190055 | BK24: 0.0022816969 | BL24: 0.002285199945 | BM24: 0.002288701112 | BN24: 0.00229219961 | BO24: 0.002295694376 | BP24: 0.002299186499 | BQ24: 0.002302676779 | BR24: 0.002306164433 | BS24: 0.002309648433 | BT24: 0.002313130619 | BU24: 0.00231661021 | BV24: 0.002320086211 | BW24: =(-BW22 / 2 +BW23 ^ (1 / 2)) ^ (1 / 3) -> 0.00232355964 | BX24: 0.00232703129 | BY24: 0.002330500384 | BZ24: 0.002333965964 | CA24: 0.002337429791 | CB24: 0.002340891092 | CC24: 0.002344350651 | CD24: 0.002347805994 | CE24: 0.002351259616 | CF24: 0.00235471075 | CG24: 0.002358160174 | CH24: 0.002361605459 | CI24: 0.002365049056 | CJ24: 0.002368490202 | CK24: 0.002371929669 | CL24: 0.002375365838 | CM24: 0.002378799583 | CN24: 0.002382231674 | CO24: 0.002385661355 | CP24: 0.002389087807 | CQ24: 0.00239251187 | CR24: 0.002395934308 | CS24: 0.002399352817 | CT24: 0.00240276972 | CU24: 0.00240618427 | CV24: 0.002409597224 | CW24: 0.002413006319 | CX24: 0.002416413838 | CY24: 0.002419819036 | CZ24: 0.002423222667 | DA24: 0.00242662399 | DB24: 0.002430021539 | DC24: =(-DC22 / 2 +DC23 ^ (1 / 2)) ^ (1 / 3) -> 0.002433417543 | DD24: =(-DD22 / 2 +DD23 ^ (1 / 2)) ^ (1 / 3) -> 0.002436811269 | DE24: =(-DE22 / 2 +DE23 ^ (1 / 2)) ^ (1 / 3) -> 0.002440203458 | DF24: =(-DF22 / 2 +DF23 ^ (1 / 2)) ^ (1 / 3) -> 0.002443591942 | DG24: =(-DG22 / 2 +DG23 ^ (1 / 2)) ^ (1 / 3) -> 0.002446978907
J25: v | K25: =(-K22 / 2 - K23 ^ (1 / 2)) ^ (1 / 3) -> 0.0009969225905 | L25: =(-L22 / 2 - L23 ^ (1 / 2)) ^ (1 / 3) -> 0.000998496311 | M25: =(-M22 / 2 - M23 ^ (1 / 2)) ^ (1 / 3) -> 0.001000072041 | N25: =(-N22 / 2 - N23 ^ (1 / 2)) ^ (1 / 3) -> 0.001001653515 | O25: =(-O22 / 2 - O23 ^ (1 / 2)) ^ (1 / 3) -> 0.00100323772 | P25: =(-P22 / 2 - P23 ^ (1 / 2)) ^ (1 / 3) -> 0.001004823916 | Q25: 0.001006415819 | R25: 0.001008009704 | S25: 0.001009605562 | T25: 0.001011207812 | U25: 0.001012812028 | V25: 0.0010144182 | W25: 0.001016030008 | X25: 0.001017643764 | Y25: 0.001019260172 | Z25: 0.001020881177 | AA25: 0.001022503108 | AB25: 0.001024125951 | AC25: 0.001025751414 | AD25: 0.001027381387 | AE25: 0.001029012241 | AF25: 0.001030643965 | AG25: 0.001032281854 | AH25: 0.001033920594 | AI25: 0.001035560173 | AJ25: 0.001037204117 | AK25: 0.001038850621 | AL25: 0.001040497933 | AM25: 0.001042149544 | AN25: 0.001043803694 | AO25: 0.001045458622 | AP25: 0.001047114317 | AQ25: 0.001048775991 | AR25: 0.001050438414 | AS25: 0.001052101574 | AT25: 0.001053770657 | AU25: 0.00105544046 | AV25: 0.001057110971 | AW25: 0.001058783958 | AX25: 0.001060461023 | AY25: 0.001062138768 | AZ25: 0.001063818968 | BA25: 0.001065503185 | BB25: 0.001067188053 | BC25: 0.001068875357 | BD25: 0.001070567748 | BE25: 0.001072260764 | BF25: 0.001073956198 | BG25: 0.001075652241 | BH25: 0.001077355087 | BI25: 0.001079058526 | BJ25: 0.001080762547 | BK25: 0.001082468956 | BL25: 0.001084180274 | BM25: 0.001085892147 | BN25: 0.001087606392 | BO25: 0.00108932547 | BP25: 0.00109104691 | BQ25: 0.001092768876 | BR25: 0.001094493191 | BS25: 0.001096222257 | BT25: 0.001097951824 | BU25: 0.001099683724 | BV25: 0.001101420303 | BW25: 0.001103159205 | BX25: 0.001104898579 | BY25: 0.001106640264 | BZ25: 0.001108386548 | CA25: 0.00111013328 | CB25: =(-CB22 / 2 - CB23 ^ (1 / 2)) ^ (1 / 3) -> 0.001111882306 | CC25: 0.001113631765 | CD25: 0.001115387601 | CE25: 0.001117143855 | CF25: 0.001118902383 | CG25: 0.001120661316 | CH25: 0.001122426557 | CI25: 0.001124192187 | CJ25: 0.001125960073 | CK25: 0.001127728334 | CL25: 0.001129500955 | CM25: 0.001131275816 | CN25: 0.001133051029 | CO25: 0.001134828471 | CP25: 0.001136610197 | CQ25: 0.001138394145 | CR25: 0.001140178417 | CS25: 0.001141968804 | CT25: 0.001143759502 | CU25: 0.001145552402 | CV25: 0.0011473456 | CW25: 0.001149144849 | CX25: 0.001150944381 | CY25: 0.001152746097 | CZ25: 0.001154548084 | DA25: 0.001156352244 | DB25: 0.001158162383 | DC25: 0.001159972777 | DD25: 0.001161785332 | DE25: 0.001163598128 | DF25: 0.001165416841 | DG25: 0.001167235782
J26: Vs | K26: =K24 + K25 -K17 / 3 -> 0.004472850485 | L26: 0.004482005459 | M26: 0.004491160351 | N26: 0.004500315112 | O26: 0.004509469781 | P26: 0.004518624369 | Q26: 0.004527778827 | R26: 0.004536933204 | S26: 0.004546087501 | T26: 0.00455524166 | U26: 0.00456439574 | V26: 0.00457354974 | W26: 0.004582703614 | X26: 0.004591857409 | Y26: 0.004601011116 | Z26: 0.004610164711 | AA26: 0.004619318241 | AB26: 0.004628471707 | AC26: 0.004637625087 | AD26: 0.004646778357 | AE26: 0.004655931563 | AF26: 0.004665084708 | AG26: 0.004674237721 | AH26: 0.004683390673 | AI26: 0.004692543563 | AJ26: 0.004701696347 | AK26: 0.004710849047 | AL26: 0.004720001687 | AM26: 0.004729154223 | AN26: 0.004738306676 | AO26: 0.00474745907 | AP26: 0.004756611405 | AQ26: =AQ24 + AQ25 -AQ17 / 3 -> 0.004765763615 | AR26: 0.004774915767 | AS26: 0.004784067861 | AT26: 0.004793219831 | AU26: 0.004802371744 | AV26: 0.0048115236 | AW26: 0.004820675378 | AX26: 0.004829827056 | AY26: 0.004838978679 | AZ26: 0.004848130223 | BA26: 0.00485728167 | BB26: 0.004866433063 | BC26: 0.004875584378 | BD26: 0.004884735582 | BE26: 0.004893886734 | BF26: 0.004903037808 | BG26: 0.004912188831 | BH26: 0.004921339721 | BI26: 0.004930490559 | BJ26: 0.004939641346 | BK26: 0.004948792057 | BL26: 0.004957942663 | BM26: 0.004967093217 | BN26: 0.004976243698 | BO26: 0.004985394073 | BP26: 0.004994544376 | BQ26: 0.005003694628 | BR26: 0.005012844809 | BS26: 0.005021994886 | BT26: 0.005031144914 | BU26: 0.005040294871 | BV26: 0.005049444726 | BW26: =BW24 + BW25 -BW17 / 3 -> 0.00505859451 | BX26: 0.005067744247 | BY26: 0.005076893913 | BZ26: 0.005086043479 | CA26: 0.005095192998 | CB26: 0.005104342448 | CC26: 0.005113491852 | CD26: 0.005122641134 | CE26: 0.005131790371 | CF26: 0.005140939539 | CG26: 0.005150088663 | CH26: 0.005159237666 | CI26: 0.005168386625 | CJ26: 0.005177535517 | CK26: 0.005186684364 | CL26: 0.005195833118 | CM26: 0.005204981804 | CN26: 0.005214130448 | CO26: 0.005223279024 | CP26: 0.005232427509 | CQ26: 0.005241575927 | CR26: 0.005250724304 | CS26: 0.005259872565 | CT26: 0.005269020785 | CU26: 0.00527816894 | CV26: 0.005287317054 | CW26: 0.005296465055 | CX26: 0.005305613015 | CY26: 0.005314760911 | CZ26: 0.005323908768 | DA26: 0.00533305656 | DB26: 0.005342204241 | DC26: =DC24 + DC25 -DC17 / 3 -> 0.005351351883 | DD26: =DD24 + DD25 -DD17 / 3 -> 0.005360499461 | DE26: =DE24 + DE25 -DE17 / 3 -> 0.005369647001 | DF26: =DF24 + DF25 -DF17 / 3 -> 0.005378794431 | DG26: =DG24 + DG25 -DG17 / 3 -> 0.005387941823
J27: Volumen | K27: =K26*mGas -> 0.06378802939 | L27: 0.06391858993 | M27: 0.06404914929 | N27: 0.06417970679 | O27: 0.06431026298 | P27: 0.064440818 | Q27: 0.06457137118 | R27: 0.06470192321 | S27: 0.06483247408 | T27: 0.064963023 | U27: 0.06509357078 | V27: 0.06522411743 | W27: 0.06535466227 | X27: 0.06548520599 | Y27: 0.06561574846 | Z27: 0.06574628932 | AA27: 0.06587682927 | AB27: 0.0660073683 | AC27: 0.0661379061 | AD27: 0.06626844233 | AE27: 0.06639897766 | AF27: 0.0665295121 | AG27: 0.06666004468 | AH27: 0.06679057637 | AI27: 0.06692110719 | AJ27: 0.06705163649 | AK27: 0.0671821646 | AL27: 0.06731269185 | AM27: 0.0674432176 | AN27: 0.06757374219 | AO27: 0.06770426593 | AP27: 0.06783478883 | AQ27: =AQ26*mGas -> 0.06796530995 | AR27: 0.06809583023 | AS27: 0.0682263497 | AT27: 0.06835686739 | AU27: 0.06848738428 | AV27: 0.06861790035 | AW27: 0.0687484153 | AX27: 0.06887892883 | AY27: 0.06900944157 | AZ27: 0.0691399532 | BA27: 0.06927046343 | BB27: 0.06940097289 | BC27: 0.06953148125 | BD27: 0.06966198803 | BE27: 0.06979249404 | BF27: 0.06992299897 | BG27: 0.07005350315 | BH27: 0.07018400545 | BI27: 0.070314507 | BJ27: 0.07044500781 | BK27: 0.07057550757 | BL27: 0.0707060058 | BM27: 0.0708365033 | BN27: 0.07096699975 | BO27: 0.07109749471 | BP27: 0.07122798862 | BQ27: 0.07135848183 | BR27: 0.071488974 | BS27: 0.0716194647 | BT27: 0.0717499547 | BU27: 0.07188044368 | BV27: 0.07201093122 | BW27: =BW26*mGas -> 0.07214141774 | BX27: 0.07227190358 | BY27: 0.07240238842 | BZ27: 0.07253287183 | CA27: 0.07266335458 | CB27: 0.07279383633 | CC27: 0.07292431743 | CD27: 0.07305479679 | CE27: 0.07318527551 | CF27: 0.07331575325 | CG27: 0.07344623034 | CH27: 0.07357670573 | CI27: 0.07370718049 | CJ27: 0.07383765428 | CK27: 0.07396812744 | CL27: 0.07409859927 | CM27: 0.07422907013 | CN27: 0.07435954039 | CO27: 0.07449000969 | CP27: 0.07462047768 | CQ27: 0.07475094472 | CR27: 0.07488141117 | CS27: 0.07501187597 | CT27: 0.07514234019 | CU27: 0.07527280347 | CV27: 0.07540326618 | CW27: 0.07553372726 | CX27: 0.07566418778 | CY27: 0.07579464737 | CZ27: 0.0759251064 | DA27: 0.07605556451 | DB27: 0.07618602104 | DC27: =DC26*mGas -> 0.07631647701 | DD27: =DD26*mGas -> 0.07644693208 | DE27: =DE26*mGas -> 0.07657738659 | DF27: =DF26*mGas -> 0.07670783954 | DG27: =DG26*mGas -> 0.07683829194
H29: Customer located in: | I29: Europa | J29: Partielle Ableitung nach T
J30: Alpha T | K30: =(1 + m * (1 - ((K8+K41) / Tc) ^ 0.5)) ^ 2 -> 0.5139910166 | L30: =(1 + m * (1 - ((L8+L41) / Tc) ^ 0.5)) ^ 2 -> 0.5146595495 | M30: 0.515326989 | N30: 0.5159912558 | O30: 0.516654032 | P30: 0.5173157287 | Q30: 0.5179742842 | R30: 0.518631769 | S30: 0.5192881878 | T30: 0.5199410957 | U30: 0.5205929462 | V30: 0.5212437441 | W30: 0.5218914593 | X30: 0.5225381303 | Y30: 0.5231833693 | Z30: 0.5238261072 | AA30: 0.5244683657 | AB30: 0.5251101501 | AC30: 0.5257505228 | AD30: 0.5263884492 | AE30: 0.5270259191 | AF30: 0.5276629377 | AG30: 0.5282966094 | AH30: 0.528929842 | AI30: 0.5295626405 | AJ30: 0.5301930823 | AK30: 0.5308221534 | AL30: 0.5314508074 | AM30: 0.5320771468 | AN30: 0.5327021304 | AO30: 0.5333267136 | AP30: 0.5339509016 | AQ30: =(1 + m * (1 - ((AQ8+AQ41) / Tc) ^ 0.5)) ^ 2 -> 0.5345718716 | AR30: 0.5351924579 | AS30: 0.5358126653 | AT30: 0.5364296932 | AU30: 0.5370463537 | AV30: 0.5376626516 | AW30: 0.5382776343 | AX30: 0.5388904403 | AY30: 0.5395028998 | AZ30: 0.5401140578 | BA30: 0.5407230783 | BB30: 0.5413317681 | BC30: 0.5419391698 | BD30: 0.5425438666 | BE30: 0.5431482487 | BF30: 0.5437513563 | BG30: 0.5443541565 | BH30: 0.544953346 | BI30: 0.5455522389 | BJ30: 0.5461508399 | BK30: 0.5467481876 | BL30: 0.5473429444 | BM30: 0.5479374247 | BN30: 0.5485306647 | BO30: 0.549121361 | BP30: 0.5497108267 | BQ30: 0.5503000335 | BR30: 0.5508880168 | BS30: 0.5514735092 | BT30: 0.5520587575 | BU30: 0.5526427948 | BV30: 0.5532243867 | BW30: =(1 + m * (1 - ((BW8+BW41) / Tc) ^ 0.5)) ^ 2 -> 0.553804777 | BX30: 0.5543849401 | BY30: 0.5549639086 | BZ30: 0.5555404822 | CA30: 0.5561168432 | CB30: 0.5566920215 | CC30: 0.5572669936 | CD30: 0.5578386486 | CE30: 0.5584101072 | CF30: 0.5589803986 | CG30: 0.5595505001 | CH30: 0.5601173325 | CI30: 0.5606839845 | CJ30: 0.5612494845 | CK30: 0.5618148105 | CL30: 0.5623778914 | CM30: 0.5629398313 | CN30: 0.5635016111 | CO30: 0.564062256 | CP30: 0.5646207027 | CQ30: 0.565178023 | CR30: 0.5657351985 | CS30: 0.5662892356 | CT30: 0.566843137 | CU30: 0.5673959262 | CV30: 0.5679485859 | CW30: 0.5684981512 | CX30: 0.5690475961 | CY30: 0.5695959424 | CZ30: 0.5701441742 | DA30: 0.5706913132 | DB30: 0.5712354079 | DC30: 0.5717793985 | DD30: 0.5723223075 | DE30: 0.5728651182 | DF30: 0.5734049268 | DG30: 0.5739446457
J31: e | K31: =-Rs * (K8+K41) / K7 / 100000 -> -0.0041410808 | L31: -0.004152843421 | M31: -0.004164608608 | N31: -0.004176370625 | O31: -0.004188134031 | P31: -0.004199899934 | Q31: -0.004211662585 | R31: -0.004223427678 | S31: -0.004235195207 | T31: -0.004246958288 | U31: -0.004258723743 | V31: -0.004270491566 | W31: -0.004282255979 | X31: -0.004294022707 | Y31: -0.004305790624 | Z31: -0.004317556634 | AA31: -0.004329326491 | AB31: -0.004341100209 | AC31: -0.004352875071 | AD31: -0.004364648038 | AE31: -0.004376424855 | AF31: -0.004388205534 | AG31: -0.004399981573 | AH31: -0.00441176145 | AI31: -0.004423545179 | AJ31: -0.004435327058 | AK31: -0.004447109962 | AL31: -0.004458896709 | AM31: -0.004470681615 | AN31: -0.004482467504 | AO31: -0.004494257229 | AP31: -0.004506050805 | AQ31: =-Rs * (AQ8+AQ41) / AQ7 / 100000 -> -0.004517839665 | AR31: -0.004529632355 | AS31: -0.00454142889 | AT31: -0.004553220687 | AU31: -0.004565016309 | AV31: -0.004576815771 | AW31: -0.004588616127 | AX31: -0.004600414674 | AY31: -0.004612217059 | AZ31: -0.004624020299 | BA31: -0.004635821747 | BB31: -0.00464762703 | BC31: -0.004659433131 | BD31: -0.004671235541 | BE31: -0.004683041775 | BF31: -0.00469484878 | BG31: -0.004706659617 | BH31: -0.004718463707 | BI31: -0.004730271603 | BJ31: -0.00474208332 | BK31: -0.004753895753 | BL31: -0.00476570454 | BM31: -0.00477751714 | BN31: -0.004789330413 | BO31: -0.004801140068 | BP31: -0.004812950349 | BQ31: -0.004824764428 | BR31: -0.004836579125 | BS31: -0.004848390216 | BT31: -0.004860205101 | BU31: -0.004872020561 | BV31: -0.004883832448 | BW31: =-Rs * (BW8+BW41) / BW7 / 100000 -> -0.004895644866 | BX31: -0.004907461065 | BY31: -0.004919277788 | BZ31: -0.004931090953 | CA31: -0.004942907897 | CB31: -0.004954725325 | CC31: -0.004966546543 | CD31: -0.004978360917 | CE31: -0.00499017906 | CF31: -0.005001997638 | CG31: -0.005013819998 | CH31: -0.005025635492 | CI31: -0.005037454749 | CJ31: -0.005049274392 | CK31: -0.00506109781 | CL31: -0.005072917762 | CM31: -0.005084738064 | CN31: -0.005096562144 | CO31: -0.005108386568 | CP31: -0.005120207549 | CQ31: -0.005132028835 | CR31: -0.005143853895 | CS31: -0.005155672053 | CT31: -0.00516749397 | CU31: -0.005179316148 | CV31: -0.005191142097 | CW31: -0.00520296113 | CX31: -0.00521478392 | CY31: -0.005226606928 | CZ31: -0.005238433706 | DA31: -0.005250260696 | DB31: -0.005262080738 | DC31: -0.005273904532 | DD31: -0.005285728489 | DE31: -0.005297556212 | DF31: -0.005309376976 | DG31: -0.005321201493
H32: Suggestion | I32: Bosch Rexroth Accumulator | J32: f | K32: =-(100000* K7 * b ^ 2 + Rs * (K8+K41) * b - a * K30) / K7 / 100000 -> -5.512564534e-07 | L32: -5.395956523e-07 | M32: -5.278738868e-07 | N32: -5.161250735e-07 | O32: -5.043222061e-07 | P32: -4.924586581e-07 | Q32: -4.80568556e-07 | R32: -4.686180374e-07 | S32: -4.566070595e-07 | T32: -4.445766807e-07 | U32: -4.324861747e-07 | V32: -4.203354999e-07 | W32: -4.081592501e-07 | X32: -3.959231003e-07 | Y32: -3.836337542e-07 | Z32: -3.713098088e-07 | AA32: -3.589165928e-07 | AB32: -3.46453919e-07 | AC32: -3.339381108e-07 | AD32: -3.213875113e-07 | AE32: -3.087673382e-07 | AF32: -2.960774008e-07 | AG32: -2.833692729e-07 | AH32: -2.705914491e-07 | AI32: -2.577437368e-07 | AJ32: -2.448608301e-07 | AK32: -2.319251853e-07 | AL32: -2.189195212e-07 | AM32: -2.058785562e-07 | AN32: -1.927849944e-07 | AO32: -1.796212766e-07 | AP32: -1.663872046e-07 | AQ32: =-(100000* AQ7 * b ^ 2 + Rs * (AQ8+AQ41) * b - a * AQ30) / AQ7 / 100000 -> -1.531354271e-07 | AR32: -1.398133494e-07 | AS32: -1.264207713e-07 | AT32: -1.130106476e-07 | AU32: -9.953007317e-08 | AV32: -8.597884541e-08 | AW32: -7.237514945e-08 | AX32: -5.873573965e-08 | AY32: -4.50255163e-08 | AZ32: -3.126295611e-08 | BA32: -1.746453794e-08 | BB32: -3.59513916e-09 | BC32: 1.032646802e-08 | BD32: 2.427207917e-08 | BE32: 3.828874478e-08 | BF32: 5.23573994e-08 | BG32: 6.649732e-08 | BH32: 8.064201103e-08 | BI32: 9.485783834e-08 | BJ32: 1.091450149e-07 | BK32: 1.234840145e-07 | BL32: 1.378472542e-07 | BM32: 1.522819347e-07 | BN32: 1.66768227e-07 | BO32: 1.812788989e-07 | BP32: 1.958408746e-07 | BQ32: 2.104743892e-07 | BR32: 2.251592564e-07 | BS32: 2.398685316e-07 | BT32: 2.546494521e-07 | BU32: 2.694815211e-07 | BV32: 2.843381561e-07 | BW32: =-(100000* BW7 * b ^ 2 + Rs * (BW8+BW41) * b - a * BW30) / BW7 / 100000 -> 2.992456378e-07 | BX32: 3.142248772e-07 | BY32: 3.292550116e-07 | BZ32: 3.443097615e-07 | CA32: 3.594363908e-07 | CB32: 3.746137182e-07 | CC32: 3.898631496e-07 | CD32: 4.051159018e-07 | CE32: 4.204406615e-07 | CF32: 4.358158727e-07 | CG32: 4.512633182e-07 | CH32: 4.667137795e-07 | CI32: 4.822363841e-07 | CJ32: 4.978091963e-07 | CK32: 5.134543806e-07 | CL32: 5.29124653e-07 | CM32: 5.448449479e-07 | CN32: 5.606377636e-07 | CO32: 5.764806507e-07 | CP32: 5.923487235e-07 | CQ32: 6.082665821e-07 | CR32: 6.242571163e-07 | CS32: 6.402499561e-07 | CT32: 6.563153971e-07 | CU32: 6.724303897e-07 | CV32: 6.886182197e-07 | CW32: 7.04808076e-07 | CX32: 7.210707011e-07 | CY32: 7.373826467e-07 | CZ32: 7.537675999e-07 | DA32: 7.702019225e-07 | DB32: 7.86637835e-07 | DC32: 8.031466886e-07 | DD32: 8.197045777e-07 | DE32: 8.363356492e-07 | DF32: 8.529680452e-07 | DG32: 8.696735663e-07
J33: g | K33: =-b * a * K30 /K7 / 100000 -> -4.172229833e-09 | L33: -4.194265577e-09 | M33: -4.216362213e-09 | N33: -4.238481894e-09 | O33: -4.260654749e-09 | P33: -4.28288816e-09 | Q33: -4.305144067e-09 | R33: -4.327460226e-09 | S33: -4.349836673e-09 | T33: -4.372227645e-09 | U33: -4.394678529e-09 | V33: -4.41718936e-09 | W33: -4.4397216e-09 | X33: -4.46231348e-09 | Y33: -4.484957525e-09 | Z33: -4.507633029e-09 | AA33: -4.53037858e-09 | AB33: -4.553194372e-09 | AC33: -4.576062227e-09 | AD33: -4.598961738e-09 | AE33: -4.621931589e-09 | AF33: -4.644971975e-09 | AG33: -4.668025548e-09 | AH33: -4.691149569e-09 | AI33: -4.714344234e-09 | AJ33: -4.737570982e-09 | AK33: -4.760849305e-09 | AL33: -4.78419839e-09 | AM33: -4.807579668e-09 | AN33: -4.831012347e-09 | AO33: -4.854515913e-09 | AP33: -4.87809057e-09 | AQ33: =-b * a * AQ30 /AQ7 / 100000 -> -4.901677878e-09 | AR33: -4.925336206e-09 | AS33: -4.94906576e-09 | AT33: -4.972807792e-09 | AU33: -4.996620984e-09 | AV33: -5.020505544e-09 | AW33: -5.044441298e-09 | AX33: -5.068409673e-09 | AY33: -5.092449567e-09 | AZ33: -5.116540494e-09 | BA33: -5.140664194e-09 | BB33: -5.164859572e-09 | BC33: -5.189105825e-09 | BD33: -5.213371722e-09 | BE33: -5.237709356e-09 | BF33: -5.262097612e-09 | BG33: -5.286557817e-09 | BH33: -5.311016384e-09 | BI33: -5.335546751e-09 | BJ33: -5.360149137e-09 | BK33: -5.384801935e-09 | BL33: -5.409474643e-09 | BM33: -5.434219451e-09 | BN33: -5.459014427e-09 | BO33: -5.483829475e-09 | BP33: -5.508694352e-09 | BQ33: -5.533631409e-09 | BR33: -5.558618336e-09 | BS33: -5.583625371e-09 | BT33: -5.608704684e-09 | BU33: -5.633833632e-09 | BV33: -5.65898287e-09 | BW33: =-b * a * BW30 /BW7 / 100000 -> -5.684181412e-09 | BX33: -5.709452329e-09 | BY33: -5.734772588e-09 | BZ33: -5.760113201e-09 | CA33: -5.785526302e-09 | CB33: -5.810988521e-09 | CC33: -5.836523455e-09 | CD33: -5.862055268e-09 | CE33: -5.887659686e-09 | CF33: -5.913312939e-09 | CG33: -5.939039024e-09 | CH33: -5.964761676e-09 | CI33: -5.990557056e-09 | CJ33: -6.016400993e-09 | CK33: -6.042317889e-09 | CL33: -6.068255674e-09 | CM33: -6.094241806e-09 | CN33: -6.120301041e-09 | CO33: -6.146408664e-09 | CP33: -6.172537292e-09 | CQ33: -6.198713997e-09 | CR33: -6.224963951e-09 | CS33: -6.251209757e-09 | CT33: -6.277528727e-09 | CU33: -6.303895508e-09 | CV33: -6.330335691e-09 | CW33: -6.356771444e-09 | CX33: -6.383280521e-09 | CY33: -6.409837147e-09 | CZ33: -6.436467338e-09 | DA33: -6.463145119e-09 | DB33: -6.489818024e-09 | DC33: -6.516564412e-09 | DD33: -6.543358026e-09 | DE33: -6.570225367e-09 | DF33: -6.597087567e-09 | DG33: -6.624023428e-09
H34: Type | I34: HAB
H35: Nominal volume | I35: =VLOOKUP(Volumen-0.0001,Data!A2:B12,2,TRUE) -> 2 x 50 | J35: o | K35: =(3 * K32 - K31 ^ 2) / 3 -> -6.267439851e-06 | L35: =(3 * L32 - L31 ^ 2) / 3 -> -6.28829848e-06 | M35: =(3 * M32 - M31 ^ 2) / 3 -> -6.309195507e-06 | N35: =(3 * N32 - N31 ^ 2) / 3 -> -6.330148938e-06 | O35: =(3 * O32 - O31 ^ 2) / 3 -> -6.351144426e-06 | P35: =(3 * P32 - P31 ^ 2) / 3 -> -6.372178476e-06 | Q35: -6.393269133e-06 | R35: -6.414398488e-06 | S35: -6.435566541e-06 | T35: -6.456794914e-06 | U35: -6.478062147e-06 | V35: -6.49936824e-06 | W35: -6.520731341e-06 | X35: -6.542133437e-06 | Y35: -6.563578053e-06 | Z35: -6.585074903e-06 | AA35: -6.606605881e-06 | AB35: -6.628170928e-06 | AC35: -6.649778571e-06 | AD35: -6.671438344e-06 | AE35: -6.693132175e-06 | AF35: -6.714860004e-06 | AG35: -6.736648554e-06 | AH35: -6.758471146e-06 | AI35: -6.780327721e-06 | AJ35: -6.8022362e-06 | AK35: -6.824187522e-06 | AL35: -6.846172808e-06 | AM35: -6.868209924e-06 | AN35: -6.89028997e-06 | AO35: -6.912403958e-06 | AP35: -6.934551824e-06 | AQ35: -6.956760508e-06 | AR35: -6.979003107e-06 | AS35: -7.001279558e-06 | AT35: -7.023616856e-06 | AU35: -7.04598804e-06 | AV35: -7.068393046e-06 | AW35: -7.090841135e-06 | AX35: -7.113340798e-06 | AY35: -7.135874249e-06 | AZ35: -7.158450863e-06 | BA35: -7.18107896e-06 | BB35: -7.203740809e-06 | BC35: -7.226445898e-06 | BD35: -7.249208415e-06 | BE35: -7.272004678e-06 | BF35: -7.29484429e-06 | BG35: -7.317717595e-06 | BH35: -7.340657908e-06 | BI35: -7.363631974e-06 | BJ35: -7.386639723e-06 | BK35: -7.409690929e-06 | BL35: -7.432799333e-06 | BM35: -7.455941408e-06 | BN35: -7.479127042e-06 | BO35: -7.502369752e-06 | BP35: -7.525656146e-06 | BQ35: -7.548976207e-06 | BR35: -7.572339955e-06 | BS35: -7.595760699e-06 | BT35: -7.619215089e-06 | BU35: -7.642713262e-06 | BV35: -7.666268302e-06 | BW35: -7.689867245e-06 | BX35: -7.713499824e-06 | BY35: -7.737176306e-06 | BZ35: -7.760909567e-06 | CA35: -7.784676434e-06 | CB35: =(3 * CB32 - CB31 ^ 2) / 3 -> -7.808487297e-06 | CC35: -7.832331706e-06 | CD35: -7.856243237e-06 | CE35: -7.880188356e-06 | CF35: -7.904177585e-06 | CG35: -7.92820034e-06 | CH35: -7.952290253e-06 | CI35: -7.976413731e-06 | CJ35: -8.000581432e-06 | CK35: -8.024782635e-06 | CL35: -8.04904022e-06 | CM35: -8.073342113e-06 | CN35: -8.097677465e-06 | CO35: -8.122057124e-06 | CP35: -8.146493057e-06 | CQ35: -8.170973405e-06 | CR35: -8.19548718e-06 | CS35: -8.220068151e-06 | CT35: -8.244682581e-06 | CU35: -8.26934153e-06 | CV35: -8.294033871e-06 | CW35: -8.318793431e-06 | CX35: -8.343586411e-06 | CY35: -8.368424012e-06 | CZ35: -8.393294965e-06 | DA35: -8.418210536e-06 | DB35: -8.443193397e-06 | DC35: -8.468209648e-06 | DD35: -8.493270642e-06 | DE35: -8.518364958e-06 | DF35: -8.54352658e-06 | DG35: -8.568721544e-06
H36: Maximum pressure | I36: =VLOOKUP(I35,Data!B2:D12,3,TRUE) -> 330 | J36: q | K36: =2 * K31 ^ 3 / 27 - K31 * K32 / 3 + K33 -> -1.019342396e-08 | L36: =2 * L31 ^ 3 / 27 - L31 * L32 / 3 + L33 -> -1.02464316e-08 | M36: =2 * M31 ^ 3 / 27 - M31 * M32 / 3 + M33 -> -1.029958977e-08 | N36: =2 * N31 ^ 3 / 27 - N31 * N32 / 3 + N33 -> -1.035288475e-08 | O36: =2 * O31 ^ 3 / 27 - O31 * O32 / 3 + O33 -> -1.040632777e-08 | P36: =2 * P31 ^ 3 / 27 - P31 * P32 / 3 + P33 -> -1.04599216e-08 | Q36: -1.051365267e-08 | R36: -1.056753474e-08 | S36: -1.062156791e-08 | T36: -1.067573609e-08 | U36: -1.073005556e-08 | V36: -1.078452644e-08 | W36: -1.083913537e-08 | X36: -1.089389591e-08 | Y36: -1.094880556e-08 | Z36: -1.100385734e-08 | AA36: -1.105906467e-08 | AB36: -1.111442766e-08 | AC36: -1.116994018e-08 | AD36: -1.122559551e-08 | AE36: -1.128140682e-08 | AF36: -1.133737421e-08 | AG36: -1.139347872e-08 | AH36: -1.144973955e-08 | AI36: -1.15061568e-08 | AJ36: -1.156271792e-08 | AK36: -1.161942946e-08 | AL36: -1.167629776e-08 | AM36: -1.173331046e-08 | AN36: -1.179047393e-08 | AO36: -1.184779448e-08 | AP36: -1.190527222e-08 | AQ36: -1.196288882e-08 | AR36: -1.202066283e-08 | AS36: -1.207859436e-08 | AT36: -1.21366653e-08 | AU36: -1.219489399e-08 | AV36: -1.225328053e-08 | AW36: -1.231181883e-08 | AX36: -1.23705034e-08 | AY36: -1.242934616e-08 | AZ36: -1.248834102e-08 | BA36: -1.254748269e-08 | BB36: -1.260678289e-08 | BC36: -1.266623553e-08 | BD36: -1.272583165e-08 | BE36: -1.278558665e-08 | BF36: -1.284549445e-08 | BG36: -1.290556132e-08 | BH36: -1.296576632e-08 | BI36: -1.302613065e-08 | BJ36: -1.308665439e-08 | BK36: -1.314733153e-08 | BL36: -1.320815373e-08 | BM36: -1.326913569e-08 | BN36: -1.333027143e-08 | BO36: -1.339155288e-08 | BP36: -1.345298839e-08 | BQ36: -1.351458412e-08 | BR36: -1.357633413e-08 | BS36: -1.363823065e-08 | BT36: -1.370028774e-08 | BU36: -1.37624995e-08 | BV36: -1.382485841e-08 | BW36: -1.388737228e-08 | BX36: -1.395004719e-08 | BY36: -1.401287728e-08 | BZ36: -1.407585533e-08 | CA36: -1.413899478e-08 | CB36: =2 * CB31 ^ 3 / 27 - CB31 * CB32 / 3 + CB33 -> -1.420228979e-08 | CC36: -1.426574639e-08 | CD36: -1.432934587e-08 | CE36: -1.43931072e-08 | CF36: -1.445702463e-08 | CG36: -1.452110411e-08 | CH36: -1.458532734e-08 | CI36: -1.464971289e-08 | CJ36: -1.471425507e-08 | CK36: -1.477895976e-08 | CL36: -1.484381482e-08 | CM36: -1.490882692e-08 | CN36: -1.497400189e-08 | CO36: -1.503933411e-08 | CP36: -1.510481752e-08 | CQ36: -1.517045851e-08 | CR36: -1.523626283e-08 | CS36: -1.530221337e-08 | CT36: -1.536832753e-08 | CU36: -1.54345998e-08 | CV36: -1.550103588e-08 | CW36: -1.556761908e-08 | CX36: -1.563436637e-08 | CY36: -1.570127232e-08 | CZ36: -1.576834255e-08 | DA36: -1.583557167e-08 | DB36: -1.590294901e-08 | DC36: -1.597049102e-08 | DD36: -1.60381924e-08 | DE36: -1.610605862e-08 | DF36: -1.617407398e-08 | DG36: -1.624225448e-08
H37: Series | I37: =VLOOKUP(I29,Data!G2:I4,3,FALSE) -> 6X | J37: D | K37: =(K35 / 3) ^ 3 + (K36 / 2) ^ 2 -> 1.685832245e-17 | L37: 1.703784805e-17 | M37: 1.721877593e-17 | N37: 1.740096158e-17 | O37: 1.758453152e-17 | P37: 1.776952218e-17 | Q37: 1.795578679e-17 | R37: 1.814348392e-17 | S37: 1.833262072e-17 | T37: 1.852301765e-17 | U37: 1.871486563e-17 | V37: 1.890817181e-17 | W37: 1.910278474e-17 | X37: 1.929886776e-17 | Y37: 1.949639699e-17 | Z37: 1.969529332e-17 | AA37: 1.989572338e-17 | AB37: 2.009769545e-17 | AC37: 2.030114095e-17 | AD37: 2.050598102e-17 | AE37: 2.071238467e-17 | AF37: 2.092036024e-17 | AG37: 2.112967244e-17 | AH37: 2.134056993e-17 | AI37: 2.155306112e-17 | AJ37: 2.17669889e-17 | AK37: 2.198244297e-17 | AL37: 2.219951266e-17 | AM37: 2.241803949e-17 | AN37: 2.263811268e-17 | AO37: 2.285982357e-17 | AP37: 2.308318071e-17 | AQ37: =(AQ35 / 3) ^ 3 + (AQ36 / 2) ^ 2 -> 2.330793733e-17 | AR37: 2.353435389e-17 | AS37: 2.3762439e-17 | AT37: 2.399194248e-17 | AU37: 2.422312829e-17 | AV37: 2.445600511e-17 | AW37: 2.469049141e-17 | AX37: 2.492651184e-17 | AY37: 2.516424589e-17 | AZ37: 2.540360998e-17 | BA37: 2.564452953e-17 | BB37: 2.588718546e-17 | BC37: 2.613149209e-17 | BD37: 2.637731576e-17 | BE37: 2.662489796e-17 | BF37: 2.687415087e-17 | BG37: 2.712517854e-17 | BH37: 2.737765375e-17 | BI37: 2.763191715e-17 | BJ37: 2.788797768e-17 | BK37: 2.814574411e-17 | BL37: 2.840508336e-17 | BM37: 2.866624226e-17 | BN37: 2.892912739e-17 | BO37: 2.919360651e-17 | BP37: 2.945982409e-17 | BQ37: 2.972789145e-17 | BR37: 2.999771247e-17 | BS37: 3.026915514e-17 | BT37: 3.054247046e-17 | BU37: 3.081756001e-17 | BV37: 3.109429276e-17 | BW37: =(BW35 / 3) ^ 3 + (BW36 / 2) ^ 2 -> 3.137281212e-17 | BX37: 3.165323468e-17 | BY37: 3.193545919e-17 | BZ37: 3.221935503e-17 | CA37: 3.250517725e-17 | CB37: 3.279282226e-17 | CC37: 3.308241049e-17 | CD37: 3.337358585e-17 | CE37: 3.366671854e-17 | CF37: 3.396170206e-17 | CG37: 3.425865986e-17 | CH37: 3.455723044e-17 | CI37: 3.485778953e-17 | CJ37: 3.516022765e-17 | CK37: 3.546467133e-17 | CL37: 3.577087412e-17 | CM37: 3.607897717e-17 | CN37: 3.638910958e-17 | CO37: 3.670115792e-17 | CP37: 3.701499456e-17 | CQ37: 3.733075997e-17 | CR37: 3.764858643e-17 | CS37: 3.796809782e-17 | CT37: 3.828968481e-17 | CU37: 3.861322926e-17 | CV37: 3.893886665e-17 | CW37: 3.926621541e-17 | CX37: 3.959567178e-17 | CY37: 3.992711447e-17 | CZ37: 4.026068221e-17 | DA37: 4.059625217e-17 | DB37: 4.093356631e-17 | DC37: =(DC35 / 3) ^ 3 + (DC36 / 2) ^ 2 -> 4.127302811e-17 | DD37: =(DD35 / 3) ^ 3 + (DD36 / 2) ^ 2 -> 4.161451252e-17 | DE37: =(DE35 / 3) ^ 3 + (DE36 / 2) ^ 2 -> 4.195816214e-17 | DF37: =(DF35 / 3) ^ 3 + (DF36 / 2) ^ 2 -> 4.230358285e-17 | DG37: =(DG35 / 3) ^ 3 + (DG36 / 2) ^ 2 -> 4.265118369e-17
H38: Pre-charge pressure ex works | I38: 0 | J38: u | K38: =(-K36 / 2 +K37 ^ (1 / 2)) ^ (1 / 3) -> 0.002095576534 | L38: 0.002099236958 | M38: 0.002102894435 | N38: 0.002106547092 | O38: 0.002110196466 | P38: 0.002113842933 | Q38: 0.002117484649 | R38: 0.002121123487 | S38: 0.00212475946 | T38: 0.002128390387 | U38: 0.002132018477 | V38: 0.002135643742 | W38: 0.002139264381 | X38: 0.002142882221 | Y38: 0.002146496926 | Z38: 0.002150107557 | AA38: 0.002153715916 | AB38: 0.00215732201 | AC38: 0.002160925018 | AD38: 0.002164524038 | AE38: 0.00216812083 | AF38: 0.002171715402 | AG38: 0.002175305226 | AH38: 0.002178892856 | AI38: 0.002182478303 | AJ38: 0.002186059896 | AK38: 0.002189638503 | AL38: 0.002193214961 | AM38: 0.002196787629 | AN38: 0.002200357348 | AO38: 0.002203924951 | AP38: 0.002207490446 | AQ38: =(-AQ36 / 2 +AQ37 ^ (1 / 2)) ^ (1 / 3) -> 0.002211051408 | AR38: 0.002214610286 | AS38: 0.002218167088 | AT38: 0.002221719422 | AU38: 0.002225269705 | AV38: 0.002228817942 | AW38: 0.002232363328 | AX38: 0.002235905138 | AY38: 0.002239444935 | AZ38: 0.002242981912 | BA38: 0.002246515373 | BB38: 0.00225004685 | BC38: 0.002253575542 | BD38: 0.002257100265 | BE38: 0.002260623036 | BF38: 0.002264143056 | BG38: 0.002267661137 | BH38: 0.002271174533 | BI38: 0.002274686014 | BJ38: 0.002278195588 | BK38: 0.00228170246 | BL38: 0.002285205533 | BM38: 0.002288706728 | BN38: 0.002292205254 | BO38: 0.002295700048 | BP38: 0.002299192198 | BQ38: 0.002302682507 | BR38: 0.002306170188 | BS38: 0.002309654217 | BT38: 0.002313136431 | BU38: 0.00231661605 | BV38: 0.002320092079 | BW38: =(-BW36 / 2 +BW37 ^ (1 / 2)) ^ (1 / 3) -> 0.002323565537 | BX38: 0.002327037215 | BY38: 0.002330506337 | BZ38: 0.002333971946 | CA38: 0.002337435802 | CB38: 0.002340897131 | CC38: 0.002344356719 | CD38: 0.00234781209 | CE38: 0.002351265741 | CF38: 0.002354716904 | CG38: 0.002358166357 | CH38: 0.002361611671 | CI38: 0.002365055297 | CJ38: 0.002368496472 | CK38: 0.002371935968 | CL38: 0.002375372166 | CM38: 0.00237880594 | CN38: 0.002382238061 | CO38: 0.002385667771 | CP38: 0.002389094252 | CQ38: 0.002392518344 | CR38: 0.002395940813 | CS38: 0.002399359351 | CT38: 0.002402776284 | CU38: 0.002406190863 | CV38: 0.002409603846 | CW38: 0.002413012971 | CX38: 0.002416420519 | CY38: 0.002419825748 | CZ38: 0.002423229408 | DA38: 0.002426630761 | DB38: 0.00243002834 | DC38: =(-DC36 / 2 +DC37 ^ (1 / 2)) ^ (1 / 3) -> 0.002433424374 | DD38: =(-DD36 / 2 +DD37 ^ (1 / 2)) ^ (1 / 3) -> 0.00243681813 | DE38: =(-DE36 / 2 +DE37 ^ (1 / 2)) ^ (1 / 3) -> 0.00244021035 | DF38: =(-DF36 / 2 +DF37 ^ (1 / 2)) ^ (1 / 3) -> 0.002443598864 | DG38: =(-DG36 / 2 +DG37 ^ (1 / 2)) ^ (1 / 3) -> 0.002446985859
H39: Oil port | I39: =VLOOKUP(I35,Data!B2:C12,2,TRUE) -> G09 | J39: v | K39: =(-K36 / 2 - K37 ^ (1 / 2)) ^ (1 / 3) -> 0.0009969316714 | L39: =(-L36 / 2 - L37 ^ (1 / 2)) ^ (1 / 3) -> 0.0009985054261 | M39: =(-M36 / 2 - M37 ^ (1 / 2)) ^ (1 / 3) -> 0.00100008119 | N39: =(-N36 / 2 - N37 ^ (1 / 2)) ^ (1 / 3) -> 0.001001662699 | O39: =(-O36 / 2 - O37 ^ (1 / 2)) ^ (1 / 3) -> 0.001003246938 | P39: =(-P36 / 2 - P37 ^ (1 / 2)) ^ (1 / 3) -> 0.001004833168 | Q39: 0.001006425105 | R39: 0.001008019025 | S39: 0.001009614917 | T39: 0.001011217202 | U39: 0.001012821452 | V39: 0.001014427658 | W39: 0.001016039501 | X39: 0.001017653292 | Y39: 0.001019269734 | Z39: 0.001020890774 | AA39: 0.001022512739 | AB39: 0.001024135618 | AC39: 0.001025761116 | AD39: 0.001027391123 | AE39: 0.001029022012 | AF39: 0.00103065377 | AG39: 0.001032291695 | AH39: 0.00103393047 | AI39: 0.001035570084 | AJ39: 0.001037214063 | AK39: 0.001038860602 | AL39: 0.00104050795 | AM39: 0.001042159596 | AN39: 0.001043813781 | AO39: 0.001045468745 | AP39: 0.001047124475 | AQ39: 0.001048786184 | AR39: 0.001050448643 | AS39: 0.001052111838 | AT39: 0.001053780957 | AU39: 0.001055450796 | AV39: 0.001057121343 | AW39: 0.001058794365 | AX39: 0.001060471466 | AY39: 0.001062149246 | AZ39: 0.001063829483 | BA39: 0.001065513735 | BB39: 0.001067198639 | BC39: 0.001068885979 | BD39: 0.001070578406 | BE39: 0.001072271458 | BF39: 0.001073966928 | BG39: 0.001075663007 | BH39: 0.001077365889 | BI39: 0.001079069364 | BJ39: 0.001080773422 | BK39: 0.001082479867 | BL39: 0.001084191221 | BM39: 0.001085903131 | BN39: 0.001087617412 | BO39: 0.001089336527 | BP39: 0.001091058003 | BQ39: 0.001092780005 | BR39: 0.001094504357 | BS39: 0.00109623346 | BT39: 0.001097963064 | BU39: 0.001099695 | BV39: 0.001101431616 | BW39: 0.001103170555 | BX39: 0.001104909965 | BY39: 0.001106651687 | BZ39: 0.001108398008 | CA39: 0.001110144776 | CB39: =(-CB36 / 2 - CB37 ^ (1 / 2)) ^ (1 / 3) -> 0.00111189384 | CC39: 0.001113643335 | CD39: 0.001115399208 | CE39: 0.001117155499 | CF39: 0.001118914065 | CG39: 0.001120673034 | CH39: 0.001122438312 | CI39: 0.00112420398 | CJ39: 0.001125971902 | CK39: 0.001127740201 | CL39: 0.001129512859 | CM39: 0.001131287757 | CN39: 0.001133063007 | CO39: 0.001134840487 | CP39: 0.001136622251 | CQ39: 0.001138406235 | CR39: 0.001140190545 | CS39: 0.001141980969 | CT39: 0.001143771705 | CU39: 0.001145564643 | CV39: 0.001147357878 | CW39: 0.001149157164 | CX39: 0.001150956735 | CY39: 0.001152758488 | CZ39: 0.001154560513 | DA39: 0.001156364711 | DB39: 0.001158174887 | DC39: 0.001159985319 | DD39: 0.001161797911 | DE39: 0.001163610746 | DF39: 0.001165429496 | DG39: 0.001167248476
H40: Connection | I40: G | J40: Vs | K40: =K38 + K39 -K31 / 3 -> 0.004472868472 | L40: 0.004482023525 | M40: 0.004491178494 | N40: 0.004500333333 | O40: 0.00450948808 | P40: 0.004518642746 | Q40: 0.004527797283 | R40: 0.004536951738 | S40: 0.004546106114 | T40: 0.004555260352 | U40: 0.00456441451 | V40: 0.004573568589 | W40: 0.004582722541 | X40: 0.004591876415 | Y40: 0.004601030201 | Z40: 0.004610183876 | AA40: 0.004619337485 | AB40: 0.004628491031 | AC40: 0.00463764449 | AD40: 0.00464679784 | AE40: 0.004655951127 | AF40: 0.004665104351 | AG40: 0.004674257445 | AH40: 0.004683410477 | AI40: 0.004692563447 | AJ40: 0.004701716311 | AK40: 0.004710869093 | AL40: 0.004720021814 | AM40: 0.00472917443 | AN40: 0.004738326964 | AO40: 0.004747479439 | AP40: 0.004756631856 | AQ40: =AQ38 + AQ39 -AQ31 / 3 -> 0.004765784147 | AR40: 0.004774936381 | AS40: 0.004784088556 | AT40: 0.004793240608 | AU40: 0.004802392603 | AV40: 0.004811544542 | AW40: 0.004820696402 | AX40: 0.004829848162 | AY40: 0.004838999867 | AZ40: 0.004848151495 | BA40: 0.004857303024 | BB40: 0.004866454499 | BC40: 0.004875605898 | BD40: 0.004884757185 | BE40: 0.00489390842 | BF40: 0.004903059578 | BG40: 0.004912210683 | BH40: 0.004921361657 | BI40: 0.004930512579 | BJ40: 0.004939663449 | BK40: 0.004948814245 | BL40: 0.004957964934 | BM40: 0.004967115573 | BN40: 0.004976266138 | BO40: 0.004985416598 | BP40: 0.004994566984 | BQ40: 0.005003717322 | BR40: 0.005012867587 | BS40: 0.005022017749 | BT40: 0.005031167862 | BU40: 0.005040317904 | BV40: 0.005049467844 | BW40: =BW38 + BW39 -BW31 / 3 -> 0.005058617713 | BX40: 0.005067767535 | BY40: 0.005076917286 | BZ40: 0.005086066938 | CA40: 0.005095216543 | CB40: 0.005104366079 | CC40: 0.005113515569 | CD40: 0.005122664937 | CE40: 0.00513181426 | CF40: 0.005140963514 | CG40: 0.005150112724 | CH40: 0.005159261814 | CI40: 0.00516841086 | CJ40: 0.005177559838 | CK40: 0.005186708772 | CL40: 0.005195857612 | CM40: 0.005205006386 | CN40: 0.005214155116 | CO40: 0.005223303781 | CP40: 0.005232452352 | CQ40: 0.005241600858 | CR40: 0.005250749322 | CS40: 0.005259897671 | CT40: 0.005269045979 | CU40: 0.005278194222 | CV40: 0.005287342424 | CW40: 0.005296490512 | CX40: 0.005305638561 | CY40: 0.005314786545 | CZ40: 0.00532393449 | DA40: 0.005333082371 | DB40: 0.00534223014 | DC40: =DC38 + DC39 -DC31 / 3 -> 0.00535137787 | DD40: =DD38 + DD39 -DD31 / 3 -> 0.005360525538 | DE40: =DE38 + DE39 -DE31 / 3 -> 0.005369673167 | DF40: =DF38 + DF39 -DF31 / 3 -> 0.005378820686 | DG40: =DG38 + DG39 -DG31 / 3 -> 0.005387968166
H41: Gas connection | I41: 2 | J41: dT | K41: 0.001 | L41: 0.001 | M41: 0.001 | N41: 0.001 | O41: 0.001 | P41: 0.001 | Q41: 0.001 | R41: 0.001 | S41: 0.001 | T41: 0.001 | U41: 0.001 | V41: 0.001 | W41: 0.001 | X41: 0.001 | Y41: 0.001 | Z41: 0.001 | AA41: 0.001 | AB41: 0.001 | AC41: 0.001 | AD41: 0.001 | AE41: 0.001 | AF41: 0.001 | AG41: 0.001 | AH41: 0.001 | AI41: 0.001 | AJ41: 0.001 | AK41: 0.001 | AL41: 0.001 | AM41: 0.001 | AN41: 0.001 | AO41: 0.001 | AP41: 0.001 | AQ41: 0.001 | AR41: 0.001 | AS41: 0.001 | AT41: 0.001 | AU41: 0.001 | AV41: 0.001 | AW41: 0.001 | AX41: 0.001 | AY41: 0.001 | AZ41: 0.001 | BA41: 0.001 | BB41: 0.001 | BC41: 0.001 | BD41: 0.001 | BE41: 0.001 | BF41: 0.001 | BG41: 0.001 | BH41: 0.001 | BI41: 0.001 | BJ41: 0.001 | BK41: 0.001 | BL41: 0.001 | BM41: 0.001 | BN41: 0.001 | BO41: 0.001 | BP41: 0.001 | BQ41: 0.001 | BR41: 0.001 | BS41: 0.001 | BT41: 0.001 | BU41: 0.001 | BV41: 0.001 | BW41: 0.001 | BX41: 0.001 | BY41: 0.001 | BZ41: 0.001 | CA41: 0.001 | CB41: 0.001 | CC41: 0.001 | CD41: 0.001 | CE41: 0.001 | CF41: 0.001 | CG41: 0.001 | CH41: 0.001 | CI41: 0.001 | CJ41: 0.001 | CK41: 0.001 | CL41: 0.001 | CM41: 0.001 | CN41: 0.001 | CO41: 0.001 | CP41: 0.001 | CQ41: 0.001 | CR41: 0.001 | CS41: 0.001 | CT41: 0.001 | CU41: 0.001 | CV41: 0.001 | CW41: 0.001 | CX41: 0.001 | CY41: 0.001 | CZ41: 0.001 | DA41: 0.001 | DB41: 0.001 | DC41: 0.001 | DD41: 0.001 | DE41: 0.001 | DF41: 0.001 | DG41: 0.001
H42: Bladder material | I42: =IF(E18<-15,"E","N") -> N | J42: Volumen bei dT | K42: =K40*mGas -> 0.06378828592 | L42: 0.06391884757 | M42: 0.06404940804 | N42: 0.06417996665 | O42: 0.06431052395 | P42: 0.06444108009 | Q42: 0.06457163438 | R42: 0.06470218753 | S42: 0.06483273952 | T42: 0.06496328956 | U42: 0.06509383846 | V42: 0.06522438623 | W42: 0.0653549322 | X42: 0.06548547704 | Y42: 0.06561602064 | Z42: 0.06574656264 | AA42: 0.06587710372 | AB42: 0.06600764388 | AC42: 0.06613818282 | AD42: 0.06626872018 | AE42: 0.06639925666 | AF42: 0.06652979224 | AG42: 0.06666032596 | AH42: 0.0667908588 | AI42: 0.06692139076 | AJ42: 0.06705192121 | AK42: 0.06718245047 | AL42: 0.06731297887 | AM42: 0.06744350578 | AN42: 0.06757403152 | AO42: 0.06770455642 | AP42: 0.06783508049 | AQ42: =AQ40*mGas -> 0.06796560276 | AR42: 0.06809612421 | AS42: 0.06822664484 | AT42: 0.0683571637 | AU42: 0.06848768175 | AV42: 0.068618199 | AW42: 0.06874871512 | AX42: 0.06887922983 | AY42: 0.06900974375 | AZ42: 0.06914025655 | BA42: 0.06927076797 | BB42: 0.06940127861 | BC42: 0.06953178815 | BD42: 0.06966229611 | BE42: 0.06979280331 | BF42: 0.06992330943 | BG42: 0.07005381479 | BH42: 0.07018431828 | BI42: 0.07031482103 | BJ42: 0.07044532304 | BK42: 0.07057582399 | BL42: 0.07070632342 | BM42: 0.07083682212 | BN42: 0.07096731978 | BO42: 0.07109781593 | BP42: 0.07122831105 | BQ42: 0.07135880546 | BR42: 0.07148929884 | BS42: 0.07161979075 | BT42: 0.07175028196 | BU42: 0.07188077216 | BV42: 0.07201126091 | BW42: =BW40*mGas -> 0.07214174864 | BX42: 0.0722722357 | BY42: 0.07240272175 | BZ42: 0.07253320639 | CA42: 0.07266369036 | CB42: 0.07279417333 | CC42: 0.07292465566 | CD42: 0.07305513625 | CE42: 0.07318561619 | CF42: 0.07331609516 | CG42: 0.07344657349 | CH42: 0.07357705011 | CI42: 0.0737075261 | CJ42: 0.07383800112 | CK42: 0.07396847553 | CL42: 0.07409894859 | CM42: 0.07422942069 | CN42: 0.07435989219 | CO42: 0.07449036274 | CP42: 0.07462083197 | CQ42: 0.07475130026 | CR42: 0.07488176796 | CS42: 0.07501223401 | CT42: 0.07514269948 | CU42: 0.07527316402 | CV42: 0.07540362798 | CW42: 0.07553409032 | CX42: 0.07566455208 | CY42: 0.07579501294 | CZ42: 0.07592547323 | DA42: 0.07605593261 | DB42: 0.07618639039 | DC42: 0.07631684763 | DD42: 0.07644730396 | DE42: 0.07657775975 | DF42: 0.07670821396 | DG42: 0.07683866763
H43: Vessel material | I43: 1 | J43: dV | K43: =K42-K27 -> 2.565276951e-07 | L43: 2.576358936e-07 | M43: 2.58746274e-07 | N43: 2.598572214e-07 | O43: 2.609700189e-07 | P43: 2.620849805e-07 | Q43: 2.632004815e-07 | R43: 2.64318131e-07 | S43: 2.654379294e-07 | T43: 2.665579232e-07 | U43: 2.676800473e-07 | V43: 2.688043021e-07 | W43: 2.699290422e-07 | X43: 2.710558971e-07 | Y43: 2.721845472e-07 | Z43: 2.733141074e-07 | AA43: 2.744462232e-07 | AB43: 2.755809019e-07 | AC43: 2.767173665e-07 | AD43: 2.778547449e-07 | AE43: 2.78994687e-07 | AF43: 2.801372e-07 | AG43: 2.812798347e-07 | AH43: 2.824250342e-07 | AI43: 2.835728062e-07 | AJ43: 2.847215027e-07 | AK43: 2.85871955e-07 | AL43: 2.870249813e-07 | AM43: 2.881789334e-07 | AN43: 2.893346302e-07 | AO43: 2.904929031e-07 | AP43: 2.916537596e-07 | AQ43: =AQ42-AQ27 -> 2.928147025e-07 | AR43: 2.939782238e-07 | AS43: 2.951443312e-07 | AT43: 2.963105138e-07 | AU43: 2.974792776e-07 | AV43: 2.986506303e-07 | AW43: 2.998237091e-07 | AX43: 3.009977188e-07 | AY43: 3.021743208e-07 | AZ43: 3.033526385e-07 | BA43: 3.045318903e-07 | BB43: 3.057137379e-07 | BC43: 3.068972912e-07 | BD43: 3.080812137e-07 | BE43: 3.092677314e-07 | BF43: 3.104559405e-07 | BG43: 3.116467518e-07 | BH43: 3.128370177e-07 | BI43: 3.140298772e-07 | BJ43: 3.152253386e-07 | BK43: 3.16422477e-07 | BL43: 3.176199868e-07 | BM43: 3.188200988e-07 | BN43: 3.200218739e-07 | BO43: 3.212240239e-07 | BP43: 3.224278203e-07 | BQ43: 3.236342182e-07 | BR43: 3.248422621e-07 | BS43: 3.260506777e-07 | BT43: 3.272616959e-07 | BU43: 3.284743468e-07 | BV43: 3.296873738e-07 | BW43: =BW42-BW27 -> 3.309020171e-07 | BX43: 3.32119263e-07 | BY43: 3.333381249e-07 | BZ43: 3.34557361e-07 | CA43: 3.357792015e-07 | CB43: 3.370026451e-07 | CC43: 3.382287009e-07 | CD43: 3.394541217e-07 | CE43: 3.406821478e-07 | CF43: 3.419117607e-07 | CG43: 3.431439868e-07 | CH43: 3.443755598e-07 | CI43: 3.456097395e-07 | CJ43: 3.468454899e-07 | CK43: 3.480838549e-07 | CL43: 3.49322604e-07 | CM43: 3.505629116e-07 | CN43: 3.518058371e-07 | CO43: 3.53050321e-07 | CP43: 3.542951894e-07 | CQ43: 3.555416009e-07 | CR43: 3.567906326e-07 | CS43: 3.580389681e-07 | CT43: 3.592899181e-07 | CU43: 3.605423958e-07 | CV43: 3.617974962e-07 | CW43: 3.630518841e-07 | CX43: 3.643088895e-07 | CY43: 3.655674071e-07 | CZ43: 3.668285508e-07 | DA43: 3.680912067e-07 | DB43: 3.693531254e-07 | DC43: =DC42-DC27 -> 3.706176636e-07 | DD43: =DD42-DD27 -> 3.718836954e-07 | DE43: =DE42-DE27 -> 3.731523555e-07 | DF43: =DF42-DF27 -> 3.744202626e-07 | DG43: =DG42-DG27 -> 3.756907933e-07
H44: Inside surface | I44: 1
H45: Port surface | I45: 1 | J45: dV/dT | K45: =K43/0.001 -> 0.0002565276951 | L45: =L43/0.001 -> 0.0002576358936 | M45: =M43/0.001 -> 0.000258746274 | N45: =N43/0.001 -> 0.0002598572214 | O45: =O43/0.001 -> 0.0002609700189 | P45: =P43/0.001 -> 0.0002620849805 | Q45: 0.0002632004815 | R45: 0.000264318131 | S45: 0.0002654379294 | T45: 0.0002665579232 | U45: 0.0002676800473 | V45: 0.0002688043021 | W45: 0.0002699290422 | X45: 0.0002710558971 | Y45: 0.0002721845472 | Z45: 0.0002733141074 | AA45: 0.0002744462232 | AB45: 0.0002755809019 | AC45: 0.0002767173665 | AD45: 0.0002778547449 | AE45: 0.000278994687 | AF45: 0.0002801372 | AG45: 0.0002812798347 | AH45: 0.0002824250342 | AI45: 0.0002835728062 | AJ45: 0.0002847215027 | AK45: 0.000285871955 | AL45: 0.0002870249813 | AM45: 0.0002881789334 | AN45: 0.0002893346302 | AO45: 0.0002904929031 | AP45: 0.0002916537596 | AQ45: 0.0002928147025 | AR45: 0.0002939782238 | AS45: 0.0002951443312 | AT45: 0.0002963105138 | AU45: 0.0002974792776 | AV45: 0.0002986506303 | AW45: 0.0002998237091 | AX45: 0.0003009977188 | AY45: 0.0003021743208 | AZ45: 0.0003033526385 | BA45: 0.0003045318903 | BB45: 0.0003057137379 | BC45: 0.0003068972912 | BD45: 0.0003080812137 | BE45: 0.0003092677314 | BF45: 0.0003104559405 | BG45: 0.0003116467518 | BH45: 0.0003128370177 | BI45: 0.0003140298772 | BJ45: 0.0003152253386 | BK45: 0.000316422477 | BL45: 0.0003176199868 | BM45: 0.0003188200988 | BN45: 0.0003200218739 | BO45: 0.0003212240239 | BP45: 0.0003224278203 | BQ45: 0.0003236342182 | BR45: 0.0003248422621 | BS45: 0.0003260506777 | BT45: 0.0003272616959 | BU45: 0.0003284743468 | BV45: 0.0003296873738 | BW45: 0.0003309020171 | BX45: 0.000332119263 | BY45: 0.0003333381249 | BZ45: 0.000334557361 | CA45: 0.0003357792015 | CB45: =CB43/0.001 -> 0.0003370026451 | CC45: 0.0003382287009 | CD45: 0.0003394541217 | CE45: 0.0003406821478 | CF45: 0.0003419117607 | CG45: 0.0003431439868 | CH45: 0.0003443755598 | CI45: 0.0003456097395 | CJ45: 0.0003468454899 | CK45: 0.0003480838549 | CL45: 0.000349322604 | CM45: 0.0003505629116 | CN45: 0.0003518058371 | CO45: 0.000353050321 | CP45: 0.0003542951894 | CQ45: 0.0003555416009 | CR45: 0.0003567906326 | CS45: 0.0003580389681 | CT45: 0.0003592899181 | CU45: 0.0003605423958 | CV45: 0.0003617974962 | CW45: 0.0003630518841 | CX45: 0.0003643088895 | CY45: 0.0003655674071 | CZ45: 0.0003668285508 | DA45: 0.0003680912067 | DB45: 0.0003693531254 | DC45: 0.0003706176636 | DD45: 0.0003718836954 | DE45: 0.0003731523555 | DF45: 0.0003744202626 | DG45: 0.0003756907933
H46: Certification | I46: =IF(AND(VLOOKUP(I29,Data!G2:H4,2,FALSE)="CE",I35=1),"BA",VLOOKUP(I29,Data!G2:H4,2,FALSE)) -> CE
H47: Effektives Gasvolumen | I47: =VLOOKUP(I35,Data!B2:E12,4,TRUE) -> 97.4
H48: Type Code | I48: =IF(I29="USA","Please select according RA51350",I34&+I35&+"-"&+I36&+"-"&+I37&+"/"&+I38&+I39&+I40&+"-"&+I41&+I42&+I43&+I44&+I45&+"-"&+I46) -> HAB2 x 50-330-6X/0G09G-2N111-CE | J48: Partielle Ableitung nach p
I49: =VLOOKUP(I35,Data!B2:F12,5,TRUE) -> 1800 | J49: Alpha T | K49: =(1 + m * (1 - (K8 / Tc) ^ 0.5)) ^ 2 -> 0.5139930333 | L49: 0.5146615686 | M49: 0.5153290106 | N49: 0.5159932798 | O49: 0.5166560585 | P49: 0.5173177576 | Q49: 0.5179763156 | R49: 0.5186338027 | S49: 0.5192902239 | T49: 0.5199431342 | U49: 0.5205949871 | V49: 0.5212457874 | W49: 0.521893505 | X49: 0.5225401784 | Y49: 0.5231854198 | Z49: 0.52382816 | AA49: 0.5244704209 | AB49: 0.5251122077 | AC49: 0.5257525828 | AD49: 0.5263905115 | AE49: 0.5270279838 | AF49: 0.5276650048 | AG49: 0.5282986788 | AH49: 0.5289319137 | AI49: 0.5295647146 | AJ49: 0.5301951587 | AK49: 0.5308242322 | AL49: 0.5314528886 | AM49: 0.5320792303 | AN49: 0.5327042161 | AO49: 0.5333288017 | AP49: 0.5339529921 | AQ49: =(1 + m * (1 - (AQ8 / Tc) ^ 0.5)) ^ 2 -> 0.5345739644 | AR49: 0.5351945529 | AS49: 0.5358147627 | AT49: 0.5364317929 | AU49: 0.5370484557 | AV49: 0.5376647559 | AW49: 0.5382797408 | AX49: 0.5388925492 | AY49: 0.539505011 | AZ49: 0.5401161712 | BA49: 0.540725194 | BB49: 0.5413338861 | BC49: 0.54194129 | BD49: 0.5425459891 | BE49: 0.5431503735 | BF49: 0.5437534833 | BG49: 0.5443562858 | BH49: 0.5449554775 | BI49: 0.5455543727 | BJ49: 0.546152976 | BK49: 0.5467503259 | BL49: 0.547345085 | BM49: 0.5479395675 | BN49: 0.5485328097 | BO49: 0.5491235083 | BP49: 0.5497129762 | BQ49: 0.5503021851 | BR49: 0.5508901707 | BS49: 0.5514756653 | BT49: 0.5520609158 | BU49: 0.5526449553 | BV49: 0.5532265494 | BW49: =(1 + m * (1 - (BW8 / Tc) ^ 0.5)) ^ 2 -> 0.5538069419 | BX49: 0.5543871072 | BY49: 0.5549660778 | BZ49: 0.5555426537 | CA49: 0.5561190169 | CB49: 0.5566941973 | CC49: 0.5572691716 | CD49: 0.5578408287 | CE49: 0.5584122895 | CF49: 0.5589825831 | CG49: 0.5595526868 | CH49: 0.5601195213 | CI49: 0.5606861755 | CJ49: 0.5612516776 | CK49: 0.5618170058 | CL49: 0.5623800888 | CM49: 0.5629420309 | CN49: 0.5635038128 | CO49: 0.5640644599 | CP49: 0.5646229087 | CQ49: 0.5651802311 | CR49: 0.5657374087 | CS49: 0.5662914479 | CT49: 0.5668453515 | CU49: 0.5673981428 | CV49: 0.5679508046 | CW49: 0.568500372 | CX49: 0.5690498189 | CY49: 0.5695981674 | CZ49: 0.5701464012 | DA49: 0.5706935423 | DB49: 0.5712376391 | DC49: 0.5717816318 | DD49: 0.5723245429 | DE49: 0.5728673557 | DF49: 0.5734071664 | DG49: 0.5739468874
H50: Materialnumber | I50: =IFERROR(VLOOKUP(I48,Data!K2:L19,2,FALSE),"Only on request") -> Only on request | J50: e | K50: =-Rs * K8 / (K7+K60) / 100000 -> -0.004141046947 | L50: -0.004152809378 | M50: -0.004164574373 | N50: -0.004176336198 | O50: -0.004188099411 | P50: -0.004199865121 | Q50: -0.004211627578 | R50: -0.004223392477 | S50: -0.004235159811 | T50: -0.004246922696 | U50: -0.004258687955 | V50: -0.004270455582 | W50: -0.004282219797 | X50: -0.004293986327 | Y50: -0.004305754045 | Z50: -0.004317519855 | AA50: -0.004329289513 | AB50: -0.00434106303 | AC50: -0.00435283769 | AD50: -0.004364610456 | AE50: -0.00437638707 | AF50: -0.004388167546 | AG50: -0.004399943381 | AH50: -0.004411723054 | AI50: -0.004423506578 | AJ50: -0.00443528825 | AK50: -0.004447070948 | AL50: -0.004458857488 | AM50: -0.004470642186 | AN50: -0.004482427867 | AO50: -0.004494217383 | AP50: -0.004506010749 | AQ50: =-Rs * AQ8 / (AQ7+AQ60) / 100000 -> -0.004517799399 | AR50: -0.004529591878 | AS50: -0.0045413882 | AT50: -0.004553179785 | AU50: -0.004564975194 | AV50: -0.004576774442 | AW50: -0.004588574583 | AX50: -0.004600372916 | AY50: -0.004612175085 | AZ50: -0.004623978108 | BA50: -0.004635779339 | BB50: -0.004647584405 | BC50: -0.004659390287 | BD50: -0.004671192479 | BE50: -0.004682998493 | BF50: -0.004694805278 | BG50: -0.004706615893 | BH50: -0.004718419762 | BI50: -0.004730227435 | BJ50: -0.004742038929 | BK50: -0.004753851139 | BL50: -0.004765659702 | BM50: -0.004777472077 | BN50: -0.004789285124 | BO50: -0.004801094553 | BP50: -0.004812904607 | BQ50: -0.004824718459 | BR50: -0.004836532928 | BS50: -0.00484834379 | BT50: -0.004860158445 | BU50: -0.004871973675 | BV50: -0.004883785331 | BW50: =-Rs * BW8 / (BW7+BW60) / 100000 -> -0.004895597518 | BX50: -0.004907413485 | BY50: -0.004919229975 | BZ50: -0.004931042907 | CA50: -0.004942859617 | CB50: -0.00495467681 | CC50: -0.004966497793 | CD50: -0.00497831193 | CE50: -0.004990129837 | CF50: -0.005001948178 | CG50: -0.0050137703 | CH50: -0.005025585555 | CI50: -0.005037404572 | CJ50: -0.005049223975 | CK50: -0.005061047153 | CL50: -0.005072866863 | CM50: -0.005084686923 | CN50: -0.00509651076 | CO50: -0.005108334941 | CP50: -0.005120155678 | CQ50: -0.005131976719 | CR50: -0.005143801534 | CS50: -0.005155619446 | CT50: -0.005167441117 | CU50: -0.005179263047 | CV50: -0.005191088748 | CW50: -0.005202907532 | CX50: -0.005214730073 | CY50: -0.005226552831 | CZ50: -0.005238379358 | DA50: -0.005250206097 | DB50: -0.005262025887 | DC50: -0.005273849428 | DD50: -0.005285673132 | DE50: -0.005297500601 | DF50: -0.00530932111 | DG50: -0.005321145372
J51: f | K51: =-(100000* (K7+K60) * b ^ 2 + Rs * K8 * b - a * K49) / (K7+K60) / 100000 -> -5.512275974e-07 | L51: -5.395667165e-07 | M51: -5.278448716e-07 | N51: -5.160959793e-07 | O51: -5.042930334e-07 | P51: -4.924294074e-07 | Q51: -4.805392276e-07 | R51: -4.685886319e-07 | S51: -4.565775772e-07 | T51: -4.445471222e-07 | U51: -4.324565403e-07 | V51: -4.203057902e-07 | W51: -4.081294654e-07 | X51: -3.958932412e-07 | Y51: -3.836038211e-07 | Z51: -3.712798022e-07 | AA51: -3.588865132e-07 | AB51: -3.464237668e-07 | AC51: -3.339078865e-07 | AD51: -3.213572155e-07 | AE51: -3.087369712e-07 | AF51: -2.960469632e-07 | AG51: -2.833387652e-07 | AH51: -2.705608717e-07 | AI51: -2.577130903e-07 | AJ51: -2.44830115e-07 | AK51: -2.31894402e-07 | AL51: -2.188886704e-07 | AM51: -2.058476383e-07 | AN51: -1.9275401e-07 | AO51: -1.795902261e-07 | AP51: -1.663560886e-07 | AQ51: =-(100000* (AQ7+AQ60) * b ^ 2 + Rs * AQ8 * b - a * AQ49) / (AQ7+AQ60) / 100000 -> -1.531042462e-07 | AR51: -1.397821041e-07 | AS51: -1.263894622e-07 | AT51: -1.129792752e-07 | AU51: -9.949863796e-08 | AV51: -8.5947348e-08 | AW51: -7.23435904e-08 | AX51: -5.870411954e-08 | AY51: -4.499383569e-08 | AZ51: -3.123121558e-08 | BA51: -1.743273807e-08 | BB51: -3.563280534e-09 | BC51: 1.035838482e-08 | BD51: 2.430405353e-08 | BE51: 3.832077613e-08 | BF51: 5.238948713e-08 | BG51: 6.652946351e-08 | BH51: 8.06742097e-08 | BI51: 9.489009156e-08 | BJ51: 1.09177322e-07 | BK51: 1.23516375e-07 | BL51: 1.378796674e-07 | BM51: 1.523143999e-07 | BN51: 1.668007437e-07 | BO51: 1.813114664e-07 | BP51: 1.958734922e-07 | BQ51: 2.105070563e-07 | BR51: 2.251919723e-07 | BS51: 2.399012958e-07 | BT51: 2.546822639e-07 | BU51: 2.695143797e-07 | BV51: 2.84371061e-07 | BW51: =-(100000* (BW7+BW60) * b ^ 2 + Rs * BW8 * b - a * BW49) / (BW7+BW60) / 100000 -> 2.992785882e-07 | BX51: 3.142578726e-07 | BY51: 3.292880512e-07 | BZ51: 3.443428446e-07 | CA51: 3.594695167e-07 | CB51: 3.746468863e-07 | CC51: 3.898963591e-07 | CD51: 4.051491521e-07 | CE51: 4.204739519e-07 | CF51: 4.358492025e-07 | CG51: 4.512966866e-07 | CH51: 4.667471859e-07 | CI51: 4.822698277e-07 | CJ51: 4.978426764e-07 | CK51: 5.134878965e-07 | CL51: 5.29158204e-07 | CM51: 5.448785331e-07 | CN51: 5.606713825e-07 | CO51: 5.765143024e-07 | CP51: 5.923824073e-07 | CQ51: 6.083002972e-07 | CR51: 6.24290862e-07 | CS51: 6.402837316e-07 | CT51: 6.563492017e-07 | CU51: 6.724642226e-07 | CV51: 6.886520802e-07 | CW51: 7.048419633e-07 | CX51: 7.211046143e-07 | CY51: 7.374165851e-07 | CZ51: 7.538015628e-07 | DA51: 7.702359089e-07 | DB51: 7.866718444e-07 | DC51: 8.0318072e-07 | DD51: 8.197386304e-07 | DE51: 8.363697223e-07 | DF51: 8.53002138e-07 | DG51: 8.697076779e-07
H52: Data sheet | J52: g | K52: =-b * a * K49 /(K7+K60) / 100000 -> -4.172226335e-09 | L52: -4.19426198e-09 | M52: -4.216358516e-09 | N52: -4.238478095e-09 | O52: -4.260650848e-09 | P52: -4.282884156e-09 | Q52: -4.305139959e-09 | R52: -4.327456013e-09 | S52: -4.349832354e-09 | T52: -4.372223219e-09 | U52: -4.394673995e-09 | V52: -4.417184717e-09 | W52: -4.439716847e-09 | X52: -4.462308616e-09 | Y52: -4.484952548e-09 | Z52: -4.507627939e-09 | AA52: -4.530373377e-09 | AB52: -4.553189053e-09 | AC52: -4.576056792e-09 | AD52: -4.598956186e-09 | AE52: -4.621925918e-09 | AF52: -4.644966184e-09 | AG52: -4.668019637e-09 | AH52: -4.691143536e-09 | AI52: -4.714338079e-09 | AJ52: -4.737564702e-09 | AK52: -4.7608429e-09 | AL52: -4.784191859e-09 | AM52: -4.807573011e-09 | AN52: -4.831005561e-09 | AO52: -4.854508998e-09 | AP52: -4.878083524e-09 | AQ52: =-b * a * AQ49 /(AQ7+AQ60) / 100000 -> -4.901670701e-09 | AR52: -4.925328896e-09 | AS52: -4.949058316e-09 | AT52: -4.972800213e-09 | AU52: -4.996613269e-09 | AV52: -5.020497692e-09 | AW52: -5.044433308e-09 | AX52: -5.068401543e-09 | AY52: -5.092441296e-09 | AZ52: -5.11653208e-09 | BA52: -5.140655638e-09 | BB52: -5.164850871e-09 | BC52: -5.189096979e-09 | BD52: -5.213362729e-09 | BE52: -5.237700216e-09 | BF52: -5.262088323e-09 | BG52: -5.286548378e-09 | BH52: -5.311006794e-09 | BI52: -5.335537008e-09 | BJ52: -5.36013924e-09 | BK52: -5.384791883e-09 | BL52: -5.409464435e-09 | BM52: -5.434209086e-09 | BN52: -5.459003904e-09 | BO52: -5.483818791e-09 | BP52: -5.508683508e-09 | BQ52: -5.533620403e-09 | BR52: -5.558607166e-09 | BS52: -5.583614037e-09 | BT52: -5.608693184e-09 | BU52: -5.633821965e-09 | BV52: -5.658971035e-09 | BW52: =-b * a * BW49 /(BW7+BW60) / 100000 -> -5.684169407e-09 | BX52: -5.709440153e-09 | BY52: -5.734760241e-09 | BZ52: -5.76010068e-09 | CA52: -5.785513606e-09 | CB52: -5.810975649e-09 | CC52: -5.836510406e-09 | CD52: -5.862042041e-09 | CE52: -5.887646279e-09 | CF52: -5.913299351e-09 | CG52: -5.939025254e-09 | CH52: -5.964747723e-09 | CI52: -5.990542918e-09 | CJ52: -6.016386669e-09 | CK52: -6.042303376e-09 | CL52: -6.068240973e-09 | CM52: -6.094226915e-09 | CN52: -6.120285959e-09 | CO52: -6.146393388e-09 | CP52: -6.172521822e-09 | CQ52: -6.198698332e-09 | CR52: -6.224948089e-09 | CS52: -6.251193697e-09 | CT52: -6.277512468e-09 | CU52: -6.303879048e-09 | CV52: -6.330319028e-09 | CW52: -6.356754579e-09 | CX52: -6.383263451e-09 | CY52: -6.40981987e-09 | CZ52: -6.436449853e-09 | DA52: -6.463127426e-09 | DB52: -6.48980012e-09 | DC52: -6.516546296e-09 | DD52: -6.543339697e-09 | DE52: -6.570206824e-09 | DF52: -6.597068808e-09 | DG52: -6.624004451e-09
H53: 50170
J54: o | K54: =(3 * K51 - K50 ^ 2) / 3 -> -6.267317538e-06 | L54: =(3 * L51 - L50 ^ 2) / 3 -> -6.288175293e-06 | M54: =(3 * M51 - M50 ^ 2) / 3 -> -6.309071442e-06 | N54: =(3 * N51 - N50 ^ 2) / 3 -> -6.330023991e-06 | O54: =(3 * O51 - O50 ^ 2) / 3 -> -6.351018593e-06 | P54: =(3 * P51 - P50 ^ 2) / 3 -> -6.372051752e-06 | Q54: -6.393141514e-06 | R54: -6.41426997e-06 | S54: -6.43543712e-06 | T54: -6.456664585e-06 | U54: -6.477930906e-06 | V54: -6.499236082e-06 | W54: -6.520598262e-06 | X54: -6.541999433e-06 | Y54: -6.563443119e-06 | Z54: -6.584939036e-06 | AA54: -6.606469075e-06 | AB54: -6.628033178e-06 | AC54: -6.649639873e-06 | AD54: -6.671298694e-06 | AE54: -6.692991568e-06 | AF54: -6.714718434e-06 | AG54: -6.736506018e-06 | AH54: -6.758327639e-06 | AI54: -6.780183238e-06 | AJ54: -6.802090737e-06 | AK54: -6.824041074e-06 | AL54: -6.846025369e-06 | AM54: -6.868061491e-06 | AN54: -6.890140538e-06 | AO54: -6.912253522e-06 | AP54: -6.934400378e-06 | AQ54: -6.956608049e-06 | AR54: -6.97884963e-06 | AS54: -7.001125057e-06 | AT54: -7.023461327e-06 | AU54: -7.045831479e-06 | AV54: -7.068235447e-06 | AW54: -7.090682493e-06 | AX54: -7.113181109e-06 | AY54: -7.135713507e-06 | AZ54: -7.158289064e-06 | BA54: -7.180916099e-06 | BB54: -7.20357688e-06 | BC54: -7.226280898e-06 | BD54: -7.249042338e-06 | BE54: -7.271837519e-06 | BF54: -7.294676045e-06 | BG54: -7.317548258e-06 | BH54: -7.340487475e-06 | BI54: -7.363460439e-06 | BJ54: -7.386467081e-06 | BK54: -7.409517176e-06 | BL54: -7.432624463e-06 | BM54: -7.455765416e-06 | BN54: -7.478949924e-06 | BO54: -7.502191503e-06 | BP54: -7.525476761e-06 | BQ54: -7.54879568e-06 | BR54: -7.572158281e-06 | BS54: -7.595577874e-06 | BT54: -7.619031107e-06 | BU54: -7.642528118e-06 | BV54: -7.666081992e-06 | BW54: -7.689679764e-06 | BX54: -7.713311165e-06 | BY54: -7.736986464e-06 | BZ54: -7.760718538e-06 | CA54: -7.784484213e-06 | CB54: =(3 * CB51 - CB50 ^ 2) / 3 -> -7.808293878e-06 | CC54: -7.832137083e-06 | CD54: -7.856047406e-06 | CE54: -7.879991311e-06 | CF54: -7.903979322e-06 | CG54: -7.928000852e-06 | CH54: -7.952089537e-06 | CI54: -7.97621178e-06 | CJ54: -8.000378242e-06 | CK54: -8.024578198e-06 | CL54: -8.048834533e-06 | CM54: -8.07313517e-06 | CN54: -8.097469261e-06 | CO54: -8.121847653e-06 | CP54: -8.146282315e-06 | CQ54: -8.170761385e-06 | CR54: -8.195273877e-06 | CS54: -8.21985356e-06 | CT54: -8.244466697e-06 | CU54: -8.269124347e-06 | CV54: -8.293815383e-06 | CW54: -8.318573633e-06 | CX54: -8.343365298e-06 | CY54: -8.368201578e-06 | CZ54: -8.393071205e-06 | DA54: -8.417985443e-06 | DB54: -8.442966967e-06 | DC54: -8.467981875e-06 | DD54: -8.493041521e-06 | DE54: -8.518134482e-06 | DF54: -8.543294745e-06 | DG54: -8.568488344e-06
J55: q | K55: =2 * K50 ^ 3 / 27 - K50 * K51 / 3 + K52 -> -1.019324541e-08 | L55: =2 * L50 ^ 3 / 27 - L50 * L51 / 3 + L52 -> -1.024625135e-08 | M55: =2 * M50 ^ 3 / 27 - M50 * M51 / 3 + M52 -> -1.029940782e-08 | N55: =2 * N50 ^ 3 / 27 - N50 * N51 / 3 + N52 -> -1.035270109e-08 | O55: =2 * O50 ^ 3 / 27 - O50 * O51 / 3 + O52 -> -1.040614238e-08 | P55: =2 * P50 ^ 3 / 27 - P50 * P51 / 3 + P52 -> -1.045973448e-08 | Q55: -1.051346379e-08 | R55: -1.05673441e-08 | S55: -1.06213755e-08 | T55: -1.067554189e-08 | U55: -1.072985956e-08 | V55: -1.078432863e-08 | W55: -1.083893574e-08 | X55: -1.089369444e-08 | Y55: -1.094860224e-08 | Z55: -1.100365216e-08 | AA55: -1.105885762e-08 | AB55: -1.111421872e-08 | AC55: -1.116972934e-08 | AD55: -1.122538276e-08 | AE55: -1.128119214e-08 | AF55: -1.13371576e-08 | AG55: -1.139326015e-08 | AH55: -1.144951902e-08 | AI55: -1.150593428e-08 | AJ55: -1.156249341e-08 | AK55: -1.161920295e-08 | AL55: -1.167606923e-08 | AM55: -1.17330799e-08 | AN55: -1.179024132e-08 | AO55: -1.184755982e-08 | AP55: -1.190503548e-08 | AQ55: -1.196264999e-08 | AR55: -1.20204219e-08 | AS55: -1.207835132e-08 | AT55: -1.213642013e-08 | AU55: -1.219464668e-08 | AV55: -1.225303106e-08 | AW55: -1.231156718e-08 | AX55: -1.237024957e-08 | AY55: -1.242909013e-08 | AZ55: -1.248808278e-08 | BA55: -1.254722223e-08 | BB55: -1.260652018e-08 | BC55: -1.266597057e-08 | BD55: -1.272556442e-08 | BE55: -1.278531712e-08 | BF55: -1.284522263e-08 | BG55: -1.290528718e-08 | BH55: -1.296548985e-08 | BI55: -1.302585184e-08 | BJ55: -1.308637322e-08 | BK55: -1.314704798e-08 | BL55: -1.320786779e-08 | BM55: -1.326884735e-08 | BN55: -1.332998067e-08 | BO55: -1.339125968e-08 | BP55: -1.345269274e-08 | BQ55: -1.351428601e-08 | BR55: -1.357603354e-08 | BS55: -1.363792756e-08 | BT55: -1.369998214e-08 | BU55: -1.376219137e-08 | BV55: -1.382454774e-08 | BW55: -1.388705905e-08 | BX55: -1.394973139e-08 | BY55: -1.401255889e-08 | BZ55: -1.407553433e-08 | CA55: -1.413867116e-08 | CB55: =2 * CB50 ^ 3 / 27 - CB50 * CB51 / 3 + CB52 -> -1.420196353e-08 | CC55: -1.426541748e-08 | CD55: -1.432901429e-08 | CE55: -1.439277293e-08 | CF55: -1.445668766e-08 | CG55: -1.452076442e-08 | CH55: -1.458498491e-08 | CI55: -1.464936771e-08 | CJ55: -1.471390712e-08 | CK55: -1.477860902e-08 | CL55: -1.484346129e-08 | CM55: -1.490847057e-08 | CN55: -1.49736427e-08 | CO55: -1.503897207e-08 | CP55: -1.510445262e-08 | CQ55: -1.517009071e-08 | CR55: -1.523589213e-08 | CS55: -1.530183975e-08 | CT55: -1.536795097e-08 | CU55: -1.543422029e-08 | CV55: -1.55006534e-08 | CW55: -1.556723361e-08 | CX55: -1.563397789e-08 | CY55: -1.570088082e-08 | CZ55: -1.5767948e-08 | DA55: -1.583517406e-08 | DB55: -1.590254833e-08 | DC55: -1.597008725e-08 | DD55: -1.603778551e-08 | DE55: -1.61056486e-08 | DF55: -1.617366081e-08 | DG55: -1.624183814e-08
J56: D | K56: =(K54 / 3) ^ 3 + (K55 / 2) ^ 2 -> 1.685794625e-17 | L56: 1.703746585e-17 | M56: 1.721838766e-17 | N56: 1.740056717e-17 | O56: 1.758413089e-17 | P56: 1.776911524e-17 | Q56: 1.795537348e-17 | R56: 1.814306416e-17 | S56: 1.833219442e-17 | T56: 1.852258475e-17 | U56: 1.871442604e-17 | V56: 1.890772545e-17 | W56: 1.910233153e-17 | X56: 1.929840761e-17 | Y56: 1.949592983e-17 | Z56: 1.969481906e-17 | AA56: 1.989524194e-17 | AB56: 2.009720674e-17 | AC56: 2.030064487e-17 | AD56: 2.05054775e-17 | AE56: 2.071187361e-17 | AF56: 2.091984155e-17 | AG56: 2.112914604e-17 | AH56: 2.134003573e-17 | AI56: 2.155251901e-17 | AJ56: 2.17664388e-17 | AK56: 2.198188478e-17 | AL56: 2.219894629e-17 | AM56: 2.241746486e-17 | AN56: 2.263752968e-17 | AO56: 2.28592321e-17 | AP56: 2.308258067e-17 | AQ56: =(AQ54 / 3) ^ 3 + (AQ55 / 2) ^ 2 -> 2.330732863e-17 | AR56: 2.353373642e-17 | AS56: 2.376181267e-17 | AT56: 2.399130719e-17 | AU56: 2.422248393e-17 | AV56: 2.445535158e-17 | AW56: 2.468982861e-17 | AX56: 2.492583967e-17 | AY56: 2.516356423e-17 | AZ56: 2.540291872e-17 | BA56: 2.564382858e-17 | BB56: 2.58864747e-17 | BC56: 2.613077141e-17 | BD56: 2.637658507e-17 | BE56: 2.662415713e-17 | BF56: 2.68733998e-17 | BG56: 2.71244171e-17 | BH56: 2.737688186e-17 | BI56: 2.763113468e-17 | BJ56: 2.78871845e-17 | BK56: 2.814494011e-17 | BL56: 2.840426843e-17 | BM56: 2.866541628e-17 | BN56: 2.892829024e-17 | BO56: 2.919275808e-17 | BP56: 2.945896425e-17 | BQ56: 2.972702009e-17 | BR56: 2.999682945e-17 | BS56: 3.026826035e-17 | BT56: 3.054156377e-17 | BU56: 3.08166413e-17 | BV56: 3.10933619e-17 | BW56: =(BW54 / 3) ^ 3 + (BW55 / 2) ^ 2 -> 3.1371869e-17 | BX56: 3.165227915e-17 | BY56: 3.193449112e-17 | BZ56: 3.22183743e-17 | CA56: 3.250418373e-17 | CB56: 3.279181581e-17 | CC56: 3.308139097e-17 | CD56: 3.337255314e-17 | CE56: 3.366567251e-17 | CF56: 3.396064255e-17 | CG56: 3.425758674e-17 | CH56: 3.455614359e-17 | CI56: 3.48566888e-17 | CJ56: 3.515911289e-17 | CK56: 3.54635424e-17 | CL56: 3.576973088e-17 | CM56: 3.607781948e-17 | CN56: 3.638793728e-17 | CO56: 3.669997087e-17 | CP56: 3.701379262e-17 | CQ56: 3.7329543e-17 | CR56: 3.764735426e-17 | CS56: 3.796685032e-17 | CT56: 3.828842182e-17 | CU56: 3.861195063e-17 | CV56: 3.893757221e-17 | CW56: 3.926490503e-17 | CX56: 3.95943453e-17 | CY56: 3.992577172e-17 | CZ56: 4.025932303e-17 | DA56: 4.059487639e-17 | DB56: 4.09321738e-17 | DC56: =(DC54 / 3) ^ 3 + (DC55 / 2) ^ 2 -> 4.127161869e-17 | DD56: =(DD54 / 3) ^ 3 + (DD55 / 2) ^ 2 -> 4.161308603e-17 | DE56: =(DE54 / 3) ^ 3 + (DE55 / 2) ^ 2 -> 4.195671842e-17 | DF56: =(DF54 / 3) ^ 3 + (DF55 / 2) ^ 2 -> 4.230212173e-17 | DG56: =(DG54 / 3) ^ 3 + (DG55 / 2) ^ 2 -> 4.264970501e-17
J57: u | K57: =(-K55 / 2 +K56 ^ (1 / 2)) ^ (1 / 3) -> 0.00209556628 | L57: 0.002099226639 | M57: 0.002102884051 | N57: 0.002106536643 | O57: 0.002110185951 | P57: 0.002113832353 | Q57: 0.002117474002 | R57: 0.002121112775 | S57: 0.002124748681 | T57: 0.002128379541 | U57: 0.002132007565 | V57: 0.002135632762 | W57: 0.002139253334 | X57: 0.002142871107 | Y57: 0.002146485744 | Z57: 0.002150096308 | AA57: 0.002153704598 | AB57: 0.002157310624 | AC57: 0.002160913563 | AD57: 0.002164512514 | AE57: 0.002168109237 | AF57: 0.00217170374 | AG57: 0.002175293494 | AH57: 0.002178881055 | AI57: 0.002182466431 | AJ57: 0.002186047954 | AK57: 0.002189626491 | AL57: 0.002193202877 | AM57: 0.002196775474 | AN57: 0.002200345123 | AO57: 0.002203912654 | AP57: 0.002207478077 | AQ57: =(-AQ55 / 2 +AQ56 ^ (1 / 2)) ^ (1 / 3) -> 0.002211038967 | AR57: 0.002214597773 | AS57: 0.002218154503 | AT57: 0.002221706765 | AU57: 0.002225256974 | AV57: 0.002228805139 | AW57: 0.002232350451 | AX57: 0.002235892188 | AY57: 0.00223943191 | AZ57: 0.002242968814 | BA57: 0.0022465022 | BB57: 0.002250033603 | BC57: 0.002253562219 | BD57: 0.002257086868 | BE57: 0.002260609564 | BF57: 0.002264129508 | BG57: 0.002267647514 | BH57: 0.002271160833 | BI57: 0.002274672238 | BJ57: 0.002278181735 | BK57: 0.002281688531 | BL57: 0.002285191527 | BM57: 0.002288692645 | BN57: 0.002292191094 | BO57: 0.00229568581 | BP57: 0.002299177882 | BQ57: 0.002302668113 | BR57: 0.002306155716 | BS57: 0.002309639666 | BT57: 0.002313121802 | BU57: 0.002316601341 | BV57: 0.002320077291 | BW57: =(-BW55 / 2 +BW56 ^ (1 / 2)) ^ (1 / 3) -> 0.002323550669 | BX57: 0.002327022268 | BY57: 0.00233049131 | BZ57: 0.002333956838 | CA57: 0.002337420614 | CB57: 0.002340881862 | CC57: 0.002344341369 | CD57: 0.002347796659 | CE57: 0.002351250229 | CF57: 0.00235470131 | CG57: 0.002358150681 | CH57: 0.002361595913 | CI57: 0.002365039457 | CJ57: 0.002368480548 | CK57: 0.002371919962 | CL57: 0.002375356077 | CM57: 0.002378789768 | CN57: 0.002382221805 | CO57: 0.002385651431 | CP57: 0.002389077828 | CQ57: 0.002392501836 | CR57: 0.002395924219 | CS57: 0.002399342673 | CT57: 0.002402759521 | CU57: 0.002406174015 | CV57: 0.002409586913 | CW57: 0.002412995952 | CX57: 0.002416403414 | CY57: 0.002419808556 | CZ57: 0.00242321213 | DA57: 0.002426613396 | DB57: 0.002430010888 | DC57: =(-DC55 / 2 +DC56 ^ (1 / 2)) ^ (1 / 3) -> 0.002433406835 | DD57: =(-DD55 / 2 +DD56 ^ (1 / 2)) ^ (1 / 3) -> 0.002436800503 | DE57: =(-DE55 / 2 +DE56 ^ (1 / 2)) ^ (1 / 3) -> 0.002440192635 | DF57: =(-DF55 / 2 +DF56 ^ (1 / 2)) ^ (1 / 3) -> 0.002443581061 | DG57: =(-DG55 / 2 +DG56 ^ (1 / 2)) ^ (1 / 3) -> 0.002446967968
J58: v | K58: =(-K55 / 2 - K56 ^ (1 / 2)) ^ (1 / 3) -> 0.0009969170937 | L58: =(-L55 / 2 - L56 ^ (1 / 2)) ^ (1 / 3) -> 0.0009984907736 | M58: =(-M55 / 2 - M56 ^ (1 / 2)) ^ (1 / 3) -> 0.001000066463 | N58: =(-N55 / 2 - N56 ^ (1 / 2)) ^ (1 / 3) -> 0.001001647896 | O58: =(-O55 / 2 - O56 ^ (1 / 2)) ^ (1 / 3) -> 0.00100323206 | P58: =(-P55 / 2 - P56 ^ (1 / 2)) ^ (1 / 3) -> 0.001004818215 | Q58: 0.001006410076 | R58: 0.001008003919 | S58: 0.001009599735 | T58: 0.001011201943 | U58: 0.001012806117 | V58: 0.001014412246 | W58: 0.001016024012 | X58: 0.001017637725 | Y58: 0.00101925409 | Z58: 0.001020875051 | AA58: 0.001022496939 | AB58: 0.001024119739 | AC58: 0.001025745158 | AD58: 0.001027375087 | AE58: 0.001029005897 | AF58: 0.001030637576 | AG58: 0.00103227542 | AH58: 0.001033914116 | AI58: 0.00103555365 | AJ58: 0.001037197549 | AK58: 0.001038844007 | AL58: 0.001040491274 | AM58: 0.001042142839 | AN58: 0.001043796943 | AO58: 0.001045451825 | AP58: 0.001047107474 | AQ58: 0.001048769101 | AR58: 0.001050431477 | AS58: 0.00105209459 | AT58: 0.001053763626 | AU58: 0.001055433382 | AV58: 0.001057103845 | AW58: 0.001058776784 | AX58: 0.001060453801 | AY58: 0.001062131498 | AZ58: 0.00106381165 | BA58: 0.001065495818 | BB58: 0.001067180637 | BC58: 0.001068867892 | BD58: 0.001070560234 | BE58: 0.0010722532 | BF58: 0.001073948585 | BG58: 0.001075644578 | BH58: 0.001077347374 | BI58: 0.001079050762 | BJ58: 0.001080754733 | BK58: 0.001082461092 | BL58: 0.001084172359 | BM58: 0.001085884181 | BN58: 0.001087598375 | BO58: 0.001089317401 | BP58: 0.00109103879 | BQ58: 0.001092760703 | BR58: 0.001094484966 | BS58: 0.00109621398 | BT58: 0.001097943495 | BU58: 0.001099675342 | BV58: 0.001101411868 | BW58: 0.001103150717 | BX58: 0.001104890038 | BY58: 0.001106631669 | BZ58: 0.0011083779 | CA58: 0.001110124577 | CB58: =(-CB55 / 2 - CB56 ^ (1 / 2)) ^ (1 / 3) -> 0.00111187355 | CC58: 0.001113622954 | CD58: 0.001115378735 | CE58: 0.001117134934 | CF58: 0.001118893408 | CG58: 0.001120652286 | CH58: 0.001122417471 | CI58: 0.001124183046 | CJ58: 0.001125950876 | CK58: 0.001127719081 | CL58: 0.001129491646 | CM58: 0.00113126645 | CN58: 0.001133041606 | CO58: 0.001134818991 | CP58: 0.001136600661 | CQ58: 0.001138384551 | CR58: 0.001140168765 | CS58: 0.001141959095 | CT58: 0.001143749735 | CU58: 0.001145542577 | CV58: 0.001147335717 | CW58: 0.001149134907 | CX58: 0.001150934381 | CY58: 0.001152736038 | CZ58: 0.001154537965 | DA58: 0.001156342066 | DB58: 0.001158152145 | DC58: 0.001159962479 | DD58: 0.001161774974 | DE58: 0.00116358771 | DF58: 0.001165406362 | DG58: 0.001167225243
J59: Vs | K59: =K57 + K58 -K50 / 3 -> 0.004472832356 | L59: 0.004481987205 | M59: 0.004491141971 | N59: 0.004500296605 | O59: 0.004509451148 | P59: 0.004518605608 | Q59: 0.004527759938 | R59: 0.004536914186 | S59: 0.004546068354 | T59: 0.004555222384 | U59: 0.004564376333 | V59: 0.004573530202 | W59: 0.004582683944 | X59: 0.004591837607 | Y59: 0.004600991182 | Z59: 0.004610144644 | AA59: 0.004619298041 | AB59: 0.004628451373 | AC59: 0.004637604618 | AD59: 0.004646757753 | AE59: 0.004655910824 | AF59: 0.004665063831 | AG59: 0.004674216708 | AH59: 0.004683369522 | AI59: 0.004692522274 | AJ59: 0.004701674919 | AK59: 0.00471082748 | AL59: 0.004719979981 | AM59: 0.004729132376 | AN59: 0.004738284688 | AO59: 0.004747436941 | AP59: 0.004756589134 | AQ59: =AQ57 + AQ58 -AQ50 / 3 -> 0.004765741201 | AR59: 0.00477489321 | AS59: 0.00478404516 | AT59: 0.004793196986 | AU59: 0.004802348754 | AV59: 0.004811500465 | AW59: 0.004820652096 | AX59: 0.004829803628 | AY59: 0.004838955103 | AZ59: 0.0048481065 | BA59: 0.004857257798 | BB59: 0.004866409042 | BC59: 0.004875560207 | BD59: 0.004884711262 | BE59: 0.004893862262 | BF59: 0.004903013186 | BG59: 0.004912164056 | BH59: 0.004921314794 | BI59: 0.004930465479 | BJ59: 0.004939616112 | BK59: 0.004948766669 | BL59: 0.00495791712 | BM59: 0.004967067519 | BN59: 0.004976217843 | BO59: 0.004985368062 | BP59: 0.004994518208 | BQ59: 0.005003668303 | BR59: 0.005012818325 | BS59: 0.005021968243 | BT59: 0.005031118112 | BU59: 0.005040267908 | BV59: 0.005049417603 | BW59: =BW57 + BW58 -BW50 / 3 -> 0.005058567226 | BX59: 0.005067716801 | BY59: 0.005076866304 | BZ59: 0.005086015707 | CA59: 0.005095165063 | CB59: 0.005104314349 | CC59: 0.005113463588 | CD59: 0.005122612705 | CE59: 0.005131761776 | CF59: 0.005140910777 | CG59: 0.005150059733 | CH59: 0.005159208569 | CI59: 0.00516835736 | CJ59: 0.005177506083 | CK59: 0.00518665476 | CL59: 0.005195803344 | CM59: 0.005204951859 | CN59: 0.005214100331 | CO59: 0.005223248736 | CP59: 0.005232397048 | CQ59: 0.005241545293 | CR59: 0.005250693496 | CS59: 0.005259841583 | CT59: 0.005268989628 | CU59: 0.005278137608 | CV59: 0.005287285545 | CW59: 0.005296433369 | CX59: 0.005305581152 | CY59: 0.00531472887 | CZ59: 0.005323876548 | DA59: 0.005333024161 | DB59: 0.005342171662 | DC59: =DC57 + DC58 -DC50 / 3 -> 0.005351319123 | DD59: =DD57 + DD58 -DD50 / 3 -> 0.005360466521 | DE59: =DE57 + DE58 -DE50 / 3 -> 0.005369613879 | DF59: =DF57 + DF58 -DF50 / 3 -> 0.005378761127 | DG59: =DG57 + DG58 -DG50 / 3 -> 0.005387908335
J60: dp | K60: 0.001 | L60: 0.001 | M60: 0.001 | N60: 0.001 | O60: 0.001 | P60: 0.001 | Q60: 0.001 | R60: 0.001 | S60: 0.001 | T60: 0.001 | U60: 0.001 | V60: 0.001 | W60: 0.001 | X60: 0.001 | Y60: 0.001 | Z60: 0.001 | AA60: 0.001 | AB60: 0.001 | AC60: 0.001 | AD60: 0.001 | AE60: 0.001 | AF60: 0.001 | AG60: 0.001 | AH60: 0.001 | AI60: 0.001 | AJ60: 0.001 | AK60: 0.001 | AL60: 0.001 | AM60: 0.001 | AN60: 0.001 | AO60: 0.001 | AP60: 0.001 | AQ60: 0.001 | AR60: 0.001 | AS60: 0.001 | AT60: 0.001 | AU60: 0.001 | AV60: 0.001 | AW60: 0.001 | AX60: 0.001 | AY60: 0.001 | AZ60: 0.001 | BA60: 0.001 | BB60: 0.001 | BC60: 0.001 | BD60: 0.001 | BE60: 0.001 | BF60: 0.001 | BG60: 0.001 | BH60: 0.001 | BI60: 0.001 | BJ60: 0.001 | BK60: 0.001 | BL60: 0.001 | BM60: 0.001 | BN60: 0.001 | BO60: 0.001 | BP60: 0.001 | BQ60: 0.001 | BR60: 0.001 | BS60: 0.001 | BT60: 0.001 | BU60: 0.001 | BV60: 0.001 | BW60: 0.001 | BX60: 0.001 | BY60: 0.001 | BZ60: 0.001 | CA60: 0.001 | CB60: 0.001 | CC60: 0.001 | CD60: 0.001 | CE60: 0.001 | CF60: 0.001 | CG60: 0.001 | CH60: 0.001 | CI60: 0.001 | CJ60: 0.001 | CK60: 0.001 | CL60: 0.001 | CM60: 0.001 | CN60: 0.001 | CO60: 0.001 | CP60: 0.001 | CQ60: 0.001 | CR60: 0.001 | CS60: 0.001 | CT60: 0.001 | CU60: 0.001 | CV60: 0.001 | CW60: 0.001 | CX60: 0.001 | CY60: 0.001 | CZ60: 0.001 | DA60: 0.001 | DB60: 0.001 | DC60: 0.001 | DD60: 0.001 | DE60: 0.001 | DF60: 0.001 | DG60: 0.001
J61: Volumen bei dp | K61: =K59*mGas -> 0.06378777086 | L61: 0.06391832962 | M61: 0.06404888718 | N61: 0.06417944287 | O61: 0.06430999725 | P61: 0.06444055045 | Q61: 0.0645711018 | R61: 0.06470165199 | S61: 0.06483220103 | T61: 0.06496274809 | U61: 0.06509329402 | V61: 0.0652238388 | W61: 0.06535438176 | X61: 0.0654849236 | Y61: 0.06561546418 | Z61: 0.06574600315 | AA61: 0.06587654119 | AB61: 0.06600707831 | AC61: 0.06613761419 | AD61: 0.06626814849 | AE61: 0.06639868189 | AF61: 0.06652921438 | AG61: 0.066659745 | AH61: 0.06679027474 | AI61: 0.06692080358 | AJ61: 0.0670513309 | AK61: 0.06718185703 | AL61: 0.06731238229 | AM61: 0.06744290604 | AN61: 0.06757342862 | AO61: 0.06770395034 | AP61: 0.06783447122 | AQ61: =AQ59*mGas -> 0.0679649903 | AR61: 0.06809550854 | AS61: 0.06822602596 | AT61: 0.06835654159 | AU61: 0.06848705641 | AV61: 0.06861757041 | AW61: 0.06874808327 | AX61: 0.06887859472 | AY61: 0.06900910536 | AZ61: 0.06913961487 | BA61: 0.06927012299 | BB61: 0.06940063032 | BC61: 0.06953113655 | BD61: 0.06966164118 | BE61: 0.06979214505 | BF61: 0.06992264782 | BG61: 0.07005314983 | BH61: 0.07018364996 | BI61: 0.07031414933 | BJ61: 0.07044464795 | BK61: 0.0705751455 | BL61: 0.07070564152 | BM61: 0.07083613681 | BN61: 0.07096663104 | BO61: 0.07109712376 | BP61: 0.07122761544 | BQ61: 0.07135810639 | BR61: 0.0714885963 | BS61: 0.07161908474 | BT61: 0.07174957247 | BU61: 0.07188005917 | BV61: 0.07201054441 | BW61: =BW59*mGas -> 0.07214102863 | BX61: 0.07227151217 | BY61: 0.07240199469 | BZ61: 0.07253247578 | CA61: 0.07266295619 | CB61: 0.0727934356 | CC61: 0.07292391435 | CD61: 0.07305439136 | CE61: 0.07318486771 | CF61: 0.07331534307 | CG61: 0.07344581778 | CH61: 0.07357629078 | CI61: 0.07370676313 | CJ61: 0.07383723451 | CK61: 0.07396770526 | CL61: 0.07409817465 | CM61: 0.07422864308 | CN61: 0.07435911089 | CO61: 0.07448957774 | CP61: 0.07462004327 | CQ61: 0.07475050784 | CR61: 0.07488097181 | CS61: 0.07501143413 | CT61: 0.07514189585 | CU61: 0.07527235663 | CV61: 0.07540281682 | CW61: 0.07553327539 | CX61: 0.07566373337 | CY61: 0.07579419043 | CZ61: 0.0759246469 | DA61: 0.07605510246 | DB61: 0.07618555643 | DC61: 0.07631600982 | DD61: 0.07644646231 | DE61: 0.07657691423 | DF61: 0.07670736458 | DG61: 0.07683781437
J62: dV | K62: =K61-K27 -> -2.585271964e-07 | L62: -2.603172232e-07 | M62: -2.621153291e-07 | N62: -2.639200364e-07 | O62: -2.65732543e-07 | P62: -2.675531564e-07 | Q62: -2.693803777e-07 | R62: -2.712157191e-07 | S62: -2.730591988e-07 | T62: -2.749089961e-07 | U62: -2.767669399e-07 | V62: -2.786330482e-07 | W62: -2.805057778e-07 | X62: -2.823866843e-07 | Y62: -2.842754799e-07 | Z62: -2.861713337e-07 | AA62: -2.880758319e-07 | AB62: -2.899890018e-07 | AC62: -2.919101161e-07 | AD62: -2.93838347e-07 | AE62: -2.957753013e-07 | AF62: -2.977210069e-07 | AG62: -2.996731002e-07 | AH62: -3.016339686e-07 | AI62: -3.036036402e-07 | AJ62: -3.055805197e-07 | AK62: -3.07565433e-07 | AL62: -3.095592019e-07 | AM62: -3.11560218e-07 | AN62: -3.135693016e-07 | AO62: -3.155872935e-07 | AP62: -3.176142222e-07 | AQ62: =AQ61-AQ27 -> -3.19647615e-07 | AR62: -3.21689969e-07 | AS62: -3.237413131e-07 | AT62: -3.257991421e-07 | AU62: -3.278659857e-07 | AV62: -3.29941873e-07 | AW62: -3.320259502e-07 | AX62: -3.341174244e-07 | AY62: -3.362179964e-07 | AZ62: -3.383267922e-07 | BA62: -3.404430263e-07 | BB62: -3.425684125e-07 | BC62: -3.447020565e-07 | BD62: -3.468425946e-07 | BE62: -3.489923322e-07 | BF62: -3.51150354e-07 | BG62: -3.533176204e-07 | BH62: -3.554908753e-07 | BI62: -3.576733925e-07 | BJ62: -3.598652021e-07 | BK62: -3.620653551e-07 | BL62: -3.642724931e-07 | BM62: -3.664889718e-07 | BN62: -3.687138203e-07 | BO62: -3.709456884e-07 | BP62: -3.731859305e-07 | BQ62: -3.754355767e-07 | BR62: -3.776936292e-07 | BS62: -3.799587401e-07 | BT62: -3.822333039e-07 | BU62: -3.845163004e-07 | BV62: -3.868063907e-07 | BW62: =BW61-BW27 -> -3.891049174e-07 | BX62: -3.914129613e-07 | BY62: -3.93729474e-07 | BZ62: -3.960531198e-07 | CA62: -3.983863323e-07 | CB62: -4.007280399e-07 | CC62: -4.030793601e-07 | CD62: -4.054367531e-07 | CE62: -4.078037778e-07 | CF62: -4.101793332e-07 | CG62: -4.125645663e-07 | CH62: -4.149558834e-07 | CI62: -4.173568972e-07 | CJ62: -4.197664773e-07 | CK62: -4.221858004e-07 | CL62: -4.246123965e-07 | CM62: -4.270475851e-07 | CN62: -4.294925679e-07 | CO62: -4.319461751e-07 | CP62: -4.34407097e-07 | CQ62: -4.368766466e-07 | CR62: -4.393560567e-07 | CS62: -4.41841586e-07 | CT62: -4.443369955e-07 | CU62: -4.468410676e-07 | CV62: -4.493550669e-07 | CW62: -4.518751963e-07 | CX62: -4.544052726e-07 | CY62: -4.569440465e-07 | CZ62: -4.594928145e-07 | DA62: -4.620503116e-07 | DB62: -4.646139471e-07 | DC62: =DC61-DC27 -> -4.671876111e-07 | DD62: =DD61-DD27 -> -4.697700159e-07 | DE62: =DE61-DE27 -> -4.723624964e-07 | DF62: =DF61-DF27 -> -4.749611262e-07 | DG62: =DG61-DG27 -> -4.77569852e-07
J64: dV/dp | K64: =K62/0.001/100000 -> -2.585271964e-09 | L64: =L62/0.001/100000 -> -2.603172232e-09 | M64: =M62/0.001/100000 -> -2.621153291e-09 | N64: =N62/0.001/100000 -> -2.639200364e-09 | O64: =O62/0.001/100000 -> -2.65732543e-09 | P64: =P62/0.001/100000 -> -2.675531564e-09 | Q64: -2.693803777e-09 | R64: -2.712157191e-09 | S64: -2.730591988e-09 | T64: -2.749089961e-09 | U64: -2.767669399e-09 | V64: -2.786330482e-09 | W64: -2.805057778e-09 | X64: -2.823866843e-09 | Y64: -2.842754799e-09 | Z64: -2.861713337e-09 | AA64: -2.880758319e-09 | AB64: -2.899890018e-09 | AC64: -2.919101161e-09 | AD64: -2.93838347e-09 | AE64: -2.957753013e-09 | AF64: -2.977210069e-09 | AG64: -2.996731002e-09 | AH64: -3.016339686e-09 | AI64: -3.036036402e-09 | AJ64: -3.055805197e-09 | AK64: -3.07565433e-09 | AL64: -3.095592019e-09 | AM64: -3.11560218e-09 | AN64: -3.135693016e-09 | AO64: -3.155872935e-09 | AP64: -3.176142222e-09 | AQ64: -3.19647615e-09 | AR64: -3.21689969e-09 | AS64: -3.237413131e-09 | AT64: -3.257991421e-09 | AU64: -3.278659857e-09 | AV64: -3.29941873e-09 | AW64: -3.320259502e-09 | AX64: -3.341174244e-09 | AY64: -3.362179964e-09 | AZ64: -3.383267922e-09 | BA64: -3.404430263e-09 | BB64: -3.425684125e-09 | BC64: -3.447020565e-09 | BD64: -3.468425946e-09 | BE64: -3.489923322e-09 | BF64: -3.51150354e-09 | BG64: -3.533176204e-09 | BH64: -3.554908753e-09 | BI64: -3.576733925e-09 | BJ64: -3.598652021e-09 | BK64: -3.620653551e-09 | BL64: -3.642724931e-09 | BM64: -3.664889718e-09 | BN64: -3.687138203e-09 | BO64: -3.709456884e-09 | BP64: -3.731859305e-09 | BQ64: -3.754355767e-09 | BR64: -3.776936292e-09 | BS64: -3.799587401e-09 | BT64: -3.822333039e-09 | BU64: -3.845163004e-09 | BV64: -3.868063907e-09 | BW64: -3.891049174e-09 | BX64: -3.914129613e-09 | BY64: -3.93729474e-09 | BZ64: -3.960531198e-09 | CA64: -3.983863323e-09 | CB64: =CB62/0.001/100000 -> -4.007280399e-09 | CC64: -4.030793601e-09 | CD64: -4.054367531e-09 | CE64: -4.078037778e-09 | CF64: -4.101793332e-09 | CG64: -4.125645663e-09 | CH64: -4.149558834e-09 | CI64: -4.173568972e-09 | CJ64: -4.197664773e-09 | CK64: -4.221858004e-09 | CL64: -4.246123965e-09 | CM64: -4.270475851e-09 | CN64: -4.294925679e-09 | CO64: -4.319461751e-09 | CP64: -4.34407097e-09 | CQ64: -4.368766466e-09 | CR64: -4.393560567e-09 | CS64: -4.41841586e-09 | CT64: -4.443369955e-09 | CU64: -4.468410676e-09 | CV64: -4.493550669e-09 | CW64: -4.518751963e-09 | CX64: -4.544052726e-09 | CY64: -4.569440465e-09 | CZ64: -4.594928145e-09 | DA64: -4.620503116e-09 | DB64: -4.646139471e-09 | DC64: -4.671876111e-09 | DD64: -4.697700159e-09 | DE64: -4.723624964e-09 | DF64: -4.749611262e-09 | DG64: -4.77569852e-09
K67: 0.186707 | L67: 0.1866783 | M67: 0.1867104 | N67: 0.1867104 | O67: 0.1866816 | P67: 0.1867134 | Q67: 0.1866845 | R67: 0.1866556 | S67: 0.186716 | T67: 0.186687 | U67: 0.186658 | V67: 0.1866891 | W67: 0.18666 | X67: 0.18666 | Y67: 0.186681 | Z67: 0.186642 | AA67: 0.186603 | AB67: 0.186603 | AC67: 0.186623 | AD67: 0.18658375 | AE67: 0.1865445 | AF67: 0.186603 | AG67: 0.1865635 | AH67: 0.186524 | AI67: 0.18654225 | AJ67: 0.18654225 | AK67: 0.1865025 | AL67: 0.18652 | AM67: 0.18652 | AN67: 0.18648 | AO67: 0.18644 | AP67: 0.18649675 | AQ67: 0.1864565 | AR67: 0.18641625 | AS67: 0.1864725 | AT67: 0.186432 | AU67: 0.1863915 | AV67: 0.1863915 | AW67: 0.1864065 | AX67: 0.18636575 | AY67: 0.18636575 | AZ67: 0.18638 | BA67: 0.186339 | BB67: 0.186339 | BC67: 0.1863736 | BD67: 0.1863324 | BE67: 0.1863324 | BF67: 0.1862912 | BG67: 0.1863664 | BH67: 0.186325 | BI67: 0.1862836 | BJ67: 0.1862836 | BK67: 0.1863168 | BL67: 0.1862752 | BM67: 0.1862752 | BN67: 0.1863078 | BO67: 0.1863078 | BP67: 0.186266 | BQ67: 0.186266 | BR67: 0.186298 | BS67: 0.186256 | BT67: 0.186256 | BU67: 0.1862874 | BV67: 0.1862874 | BW67: 0.1862452 | BX67: 0.1862452 | BY67: 0.186276 | BZ67: 0.1862336 | CA67: 0.1862336 | CB67: 0.1861912 | CC67: 0.1862638 | CD67: 0.1862212 | CE67: 0.1862212 | CF67: 0.1861786 | CG67: 0.1862508 | CH67: 0.186208 | CI67: 0.186208 | CJ67: 0.1861652 | CK67: 0.186194 | CL67: 0.186194 | CM67: 0.186151 | CN67: 0.186151 | CO67: 0.1861792 | CP67: 0.1861792 | CQ67: 0.186136 | CR67: 0.186207 | CS67: 0.1861636 | CT67: 0.1861636 | CU67: 0.1861202 | CV67: 0.1861908 | CW67: 0.1861472 | CX67: 0.1861472 | CY67: 0.1861036 | CZ67: 0.1861036 | DA67: 0.1861738 | DB67: 0.18613 | DC67: 0.18613 | DD67: 0.1860862 | DE67: 0.186156 | DF67: 0.186112 | DG67: 0.186112
K68: 0.3159725 | L68: 0.31585525 | M68: 0.316336 | N68: 0.316336 | O68: 0.316219 | P68: 0.3167005 | Q68: 0.31658375 | R68: 0.316467 | S68: 0.317066 | T68: 0.3169495 | U68: 0.316833 | V68: 0.31731625 | W68: 0.3172 | X68: 0.3172 | Y68: 0.3175196 | Z68: 0.3172392 | AA68: 0.3169588 | AB68: 0.3169588 | AC68: 0.3172696 | AD68: 0.316987 | AE68: 0.3167044 | AF68: 0.3172912 | AG68: 0.3170064 | AH68: 0.3167216 | AI68: 0.317017 | AJ68: 0.317017 | AK68: 0.31673 | AL68: 0.3170188 | AM68: 0.3170188 | AN68: 0.3167296 | AO68: 0.3164404 | AP68: 0.3170118 | AQ68: 0.3167204 | AR68: 0.316429 | AS68: 0.316996 | AT68: 0.3167024 | AU68: 0.3164088 | AV68: 0.3164088 | AW68: 0.3166756 | AX68: 0.3163798 | AY68: 0.3163798 | AZ68: 0.31664 | BA68: 0.316342 | BB68: 0.316342 | BC68: 0.3167846 | BD68: 0.3164839 | BE68: 0.3164839 | BF68: 0.3161832 | BG68: 0.3169184 | BH68: 0.316615 | BI68: 0.3163116 | BJ68: 0.3163116 | BK68: 0.3167353 | BL68: 0.3164292 | BM68: 0.3164292 | BN68: 0.3168448 | BO68: 0.3168448 | BP68: 0.316536 | BQ68: 0.316536 | BR68: 0.3169435 | BS68: 0.316632 | BT68: 0.316632 | BU68: 0.3170314 | BV68: 0.3170314 | BW68: 0.3167172 | BX68: 0.3167172 | BY68: 0.3171085 | BZ68: 0.3167916 | CA68: 0.3167916 | CB68: 0.3164747 | CC68: 0.3171748 | CD68: 0.3168552 | CE68: 0.3168552 | CF68: 0.3165356 | CG68: 0.3172303 | CH68: 0.316908 | CI68: 0.316908 | CJ68: 0.3165857 | CK68: 0.31695 | CL68: 0.31695 | CM68: 0.316625 | CN68: 0.316625 | CO68: 0.3169812 | CP68: 0.3169812 | CQ68: 0.3166535 | CR68: 0.317332 | CS68: 0.3170016 | CT68: 0.3170016 | CU68: 0.3166712 | CV68: 0.3173443 | CW68: 0.3170112 | CX68: 0.3170112 | CY68: 0.3166781 | CZ68: 0.3166781 | DA68: 0.3173458 | DB68: 0.31701 | DC68: 0.31701 | DD68: 0.3166742 | DE68: 0.3173365 | DF68: 0.316998 | DG68: 0.316998
J69: gamma | K69: =K68/K67 -> 1.692344154 | L69: 1.69197625 | M69: 1.694260202 | N69: 1.694260202 | O69: 1.693894846 | P69: 1.696185169 | Q69: 1.695822363 | R69: 1.695459445 | S69: 1.698119069 | T69: 1.697758816 | U69: 1.697398451 | V69: 1.699704214 | W69: 1.699346405 | X69: 1.699346405 | Y69: 1.700867255 | Z69: 1.69972032 | AA69: 1.698572906 | AB69: 1.698572906 | AC69: 1.700056263 | AD69: 1.698899288 | AE69: 1.697741826 | AF69: 1.700354228 | AG69: 1.699187676 | AH69: 1.69802063 | AI69: 1.699438063 | AJ69: 1.699438063 | AK69: 1.698261417 | AL69: 1.69965044 | AM69: 1.69965044 | AN69: 1.698464178 | AO69: 1.697277408 | AP69: 1.699824796 | AQ69: =AQ68/AQ67 -> 1.698628903 | AR69: 1.697432493 | AS69: 1.69996112 | AT69: 1.698755578 | AU69: 1.697549513 | AV69: 1.697549513 | AW69: 1.698844193 | AX69: 1.697628454 | AY69: 1.697628454 | AZ69: 1.698894731 | BA69: 1.697669302 | BB69: 1.697669302 | BC69: 1.699728932 | BD69: 1.698490976 | BE69: 1.698490976 | BF69: 1.697252474 | BG69: 1.700512539 | BH69: 1.699262042 | BI69: 1.69801099 | BJ69: 1.69801099 | BK69: 1.699982503 | BL69: 1.698718885 | BM69: 1.698718885 | BN69: 1.700652361 | BO69: 1.700652361 | BP69: 1.699376161 | BQ69: 1.699376161 | BR69: 1.701271619 | BS69: 1.699982819 | BT69: 1.699982819 | BU69: 1.701840275 | BV69: 1.701840275 | BW69: =BW68/BW67 -> 1.70053886 | BX69: 1.70053886 | BY69: 1.702358329 | BZ69: 1.70104428 | CA69: 1.70104428 | CB69: 1.699729633 | CC69: 1.702825777 | CD69: 1.701499077 | CE69: 1.701499077 | CF69: 1.700171771 | CG69: 1.703242617 | CH69: 1.701903248 | CI69: 1.701903248 | CJ69: 1.700563263 | CK69: 1.702256786 | CL69: 1.702256786 | CM69: 1.700904105 | CN69: 1.700904105 | CO69: 1.702559684 | CP69: 1.702559684 | CQ69: 1.701194288 | CR69: 1.704189424 | CS69: 1.702811935 | CT69: 1.702811935 | CU69: 1.701433805 | CV69: 1.704403762 | CW69: 1.703013529 | CX69: 1.703013529 | CY69: 1.701622645 | CZ69: 1.701622645 | DA69: 1.704567453 | DB69: 1.703164455 | DC69: =DC68/DC67 -> 1.703164455 | DD69: =DD68/DD67 -> 1.701760797 | DE69: =DE68/DE67 -> 1.704680483 | DF69: =DF68/DF67 -> 1.703264701 | DG69: =DG68/DG67 -> 1.703264701
J70: tau | K70: =mGas*K67/K10/K11*4186.8 -> 18.08282762 | L70: 18.08004799 | M70: 18.08315692 | N70: 18.08315692 | O70: 18.0803676 | P70: 18.08344747 | Q70: 18.08064847 | R70: 18.07784946 | S70: 18.08369928 | T70: 18.0808906 | U70: 18.07808191 | V70: 18.08109398 | W70: 18.07827561 | X70: 18.07827561 | Y70: 18.08030949 | Z70: 18.07653228 | AA70: 18.07275508 | AB70: 18.07275508 | AC70: 18.07469211 | AD70: 18.07089069 | AE70: 18.06708928 | AF70: 18.07275508 | AG70: 18.06892945 | AH70: 18.06510382 | AI70: 18.06687136 | AJ70: 18.06687136 | AK70: 18.06302152 | AL70: 18.06471642 | AM70: 18.06471642 | AN70: 18.06084236 | AO70: 18.05696831 | AP70: 18.06246462 | AQ70: =mGas*AQ67/AQ10/AQ11*4186.8 -> 18.05856636 | AR70: 18.05466809 | AS70: 18.06011598 | AT70: 18.0561935 | AU70: 18.05227102 | AV70: 18.05227102 | AW70: 18.05372379 | AX70: 18.04977709 | AY70: 18.04977709 | AZ70: 18.05115723 | BA70: 18.04718632 | BB70: 18.04718632 | BC70: 18.05053738 | BD70: 18.0465471 | BE70: 18.0465471 | BF70: 18.04255683 | BG70: 18.04984005 | BH70: 18.0458304 | BI70: 18.04182076 | BJ70: 18.04182076 | BK70: 18.04503622 | BL70: 18.0410072 | BM70: 18.0410072 | BN70: 18.04416456 | BO70: 18.04416456 | BP70: 18.04011617 | BQ70: 18.04011617 | BR70: 18.04321541 | BS70: 18.03914766 | BT70: 18.03914766 | BU70: 18.04218879 | BV70: 18.04218879 | BW70: =mGas*BW67/BW10/BW11*4186.8 -> 18.03810166 | BX70: 18.03810166 | BY70: 18.04108468 | BZ70: 18.03697819 | CA70: 18.03697819 | CB70: 18.03287169 | CC70: 18.0399031 | CD70: 18.03577723 | CE70: 18.03577723 | CF70: 18.03165136 | CG70: 18.03864403 | CH70: 18.03449879 | CI70: 18.03449879 | CJ70: 18.03035355 | CK70: 18.03314287 | CL70: 18.03314287 | CM70: 18.02897826 | CN70: 18.02897826 | CO70: 18.03170947 | CP70: 18.03170947 | CQ70: 18.02752549 | CR70: 18.03440194 | CS70: 18.03019859 | CT70: 18.03019859 | CU70: 18.02599524 | CV70: 18.03283295 | CW70: 18.02861023 | CX70: 18.02861023 | CY70: 18.02438751 | CZ70: 18.02438751 | DA70: 18.03118648 | DB70: 18.02694439 | DC70: 18.02694439 | DD70: 18.0227023 | DE70: 18.02946252 | DF70: 18.02520106 | DG70: 18.02520106
J72: ∆p | K72: =(K8*K67*mGas*K13*K45-Tmin*K67*mGas*K13*K45+K69*K70*mGas*K14*K67)/(K8*K70*K45^2/4186.8+K69*K70*K67*mGas*K64) -> -83158.78161 | L72: -82634.64578 | M72: -82013.47051 | N72: -81479.5094 | O72: -80969.93563 | P72: -80365.16057 | Q72: -79865.14785 | R72: -79369.49016 | S72: -78761.31301 | T72: -78275.02958 | U72: -77792.94963 | V72: -77219.06537 | W72: -76745.90676 | X72: -76258.43639 | Y72: -75725.09955 | Z72: -75290.21554 | AA72: -74859.00422 | AB72: -74387.93199 | AC72: -73873.12775 | AD72: -73453.75842 | AE72: -73037.89722 | AF72: -72493.61363 | AG72: -72085.68643 | AH72: -71681.14733 | AI72: -71193.24222 | AJ72: -70753.55198 | AK72: -70359.95634 | AL72: -69884.92153 | AM72: -69456.28682 | AN72: -69073.27062 | AO72: -68693.38426 | AP72: -68192.51703 | AQ72: =(AQ8*AQ67*mGas*AQ13*AQ45-Tmin*AQ67*mGas*AQ13*AQ45+AQ69*AQ70*mGas*AQ14*AQ67)/(AQ8*AQ70*AQ45^2/4186.8+AQ69*AQ70*AQ67*mGas*AQ64) -> -67819.73215 | AR72: -67449.97249 | AS72: -66961.38301 | AT72: -66598.49383 | AU72: -66238.52951 | AV72: -65840.31497 | AW72: -65408.29865 | AX72: -65057.81254 | AY72: -64669.30716 | AZ72: -64248.3674 | BA72: -63907.05365 | BB72: -63527.94757 | BC72: -63092.31667 | BD72: -62760.06741 | BE72: -62390.26049 | BF72: -62063.40928 | BG72: -61602.23488 | BH72: -61281.47293 | BI72: -60963.21721 | BJ72: -60607.86297 | BK72: -60200.56763 | BL72: -59890.63248 | BM72: -59543.82239 | BN72: -59146.91208 | BO72: -58805.98332 | BP72: -58506.59824 | BQ72: -58170.73075 | BR72: -57786.77934 | BS72: -57495.11556 | BT72: -57167.18374 | BU72: -56792.89116 | BV72: -56470.42946 | BW72: =(BW8*BW67*mGas*BW13*BW45-Tmin*BW67*mGas*BW13*BW45+BW69*BW70*mGas*BW14*BW67)/(BW8*BW70*BW45^2/4186.8+BW69*BW70*BW67*mGas*BW64) -> -56188.56157 | BX72: -55870.80476 | BY72: -55508.57011 | BZ72: -55233.87584 | CA72: -54923.49774 | CB72: -54653.07175 | CC72: -54264.76238 | CD72: -53999.1751 | CE72: -53698.26982 | CF72: -53436.77716 | CG72: -53060.04764 | CH72: -52803.2013 | CI72: -52511.39498 | CJ72: -52258.47801 | CK72: -51929.54877 | CL72: -51644.34039 | CM72: -51397.71124 | CN72: -51116.5062 | CO72: -50797.86954 | CP72: -50521.14637 | CQ72: -50282.50591 | CR72: -49935.55366 | CS72: -49701.07445 | CT72: -49432.50837 | CU72: -49201.54313 | CV72: -48864.60311 | CW72: -48637.63878 | CX72: -48376.91772 | CY72: -48153.32985 | CZ72: -47896.16581 | DA72: -47571.07989 | DB72: -47353.03306 | DC72: -47101.70304 | DD72: -46886.87044 | DE72: -46570.99015 | DF72: -46359.82591 | DG72: -46115.69193
J73: ∆T | K73: =(K14-K64*K72)/K45 -> -0.3313017201 | L73: -0.3303585307 | M73: -0.3283907314 | N73: -0.3272595252 | O73: -0.3263343022 | P73: -0.3243967799 | Q73: -0.3234835912 | R73: -0.3225754252 | S73: -0.3204704408 | T73: -0.319574436 | U73: -0.3186833198 | V73: -0.316802354 | W73: -0.3159226663 | X73: -0.3148563486 | Y73: -0.3132723405 | Z73: -0.3126769226 | AA73: -0.3120855449 | AB73: -0.3110404997 | AC73: -0.3094967767 | AD73: -0.3089215179 | AE73: -0.3083501751 | AF73: -0.3063810033 | AG73: -0.3058214656 | AH73: -0.3052657482 | AI73: -0.3037853881 | AJ73: -0.3027838467 | AK73: -0.3022433746 | AL73: -0.3007933489 | AM73: -0.2998073371 | AN73: -0.2992817426 | AO73: -0.2987597675 | AP73: -0.2968901641 | AQ73: =(AQ14-AQ64*AQ72)/AQ45 -> -0.2963790941 | AR73: -0.2958715596 | AS73: -0.2940312635 | AT73: -0.2935343752 | AU73: -0.2930409418 | AV73: -0.2920963813 | AW73: -0.2907459367 | AX73: -0.2902662785 | AY73: -0.2893358 | AZ73: -0.2880127922 | BA73: -0.2875465928 | BB73: -0.2866298456 | BC73: -0.2850481759 | BD73: -0.2845958867 | BE73: -0.2836934353 | BF73: -0.28324754 | BG73: -0.2812528924 | BH73: -0.2808172932 | BI73: -0.2803848091 | BJ73: -0.2795035734 | BK73: -0.2779998431 | BL73: -0.2775804538 | BM73: -0.2767126124 | BN73: -0.2752400579 | BO73: -0.2743825278 | BP73: -0.2739788178 | BQ73: -0.2731281597 | BR73: -0.271691816 | BS73: -0.2713005148 | BT73: -0.2704624961 | BU73: -0.2690557873 | BV73: -0.2682275301 | BW73: =(BW14-BW64*BW72)/BW45 -> -0.2678510603 | BX73: -0.2670292911 | BY73: -0.2656569846 | BZ73: -0.26529229 | CA73: -0.264482457 | CB73: -0.2641230995 | CC73: -0.2623374559 | CD73: -0.2619868093 | CE73: -0.2611923563 | CF73: -0.2608468805 | CG73: -0.259095187 | CH73: -0.2587581722 | CI73: -0.2579786348 | CJ73: -0.2576466318 | CK73: -0.2563726523 | CL73: -0.2556040472 | CM73: -0.2552828085 | CN73: -0.2545199246 | CO73: -0.253276797 | CP73: -0.2525223259 | CQ73: -0.2522138771 | CR73: -0.2505527648 | CS73: -0.2502521334 | CT73: -0.2495113777 | CU73: -0.2492153536 | CV73: -0.2475848256 | CW73: -0.2472964048 | CX73: -0.2465689623 | CY73: -0.2462850139 | CZ73: -0.2455627843 | DA73: -0.2439675852 | DB73: -0.2436930672 | DC73: =(DC14-DC64*DC72)/DC45 -> -0.2429817304 | DD73: =(DD14-DD64*DD72)/DD45 -> -0.2427115248 | DE73: =(DE14-DE64*DE72)/DE45 -> -0.2411451793 | DF73: =(DF14-DF64*DF72)/DF45 -> -0.2408821323 | DG73: =(DG14-DG64*DG72)/DG45 -> -0.2401832659
J76: m | K76: 0.54112
J77: Tc | K77: 126.3
J78: pc | K78: 33.83
J79: Rs | K79: 296.8
J80: a | K80: =0.42748*Rs^2*Tc^2/pc/100000 -> 177.5612923
J81: b | K81: =0.08664*Rs*Tc/pc/100000 -> 0.0009600275429
J82: Alpha T | K82: =(1 + m * (1 - (Tmin / Tc) ^ 0.5)) ^ 2 -> 0.5139930333
J83: e | K83: =-Rs * Tmin / p0 / 100000 -> -0.006638351145
J84: f | K84: =-(100000* p0 * b ^ 2 + Rs * Tmin * b - a * alphaT) / p0 / 100000 -> -3.278385287e-07
J85: g | K85: =-b * a * alphaT / p0 / 100000 -> -6.688333608e-09
J86: o | K86: =(3 * f - e ^ 2) / 3 -> -1.501707384e-05
J87: q | K87: =2 * e ^ 3 / 27 - e * f / 3 + g -> -2.908316982e-08
J88: D | K88: =(o / 3) ^ 3 + (q / 2) ^ 2 -> 8.603035966e-17
J89: u | K89: =(-q / 2 + D ^ (1 / 2)) ^ (1 / 3) -> 0.002877142555
J90: v | K90: =(-q / 2 - D ^ (1 / 2)) ^ (1 / 3) -> 0.001739813438
J91: Vs | K91: =u + v - e / 3 -> 0.006829739708

Sheet Cycle calculation
A2: Cycle calculation
J5: Berechnungsschritt | K5: 0 | L5: 1 | M5: 2 | N5: 3 | O5: 4 | P5: 5 | Q5: 6 | R5: 7 | S5: 8 | T5: 9 | U5: 10 | V5: 11 | W5: 12 | X5: 13 | Y5: 14 | Z5: 15 | AA5: 16 | AB5: 17 | AC5: 18 | AD5: 19 | AE5: 20 | AF5: 21 | AG5: 22 | AH5: 23 | AI5: 24 | AJ5: 25 | AK5: 26 | AL5: 27 | AM5: 28 | AN5: 29 | AO5: 30 | AP5: 31 | AQ5: 32 | AR5: 33 | AS5: 34 | AT5: 35 | AU5: 36 | AV5: 37 | AW5: 38 | AX5: 39 | AY5: 40 | AZ5: 41 | BA5: 42 | BB5: 43 | BC5: 44 | BD5: 45 | BE5: 46 | BF5: 47 | BG5: 48 | BH5: 49 | BI5: 50 | BJ5: 51 | BK5: 52 | BL5: 53 | BM5: 54 | BN5: 55 | BO5: 56 | BP5: 57 | BQ5: 58 | BR5: 59 | BS5: 60 | BT5: 61 | BU5: 62 | BV5: 63 | BW5: 64 | BX5: 65 | BY5: 66 | BZ5: 67 | CA5: 68 | CB5: 69 | CC5: 70 | CD5: 71 | CE5: 72 | CF5: 73 | CG5: 74 | CH5: 75 | CI5: 76 | CJ5: 77 | CK5: 78 | CL5: 79 | CM5: 80 | CN5: 81 | CO5: 82 | CP5: 83 | CQ5: 84 | CR5: 85 | CS5: 86 | CT5: 87 | CU5: 88 | CV5: 89 | CW5: 90 | CX5: 91 | CY5: 92 | CZ5: 93 | DA5: 94 | DB5: 95 | DC5: 96 | DD5: 97 | DE5: 98 | DF5: 99 | DG5: 100 | DH5: 101 | DI5: 102 | DJ5: 103 | DK5: 104 | DL5: 105 | DM5: 106 | DN5: 107 | DO5: 108 | DP5: 109 | DQ5: 110 | DR5: 111 | DS5: 112 | DT5: 113 | DU5: 114 | DV5: 115 | DW5: 116 | DX5: 117 | DY5: 118 | DZ5: 119 | EA5: 120 | EB5: 121 | EC5: 122 | ED5: 123 | EE5: 124 | EF5: 125 | EG5: 126 | EH5: 127 | EI5: 128 | EJ5: 129 | EK5: 130 | EL5: 131 | EM5: 132 | EN5: 133 | EO5: 134 | EP5: 135 | EQ5: 136 | ER5: 137 | ES5: 138 | ET5: 139 | EU5: 140 | EV5: 141 | EW5: 142 | EX5: 143 | EY5: 144 | EZ5: 145 | FA5: 146 | FB5: 147 | FC5: 148 | FD5: 149 | FE5: 150 | FF5: 151 | FG5: 152 | FH5: 153 | FI5: 154 | FJ5: 155 | FK5: 156 | FL5: 157 | FM5: 158 | FN5: 159 | FO5: 160 | FP5: 161 | FQ5: 162 | FR5: 163 | FS5: 164 | FT5: 165 | FU5: 166 | FV5: 167 | FW5: 168 | FX5: 169 | FY5: 170 | FZ5: 171 | GA5: 172 | GB5: 173 | GC5: 174 | GD5: 175 | GE5: 176 | GF5: 177 | GG5: 178 | GH5: 179 | GI5: 180 | GJ5: 181 | GK5: 182 | GL5: 183 | GM5: 184 | GN5: 185 | GO5: 186 | GP5: 187 | GQ5: 188 | GR5: 189 | GS5: 190 | GT5: 191 | GU5: 192 | GV5: 193 | GW5: 194 | GX5: 195 | GY5: 196 | GZ5: 197 | HA5: 198 | HB5: 199 | HC5: 200 | HD5: 201 | HE5: 202 | HF5: 203 | HG5: 204 | HH5: 205 | HI5: 206 | HJ5: 207 | HK5: 208 | HL5: 209 | HM5: 210 | HN5: 211 | HO5: 212 | HP5: 213 | HQ5: 214 | HR5: 215 | HS5: 216 | HT5: 217 | HU5: 218 | HV5: 219 | HW5: 220 | HX5: 221 | HY5: 222 | HZ5: 223 | IA5: 224 | IB5: 225 | IC5: 226 | ID5: 227 | IE5: 228 | IF5: 229 | IG5: 230 | IH5: 231 | II5: 232 | IJ5: 233 | IK5: 234 | IL5: 235 | IM5: 236 | IN5: 237 | IO5: 238 | IP5: 239 | IQ5: 240 | IR5: 241 | IS5: 242 | IT5: 243 | IU5: 244 | IV5: 245 | IW5: 246 | IX5: 247 | IY5: 248 | IZ5: 249 | JA5: 250 | JB5: 251 | JC5: 252 | JD5: 253 | JE5: 254 | JF5: 255 | JG5: 256 | JH5: 257 | JI5: 258 | JJ5: 259 | JK5: 260 | JL5: 261 | JM5: 262 | JN5: 263 | JO5: 264 | JP5: 265 | JQ5: 266 | JR5: 267 | JS5: 268 | JT5: 269 | JU5: 270 | JV5: 271 | JW5: 272 | JX5: 273 | JY5: 274 | JZ5: 275 | KA5: 276 | KB5: 277 | KC5: 278 | KD5: 279 | KE5: 280 | KF5: 281 | KG5: 282 | KH5: 283 | KI5: 284 | KJ5: 285 | KK5: 286 | KL5: 287 | KM5: 288 | KN5: 289 | KO5: 290 | KP5: 291 | KQ5: 292 | KR5: 293 | KS5: 294 | KT5: 295 | KU5: 296 | KV5: 297 | KW5: 298 | KX5: 299 | KY5: 300 | KZ5: 301 | LA5: 302 | LB5: 303 | LC5: 304 | LD5: 305 | LE5: 306 | LF5: 307 | LG5: 308 | LH5: 309 | LI5: 310 | LJ5: 311 | LK5: 312 | LL5: 313 | LM5: 314 | LN5: 315 | LO5: 316 | LP5: 317 | LQ5: 318 | LR5: 319 | LS5: 320 | LT5: 321 | LU5: 322 | LV5: 323 | LW5: 324 | LX5: 325 | LY5: 326 | LZ5: 327 | MA5: 328 | MB5: 329 | MC5: 330 | MD5: 331 | ME5: 332 | MF5: 333 | MG5: 334 | MH5: 335 | MI5: 336 | MJ5: 337 | MK5: 338 | ML5: 339 | MM5: 340 | MN5: 341 | MO5: 342 | MP5: 343 | MQ5: 344 | MR5: 345 | MS5: 346 | MT5: 347 | MU5: 348 | MV5: 349 | MW5: 350 | MX5: 351 | MY5: 352 | MZ5: 353 | NA5: 354 | NB5: 355 | NC5: 356 | ND5: 357 | NE5: 358 | NF5: 359 | NG5: 360 | NH5: 361 | NI5: 362 | NJ5: 363 | NK5: 364 | NL5: 365 | NM5: 366 | NN5: 367 | NO5: 368 | NP5: 369 | NQ5: 370 | NR5: 371 | NS5: 372 | NT5: 373 | NU5: 374 | NV5: 375 | NW5: 376 | NX5: 377 | NY5: 378 | NZ5: 379 | OA5: 380 | OB5: 381 | OC5: 382 | OD5: 383 | OE5: 384 | OF5: 385 | OG5: 386 | OH5: 387 | OI5: 388 | OJ5: 389 | OK5: 390 | OL5: 391 | OM5: 392 | ON5: 393 | OO5: 394 | OP5: 395 | OQ5: 396 | OR5: 397 | OS5: 398 | OT5: 399 | OU5: 400 | OV5: 401 | OW5: 402 | OX5: 403 | OY5: 404 | OZ5: 405 | PA5: 406 | PB5: 407 | PC5: 408 | PD5: 409 | PE5: 410 | PF5: 411 | PG5: 412 | PH5: 413 | PI5: 414 | PJ5: 415 | PK5: 416 | PL5: 417 | PM5: 418 | PN5: 419 | PO5: 420 | PP5: 421 | PQ5: 422 | PR5: 423 | PS5: 424 | PT5: 425 | PU5: 426 | PV5: 427 | PW5: 428 | PX5: 429 | PY5: 430 | PZ5: 431 | QA5: 432 | QB5: 433 | QC5: 434 | QD5: 435 | QE5: 436 | QF5: 437 | QG5: 438 | QH5: 439 | QI5: 440 | QJ5: 441 | QK5: 442 | QL5: 443 | QM5: 444 | QN5: 445 | QO5: 446 | QP5: 447 | QQ5: 448 | QR5: 449 | QS5: 450 | QT5: 451 | QU5: 452 | QV5: 453 | QW5: 454 | QX5: 455 | QY5: 456 | QZ5: 457 | RA5: 458 | RB5: 459 | RC5: 460 | RD5: 461 | RE5: 462 | RF5: 463 | RG5: 464 | RH5: 465 | RI5: 466 | RJ5: 467 | RK5: 468 | RL5: 469 | RM5: 470 | RN5: 471 | RO5: 472 | RP5: 473 | RQ5: 474 | RR5: 475 | RS5: 476 | RT5: 477 | RU5: 478 | RV5: 479 | RW5: 480 | RX5: 481 | RY5: 482 | RZ5: 483 | SA5: 484 | SB5: 485 | SC5: 486 | SD5: 487 | SE5: 488 | SF5: 489 | SG5: 490 | SH5: 491 | SI5: 492 | SJ5: 493 | SK5: 494 | SL5: 495 | SM5: 496 | SN5: 497 | SO5: 498 | SP5: 499 | SQ5: 500 | SR5: 501 | SS5: 502 | ST5: 503 | SU5: 504 | SV5: 505 | SW5: 506 | SX5: 507 | SY5: 508 | SZ5: 509 | TA5: 510 | TB5: 511 | TC5: 512 | TD5: 513 | TE5: 514 | TF5: 515 | TG5: 516 | TH5: 517 | TI5: 518 | TJ5: 519 | TK5: 520 | TL5: 521 | TM5: 522 | TN5: 523 | TO5: 524 | TP5: 525 | TQ5: 526 | TR5: 527 | TS5: 528 | TT5: 529 | TU5: 530 | TV5: 531 | TW5: 532 | TX5: 533 | TY5: 534 | TZ5: 535 | UA5: 536 | UB5: 537 | UC5: 538 | UD5: 539 | UE5: 540 | UF5: 541 | UG5: 542 | UH5: 543 | UI5: 544 | UJ5: 545 | UK5: 546 | UL5: 547 | UM5: 548 | UN5: 549 | UO5: 550 | UP5: 551 | UQ5: 552 | UR5: 553 | US5: 554 | UT5: 555 | UU5: 556 | UV5: 557 | UW5: 558 | UX5: 559 | UY5: 560 | UZ5: 561 | VA5: 562 | VB5: 563 | VC5: 564 | VD5: 565 | VE5: 566 | VF5: 567 | VG5: 568 | VH5: 569 | VI5: 570 | VJ5: 571 | VK5: 572 | VL5: 573 | VM5: 574 | VN5: 575 | VO5: 576 | VP5: 577 | VQ5: 578 | VR5: 579 | VS5: 580 | VT5: 581 | VU5: 582 | VV5: 583 | VW5: 584 | VX5: 585 | VY5: 586 | VZ5: 587 | WA5: 588 | WB5: 589 | WC5: 590 | WD5: 591 | WE5: 592 | WF5: 593 | WG5: 594 | WH5: 595 | WI5: 596 | WJ5: 597 | WK5: 598 | WL5: 599 | WM5: 600 | WN5: 601 | WO5: 602 | WP5: 603 | WQ5: 604 | WR5: 605 | WS5: 606 | WT5: 607 | WU5: 608 | WV5: 609 | WW5: 610 | WX5: 611 | WY5: 612 | WZ5: 613 | XA5: 614 | XB5: 615 | XC5: 616 | XD5: 617 | XE5: 618 | XF5: 619 | XG5: 620 | XH5: 621 | XI5: 622 | XJ5: 623 | XK5: 624 | XL5: 625 | XM5: 626 | XN5: 627 | XO5: 628 | XP5: 629 | XQ5: 630 | XR5: 631 | XS5: 632 | XT5: 633 | XU5: 634 | XV5: 635 | XW5: 636 | XX5: 637 | XY5: 638 | XZ5: 639 | YA5: 640 | YB5: 641 | YC5: 642 | YD5: 643 | YE5: 644 | YF5: 645 | YG5: 646 | YH5: 647 | YI5: 648 | YJ5: 649 | YK5: 650 | YL5: 651 | YM5: 652 | YN5: 653 | YO5: 654 | YP5: 655 | YQ5: 656 | YR5: 657 | YS5: 658 | YT5: 659 | YU5: 660 | YV5: 661 | YW5: 662 | YX5: 663 | YY5: 664 | YZ5: 665 | ZA5: 666 | ZB5: 667 | ZC5: 668 | ZD5: 669 | ZE5: 670 | ZF5: 671 | ZG5: 672 | ZH5: 673 | ZI5: 674 | ZJ5: 675 | ZK5: 676 | ZL5: 677 | ZM5: 678 | ZN5: 679 | ZO5: 680 | ZP5: 681 | ZQ5: 682 | ZR5: 683 | ZS5: 684 | ZT5: 685 | ZU5: 686 | ZV5: 687 | ZW5: 688 | ZX5: 689 | ZY5: 690 | ZZ5: 691 | AAA5: 692 | AAB5: 693 | AAC5: 694 | AAD5: 695 | AAE5: 696 | AAF5: 697 | AAG5: 698 | AAH5: 699 | AAI5: 700 | AAJ5: 701 | AAK5: 702 | AAL5: 703 | AAM5: 704 | AAN5: 705 | AAO5: 706 | AAP5: 707 | AAQ5: 708 | AAR5: 709 | AAS5: 710 | AAT5: 711 | AAU5: 712 | AAV5: 713 | AAW5: 714 | AAX5: 715 | AAY5: 716 | AAZ5: 717 | ABA5: 718 | ABB5: 719 | ABC5: 720 | ABD5: 721 | ABE5: 722 | ABF5: 723 | ABG5: 724 | ABH5: 725 | ABI5: 726 | ABJ5: 727 | ABK5: 728 | ABL5: 729 | ABM5: 730 | ABN5: 731 | ABO5: 732 | ABP5: 733 | ABQ5: 734 | ABR5: 735 | ABS5: 736 | ABT5: 737 | ABU5: 738 | ABV5: 739 | ABW5: 740 | ABX5: 741 | ABY5: 742 | ABZ5: 743 | ACA5: 744 | ACB5: 745 | ACC5: 746 | ACD5: 747 | ACE5: 748 | ACF5: 749 | ACG5: 750 | ACH5: 751 | ACI5: 752 | ACJ5: 753 | ACK5: 754 | ACL5: 755 | ACM5: 756 | ACN5: 757 | ACO5: 758 | ACP5: 759 | ACQ5: 760 | ACR5: 761 | ACS5: 762 | ACT5: 763 | ACU5: 764 | ACV5: 765 | ACW5: 766 | ACX5: 767 | ACY5: 768 | ACZ5: 769 | ADA5: 770 | ADB5: 771 | ADC5: 772 | ADD5: 773 | ADE5: 774 | ADF5: 775 | ADG5: 776 | ADH5: 777 | ADI5: 778 | ADJ5: 779 | ADK5: 780 | ADL5: 781 | ADM5: 782 | ADN5: 783 | ADO5: 784 | ADP5: 785 | ADQ5: 786 | ADR5: 787 | ADS5: 788 | ADT5: 789 | ADU5: 790 | ADV5: 791 | ADW5: 792 | ADX5: 793 | ADY5: 794 | ADZ5: 795 | AEA5: 796 | AEB5: 797 | AEC5: 798 | AED5: 799
A6: Accumulator volume | B6: 129.4681652 | C6: Liter | J6: Zeit | K6: 0 | L6: =K6+K13 -> 0.06 | M6: =L6+L13 -> 0.12 | N6: =M6+M13 -> 0.18 | O6: 0.24 | P6: 0.3 | Q6: 0.36 | R6: 0.42 | S6: 0.48 | T6: 0.54 | U6: 0.6 | V6: 0.66 | W6: 0.72 | X6: 0.78 | Y6: 0.84 | Z6: 0.9 | AA6: 0.96 | AB6: 1.02 | AC6: 1.08 | AD6: 1.14 | AE6: 1.2 | AF6: 1.26 | AG6: 1.32 | AH6: 1.38 | AI6: 1.44 | AJ6: 1.5 | AK6: 1.56 | AL6: 1.62 | AM6: 1.68 | AN6: 1.74 | AO6: 1.8 | AP6: 1.86 | AQ6: 1.92 | AR6: 1.98 | AS6: 2.04 | AT6: 2.1 | AU6: 2.16 | AV6: 2.22 | AW6: 2.28 | AX6: 2.34 | AY6: 2.4 | AZ6: 2.46 | BA6: 2.52 | BB6: 2.58 | BC6: 2.64 | BD6: 2.7 | BE6: 2.76 | BF6: 2.82 | BG6: 2.88 | BH6: 2.94 | BI6: 3 | BJ6: 3 | BK6: 3 | BL6: 3 | BM6: 3 | BN6: 3 | BO6: 3 | BP6: 3 | BQ6: 3 | BR6: 3 | BS6: 3 | BT6: 3 | BU6: 3 | BV6: 3 | BW6: 3 | BX6: 3 | BY6: 3 | BZ6: =BY6+BY13 -> 3 | CA6: 3 | CB6: 3 | CC6: 3 | CD6: 3 | CE6: 3 | CF6: 3 | CG6: 3 | CH6: 3 | CI6: 3 | CJ6: 3 | CK6: 3 | CL6: 3 | CM6: 3 | CN6: 3 | CO6: 3 | CP6: 3 | CQ6: 3 | CR6: 3 | CS6: 3 | CT6: 3 | CU6: 3 | CV6: 3 | CW6: 3 | CX6: 3 | CY6: 3 | CZ6: 3 | DA6: 3 | DB6: 3 | DC6: 3 | DD6: 3 | DE6: 3 | DF6: 3 | DG6: 3 | DH6: 3 | DI6: 3 | DJ6: 3 | DK6: 3 | DL6: 3 | DM6: 3 | DN6: 3 | DO6: 3 | DP6: 3 | DQ6: 3 | DR6: 3 | DS6: 3 | DT6: 3 | DU6: 3 | DV6: 3 | DW6: 3 | DX6: 3 | DY6: 3 | DZ6: 3 | EA6: 3 | EB6: 3 | EC6: 3 | ED6: 3 | EE6: 3 | EF6: 3 | EG6: 3 | EH6: 3 | EI6: 3 | EJ6: 3 | EK6: 3 | EL6: =EK6+EK13 -> 3 | EM6: 3 | EN6: 3 | EO6: 3 | EP6: 3 | EQ6: 3 | ER6: 3 | ES6: 3 | ET6: 3 | EU6: 3 | EV6: 3 | EW6: 3 | EX6: 3 | EY6: 3 | EZ6: 3 | FA6: 3 | FB6: 3 | FC6: 3 | FD6: 3 | FE6: 3 | FF6: 3 | FG6: 3 | FH6: 3 | FI6: 3 | FJ6: 3 | FK6: 3 | FL6: 3 | FM6: 3 | FN6: 3 | FO6: 3 | FP6: 3 | FQ6: 3 | FR6: 3 | FS6: 3 | FT6: 3 | FU6: 3 | FV6: 3 | FW6: 3 | FX6: 3 | FY6: 3 | FZ6: 3 | GA6: 3 | GB6: 3 | GC6: 3 | GD6: 3 | GE6: 3 | GF6: 3 | GG6: 3 | GH6: 3 | GI6: 3 | GJ6: 3 | GK6: 3 | GL6: 3 | GM6: 3 | GN6: 3 | GO6: 3 | GP6: 3 | GQ6: 3 | GR6: 3 | GS6: 3 | GT6: 3 | GU6: 3 | GV6: 3 | GW6: 3 | GX6: =GW6+GW13 -> 3 | GY6: 3 | GZ6: 3 | HA6: 3 | HB6: 3 | HC6: 3 | HD6: 3 | HE6: 3 | HF6: 3 | HG6: 3 | HH6: 3 | HI6: 3 | HJ6: 3 | HK6: 3 | HL6: 3 | HM6: 3 | HN6: 3 | HO6: 3 | HP6: 3 | HQ6: 3 | HR6: 3 | HS6: 3 | HT6: 3 | HU6: 3 | HV6: 3 | HW6: 3 | HX6: 3 | HY6: 3 | HZ6: 3 | IA6: 3 | IB6: 3 | IC6: 3 | ID6: 3 | IE6: 3 | IF6: 3 | IG6: 3 | IH6: 3 | II6: 3 | IJ6: 3 | IK6: 3 | IL6: 3 | IM6: 3 | IN6: 3 | IO6: 3 | IP6: 3 | IQ6: 3 | IR6: 3 | IS6: 3 | IT6: 3 | IU6: 3 | IV6: 3 | IW6: 3 | IX6: 3 | IY6: 3 | IZ6: 3 | JA6: 3 | JB6: 3 | JC6: 3 | JD6: 3 | JE6: 3 | JF6: 3 | JG6: 3 | JH6: 3 | JI6: 3 | JJ6: =JI6+JI13 -> 3 | JK6: 3 | JL6: 3 | JM6: 3 | JN6: 3 | JO6: 3 | JP6: 3 | JQ6: 3 | JR6: 3 | JS6: 3 | JT6: 3 | JU6: 3 | JV6: 3 | JW6: 3 | JX6: 3 | JY6: 3 | JZ6: 3 | KA6: 3 | KB6: 3 | KC6: 3 | KD6: 3 | KE6: 3 | KF6: 3 | KG6: 3 | KH6: 3 | KI6: 3 | KJ6: 3 | KK6: 3 | KL6: 3 | KM6: 3 | KN6: 3 | KO6: 3 | KP6: 3 | KQ6: 3 | KR6: 3 | KS6: 3 | KT6: 3 | KU6: 3 | KV6: 3 | KW6: 3 | KX6: =KW6+KW13 -> 3 | KY6: 3 | KZ6: 3 | LA6: 3 | LB6: 3 | LC6: 3 | LD6: 3 | LE6: 3 | LF6: 3 | LG6: 3 | LH6: 3 | LI6: 3 | LJ6: 3 | LK6: 3 | LL6: 3 | LM6: 3 | LN6: 3 | LO6: 3 | LP6: 3 | LQ6: 3 | LR6: 3 | LS6: 3 | LT6: 3 | LU6: 3 | LV6: 3 | LW6: 3 | LX6: 3 | LY6: 3 | LZ6: 3 | MA6: 3 | MB6: 3 | MC6: 3 | MD6: 3 | ME6: 3 | MF6: 3 | MG6: 3 | MH6: 3 | MI6: 3 | MJ6: 3 | MK6: 3 | ML6: 3 | MM6: 3 | MN6: 3 | MO6: 3 | MP6: 3 | MQ6: 3 | MR6: 3 | MS6: 3 | MT6: 3 | MU6: 3 | MV6: 3 | MW6: 3 | MX6: 3 | MY6: 3 | MZ6: 3 | NA6: 3 | NB6: 3 | NC6: 3 | ND6: 3 | NE6: 3 | NF6: 3 | NG6: 3 | NH6: 3 | NI6: 3 | NJ6: =NI6+NI13 -> 3 | NK6: 3 | NL6: 3 | NM6: 3 | NN6: 3 | NO6: 3 | NP6: 3 | NQ6: 3 | NR6: 3 | NS6: 3 | NT6: 3 | NU6: 3 | NV6: 3 | NW6: 3 | NX6: 3 | NY6: 3 | NZ6: 3 | OA6: 3 | OB6: 3 | OC6: 3 | OD6: 3 | OE6: 3 | OF6: 3 | OG6: 3 | OH6: 3 | OI6: 3 | OJ6: 3 | OK6: 3 | OL6: 3 | OM6: 3 | ON6: 3 | OO6: 3 | OP6: 3 | OQ6: 3 | OR6: 3 | OS6: 3 | OT6: 3 | OU6: 3 | OV6: 3 | OW6: 3 | OX6: 3 | OY6: 3 | OZ6: 3 | PA6: 3 | PB6: 3 | PC6: 3 | PD6: 3 | PE6: 3 | PF6: 3 | PG6: 3 | PH6: 3 | PI6: 3 | PJ6: 3 | PK6: 3 | PL6: 3 | PM6: 3 | PN6: 3 | PO6: 3 | PP6: 3 | PQ6: 3 | PR6: 3 | PS6: 3 | PT6: 3 | PU6: 3 | PV6: =PU6+PU13 -> 3 | PW6: 3 | PX6: 3 | PY6: 3 | PZ6: 3 | QA6: 3 | QB6: 3 | QC6: 3 | QD6: 3 | QE6: 3 | QF6: 3 | QG6: 3 | QH6: 3 | QI6: 3 | QJ6: 3 | QK6: 3 | QL6: 3 | QM6: 3 | QN6: 3 | QO6: 3 | QP6: 3 | QQ6: 3 | QR6: 3 | QS6: 3 | QT6: 3 | QU6: 3 | QV6: 3 | QW6: 3 | QX6: 3 | QY6: 3 | QZ6: 3 | RA6: 3 | RB6: 3 | RC6: 3 | RD6: 3 | RE6: 3 | RF6: 3 | RG6: 3 | RH6: 3 | RI6: 3 | RJ6: 3 | RK6: 3 | RL6: 3 | RM6: 3 | RN6: 3 | RO6: 3 | RP6: 3 | RQ6: 3 | RR6: 3 | RS6: 3 | RT6: 3 | RU6: 3 | RV6: 3 | RW6: 3 | RX6: 3 | RY6: 3 | RZ6: 3 | SA6: 3 | SB6: 3 | SC6: 3 | SD6: 3 | SE6: 3 | SF6: 3 | SG6: 3 | SH6: =SG6+SG13 -> 3 | SI6: 3 | SJ6: 3 | SK6: 3 | SL6: 3 | SM6: 3 | SN6: 3 | SO6: 3 | SP6: 3 | SQ6: 3 | SR6: 3 | SS6: 3 | ST6: 3 | SU6: 3 | SV6: 3 | SW6: 3 | SX6: 3 | SY6: 3 | SZ6: 3 | TA6: 3 | TB6: 3 | TC6: 3 | TD6: 3 | TE6: 3 | TF6: 3 | TG6: 3 | TH6: 3 | TI6: 3 | TJ6: 3 | TK6: 3 | TL6: 3 | TM6: 3 | TN6: 3 | TO6: 3 | TP6: 3 | TQ6: 3 | TR6: 3 | TS6: 3 | TT6: 3 | TU6: 3 | TV6: 3 | TW6: 3 | TX6: 3 | TY6: 3 | TZ6: 3 | UA6: 3 | UB6: 3 | UC6: 3 | UD6: 3 | UE6: 3 | UF6: 3 | UG6: 3 | UH6: 3 | UI6: 3 | UJ6: 3 | UK6: 3 | UL6: 3 | UM6: 3 | UN6: 3 | UO6: 3 | UP6: 3 | UQ6: 3 | UR6: 3 | US6: 3 | UT6: =US6+US13 -> 3 | UU6: 3 | UV6: 3 | UW6: 3 | UX6: 3 | UY6: 3 | UZ6: 3 | VA6: 3 | VB6: 3 | VC6: 3 | VD6: 3 | VE6: 3 | VF6: 3 | VG6: 3 | VH6: 3 | VI6: 3 | VJ6: 3 | VK6: 3 | VL6: 3 | VM6: 3 | VN6: 3 | VO6: 3 | VP6: 3 | VQ6: 3 | VR6: 3 | VS6: 3 | VT6: 3 | VU6: 3 | VV6: 3 | VW6: 3 | VX6: 3 | VY6: 3 | VZ6: 3 | WA6: 3 | WB6: 3 | WC6: 3 | WD6: 3 | WE6: 3 | WF6: 3 | WG6: 3 | WH6: 3 | WI6: 3 | WJ6: 3 | WK6: 3 | WL6: 3 | WM6: 3 | WN6: 3 | WO6: 3 | WP6: 3 | WQ6: 3 | WR6: 3 | WS6: 3 | WT6: 3 | WU6: 3 | WV6: 3 | WW6: 3 | WX6: 3 | WY6: 3 | WZ6: 3 | XA6: 3 | XB6: 3 | XC6: 3 | XD6: 3 | XE6: 3 | XF6: =XE6+XE13 -> 3 | XG6: 3 | XH6: 3 | XI6: 3 | XJ6: 3 | XK6: 3 | XL6: 3 | XM6: 3 | XN6: 3 | XO6: 3 | XP6: 3 | XQ6: 3 | XR6: 3 | XS6: 3 | XT6: 3 | XU6: 3 | XV6: 3 | XW6: 3 | XX6: 3 | XY6: 3 | XZ6: 3 | YA6: 3 | YB6: 3 | YC6: 3 | YD6: 3 | YE6: 3 | YF6: 3 | YG6: 3 | YH6: 3 | YI6: 3 | YJ6: 3 | YK6: 3 | YL6: 3 | YM6: 3 | YN6: 3 | YO6: 3 | YP6: 3 | YQ6: 3 | YR6: 3 | YS6: 3 | YT6: 3 | YU6: 3 | YV6: 3 | YW6: 3 | YX6: 3 | YY6: 3 | YZ6: 3 | ZA6: 3 | ZB6: 3 | ZC6: 3 | ZD6: 3 | ZE6: 3 | ZF6: 3 | ZG6: 3 | ZH6: 3 | ZI6: 3 | ZJ6: 3 | ZK6: 3 | ZL6: 3 | ZM6: 3 | ZN6: 3 | ZO6: 3 | ZP6: 3 | ZQ6: 3 | ZR6: =ZQ6+ZQ13 -> 3 | ZS6: 3 | ZT6: 3 | ZU6: 3 | ZV6: 3 | ZW6: 3 | ZX6: 3 | ZY6: 3 | ZZ6: 3 | AAA6: 3 | AAB6: 3 | AAC6: 3 | AAD6: 3 | AAE6: 3 | AAF6: 3 | AAG6: 3 | AAH6: 3 | AAI6: 3 | AAJ6: 3 | AAK6: 3 | AAL6: 3 | AAM6: 3 | AAN6: 3 | AAO6: 3 | AAP6: 3 | AAQ6: 3 | AAR6: 3 | AAS6: 3 | AAT6: 3 | AAU6: 3 | AAV6: 3 | AAW6: 3 | AAX6: 3 | AAY6: 3 | AAZ6: 3 | ABA6: 3 | ABB6: 3 | ABC6: 3 | ABD6: 3 | ABE6: 3 | ABF6: 3 | ABG6: 3 | ABH6: 3 | ABI6: 3 | ABJ6: 3 | ABK6: 3 | ABL6: 3 | ABM6: 3 | ABN6: 3 | ABO6: 3 | ABP6: 3 | ABQ6: 3 | ABR6: 3 | ABS6: 3 | ABT6: 3 | ABU6: 3 | ABV6: 3 | ABW6: 3 | ABX6: 3 | ABY6: 3 | ABZ6: 3 | ACA6: 3 | ACB6: 3 | ACC6: 3 | ACD6: =ACC6+ACC13 -> 3 | ACE6: 3 | ACF6: 3 | ACG6: 3 | ACH6: 3 | ACI6: 3 | ACJ6: 3 | ACK6: 3 | ACL6: 3 | ACM6: 3 | ACN6: 3 | ACO6: 3 | ACP6: 3 | ACQ6: 3 | ACR6: 3 | ACS6: 3 | ACT6: 3 | ACU6: 3 | ACV6: 3 | ACW6: 3 | ACX6: 3 | ACY6: 3 | ACZ6: 3 | ADA6: 3 | ADB6: 3 | ADC6: 3 | ADD6: 3 | ADE6: 3 | ADF6: 3 | ADG6: 3 | ADH6: 3 | ADI6: 3 | ADJ6: 3 | ADK6: 3 | ADL6: 3 | ADM6: 3 | ADN6: 3 | ADO6: 3 | ADP6: 3 | ADQ6: 3 | ADR6: 3 | ADS6: 3 | ADT6: 3 | ADU6: 3 | ADV6: 3 | ADW6: 3 | ADX6: 3 | ADY6: 3 | ADZ6: 3 | AEA6: 3 | AEB6: 3 | AEC6: 3 | AED6: 3
J7: Druck | K7: 210 | L7: =K7+K72/100000 -> 209.5765897 | M7: =L7+L72/100000 -> 209.1269038 | N7: 208.6982037 | O7: 208.2052103 | P7: 207.7148476 | Q7: 207.227096 | R7: 206.7419365 | S7: 206.2593498 | T7: 205.779317 | U7: 205.3018195 | V7: 204.8269593 | W7: 204.3545963 | X7: 203.8847121 | Y7: 203.4174075 | Z7: 202.9525447 | AA7: 202.4902236 | AB7: 202.0303077 | AC7: 201.5728962 | AD7: 201.1178542 | AE7: 200.6648726 | AF7: 200.2143458 | AG7: 199.7662552 | AH7: 199.3205824 | AI7: 198.877309 | AJ7: 198.4363051 | AK7: 197.9972798 | AL7: 197.5606069 | AM7: 197.1263789 | AN7: 196.694467 | AO7: 196.264481 | AP7: 195.8367819 | AQ7: 195.4113527 | AR7: 194.9878126 | AS7: 194.5666204 | AT7: 194.1475515 | AU7: 193.7301359 | AV7: 193.3149214 | AW7: 192.9013393 | AX7: 192.4897243 | AY7: 192.0802649 | AZ7: 191.6724055 | BA7: 191.2666737 | BB7: 190.8625219 | BC7: 190.4604701 | BD7: 190.0599786 | BE7: 189.6615599 | BF7: 189.2648849 | BG7: 188.8700522 | BH7: 188.4769437 | BI7: 188.0858535 | BJ7: 188.0858535 | BK7: 188.0858535 | BL7: 188.0858535 | BM7: 188.0858535 | BN7: 188.0858535 | BO7: 188.0858535 | BP7: 188.0858535 | BQ7: 188.0858535 | BR7: 188.0858535 | BS7: 188.0858535 | BT7: 188.0858535 | BU7: 188.0858535 | BV7: 188.0858535 | BW7: 188.0858535 | BX7: 188.0858535 | BY7: =BX7+BX72/100000 -> 188.0858535 | BZ7: 188.0858535 | CA7: 188.0858535 | CB7: 188.0858535 | CC7: 188.0858535 | CD7: 188.0858535 | CE7: 188.0858535 | CF7: 188.0858535 | CG7: 188.0858535 | CH7: 188.0858535 | CI7: 188.0858535 | CJ7: 188.0858535 | CK7: 188.0858535 | CL7: 188.0858535 | CM7: 188.0858535 | CN7: 188.0858535 | CO7: 188.0858535 | CP7: 188.0858535 | CQ7: 188.0858535 | CR7: 188.0858535 | CS7: 188.0858535 | CT7: 188.0858535 | CU7: 188.0858535 | CV7: 188.0858535 | CW7: 188.0858535 | CX7: 188.0858535 | CY7: 188.0858535 | CZ7: 188.0858535 | DA7: 188.0858535 | DB7: 188.0858535 | DC7: 188.0858535 | DD7: 188.0858535 | DE7: 188.0858535 | DF7: 188.0858535 | DG7: 188.0858535 | DH7: 188.0858535 | DI7: =DH7+DH72/100000 -> 188.0858535 | DJ7: 188.0858535 | DK7: 188.0858535 | DL7: 188.0858535 | DM7: 188.0858535 | DN7: 188.0858535 | DO7: 188.0858535 | DP7: 188.0858535 | DQ7: 188.0858535 | DR7: 188.0858535 | DS7: 188.0858535 | DT7: 188.0858535 | DU7: 188.0858535 | DV7: 188.0858535 | DW7: 188.0858535 | DX7: 188.0858535 | DY7: 188.0858535 | DZ7: 188.0858535 | EA7: 188.0858535 | EB7: 188.0858535 | EC7: 188.0858535 | ED7: 188.0858535 | EE7: 188.0858535 | EF7: 188.0858535 | EG7: 188.0858535 | EH7: 188.0858535 | EI7: 188.0858535 | EJ7: 188.0858535 | EK7: 188.0858535 | EL7: 188.0858535 | EM7: 188.0858535 | EN7: 188.0858535 | EO7: =EN7+EN72/100000 -> 188.0858535 | EP7: 188.0858535 | EQ7: 188.0858535 | ER7: 188.0858535 | ES7: 188.0858535 | ET7: 188.0858535 | EU7: 188.0858535 | EV7: 188.0858535 | EW7: 188.0858535 | EX7: 188.0858535 | EY7: 188.0858535 | EZ7: 188.0858535 | FA7: 188.0858535 | FB7: 188.0858535 | FC7: 188.0858535 | FD7: 188.0858535 | FE7: 188.0858535 | FF7: 188.0858535 | FG7: 188.0858535 | FH7: 188.0858535 | FI7: 188.0858535 | FJ7: 188.0858535 | FK7: 188.0858535 | FL7: 188.0858535 | FM7: 188.0858535 | FN7: 188.0858535 | FO7: 188.0858535 | FP7: 188.0858535 | FQ7: 188.0858535 | FR7: 188.0858535 | FS7: 188.0858535 | FT7: 188.0858535 | FU7: =FT7+FT72/100000 -> 188.0858535 | FV7: 188.0858535 | FW7: 188.0858535 | FX7: 188.0858535 | FY7: 188.0858535 | FZ7: 188.0858535 | GA7: 188.0858535 | GB7: 188.0858535 | GC7: 188.0858535 | GD7: 188.0858535 | GE7: 188.0858535 | GF7: 188.0858535 | GG7: 188.0858535 | GH7: 188.0858535 | GI7: 188.0858535 | GJ7: 188.0858535 | GK7: 188.0858535 | GL7: 188.0858535 | GM7: 188.0858535 | GN7: 188.0858535 | GO7: 188.0858535 | GP7: 188.0858535 | GQ7: 188.0858535 | GR7: 188.0858535 | GS7: 188.0858535 | GT7: 188.0858535 | GU7: 188.0858535 | GV7: 188.0858535 | GW7: 188.0858535 | GX7: 188.0858535 | GY7: 188.0858535 | GZ7: 188.0858535 | HA7: =GZ7+GZ72/100000 -> 188.0858535 | HB7: 188.0858535 | HC7: 188.0858535 | HD7: 188.0858535 | HE7: 188.0858535 | HF7: 188.0858535 | HG7: 188.0858535 | HH7: 188.0858535 | HI7: 188.0858535 | HJ7: 188.0858535 | HK7: 188.0858535 | HL7: 188.0858535 | HM7: 188.0858535 | HN7: 188.0858535 | HO7: 188.0858535 | HP7: 188.0858535 | HQ7: 188.0858535 | HR7: 188.0858535 | HS7: 188.0858535 | HT7: 188.0858535 | HU7: 188.0858535 | HV7: 188.0858535 | HW7: 188.0858535 | HX7: 188.0858535 | HY7: 188.0858535 | HZ7: 188.0858535 | IA7: 188.0858535 | IB7: 188.0858535 | IC7: 188.0858535 | ID7: 188.0858535 | IE7: 188.0858535 | IF7: 188.0858535 | IG7: =IF7+IF72/100000 -> 188.0858535 | IH7: 188.0858535 | II7: 188.0858535 | IJ7: 188.0858535 | IK7: 188.0858535 | IL7: 188.0858535 | IM7: 188.0858535 | IN7: 188.0858535 | IO7: 188.0858535 | IP7: 188.0858535 | IQ7: 188.0858535 | IR7: 188.0858535 | IS7: 188.0858535 | IT7: 188.0858535 | IU7: 188.0858535 | IV7: 188.0858535 | IW7: 188.0858535 | IX7: 188.0858535 | IY7: 188.0858535 | IZ7: 188.0858535 | JA7: 188.0858535 | JB7: 188.0858535 | JC7: 188.0858535 | JD7: 188.0858535 | JE7: 188.0858535 | JF7: 188.0858535 | JG7: 188.0858535 | JH7: 188.0858535 | JI7: 188.0858535 | JJ7: 188.0858535 | JK7: 188.0858535 | JL7: 188.0858535 | JM7: =JL7+JL72/100000 -> 188.0858535 | JN7: 188.0858535 | JO7: 188.0858535 | JP7: 188.0858535 | JQ7: 188.0858535 | JR7: 188.0858535 | JS7: 188.0858535 | JT7: 188.0858535 | JU7: 188.0858535 | JV7: 188.0858535 | JW7: 188.0858535 | JX7: 188.0858535 | JY7: 188.0858535 | JZ7: 188.0858535 | KA7: 188.0858535 | KB7: 188.0858535 | KC7: 188.0858535 | KD7: 188.0858535 | KE7: 188.0858535 | KF7: 188.0858535 | KG7: 188.0858535 | KH7: 188.0858535 | KI7: 188.0858535 | KJ7: 188.0858535 | KK7: 188.0858535 | KL7: 188.0858535 | KM7: 188.0858535 | KN7: 188.0858535 | KO7: 188.0858535 | KP7: 188.0858535 | KQ7: 188.0858535 | KR7: 188.0858535 | KS7: =KR7+KR72/100000 -> 188.0858535 | KT7: 188.0858535 | KU7: 188.0858535 | KV7: 188.0858535 | KW7: 188.0858535 | KX7: 188.0858535 | KY7: =KX7+KX72/100000 -> 188.0858535 | KZ7: 188.0858535 | LA7: 188.0858535 | LB7: 188.0858535 | LC7: 188.0858535 | LD7: 188.0858535 | LE7: 188.0858535 | LF7: 188.0858535 | LG7: 188.0858535 | LH7: 188.0858535 | LI7: 188.0858535 | LJ7: 188.0858535 | LK7: 188.0858535 | LL7: 188.0858535 | LM7: 188.0858535 | LN7: 188.0858535 | LO7: 188.0858535 | LP7: 188.0858535 | LQ7: 188.0858535 | LR7: 188.0858535 | LS7: 188.0858535 | LT7: 188.0858535 | LU7: 188.0858535 | LV7: 188.0858535 | LW7: 188.0858535 | LX7: 188.0858535 | LY7: 188.0858535 | LZ7: 188.0858535 | MA7: 188.0858535 | MB7: 188.0858535 | MC7: 188.0858535 | MD7: 188.0858535 | ME7: 188.0858535 | MF7: 188.0858535 | MG7: 188.0858535 | MH7: 188.0858535 | MI7: 188.0858535 | MJ7: 188.0858535 | MK7: 188.0858535 | ML7: 188.0858535 | MM7: 188.0858535 | MN7: 188.0858535 | MO7: 188.0858535 | MP7: 188.0858535 | MQ7: 188.0858535 | MR7: 188.0858535 | MS7: 188.0858535 | MT7: 188.0858535 | MU7: 188.0858535 | MV7: 188.0858535 | MW7: 188.0858535 | MX7: 188.0858535 | MY7: 188.0858535 | MZ7: 188.0858535 | NA7: 188.0858535 | NB7: 188.0858535 | NC7: 188.0858535 | ND7: 188.0858535 | NE7: 188.0858535 | NF7: 188.0858535 | NG7: 188.0858535 | NH7: 188.0858535 | NI7: 188.0858535 | NJ7: 188.0858535 | NK7: =NJ7+NJ72/100000 -> 188.0858535 | NL7: 188.0858535 | NM7: 188.0858535 | NN7: 188.0858535 | NO7: 188.0858535 | NP7: 188.0858535 | NQ7: 188.0858535 | NR7: 188.0858535 | NS7: 188.0858535 | NT7: 188.0858535 | NU7: 188.0858535 | NV7: 188.0858535 | NW7: 188.0858535 | NX7: 188.0858535 | NY7: 188.0858535 | NZ7: 188.0858535 | OA7: 188.0858535 | OB7: 188.0858535 | OC7: 188.0858535 | OD7: 188.0858535 | OE7: 188.0858535 | OF7: 188.0858535 | OG7: 188.0858535 | OH7: 188.0858535 | OI7: 188.0858535 | OJ7: 188.0858535 | OK7: 188.0858535 | OL7: 188.0858535 | OM7: 188.0858535 | ON7: 188.0858535 | OO7: 188.0858535 | OP7: 188.0858535 | OQ7: 188.0858535 | OR7: 188.0858535 | OS7: 188.0858535 | OT7: 188.0858535 | OU7: 188.0858535 | OV7: 188.0858535 | OW7: 188.0858535 | OX7: 188.0858535 | OY7: 188.0858535 | OZ7: 188.0858535 | PA7: 188.0858535 | PB7: 188.0858535 | PC7: 188.0858535 | PD7: 188.0858535 | PE7: 188.0858535 | PF7: 188.0858535 | PG7: 188.0858535 | PH7: 188.0858535 | PI7: 188.0858535 | PJ7: 188.0858535 | PK7: 188.0858535 | PL7: 188.0858535 | PM7: 188.0858535 | PN7: 188.0858535 | PO7: 188.0858535 | PP7: 188.0858535 | PQ7: 188.0858535 | PR7: 188.0858535 | PS7: 188.0858535 | PT7: 188.0858535 | PU7: 188.0858535 | PV7: 188.0858535 | PW7: =PV7+PV72/100000 -> 188.0858535 | PX7: 188.0858535 | PY7: 188.0858535 | PZ7: 188.0858535 | QA7: 188.0858535 | QB7: 188.0858535 | QC7: 188.0858535 | QD7: 188.0858535 | QE7: 188.0858535 | QF7: 188.0858535 | QG7: 188.0858535 | QH7: 188.0858535 | QI7: 188.0858535 | QJ7: 188.0858535 | QK7: 188.0858535 | QL7: 188.0858535 | QM7: 188.0858535 | QN7: 188.0858535 | QO7: 188.0858535 | QP7: 188.0858535 | QQ7: 188.0858535 | QR7: 188.0858535 | QS7: 188.0858535 | QT7: 188.0858535 | QU7: 188.0858535 | QV7: 188.0858535 | QW7: 188.0858535 | QX7: 188.0858535 | QY7: 188.0858535 | QZ7: 188.0858535 | RA7: 188.0858535 | RB7: 188.0858535 | RC7: 188.0858535 | RD7: 188.0858535 | RE7: 188.0858535 | RF7: 188.0858535 | RG7: 188.0858535 | RH7: 188.0858535 | RI7: 188.0858535 | RJ7: 188.0858535 | RK7: 188.0858535 | RL7: 188.0858535 | RM7: 188.0858535 | RN7: 188.0858535 | RO7: 188.0858535 | RP7: 188.0858535 | RQ7: 188.0858535 | RR7: 188.0858535 | RS7: 188.0858535 | RT7: 188.0858535 | RU7: 188.0858535 | RV7: 188.0858535 | RW7: 188.0858535 | RX7: 188.0858535 | RY7: 188.0858535 | RZ7: 188.0858535 | SA7: 188.0858535 | SB7: 188.0858535 | SC7: 188.0858535 | SD7: 188.0858535 | SE7: 188.0858535 | SF7: 188.0858535 | SG7: 188.0858535 | SH7: 188.0858535 | SI7: =SH7+SH72/100000 -> 188.0858535 | SJ7: 188.0858535 | SK7: 188.0858535 | SL7: 188.0858535 | SM7: 188.0858535 | SN7: 188.0858535 | SO7: 188.0858535 | SP7: 188.0858535 | SQ7: 188.0858535 | SR7: 188.0858535 | SS7: 188.0858535 | ST7: 188.0858535 | SU7: 188.0858535 | SV7: 188.0858535 | SW7: 188.0858535 | SX7: 188.0858535 | SY7: 188.0858535 | SZ7: 188.0858535 | TA7: 188.0858535 | TB7: 188.0858535 | TC7: 188.0858535 | TD7: 188.0858535 | TE7: 188.0858535 | TF7: 188.0858535 | TG7: 188.0858535 | TH7: 188.0858535 | TI7: 188.0858535 | TJ7: 188.0858535 | TK7: 188.0858535 | TL7: 188.0858535 | TM7: 188.0858535 | TN7: 188.0858535 | TO7: 188.0858535 | TP7: 188.0858535 | TQ7: 188.0858535 | TR7: 188.0858535 | TS7: 188.0858535 | TT7: 188.0858535 | TU7: 188.0858535 | TV7: 188.0858535 | TW7: 188.0858535 | TX7: 188.0858535 | TY7: 188.0858535 | TZ7: 188.0858535 | UA7: 188.0858535 | UB7: 188.0858535 | UC7: 188.0858535 | UD7: 188.0858535 | UE7: 188.0858535 | UF7: 188.0858535 | UG7: 188.0858535 | UH7: 188.0858535 | UI7: 188.0858535 | UJ7: 188.0858535 | UK7: 188.0858535 | UL7: 188.0858535 | UM7: 188.0858535 | UN7: 188.0858535 | UO7: 188.0858535 | UP7: 188.0858535 | UQ7: 188.0858535 | UR7: 188.0858535 | US7: 188.0858535 | UT7: 188.0858535 | UU7: =UT7+UT72/100000 -> 188.0858535 | UV7: 188.0858535 | UW7: 188.0858535 | UX7: 188.0858535 | UY7: 188.0858535 | UZ7: 188.0858535 | VA7: 188.0858535 | VB7: 188.0858535 | VC7: 188.0858535 | VD7: 188.0858535 | VE7: 188.0858535 | VF7: 188.0858535 | VG7: 188.0858535 | VH7: 188.0858535 | VI7: 188.0858535 | VJ7: 188.0858535 | VK7: 188.0858535 | VL7: 188.0858535 | VM7: 188.0858535 | VN7: 188.0858535 | VO7: 188.0858535 | VP7: 188.0858535 | VQ7: 188.0858535 | VR7: 188.0858535 | VS7: 188.0858535 | VT7: 188.0858535 | VU7: 188.0858535 | VV7: 188.0858535 | VW7: 188.0858535 | VX7: 188.0858535 | VY7: 188.0858535 | VZ7: 188.0858535 | WA7: 188.0858535 | WB7: 188.0858535 | WC7: 188.0858535 | WD7: 188.0858535 | WE7: 188.0858535 | WF7: 188.0858535 | WG7: 188.0858535 | WH7: 188.0858535 | WI7: 188.0858535 | WJ7: 188.0858535 | WK7: 188.0858535 | WL7: 188.0858535 | WM7: 188.0858535 | WN7: 188.0858535 | WO7: 188.0858535 | WP7: 188.0858535 | WQ7: 188.0858535 | WR7: 188.0858535 | WS7: 188.0858535 | WT7: 188.0858535 | WU7: 188.0858535 | WV7: 188.0858535 | WW7: 188.0858535 | WX7: 188.0858535 | WY7: 188.0858535 | WZ7: 188.0858535 | XA7: 188.0858535 | XB7: 188.0858535 | XC7: 188.0858535 | XD7: 188.0858535 | XE7: 188.0858535 | XF7: 188.0858535 | XG7: =XF7+XF72/100000 -> 188.0858535 | XH7: 188.0858535 | XI7: 188.0858535 | XJ7: 188.0858535 | XK7: 188.0858535 | XL7: 188.0858535 | XM7: 188.0858535 | XN7: 188.0858535 | XO7: 188.0858535 | XP7: 188.0858535 | XQ7: 188.0858535 | XR7: 188.0858535 | XS7: 188.0858535 | XT7: 188.0858535 | XU7: 188.0858535 | XV7: 188.0858535 | XW7: 188.0858535 | XX7: 188.0858535 | XY7: 188.0858535 | XZ7: 188.0858535 | YA7: 188.0858535 | YB7: 188.0858535 | YC7: 188.0858535 | YD7: 188.0858535 | YE7: 188.0858535 | YF7: 188.0858535 | YG7: 188.0858535 | YH7: 188.0858535 | YI7: 188.0858535 | YJ7: 188.0858535 | YK7: 188.0858535 | YL7: 188.0858535 | YM7: 188.0858535 | YN7: 188.0858535 | YO7: 188.0858535 | YP7: 188.0858535 | YQ7: 188.0858535 | YR7: 188.0858535 | YS7: 188.0858535 | YT7: 188.0858535 | YU7: 188.0858535 | YV7: 188.0858535 | YW7: 188.0858535 | YX7: 188.0858535 | YY7: 188.0858535 | YZ7: 188.0858535 | ZA7: 188.0858535 | ZB7: 188.0858535 | ZC7: 188.0858535 | ZD7: 188.0858535 | ZE7: 188.0858535 | ZF7: 188.0858535 | ZG7: 188.0858535 | ZH7: 188.0858535 | ZI7: 188.0858535 | ZJ7: 188.0858535 | ZK7: 188.0858535 | ZL7: 188.0858535 | ZM7: 188.0858535 | ZN7: 188.0858535 | ZO7: 188.0858535 | ZP7: 188.0858535 | ZQ7: 188.0858535 | ZR7: 188.0858535 | ZS7: =ZR7+ZR72/100000 -> 188.0858535 | ZT7: 188.0858535 | ZU7: 188.0858535 | ZV7: 188.0858535 | ZW7: 188.0858535 | ZX7: 188.0858535 | ZY7: 188.0858535 | ZZ7: 188.0858535 | AAA7: 188.0858535 | AAB7: 188.0858535 | AAC7: 188.0858535 | AAD7: 188.0858535 | AAE7: 188.0858535 | AAF7: 188.0858535 | AAG7: 188.0858535 | AAH7: 188.0858535 | AAI7: 188.0858535 | AAJ7: 188.0858535 | AAK7: 188.0858535 | AAL7: 188.0858535 | AAM7: 188.0858535 | AAN7: 188.0858535 | AAO7: 188.0858535 | AAP7: 188.0858535 | AAQ7: 188.0858535 | AAR7: 188.0858535 | AAS7: 188.0858535 | AAT7: 188.0858535 | AAU7: 188.0858535 | AAV7: 188.0858535 | AAW7: 188.0858535 | AAX7: 188.0858535 | AAY7: 188.0858535 | AAZ7: 188.0858535 | ABA7: 188.0858535 | ABB7: 188.0858535 | ABC7: 188.0858535 | ABD7: 188.0858535 | ABE7: 188.0858535 | ABF7: 188.0858535 | ABG7: 188.0858535 | ABH7: 188.0858535 | ABI7: 188.0858535 | ABJ7: 188.0858535 | ABK7: 188.0858535 | ABL7: 188.0858535 | ABM7: 188.0858535 | ABN7: 188.0858535 | ABO7: 188.0858535 | ABP7: 188.0858535 | ABQ7: 188.0858535 | ABR7: 188.0858535 | ABS7: 188.0858535 | ABT7: 188.0858535 | ABU7: 188.0858535 | ABV7: 188.0858535 | ABW7: 188.0858535 | ABX7: 188.0858535 | ABY7: 188.0858535 | ABZ7: 188.0858535 | ACA7: 188.0858535 | ACB7: 188.0858535 | ACC7: 188.0858535 | ACD7: 188.0858535 | ACE7: =ACD7+ACD72/100000 -> 188.0858535 | ACF7: 188.0858535 | ACG7: 188.0858535 | ACH7: 188.0858535 | ACI7: 188.0858535 | ACJ7: 188.0858535 | ACK7: 188.0858535 | ACL7: 188.0858535 | ACM7: 188.0858535 | ACN7: 188.0858535 | ACO7: 188.0858535 | ACP7: 188.0858535 | ACQ7: 188.0858535 | ACR7: 188.0858535 | ACS7: 188.0858535 | ACT7: 188.0858535 | ACU7: 188.0858535 | ACV7: 188.0858535 | ACW7: 188.0858535 | ACX7: 188.0858535 | ACY7: 188.0858535 | ACZ7: 188.0858535 | ADA7: 188.0858535 | ADB7: 188.0858535 | ADC7: 188.0858535 | ADD7: 188.0858535 | ADE7: 188.0858535 | ADF7: 188.0858535 | ADG7: 188.0858535 | ADH7: 188.0858535 | ADI7: 188.0858535 | ADJ7: 188.0858535 | ADK7: 188.0858535 | ADL7: 188.0858535 | ADM7: 188.0858535 | ADN7: 188.0858535 | ADO7: 188.0858535 | ADP7: 188.0858535 | ADQ7: 188.0858535 | ADR7: 188.0858535 | ADS7: 188.0858535 | ADT7: 188.0858535 | ADU7: 188.0858535 | ADV7: 188.0858535 | ADW7: 188.0858535 | ADX7: 188.0858535 | ADY7: 188.0858535 | ADZ7: 188.0858535 | AEA7: 188.0858535 | AEB7: 188.0858535 | AEC7: 188.0858535 | AED7: 188.0858535
J8: Temperatur in °K | K8: 293 | L8: =K8+K73 -> 292.8665555 | M8: =L8+L73 -> 292.7053099 | N8: 292.5639175 | O8: 292.3561382 | P8: 292.1495347 | Q8: 291.944099 | R8: 291.7398236 | S8: 291.5367008 | T8: 291.334723 | U8: 291.1338828 | V8: 290.9342961 | W8: 290.7358314 | X8: 290.5384812 | Y8: 290.3423604 | Z8: 290.147339 | AA8: 289.9535309 | AB8: 289.7608071 | AC8: 289.5692809 | AD8: 289.3788242 | AE8: 289.1891274 | AF8: 289.0006093 | AG8: 288.8132617 | AH8: 288.6270767 | AI8: 288.442046 | AJ8: 288.2580451 | AK8: 288.0747802 | AL8: 287.8926517 | AM8: 287.7117672 | AN8: 287.5320028 | AO8: 287.3529587 | AP8: 287.1750238 | AQ8: 286.9981907 | AR8: 286.8220676 | AS8: 286.6471484 | AT8: 286.4732059 | AU8: 286.2997514 | AV8: 286.1273741 | AW8: 285.9554795 | AX8: 285.7844312 | AY8: 285.6144396 | AZ8: 285.4449209 | BA8: 285.2764469 | BB8: 285.1084407 | BC8: 284.9414672 | BD8: 284.7749565 | BE8: 284.6094669 | BF8: 284.4446534 | BG8: 284.2806306 | BH8: 284.1172788 | BI8: 283.9549247 | BJ8: 283.9549247 | BK8: 283.9549247 | BL8: 283.9549247 | BM8: 283.9549247 | BN8: 283.9549247 | BO8: 283.9549247 | BP8: 283.9549247 | BQ8: 283.9549247 | BR8: 283.9549247 | BS8: 283.9549247 | BT8: 283.9549247 | BU8: 283.9549247 | BV8: 283.9549247 | BW8: 283.9549247 | BX8: 283.9549247 | BY8: =BX8+BX73 -> 283.9549247 | BZ8: 283.9549247 | CA8: 283.9549247 | CB8: 283.9549247 | CC8: 283.9549247 | CD8: 283.9549247 | CE8: 283.9549247 | CF8: 283.9549247 | CG8: 283.9549247 | CH8: 283.9549247 | CI8: 283.9549247 | CJ8: 283.9549247 | CK8: 283.9549247 | CL8: 283.9549247 | CM8: 283.9549247 | CN8: 283.9549247 | CO8: 283.9549247 | CP8: 283.9549247 | CQ8: 283.9549247 | CR8: 283.9549247 | CS8: 283.9549247 | CT8: 283.9549247 | CU8: 283.9549247 | CV8: 283.9549247 | CW8: 283.9549247 | CX8: 283.9549247 | CY8: 283.9549247 | CZ8: 283.9549247 | DA8: 283.9549247 | DB8: 283.9549247 | DC8: 283.9549247 | DD8: 283.9549247 | DE8: 283.9549247 | DF8: 283.9549247 | DG8: 283.9549247 | DH8: 283.9549247 | DI8: =DH8+DH73 -> 283.9549247 | DJ8: 283.9549247 | DK8: 283.9549247 | DL8: 283.9549247 | DM8: 283.9549247 | DN8: 283.9549247 | DO8: 283.9549247 | DP8: 283.9549247 | DQ8: 283.9549247 | DR8: 283.9549247 | DS8: 283.9549247 | DT8: 283.9549247 | DU8: 283.9549247 | DV8: 283.9549247 | DW8: 283.9549247 | DX8: 283.9549247 | DY8: 283.9549247 | DZ8: 283.9549247 | EA8: 283.9549247 | EB8: 283.9549247 | EC8: 283.9549247 | ED8: 283.9549247 | EE8: 283.9549247 | EF8: 283.9549247 | EG8: 283.9549247 | EH8: 283.9549247 | EI8: 283.9549247 | EJ8: 283.9549247 | EK8: 283.9549247 | EL8: 283.9549247 | EM8: 283.9549247 | EN8: 283.9549247 | EO8: =EN8+EN73 -> 283.9549247 | EP8: 283.9549247 | EQ8: 283.9549247 | ER8: 283.9549247 | ES8: 283.9549247 | ET8: 283.9549247 | EU8: 283.9549247 | EV8: 283.9549247 | EW8: 283.9549247 | EX8: 283.9549247 | EY8: 283.9549247 | EZ8: 283.9549247 | FA8: 283.9549247 | FB8: 283.9549247 | FC8: 283.9549247 | FD8: 283.9549247 | FE8: 283.9549247 | FF8: 283.9549247 | FG8: 283.9549247 | FH8: 283.9549247 | FI8: 283.9549247 | FJ8: 283.9549247 | FK8: 283.9549247 | FL8: 283.9549247 | FM8: 283.9549247 | FN8: 283.9549247 | FO8: 283.9549247 | FP8: 283.9549247 | FQ8: 283.9549247 | FR8: 283.9549247 | FS8: 283.9549247 | FT8: 283.9549247 | FU8: =FT8+FT73 -> 283.9549247 | FV8: 283.9549247 | FW8: 283.9549247 | FX8: 283.9549247 | FY8: 283.9549247 | FZ8: 283.9549247 | GA8: 283.9549247 | GB8: 283.9549247 | GC8: 283.9549247 | GD8: 283.9549247 | GE8: 283.9549247 | GF8: 283.9549247 | GG8: 283.9549247 | GH8: 283.9549247 | GI8: 283.9549247 | GJ8: 283.9549247 | GK8: 283.9549247 | GL8: 283.9549247 | GM8: 283.9549247 | GN8: 283.9549247 | GO8: 283.9549247 | GP8: 283.9549247 | GQ8: 283.9549247 | GR8: 283.9549247 | GS8: 283.9549247 | GT8: 283.9549247 | GU8: 283.9549247 | GV8: 283.9549247 | GW8: 283.9549247 | GX8: 283.9549247 | GY8: 283.9549247 | GZ8: 283.9549247 | HA8: =GZ8+GZ73 -> 283.9549247 | HB8: 283.9549247 | HC8: 283.9549247 | HD8: 283.9549247 | HE8: 283.9549247 | HF8: 283.9549247 | HG8: 283.9549247 | HH8: 283.9549247 | HI8: 283.9549247 | HJ8: 283.9549247 | HK8: 283.9549247 | HL8: 283.9549247 | HM8: 283.9549247 | HN8: 283.9549247 | HO8: 283.9549247 | HP8: 283.9549247 | HQ8: 283.9549247 | HR8: 283.9549247 | HS8: 283.9549247 | HT8: 283.9549247 | HU8: 283.9549247 | HV8: 283.9549247 | HW8: 283.9549247 | HX8: 283.9549247 | HY8: 283.9549247 | HZ8: 283.9549247 | IA8: 283.9549247 | IB8: 283.9549247 | IC8: 283.9549247 | ID8: 283.9549247 | IE8: 283.9549247 | IF8: 283.9549247 | IG8: =IF8+IF73 -> 283.9549247 | IH8: 283.9549247 | II8: 283.9549247 | IJ8: 283.9549247 | IK8: 283.9549247 | IL8: 283.9549247 | IM8: 283.9549247 | IN8: 283.9549247 | IO8: 283.9549247 | IP8: 283.9549247 | IQ8: 283.9549247 | IR8: 283.9549247 | IS8: 283.9549247 | IT8: 283.9549247 | IU8: 283.9549247 | IV8: 283.9549247 | IW8: 283.9549247 | IX8: 283.9549247 | IY8: 283.9549247 | IZ8: 283.9549247 | JA8: 283.9549247 | JB8: 283.9549247 | JC8: 283.9549247 | JD8: 283.9549247 | JE8: 283.9549247 | JF8: 283.9549247 | JG8: 283.9549247 | JH8: 283.9549247 | JI8: 283.9549247 | JJ8: 283.9549247 | JK8: 283.9549247 | JL8: 283.9549247 | JM8: =JL8+JL73 -> 283.9549247 | JN8: 283.9549247 | JO8: 283.9549247 | JP8: 283.9549247 | JQ8: 283.9549247 | JR8: 283.9549247 | JS8: 283.9549247 | JT8: 283.9549247 | JU8: 283.9549247 | JV8: 283.9549247 | JW8: 283.9549247 | JX8: 283.9549247 | JY8: 283.9549247 | JZ8: 283.9549247 | KA8: 283.9549247 | KB8: 283.9549247 | KC8: 283.9549247 | KD8: 283.9549247 | KE8: 283.9549247 | KF8: 283.9549247 | KG8: 283.9549247 | KH8: 283.9549247 | KI8: 283.9549247 | KJ8: 283.9549247 | KK8: 283.9549247 | KL8: 283.9549247 | KM8: 283.9549247 | KN8: 283.9549247 | KO8: 283.9549247 | KP8: 283.9549247 | KQ8: 283.9549247 | KR8: 283.9549247 | KS8: =KR8+KR73 -> 283.9549247 | KT8: 283.9549247 | KU8: 283.9549247 | KV8: 283.9549247 | KW8: 283.9549247 | KX8: 283.9549247 | KY8: =KX8+KX73 -> 283.9549247 | KZ8: 283.9549247 | LA8: 283.9549247 | LB8: 283.9549247 | LC8: 283.9549247 | LD8: 283.9549247 | LE8: 283.9549247 | LF8: 283.9549247 | LG8: 283.9549247 | LH8: 283.9549247 | LI8: 283.9549247 | LJ8: 283.9549247 | LK8: 283.9549247 | LL8: 283.9549247 | LM8: 283.9549247 | LN8: 283.9549247 | LO8: 283.9549247 | LP8: 283.9549247 | LQ8: 283.9549247 | LR8: 283.9549247 | LS8: 283.9549247 | LT8: 283.9549247 | LU8: 283.9549247 | LV8: 283.9549247 | LW8: 283.9549247 | LX8: 283.9549247 | LY8: 283.9549247 | LZ8: 283.9549247 | MA8: 283.9549247 | MB8: 283.9549247 | MC8: 283.9549247 | MD8: 283.9549247 | ME8: 283.9549247 | MF8: 283.9549247 | MG8: 283.9549247 | MH8: 283.9549247 | MI8: 283.9549247 | MJ8: 283.9549247 | MK8: 283.9549247 | ML8: 283.9549247 | MM8: 283.9549247 | MN8: 283.9549247 | MO8: 283.9549247 | MP8: 283.9549247 | MQ8: 283.9549247 | MR8: 283.9549247 | MS8: 283.9549247 | MT8: 283.9549247 | MU8: 283.9549247 | MV8: 283.9549247 | MW8: 283.9549247 | MX8: 283.9549247 | MY8: 283.9549247 | MZ8: 283.9549247 | NA8: 283.9549247 | NB8: 283.9549247 | NC8: 283.9549247 | ND8: 283.9549247 | NE8: 283.9549247 | NF8: 283.9549247 | NG8: 283.9549247 | NH8: 283.9549247 | NI8: 283.9549247 | NJ8: 283.9549247 | NK8: =NJ8+NJ73 -> 283.9549247 | NL8: 283.9549247 | NM8: 283.9549247 | NN8: 283.9549247 | NO8: 283.9549247 | NP8: 283.9549247 | NQ8: 283.9549247 | NR8: 283.9549247 | NS8: 283.9549247 | NT8: 283.9549247 | NU8: 283.9549247 | NV8: 283.9549247 | NW8: 283.9549247 | NX8: 283.9549247 | NY8: 283.9549247 | NZ8: 283.9549247 | OA8: 283.9549247 | OB8: 283.9549247 | OC8: 283.9549247 | OD8: 283.9549247 | OE8: 283.9549247 | OF8: 283.9549247 | OG8: 283.9549247 | OH8: 283.9549247 | OI8: 283.9549247 | OJ8: 283.9549247 | OK8: 283.9549247 | OL8: 283.9549247 | OM8: 283.9549247 | ON8: 283.9549247 | OO8: 283.9549247 | OP8: 283.9549247 | OQ8: 283.9549247 | OR8: 283.9549247 | OS8: 283.9549247 | OT8: 283.9549247 | OU8: 283.9549247 | OV8: 283.9549247 | OW8: 283.9549247 | OX8: 283.9549247 | OY8: 283.9549247 | OZ8: 283.9549247 | PA8: 283.9549247 | PB8: 283.9549247 | PC8: 283.9549247 | PD8: 283.9549247 | PE8: 283.9549247 | PF8: 283.9549247 | PG8: 283.9549247 | PH8: 283.9549247 | PI8: 283.9549247 | PJ8: 283.9549247 | PK8: 283.9549247 | PL8: 283.9549247 | PM8: 283.9549247 | PN8: 283.9549247 | PO8: 283.9549247 | PP8: 283.9549247 | PQ8: 283.9549247 | PR8: 283.9549247 | PS8: 283.9549247 | PT8: 283.9549247 | PU8: 283.9549247 | PV8: 283.9549247 | PW8: =PV8+PV73 -> 283.9549247 | PX8: 283.9549247 | PY8: 283.9549247 | PZ8: 283.9549247 | QA8: 283.9549247 | QB8: 283.9549247 | QC8: 283.9549247 | QD8: 283.9549247 | QE8: 283.9549247 | QF8: 283.9549247 | QG8: 283.9549247 | QH8: 283.9549247 | QI8: 283.9549247 | QJ8: 283.9549247 | QK8: 283.9549247 | QL8: 283.9549247 | QM8: 283.9549247 | QN8: 283.9549247 | QO8: 283.9549247 | QP8: 283.9549247 | QQ8: 283.9549247 | QR8: 283.9549247 | QS8: 283.9549247 | QT8: 283.9549247 | QU8: 283.9549247 | QV8: 283.9549247 | QW8: 283.9549247 | QX8: 283.9549247 | QY8: 283.9549247 | QZ8: 283.9549247 | RA8: 283.9549247 | RB8: 283.9549247 | RC8: 283.9549247 | RD8: 283.9549247 | RE8: 283.9549247 | RF8: 283.9549247 | RG8: 283.9549247 | RH8: 283.9549247 | RI8: 283.9549247 | RJ8: 283.9549247 | RK8: 283.9549247 | RL8: 283.9549247 | RM8: 283.9549247 | RN8: 283.9549247 | RO8: 283.9549247 | RP8: 283.9549247 | RQ8: 283.9549247 | RR8: 283.9549247 | RS8: 283.9549247 | RT8: 283.9549247 | RU8: 283.9549247 | RV8: 283.9549247 | RW8: 283.9549247 | RX8: 283.9549247 | RY8: 283.9549247 | RZ8: 283.9549247 | SA8: 283.9549247 | SB8: 283.9549247 | SC8: 283.9549247 | SD8: 283.9549247 | SE8: 283.9549247 | SF8: 283.9549247 | SG8: 283.9549247 | SH8: 283.9549247 | SI8: =SH8+SH73 -> 283.9549247 | SJ8: 283.9549247 | SK8: 283.9549247 | SL8: 283.9549247 | SM8: 283.9549247 | SN8: 283.9549247 | SO8: 283.9549247 | SP8: 283.9549247 | SQ8: 283.9549247 | SR8: 283.9549247 | SS8: 283.9549247 | ST8: 283.9549247 | SU8: 283.9549247 | SV8: 283.9549247 | SW8: 283.9549247 | SX8: 283.9549247 | SY8: 283.9549247 | SZ8: 283.9549247 | TA8: 283.9549247 | TB8: 283.9549247 | TC8: 283.9549247 | TD8: 283.9549247 | TE8: 283.9549247 | TF8: 283.9549247 | TG8: 283.9549247 | TH8: 283.9549247 | TI8: 283.9549247 | TJ8: 283.9549247 | TK8: 283.9549247 | TL8: 283.9549247 | TM8: 283.9549247 | TN8: 283.9549247 | TO8: 283.9549247 | TP8: 283.9549247 | TQ8: 283.9549247 | TR8: 283.9549247 | TS8: 283.9549247 | TT8: 283.9549247 | TU8: 283.9549247 | TV8: 283.9549247 | TW8: 283.9549247 | TX8: 283.9549247 | TY8: 283.9549247 | TZ8: 283.9549247 | UA8: 283.9549247 | UB8: 283.9549247 | UC8: 283.9549247 | UD8: 283.9549247 | UE8: 283.9549247 | UF8: 283.9549247 | UG8: 283.9549247 | UH8: 283.9549247 | UI8: 283.9549247 | UJ8: 283.9549247 | UK8: 283.9549247 | UL8: 283.9549247 | UM8: 283.9549247 | UN8: 283.9549247 | UO8: 283.9549247 | UP8: 283.9549247 | UQ8: 283.9549247 | UR8: 283.9549247 | US8: 283.9549247 | UT8: 283.9549247 | UU8: =UT8+UT73 -> 283.9549247 | UV8: 283.9549247 | UW8: 283.9549247 | UX8: 283.9549247 | UY8: 283.9549247 | UZ8: 283.9549247 | VA8: 283.9549247 | VB8: 283.9549247 | VC8: 283.9549247 | VD8: 283.9549247 | VE8: 283.9549247 | VF8: 283.9549247 | VG8: 283.9549247 | VH8: 283.9549247 | VI8: 283.9549247 | VJ8: 283.9549247 | VK8: 283.9549247 | VL8: 283.9549247 | VM8: 283.9549247 | VN8: 283.9549247 | VO8: 283.9549247 | VP8: 283.9549247 | VQ8: 283.9549247 | VR8: 283.9549247 | VS8: 283.9549247 | VT8: 283.9549247 | VU8: 283.9549247 | VV8: 283.9549247 | VW8: 283.9549247 | VX8: 283.9549247 | VY8: 283.9549247 | VZ8: 283.9549247 | WA8: 283.9549247 | WB8: 283.9549247 | WC8: 283.9549247 | WD8: 283.9549247 | WE8: 283.9549247 | WF8: 283.9549247 | WG8: 283.9549247 | WH8: 283.9549247 | WI8: 283.9549247 | WJ8: 283.9549247 | WK8: 283.9549247 | WL8: 283.9549247 | WM8: 283.9549247 | WN8: 283.9549247 | WO8: 283.9549247 | WP8: 283.9549247 | WQ8: 283.9549247 | WR8: 283.9549247 | WS8: 283.9549247 | WT8: 283.9549247 | WU8: 283.9549247 | WV8: 283.9549247 | WW8: 283.9549247 | WX8: 283.9549247 | WY8: 283.9549247 | WZ8: 283.9549247 | XA8: 283.9549247 | XB8: 283.9549247 | XC8: 283.9549247 | XD8: 283.9549247 | XE8: 283.9549247 | XF8: 283.9549247 | XG8: =XF8+XF73 -> 283.9549247 | XH8: 283.9549247 | XI8: 283.9549247 | XJ8: 283.9549247 | XK8: 283.9549247 | XL8: 283.9549247 | XM8: 283.9549247 | XN8: 283.9549247 | XO8: 283.9549247 | XP8: 283.9549247 | XQ8: 283.9549247 | XR8: 283.9549247 | XS8: 283.9549247 | XT8: 283.9549247 | XU8: 283.9549247 | XV8: 283.9549247 | XW8: 283.9549247 | XX8: 283.9549247 | XY8: 283.9549247 | XZ8: 283.9549247 | YA8: 283.9549247 | YB8: 283.9549247 | YC8: 283.9549247 | YD8: 283.9549247 | YE8: 283.9549247 | YF8: 283.9549247 | YG8: 283.9549247 | YH8: 283.9549247 | YI8: 283.9549247 | YJ8: 283.9549247 | YK8: 283.9549247 | YL8: 283.9549247 | YM8: 283.9549247 | YN8: 283.9549247 | YO8: 283.9549247 | YP8: 283.9549247 | YQ8: 283.9549247 | YR8: 283.9549247 | YS8: 283.9549247 | YT8: 283.9549247 | YU8: 283.9549247 | YV8: 283.9549247 | YW8: 283.9549247 | YX8: 283.9549247 | YY8: 283.9549247 | YZ8: 283.9549247 | ZA8: 283.9549247 | ZB8: 283.9549247 | ZC8: 283.9549247 | ZD8: 283.9549247 | ZE8: 283.9549247 | ZF8: 283.9549247 | ZG8: 283.9549247 | ZH8: 283.9549247 | ZI8: 283.9549247 | ZJ8: 283.9549247 | ZK8: 283.9549247 | ZL8: 283.9549247 | ZM8: 283.9549247 | ZN8: 283.9549247 | ZO8: 283.9549247 | ZP8: 283.9549247 | ZQ8: 283.9549247 | ZR8: 283.9549247 | ZS8: =ZR8+ZR73 -> 283.9549247 | ZT8: 283.9549247 | ZU8: 283.9549247 | ZV8: 283.9549247 | ZW8: 283.9549247 | ZX8: 283.9549247 | ZY8: 283.9549247 | ZZ8: 283.9549247 | AAA8: 283.9549247 | AAB8: 283.9549247 | AAC8: 283.9549247 | AAD8: 283.9549247 | AAE8: 283.9549247 | AAF8: 283.9549247 | AAG8: 283.9549247 | AAH8: 283.9549247 | AAI8: 283.9549247 | AAJ8: 283.9549247 | AAK8: 283.9549247 | AAL8: 283.9549247 | AAM8: 283.9549247 | AAN8: 283.9549247 | AAO8: 283.9549247 | AAP8: 283.9549247 | AAQ8: 283.9549247 | AAR8: 283.9549247 | AAS8: 283.9549247 | AAT8: 283.9549247 | AAU8: 283.9549247 | AAV8: 283.9549247 | AAW8: 283.9549247 | AAX8: 283.9549247 | AAY8: 283.9549247 | AAZ8: 283.9549247 | ABA8: 283.9549247 | ABB8: 283.9549247 | ABC8: 283.9549247 | ABD8: 283.9549247 | ABE8: 283.9549247 | ABF8: 283.9549247 | ABG8: 283.9549247 | ABH8: 283.9549247 | ABI8: 283.9549247 | ABJ8: 283.9549247 | ABK8: 283.9549247 | ABL8: 283.9549247 | ABM8: 283.9549247 | ABN8: 283.9549247 | ABO8: 283.9549247 | ABP8: 283.9549247 | ABQ8: 283.9549247 | ABR8: 283.9549247 | ABS8: 283.9549247 | ABT8: 283.9549247 | ABU8: 283.9549247 | ABV8: 283.9549247 | ABW8: 283.9549247 | ABX8: 283.9549247 | ABY8: 283.9549247 | ABZ8: 283.9549247 | ACA8: 283.9549247 | ACB8: 283.9549247 | ACC8: 283.9549247 | ACD8: 283.9549247 | ACE8: =ACD8+ACD73 -> 283.9549247 | ACF8: 283.9549247 | ACG8: 283.9549247 | ACH8: 283.9549247 | ACI8: 283.9549247 | ACJ8: 283.9549247 | ACK8: 283.9549247 | ACL8: 283.9549247 | ACM8: 283.9549247 | ACN8: 283.9549247 | ACO8: 283.9549247 | ACP8: 283.9549247 | ACQ8: 283.9549247 | ACR8: 283.9549247 | ACS8: 283.9549247 | ACT8: 283.9549247 | ACU8: 283.9549247 | ACV8: 283.9549247 | ACW8: 283.9549247 | ACX8: 283.9549247 | ACY8: 283.9549247 | ACZ8: 283.9549247 | ADA8: 283.9549247 | ADB8: 283.9549247 | ADC8: 283.9549247 | ADD8: 283.9549247 | ADE8: 283.9549247 | ADF8: 283.9549247 | ADG8: 283.9549247 | ADH8: 283.9549247 | ADI8: 283.9549247 | ADJ8: 283.9549247 | ADK8: 283.9549247 | ADL8: 283.9549247 | ADM8: 283.9549247 | ADN8: 283.9549247 | ADO8: 283.9549247 | ADP8: 283.9549247 | ADQ8: 283.9549247 | ADR8: 283.9549247 | ADS8: 283.9549247 | ADT8: 283.9549247 | ADU8: 283.9549247 | ADV8: 283.9549247 | ADW8: 283.9549247 | ADX8: 283.9549247 | ADY8: 283.9549247 | ADZ8: 283.9549247 | AEA8: 283.9549247 | AEB8: 283.9549247 | AEC8: 283.9549247 | AED8: 283.9549247
J9: Temperatur in °C | K9: =K8-273 -> 20 | L9: =L8-273 -> 19.86655547 | M9: 19.70530989 | N9: 19.56391746 | O9: 19.35613822 | P9: 19.14953466 | Q9: 18.94409903 | R9: 18.73982362 | S9: 18.53670081 | T9: 18.33472303 | U9: 18.13388279 | V9: 17.93429614 | W9: 17.73583137 | X9: 17.53848118 | Y9: 17.34236043 | Z9: 17.14733899 | AA9: 16.9535309 | AB9: 16.76080713 | AC9: 16.56928087 | AD9: 16.37882418 | AE9: 16.18912739 | AF9: 16.0006093 | AG9: 15.81326175 | AH9: 15.62707666 | AI9: 15.44204603 | AJ9: 15.25804514 | AK9: 15.07478018 | AL9: 14.89265167 | AM9: 14.71176723 | AN9: 14.53200278 | AO9: 14.35295866 | AP9: 14.17502382 | AQ9: 13.99819067 | AR9: 13.82206762 | AS9: 13.64714836 | AT9: 13.47320587 | AU9: 13.29975138 | AV9: 13.12737412 | AW9: 12.95547946 | AX9: 12.78443123 | AY9: 12.61443958 | AZ9: 12.44492094 | BA9: 12.27644687 | BB9: 12.10844065 | BC9: 11.94146719 | BD9: 11.7749565 | BE9: 11.60946693 | BF9: 11.44465345 | BG9: 11.28063056 | BH9: 11.11727882 | BI9: 10.95492467 | BJ9: 10.95492467 | BK9: 10.95492467 | BL9: 10.95492467 | BM9: 10.95492467 | BN9: 10.95492467 | BO9: 10.95492467 | BP9: 10.95492467 | BQ9: 10.95492467 | BR9: 10.95492467 | BS9: 10.95492467 | BT9: 10.95492467 | BU9: 10.95492467 | BV9: 10.95492467 | BW9: 10.95492467 | BX9: =BX8-273 -> 10.95492467 | BY9: 10.95492467 | BZ9: 10.95492467 | CA9: 10.95492467 | CB9: 10.95492467 | CC9: 10.95492467 | CD9: 10.95492467 | CE9: 10.95492467 | CF9: 10.95492467 | CG9: 10.95492467 | CH9: 10.95492467 | CI9: 10.95492467 | CJ9: 10.95492467 | CK9: 10.95492467 | CL9: 10.95492467 | CM9: 10.95492467 | CN9: 10.95492467 | CO9: 10.95492467 | CP9: 10.95492467 | CQ9: 10.95492467 | CR9: 10.95492467 | CS9: 10.95492467 | CT9: 10.95492467 | CU9: 10.95492467 | CV9: 10.95492467 | CW9: 10.95492467 | CX9: 10.95492467 | CY9: 10.95492467 | CZ9: 10.95492467 | DA9: 10.95492467 | DB9: 10.95492467 | DC9: 10.95492467 | DD9: 10.95492467 | DE9: 10.95492467 | DF9: 10.95492467 | DG9: 10.95492467 | DH9: =DH8-273 -> 10.95492467 | DI9: =DI8-273 -> 10.95492467 | DJ9: =DJ8-273 -> 10.95492467 | DK9: =DK8-273 -> 10.95492467 | DL9: 10.95492467 | DM9: 10.95492467 | DN9: 10.95492467 | DO9: 10.95492467 | DP9: 10.95492467 | DQ9: 10.95492467 | DR9: 10.95492467 | DS9: 10.95492467 | DT9: 10.95492467 | DU9: 10.95492467 | DV9: 10.95492467 | DW9: 10.95492467 | DX9: 10.95492467 | DY9: 10.95492467 | DZ9: 10.95492467 | EA9: 10.95492467 | EB9: 10.95492467 | EC9: 10.95492467 | ED9: 10.95492467 | EE9: 10.95492467 | EF9: 10.95492467 | EG9: 10.95492467 | EH9: 10.95492467 | EI9: 10.95492467 | EJ9: 10.95492467 | EK9: 10.95492467 | EL9: 10.95492467 | EM9: 10.95492467 | EN9: 10.95492467 | EO9: 10.95492467 | EP9: 10.95492467 | EQ9: 10.95492467 | ER9: 10.95492467 | ES9: 10.95492467 | ET9: 10.95492467 | EU9: 10.95492467 | EV9: 10.95492467 | EW9: 10.95492467 | EX9: 10.95492467 | EY9: 10.95492467 | EZ9: 10.95492467 | FA9: 10.95492467 | FB9: 10.95492467 | FC9: 10.95492467 | FD9: 10.95492467 | FE9: 10.95492467 | FF9: 10.95492467 | FG9: 10.95492467 | FH9: 10.95492467 | FI9: 10.95492467 | FJ9: 10.95492467 | FK9: 10.95492467 | FL9: 10.95492467 | FM9: 10.95492467 | FN9: 10.95492467 | FO9: 10.95492467 | FP9: 10.95492467 | FQ9: 10.95492467 | FR9: 10.95492467 | FS9: 10.95492467 | FT9: 10.95492467 | FU9: 10.95492467 | FV9: 10.95492467 | FW9: =FW8-273 -> 10.95492467 | FX9: 10.95492467 | FY9: 10.95492467 | FZ9: 10.95492467 | GA9: 10.95492467 | GB9: 10.95492467 | GC9: 10.95492467 | GD9: 10.95492467 | GE9: 10.95492467 | GF9: 10.95492467 | GG9: 10.95492467 | GH9: 10.95492467 | GI9: 10.95492467 | GJ9: 10.95492467 | GK9: 10.95492467 | GL9: 10.95492467 | GM9: 10.95492467 | GN9: 10.95492467 | GO9: 10.95492467 | GP9: 10.95492467 | GQ9: 10.95492467 | GR9: 10.95492467 | GS9: 10.95492467 | GT9: 10.95492467 | GU9: 10.95492467 | GV9: 10.95492467 | GW9: 10.95492467 | GX9: 10.95492467 | GY9: 10.95492467 | GZ9: 10.95492467 | HA9: 10.95492467 | HB9: 10.95492467 | HC9: 10.95492467 | HD9: 10.95492467 | HE9: 10.95492467 | HF9: 10.95492467 | HG9: 10.95492467 | HH9: 10.95492467 | HI9: 10.95492467 | HJ9: 10.95492467 | HK9: 10.95492467 | HL9: 10.95492467 | HM9: 10.95492467 | HN9: 10.95492467 | HO9: 10.95492467 | HP9: 10.95492467 | HQ9: 10.95492467 | HR9: 10.95492467 | HS9: 10.95492467 | HT9: 10.95492467 | HU9: 10.95492467 | HV9: 10.95492467 | HW9: 10.95492467 | HX9: 10.95492467 | HY9: 10.95492467 | HZ9: 10.95492467 | IA9: 10.95492467 | IB9: 10.95492467 | IC9: 10.95492467 | ID9: 10.95492467 | IE9: 10.95492467 | IF9: 10.95492467 | IG9: 10.95492467 | IH9: 10.95492467 | II9: =II8-273 -> 10.95492467 | IJ9: 10.95492467 | IK9: 10.95492467 | IL9: 10.95492467 | IM9: 10.95492467 | IN9: 10.95492467 | IO9: 10.95492467 | IP9: 10.95492467 | IQ9: 10.95492467 | IR9: 10.95492467 | IS9: 10.95492467 | IT9: 10.95492467 | IU9: 10.95492467 | IV9: 10.95492467 | IW9: 10.95492467 | IX9: 10.95492467 | IY9: 10.95492467 | IZ9: 10.95492467 | JA9: 10.95492467 | JB9: 10.95492467 | JC9: 10.95492467 | JD9: 10.95492467 | JE9: 10.95492467 | JF9: 10.95492467 | JG9: 10.95492467 | JH9: 10.95492467 | JI9: 10.95492467 | JJ9: 10.95492467 | JK9: 10.95492467 | JL9: 10.95492467 | JM9: 10.95492467 | JN9: 10.95492467 | JO9: 10.95492467 | JP9: 10.95492467 | JQ9: 10.95492467 | JR9: 10.95492467 | JS9: 10.95492467 | JT9: 10.95492467 | JU9: 10.95492467 | JV9: 10.95492467 | JW9: 10.95492467 | JX9: 10.95492467 | JY9: 10.95492467 | JZ9: 10.95492467 | KA9: 10.95492467 | KB9: 10.95492467 | KC9: 10.95492467 | KD9: 10.95492467 | KE9: 10.95492467 | KF9: 10.95492467 | KG9: 10.95492467 | KH9: 10.95492467 | KI9: 10.95492467 | KJ9: 10.95492467 | KK9: 10.95492467 | KL9: 10.95492467 | KM9: 10.95492467 | KN9: 10.95492467 | KO9: 10.95492467 | KP9: 10.95492467 | KQ9: 10.95492467 | KR9: 10.95492467 | KS9: 10.95492467 | KT9: 10.95492467 | KU9: =KU8-273 -> 10.95492467 | KV9: =KV8-273 -> 10.95492467 | KW9: =KW8-273 -> 10.95492467 | KX9: =KX8-273 -> 10.95492467 | KY9: =KY8-273 -> 10.95492467 | KZ9: 10.95492467 | LA9: 10.95492467 | LB9: 10.95492467 | LC9: 10.95492467 | LD9: 10.95492467 | LE9: 10.95492467 | LF9: 10.95492467 | LG9: 10.95492467 | LH9: 10.95492467 | LI9: 10.95492467 | LJ9: 10.95492467 | LK9: 10.95492467 | LL9: 10.95492467 | LM9: 10.95492467 | LN9: 10.95492467 | LO9: 10.95492467 | LP9: 10.95492467 | LQ9: 10.95492467 | LR9: 10.95492467 | LS9: 10.95492467 | LT9: 10.95492467 | LU9: 10.95492467 | LV9: 10.95492467 | LW9: 10.95492467 | LX9: 10.95492467 | LY9: 10.95492467 | LZ9: 10.95492467 | MA9: 10.95492467 | MB9: 10.95492467 | MC9: 10.95492467 | MD9: 10.95492467 | ME9: 10.95492467 | MF9: 10.95492467 | MG9: 10.95492467 | MH9: 10.95492467 | MI9: 10.95492467 | MJ9: 10.95492467 | MK9: 10.95492467 | ML9: 10.95492467 | MM9: 10.95492467 | MN9: 10.95492467 | MO9: 10.95492467 | MP9: 10.95492467 | MQ9: 10.95492467 | MR9: 10.95492467 | MS9: 10.95492467 | MT9: 10.95492467 | MU9: 10.95492467 | MV9: 10.95492467 | MW9: 10.95492467 | MX9: 10.95492467 | MY9: 10.95492467 | MZ9: 10.95492467 | NA9: 10.95492467 | NB9: 10.95492467 | NC9: 10.95492467 | ND9: 10.95492467 | NE9: 10.95492467 | NF9: 10.95492467 | NG9: 10.95492467 | NH9: 10.95492467 | NI9: 10.95492467 | NJ9: 10.95492467 | NK9: =NK8-273 -> 10.95492467 | NL9: 10.95492467 | NM9: 10.95492467 | NN9: 10.95492467 | NO9: 10.95492467 | NP9: 10.95492467 | NQ9: 10.95492467 | NR9: 10.95492467 | NS9: 10.95492467 | NT9: 10.95492467 | NU9: 10.95492467 | NV9: 10.95492467 | NW9: 10.95492467 | NX9: 10.95492467 | NY9: 10.95492467 | NZ9: 10.95492467 | OA9: 10.95492467 | OB9: 10.95492467 | OC9: 10.95492467 | OD9: 10.95492467 | OE9: 10.95492467 | OF9: 10.95492467 | OG9: 10.95492467 | OH9: 10.95492467 | OI9: 10.95492467 | OJ9: 10.95492467 | OK9: 10.95492467 | OL9: 10.95492467 | OM9: 10.95492467 | ON9: 10.95492467 | OO9: 10.95492467 | OP9: 10.95492467 | OQ9: 10.95492467 | OR9: 10.95492467 | OS9: 10.95492467 | OT9: 10.95492467 | OU9: 10.95492467 | OV9: 10.95492467 | OW9: 10.95492467 | OX9: 10.95492467 | OY9: 10.95492467 | OZ9: 10.95492467 | PA9: 10.95492467 | PB9: 10.95492467 | PC9: 10.95492467 | PD9: 10.95492467 | PE9: 10.95492467 | PF9: 10.95492467 | PG9: 10.95492467 | PH9: 10.95492467 | PI9: 10.95492467 | PJ9: 10.95492467 | PK9: 10.95492467 | PL9: 10.95492467 | PM9: 10.95492467 | PN9: 10.95492467 | PO9: 10.95492467 | PP9: 10.95492467 | PQ9: 10.95492467 | PR9: 10.95492467 | PS9: 10.95492467 | PT9: 10.95492467 | PU9: 10.95492467 | PV9: 10.95492467 | PW9: =PW8-273 -> 10.95492467 | PX9: 10.95492467 | PY9: 10.95492467 | PZ9: 10.95492467 | QA9: 10.95492467 | QB9: 10.95492467 | QC9: 10.95492467 | QD9: 10.95492467 | QE9: 10.95492467 | QF9: 10.95492467 | QG9: 10.95492467 | QH9: 10.95492467 | QI9: 10.95492467 | QJ9: 10.95492467 | QK9: 10.95492467 | QL9: 10.95492467 | QM9: 10.95492467 | QN9: 10.95492467 | QO9: 10.95492467 | QP9: 10.95492467 | QQ9: 10.95492467 | QR9: 10.95492467 | QS9: 10.95492467 | QT9: 10.95492467 | QU9: 10.95492467 | QV9: 10.95492467 | QW9: 10.95492467 | QX9: 10.95492467 | QY9: 10.95492467 | QZ9: 10.95492467 | RA9: 10.95492467 | RB9: 10.95492467 | RC9: 10.95492467 | RD9: 10.95492467 | RE9: 10.95492467 | RF9: 10.95492467 | RG9: 10.95492467 | RH9: 10.95492467 | RI9: 10.95492467 | RJ9: 10.95492467 | RK9: 10.95492467 | RL9: 10.95492467 | RM9: 10.95492467 | RN9: 10.95492467 | RO9: 10.95492467 | RP9: 10.95492467 | RQ9: 10.95492467 | RR9: 10.95492467 | RS9: 10.95492467 | RT9: 10.95492467 | RU9: 10.95492467 | RV9: 10.95492467 | RW9: 10.95492467 | RX9: 10.95492467 | RY9: 10.95492467 | RZ9: 10.95492467 | SA9: 10.95492467 | SB9: 10.95492467 | SC9: 10.95492467 | SD9: 10.95492467 | SE9: 10.95492467 | SF9: 10.95492467 | SG9: 10.95492467 | SH9: 10.95492467 | SI9: =SI8-273 -> 10.95492467 | SJ9: 10.95492467 | SK9: 10.95492467 | SL9: 10.95492467 | SM9: 10.95492467 | SN9: 10.95492467 | SO9: 10.95492467 | SP9: 10.95492467 | SQ9: 10.95492467 | SR9: 10.95492467 | SS9: 10.95492467 | ST9: 10.95492467 | SU9: 10.95492467 | SV9: 10.95492467 | SW9: 10.95492467 | SX9: 10.95492467 | SY9: 10.95492467 | SZ9: 10.95492467 | TA9: 10.95492467 | TB9: 10.95492467 | TC9: 10.95492467 | TD9: 10.95492467 | TE9: 10.95492467 | TF9: 10.95492467 | TG9: 10.95492467 | TH9: 10.95492467 | TI9: 10.95492467 | TJ9: 10.95492467 | TK9: 10.95492467 | TL9: 10.95492467 | TM9: 10.95492467 | TN9: 10.95492467 | TO9: 10.95492467 | TP9: 10.95492467 | TQ9: 10.95492467 | TR9: 10.95492467 | TS9: 10.95492467 | TT9: 10.95492467 | TU9: 10.95492467 | TV9: 10.95492467 | TW9: 10.95492467 | TX9: 10.95492467 | TY9: 10.95492467 | TZ9: 10.95492467 | UA9: 10.95492467 | UB9: 10.95492467 | UC9: 10.95492467 | UD9: 10.95492467 | UE9: 10.95492467 | UF9: 10.95492467 | UG9: 10.95492467 | UH9: 10.95492467 | UI9: 10.95492467 | UJ9: 10.95492467 | UK9: 10.95492467 | UL9: 10.95492467 | UM9: 10.95492467 | UN9: 10.95492467 | UO9: 10.95492467 | UP9: 10.95492467 | UQ9: 10.95492467 | UR9: 10.95492467 | US9: 10.95492467 | UT9: 10.95492467 | UU9: =UU8-273 -> 10.95492467 | UV9: 10.95492467 | UW9: 10.95492467 | UX9: 10.95492467 | UY9: 10.95492467 | UZ9: 10.95492467 | VA9: 10.95492467 | VB9: 10.95492467 | VC9: 10.95492467 | VD9: 10.95492467 | VE9: 10.95492467 | VF9: 10.95492467 | VG9: 10.95492467 | VH9: 10.95492467 | VI9: 10.95492467 | VJ9: 10.95492467 | VK9: 10.95492467 | VL9: 10.95492467 | VM9: 10.95492467 | VN9: 10.95492467 | VO9: 10.95492467 | VP9: 10.95492467 | VQ9: 10.95492467 | VR9: 10.95492467 | VS9: 10.95492467 | VT9: 10.95492467 | VU9: 10.95492467 | VV9: 10.95492467 | VW9: 10.95492467 | VX9: 10.95492467 | VY9: 10.95492467 | VZ9: 10.95492467 | WA9: 10.95492467 | WB9: 10.95492467 | WC9: 10.95492467 | WD9: 10.95492467 | WE9: 10.95492467 | WF9: 10.95492467 | WG9: 10.95492467 | WH9: 10.95492467 | WI9: 10.95492467 | WJ9: 10.95492467 | WK9: 10.95492467 | WL9: 10.95492467 | WM9: 10.95492467 | WN9: 10.95492467 | WO9: 10.95492467 | WP9: 10.95492467 | WQ9: 10.95492467 | WR9: 10.95492467 | WS9: 10.95492467 | WT9: 10.95492467 | WU9: 10.95492467 | WV9: 10.95492467 | WW9: 10.95492467 | WX9: 10.95492467 | WY9: 10.95492467 | WZ9: 10.95492467 | XA9: 10.95492467 | XB9: 10.95492467 | XC9: 10.95492467 | XD9: 10.95492467 | XE9: 10.95492467 | XF9: 10.95492467 | XG9: =XG8-273 -> 10.95492467 | XH9: 10.95492467 | XI9: 10.95492467 | XJ9: 10.95492467 | XK9: 10.95492467 | XL9: 10.95492467 | XM9: 10.95492467 | XN9: 10.95492467 | XO9: 10.95492467 | XP9: 10.95492467 | XQ9: 10.95492467 | XR9: 10.95492467 | XS9: 10.95492467 | XT9: 10.95492467 | XU9: 10.95492467 | XV9: 10.95492467 | XW9: 10.95492467 | XX9: 10.95492467 | XY9: 10.95492467 | XZ9: 10.95492467 | YA9: 10.95492467 | YB9: 10.95492467 | YC9: 10.95492467 | YD9: 10.95492467 | YE9: 10.95492467 | YF9: 10.95492467 | YG9: 10.95492467 | YH9: 10.95492467 | YI9: 10.95492467 | YJ9: 10.95492467 | YK9: 10.95492467 | YL9: 10.95492467 | YM9: 10.95492467 | YN9: 10.95492467 | YO9: 10.95492467 | YP9: 10.95492467 | YQ9: 10.95492467 | YR9: 10.95492467 | YS9: 10.95492467 | YT9: 10.95492467 | YU9: 10.95492467 | YV9: 10.95492467 | YW9: 10.95492467 | YX9: 10.95492467 | YY9: 10.95492467 | YZ9: 10.95492467 | ZA9: 10.95492467 | ZB9: 10.95492467 | ZC9: 10.95492467 | ZD9: 10.95492467 | ZE9: 10.95492467 | ZF9: 10.95492467 | ZG9: 10.95492467 | ZH9: 10.95492467 | ZI9: 10.95492467 | ZJ9: 10.95492467 | ZK9: 10.95492467 | ZL9: 10.95492467 | ZM9: 10.95492467 | ZN9: 10.95492467 | ZO9: 10.95492467 | ZP9: 10.95492467 | ZQ9: 10.95492467 | ZR9: 10.95492467 | ZS9: =ZS8-273 -> 10.95492467 | ZT9: 10.95492467 | ZU9: 10.95492467 | ZV9: 10.95492467 | ZW9: 10.95492467 | ZX9: 10.95492467 | ZY9: 10.95492467 | ZZ9: 10.95492467 | AAA9: 10.95492467 | AAB9: 10.95492467 | AAC9: 10.95492467 | AAD9: 10.95492467 | AAE9: 10.95492467 | AAF9: 10.95492467 | AAG9: 10.95492467 | AAH9: 10.95492467 | AAI9: 10.95492467 | AAJ9: 10.95492467 | AAK9: 10.95492467 | AAL9: 10.95492467 | AAM9: 10.95492467 | AAN9: 10.95492467 | AAO9: 10.95492467 | AAP9: 10.95492467 | AAQ9: 10.95492467 | AAR9: 10.95492467 | AAS9: 10.95492467 | AAT9: 10.95492467 | AAU9: 10.95492467 | AAV9: 10.95492467 | AAW9: 10.95492467 | AAX9: 10.95492467 | AAY9: 10.95492467 | AAZ9: 10.95492467 | ABA9: 10.95492467 | ABB9: 10.95492467 | ABC9: 10.95492467 | ABD9: 10.95492467 | ABE9: 10.95492467 | ABF9: 10.95492467 | ABG9: 10.95492467 | ABH9: 10.95492467 | ABI9: 10.95492467 | ABJ9: 10.95492467 | ABK9: 10.95492467 | ABL9: 10.95492467 | ABM9: 10.95492467 | ABN9: 10.95492467 | ABO9: 10.95492467 | ABP9: 10.95492467 | ABQ9: 10.95492467 | ABR9: 10.95492467 | ABS9: 10.95492467 | ABT9: 10.95492467 | ABU9: 10.95492467 | ABV9: 10.95492467 | ABW9: 10.95492467 | ABX9: 10.95492467 | ABY9: 10.95492467 | ABZ9: 10.95492467 | ACA9: 10.95492467 | ACB9: 10.95492467 | ACC9: 10.95492467 | ACD9: 10.95492467 | ACE9: =ACE8-273 -> 10.95492467 | ACF9: 10.95492467 | ACG9: 10.95492467 | ACH9: 10.95492467 | ACI9: 10.95492467 | ACJ9: 10.95492467 | ACK9: 10.95492467 | ACL9: 10.95492467 | ACM9: 10.95492467 | ACN9: 10.95492467 | ACO9: 10.95492467 | ACP9: 10.95492467 | ACQ9: 10.95492467 | ACR9: 10.95492467 | ACS9: 10.95492467 | ACT9: 10.95492467 | ACU9: 10.95492467 | ACV9: 10.95492467 | ACW9: 10.95492467 | ACX9: 10.95492467 | ACY9: 10.95492467 | ACZ9: 10.95492467 | ADA9: 10.95492467 | ADB9: 10.95492467 | ADC9: 10.95492467 | ADD9: 10.95492467 | ADE9: 10.95492467 | ADF9: 10.95492467 | ADG9: 10.95492467 | ADH9: 10.95492467 | ADI9: 10.95492467 | ADJ9: 10.95492467 | ADK9: 10.95492467 | ADL9: 10.95492467 | ADM9: 10.95492467 | ADN9: 10.95492467 | ADO9: 10.95492467 | ADP9: 10.95492467 | ADQ9: 10.95492467 | ADR9: 10.95492467 | ADS9: 10.95492467 | ADT9: 10.95492467 | ADU9: 10.95492467 | ADV9: 10.95492467 | ADW9: 10.95492467 | ADX9: 10.95492467 | ADY9: 10.95492467 | ADZ9: 10.95492467 | AEA9: 10.95492467 | AEB9: 10.95492467 | AEC9: 10.95492467 | AED9: 10.95492467
A10: Pre-charge pressure at maximum temperature | B10: 144 | C10: bar | D10: Pre-charge pressure at 20°C | E10: 131 | F10: bar | J10: H | K10: =1250*$B$6^(-0.3) -> 290.5769193 | L10: =1250*$B$6^(-0.3) -> 290.5769193 | M10: 290.5769193 | N10: 290.5769193 | O10: 290.5769193 | P10: 290.5769193 | Q10: 290.5769193 | R10: 290.5769193 | S10: 290.5769193 | T10: 290.5769193 | U10: 290.5769193 | V10: 290.5769193 | W10: 290.5769193 | X10: 290.5769193 | Y10: 290.5769193 | Z10: 290.5769193 | AA10: 290.5769193 | AB10: 290.5769193 | AC10: 290.5769193 | AD10: 290.5769193 | AE10: 290.5769193 | AF10: 290.5769193 | AG10: 290.5769193 | AH10: 290.5769193 | AI10: 290.5769193 | AJ10: 290.5769193 | AK10: 290.5769193 | AL10: 290.5769193 | AM10: 290.5769193 | AN10: 290.5769193 | AO10: 290.5769193 | AP10: 290.5769193 | AQ10: 290.5769193 | AR10: 290.5769193 | AS10: 290.5769193 | AT10: 290.5769193 | AU10: 290.5769193 | AV10: 290.5769193 | AW10: 290.5769193 | AX10: 290.5769193 | AY10: 290.5769193 | AZ10: 290.5769193 | BA10: 290.5769193 | BB10: 290.5769193 | BC10: 290.5769193 | BD10: 290.5769193 | BE10: 290.5769193 | BF10: 290.5769193 | BG10: 290.5769193 | BH10: 290.5769193 | BI10: 290.5769193 | BJ10: 290.5769193 | BK10: 290.5769193 | BL10: 290.5769193 | BM10: 290.5769193 | BN10: 290.5769193 | BO10: 290.5769193 | BP10: 290.5769193 | BQ10: 290.5769193 | BR10: 290.5769193 | BS10: 290.5769193 | BT10: 290.5769193 | BU10: 290.5769193 | BV10: 290.5769193 | BW10: 290.5769193 | BX10: =1250*$B$6^(-0.3) -> 290.5769193 | BY10: 290.5769193 | BZ10: 290.5769193 | CA10: 290.5769193 | CB10: 290.5769193 | CC10: 290.5769193 | CD10: 290.5769193 | CE10: 290.5769193 | CF10: 290.5769193 | CG10: 290.5769193 | CH10: 290.5769193 | CI10: 290.5769193 | CJ10: 290.5769193 | CK10: 290.5769193 | CL10: 290.5769193 | CM10: 290.5769193 | CN10: 290.5769193 | CO10: 290.5769193 | CP10: 290.5769193 | CQ10: 290.5769193 | CR10: 290.5769193 | CS10: 290.5769193 | CT10: 290.5769193 | CU10: 290.5769193 | CV10: 290.5769193 | CW10: 290.5769193 | CX10: 290.5769193 | CY10: 290.5769193 | CZ10: 290.5769193 | DA10: 290.5769193 | DB10: 290.5769193 | DC10: 290.5769193 | DD10: 290.5769193 | DE10: 290.5769193 | DF10: 290.5769193 | DG10: 290.5769193 | DH10: 290.5769193 | DI10: 290.5769193 | DJ10: 290.5769193 | DK10: 290.5769193 | DL10: 290.5769193 | DM10: 290.5769193 | DN10: 290.5769193 | DO10: 290.5769193 | DP10: 290.5769193 | DQ10: 290.5769193 | DR10: 290.5769193 | DS10: 290.5769193 | DT10: 290.5769193 | DU10: 290.5769193 | DV10: 290.5769193 | DW10: 290.5769193 | DX10: 290.5769193 | DY10: 290.5769193 | DZ10: 290.5769193 | EA10: 290.5769193 | EB10: 290.5769193 | EC10: 290.5769193 | ED10: 290.5769193 | EE10: 290.5769193 | EF10: 290.5769193 | EG10: 290.5769193 | EH10: 290.5769193 | EI10: 290.5769193 | EJ10: =1250*$B$6^(-0.3) -> 290.5769193 | EK10: 290.5769193 | EL10: 290.5769193 | EM10: 290.5769193 | EN10: 290.5769193 | EO10: 290.5769193 | EP10: 290.5769193 | EQ10: 290.5769193 | ER10: 290.5769193 | ES10: 290.5769193 | ET10: 290.5769193 | EU10: 290.5769193 | EV10: 290.5769193 | EW10: 290.5769193 | EX10: 290.5769193 | EY10: 290.5769193 | EZ10: 290.5769193 | FA10: 290.5769193 | FB10: 290.5769193 | FC10: 290.5769193 | FD10: 290.5769193 | FE10: 290.5769193 | FF10: 290.5769193 | FG10: 290.5769193 | FH10: 290.5769193 | FI10: 290.5769193 | FJ10: 290.5769193 | FK10: 290.5769193 | FL10: 290.5769193 | FM10: 290.5769193 | FN10: 290.5769193 | FO10: 290.5769193 | FP10: 290.5769193 | FQ10: 290.5769193 | FR10: 290.5769193 | FS10: 290.5769193 | FT10: 290.5769193 | FU10: 290.5769193 | FV10: 290.5769193 | FW10: 290.5769193 | FX10: 290.5769193 | FY10: 290.5769193 | FZ10: 290.5769193 | GA10: 290.5769193 | GB10: 290.5769193 | GC10: 290.5769193 | GD10: 290.5769193 | GE10: 290.5769193 | GF10: 290.5769193 | GG10: 290.5769193 | GH10: 290.5769193 | GI10: 290.5769193 | GJ10: 290.5769193 | GK10: 290.5769193 | GL10: 290.5769193 | GM10: 290.5769193 | GN10: 290.5769193 | GO10: 290.5769193 | GP10: 290.5769193 | GQ10: 290.5769193 | GR10: 290.5769193 | GS10: 290.5769193 | GT10: 290.5769193 | GU10: 290.5769193 | GV10: =1250*$B$6^(-0.3) -> 290.5769193 | GW10: 290.5769193 | GX10: 290.5769193 | GY10: 290.5769193 | GZ10: 290.5769193 | HA10: 290.5769193 | HB10: 290.5769193 | HC10: 290.5769193 | HD10: 290.5769193 | HE10: 290.5769193 | HF10: 290.5769193 | HG10: 290.5769193 | HH10: 290.5769193 | HI10: 290.5769193 | HJ10: 290.5769193 | HK10: 290.5769193 | HL10: 290.5769193 | HM10: 290.5769193 | HN10: 290.5769193 | HO10: 290.5769193 | HP10: 290.5769193 | HQ10: 290.5769193 | HR10: 290.5769193 | HS10: 290.5769193 | HT10: 290.5769193 | HU10: 290.5769193 | HV10: 290.5769193 | HW10: 290.5769193 | HX10: 290.5769193 | HY10: 290.5769193 | HZ10: 290.5769193 | IA10: 290.5769193 | IB10: 290.5769193 | IC10: 290.5769193 | ID10: 290.5769193 | IE10: 290.5769193 | IF10: 290.5769193 | IG10: 290.5769193 | IH10: 290.5769193 | II10: 290.5769193 | IJ10: 290.5769193 | IK10: 290.5769193 | IL10: 290.5769193 | IM10: 290.5769193 | IN10: 290.5769193 | IO10: 290.5769193 | IP10: 290.5769193 | IQ10: 290.5769193 | IR10: 290.5769193 | IS10: 290.5769193 | IT10: 290.5769193 | IU10: 290.5769193 | IV10: 290.5769193 | IW10: 290.5769193 | IX10: 290.5769193 | IY10: 290.5769193 | IZ10: 290.5769193 | JA10: 290.5769193 | JB10: 290.5769193 | JC10: 290.5769193 | JD10: 290.5769193 | JE10: 290.5769193 | JF10: 290.5769193 | JG10: 290.5769193 | JH10: =1250*$B$6^(-0.3) -> 290.5769193 | JI10: 290.5769193 | JJ10: 290.5769193 | JK10: 290.5769193 | JL10: 290.5769193 | JM10: 290.5769193 | JN10: 290.5769193 | JO10: 290.5769193 | JP10: 290.5769193 | JQ10: 290.5769193 | JR10: 290.5769193 | JS10: 290.5769193 | JT10: 290.5769193 | JU10: 290.5769193 | JV10: 290.5769193 | JW10: 290.5769193 | JX10: 290.5769193 | JY10: 290.5769193 | JZ10: 290.5769193 | KA10: 290.5769193 | KB10: 290.5769193 | KC10: 290.5769193 | KD10: 290.5769193 | KE10: 290.5769193 | KF10: 290.5769193 | KG10: 290.5769193 | KH10: 290.5769193 | KI10: 290.5769193 | KJ10: 290.5769193 | KK10: 290.5769193 | KL10: 290.5769193 | KM10: 290.5769193 | KN10: 290.5769193 | KO10: 290.5769193 | KP10: 290.5769193 | KQ10: 290.5769193 | KR10: 290.5769193 | KS10: 290.5769193 | KT10: 290.5769193 | KU10: 290.5769193 | KV10: 290.5769193 | KW10: 290.5769193 | KX10: 290.5769193 | KY10: 290.5769193 | KZ10: 290.5769193 | LA10: 290.5769193 | LB10: 290.5769193 | LC10: 290.5769193 | LD10: 290.5769193 | LE10: 290.5769193 | LF10: 290.5769193 | LG10: 290.5769193 | LH10: 290.5769193 | LI10: 290.5769193 | LJ10: 290.5769193 | LK10: 290.5769193 | LL10: 290.5769193 | LM10: 290.5769193 | LN10: 290.5769193 | LO10: 290.5769193 | LP10: 290.5769193 | LQ10: 290.5769193 | LR10: 290.5769193 | LS10: 290.5769193 | LT10: =1250*$B$6^(-0.3) -> 290.5769193 | LU10: 290.5769193 | LV10: 290.5769193 | LW10: 290.5769193 | LX10: 290.5769193 | LY10: 290.5769193 | LZ10: 290.5769193 | MA10: 290.5769193 | MB10: 290.5769193 | MC10: 290.5769193 | MD10: 290.5769193 | ME10: 290.5769193 | MF10: 290.5769193 | MG10: 290.5769193 | MH10: 290.5769193 | MI10: 290.5769193 | MJ10: 290.5769193 | MK10: 290.5769193 | ML10: 290.5769193 | MM10: 290.5769193 | MN10: 290.5769193 | MO10: 290.5769193 | MP10: 290.5769193 | MQ10: 290.5769193 | MR10: 290.5769193 | MS10: 290.5769193 | MT10: 290.5769193 | MU10: 290.5769193 | MV10: 290.5769193 | MW10: 290.5769193 | MX10: 290.5769193 | MY10: 290.5769193 | MZ10: 290.5769193 | NA10: 290.5769193 | NB10: 290.5769193 | NC10: 290.5769193 | ND10: 290.5769193 | NE10: 290.5769193 | NF10: 290.5769193 | NG10: 290.5769193 | NH10: 290.5769193 | NI10: 290.5769193 | NJ10: 290.5769193 | NK10: 290.5769193 | NL10: 290.5769193 | NM10: 290.5769193 | NN10: 290.5769193 | NO10: 290.5769193 | NP10: 290.5769193 | NQ10: 290.5769193 | NR10: 290.5769193 | NS10: 290.5769193 | NT10: 290.5769193 | NU10: 290.5769193 | NV10: 290.5769193 | NW10: 290.5769193 | NX10: 290.5769193 | NY10: 290.5769193 | NZ10: 290.5769193 | OA10: 290.5769193 | OB10: 290.5769193 | OC10: 290.5769193 | OD10: 290.5769193 | OE10: 290.5769193 | OF10: =1250*$B$6^(-0.3) -> 290.5769193 | OG10: 290.5769193 | OH10: 290.5769193 | OI10: 290.5769193 | OJ10: 290.5769193 | OK10: 290.5769193 | OL10: 290.5769193 | OM10: 290.5769193 | ON10: 290.5769193 | OO10: 290.5769193 | OP10: 290.5769193 | OQ10: 290.5769193 | OR10: 290.5769193 | OS10: 290.5769193 | OT10: 290.5769193 | OU10: 290.5769193 | OV10: 290.5769193 | OW10: 290.5769193 | OX10: 290.5769193 | OY10: 290.5769193 | OZ10: 290.5769193 | PA10: 290.5769193 | PB10: 290.5769193 | PC10: 290.5769193 | PD10: 290.5769193 | PE10: 290.5769193 | PF10: 290.5769193 | PG10: 290.5769193 | PH10: 290.5769193 | PI10: 290.5769193 | PJ10: 290.5769193 | PK10: 290.5769193 | PL10: 290.5769193 | PM10: 290.5769193 | PN10: 290.5769193 | PO10: 290.5769193 | PP10: 290.5769193 | PQ10: 290.5769193 | PR10: 290.5769193 | PS10: 290.5769193 | PT10: 290.5769193 | PU10: 290.5769193 | PV10: 290.5769193 | PW10: 290.5769193 | PX10: 290.5769193 | PY10: 290.5769193 | PZ10: 290.5769193 | QA10: 290.5769193 | QB10: 290.5769193 | QC10: 290.5769193 | QD10: 290.5769193 | QE10: 290.5769193 | QF10: 290.5769193 | QG10: 290.5769193 | QH10: 290.5769193 | QI10: 290.5769193 | QJ10: 290.5769193 | QK10: 290.5769193 | QL10: 290.5769193 | QM10: 290.5769193 | QN10: 290.5769193 | QO10: 290.5769193 | QP10: 290.5769193 | QQ10: 290.5769193 | QR10: =1250*$B$6^(-0.3) -> 290.5769193 | QS10: 290.5769193 | QT10: 290.5769193 | QU10: 290.5769193 | QV10: 290.5769193 | QW10: 290.5769193 | QX10: 290.5769193 | QY10: 290.5769193 | QZ10: 290.5769193 | RA10: 290.5769193 | RB10: 290.5769193 | RC10: 290.5769193 | RD10: 290.5769193 | RE10: 290.5769193 | RF10: 290.5769193 | RG10: 290.5769193 | RH10: 290.5769193 | RI10: 290.5769193 | RJ10: 290.5769193 | RK10: 290.5769193 | RL10: 290.5769193 | RM10: 290.5769193 | RN10: 290.5769193 | RO10: 290.5769193 | RP10: 290.5769193 | RQ10: 290.5769193 | RR10: 290.5769193 | RS10: 290.5769193 | RT10: 290.5769193 | RU10: 290.5769193 | RV10: 290.5769193 | RW10: 290.5769193 | RX10: 290.5769193 | RY10: 290.5769193 | RZ10: 290.5769193 | SA10: 290.5769193 | SB10: 290.5769193 | SC10: 290.5769193 | SD10: 290.5769193 | SE10: 290.5769193 | SF10: 290.5769193 | SG10: 290.5769193 | SH10: 290.5769193 | SI10: 290.5769193 | SJ10: 290.5769193 | SK10: 290.5769193 | SL10: 290.5769193 | SM10: 290.5769193 | SN10: 290.5769193 | SO10: 290.5769193 | SP10: 290.5769193 | SQ10: 290.5769193 | SR10: 290.5769193 | SS10: 290.5769193 | ST10: 290.5769193 | SU10: 290.5769193 | SV10: 290.5769193 | SW10: 290.5769193 | SX10: 290.5769193 | SY10: 290.5769193 | SZ10: 290.5769193 | TA10: 290.5769193 | TB10: 290.5769193 | TC10: 290.5769193 | TD10: =1250*$B$6^(-0.3) -> 290.5769193 | TE10: 290.5769193 | TF10: 290.5769193 | TG10: 290.5769193 | TH10: 290.5769193 | TI10: 290.5769193 | TJ10: 290.5769193 | TK10: 290.5769193 | TL10: 290.5769193 | TM10: 290.5769193 | TN10: 290.5769193 | TO10: 290.5769193 | TP10: 290.5769193 | TQ10: 290.5769193 | TR10: 290.5769193 | TS10: 290.5769193 | TT10: 290.5769193 | TU10: 290.5769193 | TV10: 290.5769193 | TW10: 290.5769193 | TX10: 290.5769193 | TY10: 290.5769193 | TZ10: 290.5769193 | UA10: 290.5769193 | UB10: 290.5769193 | UC10: 290.5769193 | UD10: 290.5769193 | UE10: 290.5769193 | UF10: 290.5769193 | UG10: 290.5769193 | UH10: 290.5769193 | UI10: 290.5769193 | UJ10: 290.5769193 | UK10: 290.5769193 | UL10: 290.5769193 | UM10: 290.5769193 | UN10: 290.5769193 | UO10: 290.5769193 | UP10: 290.5769193 | UQ10: 290.5769193 | UR10: 290.5769193 | US10: 290.5769193 | UT10: 290.5769193 | UU10: 290.5769193 | UV10: 290.5769193 | UW10: 290.5769193 | UX10: 290.5769193 | UY10: 290.5769193 | UZ10: 290.5769193 | VA10: 290.5769193 | VB10: 290.5769193 | VC10: 290.5769193 | VD10: 290.5769193 | VE10: 290.5769193 | VF10: 290.5769193 | VG10: 290.5769193 | VH10: 290.5769193 | VI10: 290.5769193 | VJ10: 290.5769193 | VK10: 290.5769193 | VL10: 290.5769193 | VM10: 290.5769193 | VN10: 290.5769193 | VO10: 290.5769193 | VP10: =1250*$B$6^(-0.3) -> 290.5769193 | VQ10: 290.5769193 | VR10: 290.5769193 | VS10: 290.5769193 | VT10: 290.5769193 | VU10: 290.5769193 | VV10: 290.5769193 | VW10: 290.5769193 | VX10: 290.5769193 | VY10: 290.5769193 | VZ10: 290.5769193 | WA10: 290.5769193 | WB10: 290.5769193 | WC10: 290.5769193 | WD10: 290.5769193 | WE10: 290.5769193 | WF10: 290.5769193 | WG10: 290.5769193 | WH10: 290.5769193 | WI10: 290.5769193 | WJ10: 290.5769193 | WK10: 290.5769193 | WL10: 290.5769193 | WM10: 290.5769193 | WN10: 290.5769193 | WO10: 290.5769193 | WP10: 290.5769193 | WQ10: 290.5769193 | WR10: 290.5769193 | WS10: 290.5769193 | WT10: 290.5769193 | WU10: 290.5769193 | WV10: 290.5769193 | WW10: 290.5769193 | WX10: 290.5769193 | WY10: 290.5769193 | WZ10: 290.5769193 | XA10: 290.5769193 | XB10: 290.5769193 | XC10: 290.5769193 | XD10: 290.5769193 | XE10: 290.5769193 | XF10: 290.5769193 | XG10: 290.5769193 | XH10: 290.5769193 | XI10: 290.5769193 | XJ10: 290.5769193 | XK10: 290.5769193 | XL10: 290.5769193 | XM10: 290.5769193 | XN10: 290.5769193 | XO10: 290.5769193 | XP10: 290.5769193 | XQ10: 290.5769193 | XR10: 290.5769193 | XS10: 290.5769193 | XT10: 290.5769193 | XU10: 290.5769193 | XV10: 290.5769193 | XW10: 290.5769193 | XX10: 290.5769193 | XY10: 290.5769193 | XZ10: 290.5769193 | YA10: 290.5769193 | YB10: =1250*$B$6^(-0.3) -> 290.5769193 | YC10: 290.5769193 | YD10: 290.5769193 | YE10: 290.5769193 | YF10: 290.5769193 | YG10: 290.5769193 | YH10: 290.5769193 | YI10: 290.5769193 | YJ10: 290.5769193 | YK10: 290.5769193 | YL10: 290.5769193 | YM10: 290.5769193 | YN10: 290.5769193 | YO10: 290.5769193 | YP10: 290.5769193 | YQ10: 290.5769193 | YR10: 290.5769193 | YS10: 290.5769193 | YT10: 290.5769193 | YU10: 290.5769193 | YV10: 290.5769193 | YW10: 290.5769193 | YX10: 290.5769193 | YY10: 290.5769193 | YZ10: 290.5769193 | ZA10: 290.5769193 | ZB10: 290.5769193 | ZC10: 290.5769193 | ZD10: 290.5769193 | ZE10: 290.5769193 | ZF10: 290.5769193 | ZG10: 290.5769193 | ZH10: 290.5769193 | ZI10: 290.5769193 | ZJ10: 290.5769193 | ZK10: 290.5769193 | ZL10: 290.5769193 | ZM10: 290.5769193 | ZN10: 290.5769193 | ZO10: 290.5769193 | ZP10: 290.5769193 | ZQ10: 290.5769193 | ZR10: 290.5769193 | ZS10: 290.5769193 | ZT10: 290.5769193 | ZU10: 290.5769193 | ZV10: 290.5769193 | ZW10: 290.5769193 | ZX10: 290.5769193 | ZY10: 290.5769193 | ZZ10: 290.5769193 | AAA10: 290.5769193 | AAB10: 290.5769193 | AAC10: 290.5769193 | AAD10: 290.5769193 | AAE10: 290.5769193 | AAF10: 290.5769193 | AAG10: 290.5769193 | AAH10: 290.5769193 | AAI10: 290.5769193 | AAJ10: 290.5769193 | AAK10: 290.5769193 | AAL10: 290.5769193 | AAM10: 290.5769193 | AAN10: =1250*$B$6^(-0.3) -> 290.5769193 | AAO10: 290.5769193 | AAP10: 290.5769193 | AAQ10: 290.5769193 | AAR10: 290.5769193 | AAS10: 290.5769193 | AAT10: 290.5769193 | AAU10: 290.5769193 | AAV10: 290.5769193 | AAW10: 290.5769193 | AAX10: 290.5769193 | AAY10: 290.5769193 | AAZ10: 290.5769193 | ABA10: 290.5769193 | ABB10: 290.5769193 | ABC10: 290.5769193 | ABD10: 290.5769193 | ABE10: 290.5769193 | ABF10: 290.5769193 | ABG10: 290.5769193 | ABH10: 290.5769193 | ABI10: 290.5769193 | ABJ10: 290.5769193 | ABK10: 290.5769193 | ABL10: 290.5769193 | ABM10: 290.5769193 | ABN10: 290.5769193 | ABO10: 290.5769193 | ABP10: 290.5769193 | ABQ10: 290.5769193 | ABR10: 290.5769193 | ABS10: 290.5769193 | ABT10: 290.5769193 | ABU10: 290.5769193 | ABV10: 290.5769193 | ABW10: 290.5769193 | ABX10: 290.5769193 | ABY10: 290.5769193 | ABZ10: 290.5769193 | ACA10: 290.5769193 | ACB10: 290.5769193 | ACC10: 290.5769193 | ACD10: 290.5769193 | ACE10: 290.5769193 | ACF10: 290.5769193 | ACG10: 290.5769193 | ACH10: 290.5769193 | ACI10: 290.5769193 | ACJ10: 290.5769193 | ACK10: 290.5769193 | ACL10: 290.5769193 | ACM10: 290.5769193 | ACN10: 290.5769193 | ACO10: 290.5769193 | ACP10: 290.5769193 | ACQ10: 290.5769193 | ACR10: 290.5769193 | ACS10: 290.5769193 | ACT10: 290.5769193 | ACU10: 290.5769193 | ACV10: 290.5769193 | ACW10: 290.5769193 | ACX10: 290.5769193 | ACY10: 290.5769193 | ACZ10: =1250*$B$6^(-0.3) -> 290.5769193 | ADA10: 290.5769193 | ADB10: 290.5769193 | ADC10: 290.5769193 | ADD10: 290.5769193 | ADE10: 290.5769193 | ADF10: 290.5769193 | ADG10: 290.5769193 | ADH10: 290.5769193 | ADI10: 290.5769193 | ADJ10: 290.5769193 | ADK10: 290.5769193 | ADL10: 290.5769193 | ADM10: 290.5769193 | ADN10: 290.5769193 | ADO10: 290.5769193 | ADP10: 290.5769193 | ADQ10: 290.5769193 | ADR10: 290.5769193 | ADS10: 290.5769193 | ADT10: 290.5769193 | ADU10: 290.5769193 | ADV10: 290.5769193 | ADW10: 290.5769193 | ADX10: 290.5769193 | ADY10: 290.5769193 | ADZ10: 290.5769193 | AEA10: 290.5769193 | AEB10: 290.5769193 | AEC10: 290.5769193 | AED10: 290.5769193
J11: A | K11: =$B$6/50 -> 2.589363303 | L11: =$B$6/50 -> 2.589363303 | M11: 2.589363303 | N11: 2.589363303 | O11: 2.589363303 | P11: 2.589363303 | Q11: 2.589363303 | R11: 2.589363303 | S11: 2.589363303 | T11: 2.589363303 | U11: 2.589363303 | V11: 2.589363303 | W11: 2.589363303 | X11: 2.589363303 | Y11: 2.589363303 | Z11: 2.589363303 | AA11: 2.589363303 | AB11: 2.589363303 | AC11: 2.589363303 | AD11: 2.589363303 | AE11: 2.589363303 | AF11: 2.589363303 | AG11: 2.589363303 | AH11: 2.589363303 | AI11: 2.589363303 | AJ11: 2.589363303 | AK11: 2.589363303 | AL11: 2.589363303 | AM11: 2.589363303 | AN11: 2.589363303 | AO11: 2.589363303 | AP11: 2.589363303 | AQ11: 2.589363303 | AR11: 2.589363303 | AS11: 2.589363303 | AT11: 2.589363303 | AU11: 2.589363303 | AV11: 2.589363303 | AW11: 2.589363303 | AX11: 2.589363303 | AY11: 2.589363303 | AZ11: 2.589363303 | BA11: 2.589363303 | BB11: 2.589363303 | BC11: 2.589363303 | BD11: 2.589363303 | BE11: 2.589363303 | BF11: 2.589363303 | BG11: 2.589363303 | BH11: 2.589363303 | BI11: 2.589363303 | BJ11: 2.589363303 | BK11: 2.589363303 | BL11: 2.589363303 | BM11: 2.589363303 | BN11: 2.589363303 | BO11: 2.589363303 | BP11: 2.589363303 | BQ11: 2.589363303 | BR11: 2.589363303 | BS11: 2.589363303 | BT11: 2.589363303 | BU11: 2.589363303 | BV11: 2.589363303 | BW11: 2.589363303 | BX11: =$B$6/50 -> 2.589363303 | BY11: 2.589363303 | BZ11: 2.589363303 | CA11: 2.589363303 | CB11: 2.589363303 | CC11: 2.589363303 | CD11: 2.589363303 | CE11: 2.589363303 | CF11: 2.589363303 | CG11: 2.589363303 | CH11: 2.589363303 | CI11: 2.589363303 | CJ11: 2.589363303 | CK11: 2.589363303 | CL11: 2.589363303 | CM11: 2.589363303 | CN11: 2.589363303 | CO11: 2.589363303 | CP11: 2.589363303 | CQ11: 2.589363303 | CR11: 2.589363303 | CS11: 2.589363303 | CT11: 2.589363303 | CU11: 2.589363303 | CV11: 2.589363303 | CW11: 2.589363303 | CX11: 2.589363303 | CY11: 2.589363303 | CZ11: 2.589363303 | DA11: 2.589363303 | DB11: 2.589363303 | DC11: 2.589363303 | DD11: 2.589363303 | DE11: 2.589363303 | DF11: 2.589363303 | DG11: 2.589363303 | DH11: 2.589363303 | DI11: 2.589363303 | DJ11: 2.589363303 | DK11: 2.589363303 | DL11: 2.589363303 | DM11: 2.589363303 | DN11: 2.589363303 | DO11: 2.589363303 | DP11: 2.589363303 | DQ11: 2.589363303 | DR11: 2.589363303 | DS11: 2.589363303 | DT11: 2.589363303 | DU11: 2.589363303 | DV11: 2.589363303 | DW11: 2.589363303 | DX11: 2.589363303 | DY11: 2.589363303 | DZ11: 2.589363303 | EA11: 2.589363303 | EB11: 2.589363303 | EC11: 2.589363303 | ED11: 2.589363303 | EE11: 2.589363303 | EF11: 2.589363303 | EG11: 2.589363303 | EH11: 2.589363303 | EI11: 2.589363303 | EJ11: =$B$6/50 -> 2.589363303 | EK11: 2.589363303 | EL11: 2.589363303 | EM11: 2.589363303 | EN11: 2.589363303 | EO11: 2.589363303 | EP11: 2.589363303 | EQ11: 2.589363303 | ER11: 2.589363303 | ES11: 2.589363303 | ET11: 2.589363303 | EU11: 2.589363303 | EV11: 2.589363303 | EW11: 2.589363303 | EX11: 2.589363303 | EY11: 2.589363303 | EZ11: 2.589363303 | FA11: 2.589363303 | FB11: 2.589363303 | FC11: 2.589363303 | FD11: 2.589363303 | FE11: 2.589363303 | FF11: 2.589363303 | FG11: 2.589363303 | FH11: 2.589363303 | FI11: 2.589363303 | FJ11: 2.589363303 | FK11: 2.589363303 | FL11: 2.589363303 | FM11: 2.589363303 | FN11: 2.589363303 | FO11: 2.589363303 | FP11: 2.589363303 | FQ11: 2.589363303 | FR11: 2.589363303 | FS11: 2.589363303 | FT11: 2.589363303 | FU11: 2.589363303 | FV11: 2.589363303 | FW11: 2.589363303 | FX11: 2.589363303 | FY11: 2.589363303 | FZ11: 2.589363303 | GA11: 2.589363303 | GB11: 2.589363303 | GC11: 2.589363303 | GD11: 2.589363303 | GE11: 2.589363303 | GF11: 2.589363303 | GG11: 2.589363303 | GH11: 2.589363303 | GI11: 2.589363303 | GJ11: 2.589363303 | GK11: 2.589363303 | GL11: 2.589363303 | GM11: 2.589363303 | GN11: 2.589363303 | GO11: 2.589363303 | GP11: 2.589363303 | GQ11: 2.589363303 | GR11: 2.589363303 | GS11: 2.589363303 | GT11: 2.589363303 | GU11: 2.589363303 | GV11: =$B$6/50 -> 2.589363303 | GW11: 2.589363303 | GX11: 2.589363303 | GY11: 2.589363303 | GZ11: 2.589363303 | HA11: 2.589363303 | HB11: 2.589363303 | HC11: 2.589363303 | HD11: 2.589363303 | HE11: 2.589363303 | HF11: 2.589363303 | HG11: 2.589363303 | HH11: 2.589363303 | HI11: 2.589363303 | HJ11: 2.589363303 | HK11: 2.589363303 | HL11: 2.589363303 | HM11: 2.589363303 | HN11: 2.589363303 | HO11: 2.589363303 | HP11: 2.589363303 | HQ11: 2.589363303 | HR11: 2.589363303 | HS11: 2.589363303 | HT11: 2.589363303 | HU11: 2.589363303 | HV11: 2.589363303 | HW11: 2.589363303 | HX11: 2.589363303 | HY11: 2.589363303 | HZ11: 2.589363303 | IA11: 2.589363303 | IB11: 2.589363303 | IC11: 2.589363303 | ID11: 2.589363303 | IE11: 2.589363303 | IF11: 2.589363303 | IG11: 2.589363303 | IH11: 2.589363303 | II11: 2.589363303 | IJ11: 2.589363303 | IK11: 2.589363303 | IL11: 2.589363303 | IM11: 2.589363303 | IN11: 2.589363303 | IO11: 2.589363303 | IP11: 2.589363303 | IQ11: 2.589363303 | IR11: 2.589363303 | IS11: 2.589363303 | IT11: 2.589363303 | IU11: 2.589363303 | IV11: 2.589363303 | IW11: 2.589363303 | IX11: 2.589363303 | IY11: 2.589363303 | IZ11: 2.589363303 | JA11: 2.589363303 | JB11: 2.589363303 | JC11: 2.589363303 | JD11: 2.589363303 | JE11: 2.589363303 | JF11: 2.589363303 | JG11: 2.589363303 | JH11: =$B$6/50 -> 2.589363303 | JI11: 2.589363303 | JJ11: 2.589363303 | JK11: 2.589363303 | JL11: 2.589363303 | JM11: 2.589363303 | JN11: 2.589363303 | JO11: 2.589363303 | JP11: 2.589363303 | JQ11: 2.589363303 | JR11: 2.589363303 | JS11: 2.589363303 | JT11: 2.589363303 | JU11: 2.589363303 | JV11: 2.589363303 | JW11: 2.589363303 | JX11: 2.589363303 | JY11: 2.589363303 | JZ11: 2.589363303 | KA11: 2.589363303 | KB11: 2.589363303 | KC11: 2.589363303 | KD11: 2.589363303 | KE11: 2.589363303 | KF11: 2.589363303 | KG11: 2.589363303 | KH11: 2.589363303 | KI11: 2.589363303 | KJ11: 2.589363303 | KK11: 2.589363303 | KL11: 2.589363303 | KM11: 2.589363303 | KN11: 2.589363303 | KO11: 2.589363303 | KP11: 2.589363303 | KQ11: 2.589363303 | KR11: 2.589363303 | KS11: 2.589363303 | KT11: 2.589363303 | KU11: 2.589363303 | KV11: 2.589363303 | KW11: 2.589363303 | KX11: 2.589363303 | KY11: 2.589363303 | KZ11: 2.589363303 | LA11: 2.589363303 | LB11: 2.589363303 | LC11: 2.589363303 | LD11: 2.589363303 | LE11: 2.589363303 | LF11: 2.589363303 | LG11: 2.589363303 | LH11: 2.589363303 | LI11: 2.589363303 | LJ11: 2.589363303 | LK11: 2.589363303 | LL11: 2.589363303 | LM11: 2.589363303 | LN11: 2.589363303 | LO11: 2.589363303 | LP11: 2.589363303 | LQ11: 2.589363303 | LR11: 2.589363303 | LS11: 2.589363303 | LT11: =$B$6/50 -> 2.589363303 | LU11: 2.589363303 | LV11: 2.589363303 | LW11: 2.589363303 | LX11: 2.589363303 | LY11: 2.589363303 | LZ11: 2.589363303 | MA11: 2.589363303 | MB11: 2.589363303 | MC11: 2.589363303 | MD11: 2.589363303 | ME11: 2.589363303 | MF11: 2.589363303 | MG11: 2.589363303 | MH11: 2.589363303 | MI11: 2.589363303 | MJ11: 2.589363303 | MK11: 2.589363303 | ML11: 2.589363303 | MM11: 2.589363303 | MN11: 2.589363303 | MO11: 2.589363303 | MP11: 2.589363303 | MQ11: 2.589363303 | MR11: 2.589363303 | MS11: 2.589363303 | MT11: 2.589363303 | MU11: 2.589363303 | MV11: 2.589363303 | MW11: 2.589363303 | MX11: 2.589363303 | MY11: 2.589363303 | MZ11: 2.589363303 | NA11: 2.589363303 | NB11: 2.589363303 | NC11: 2.589363303 | ND11: 2.589363303 | NE11: 2.589363303 | NF11: 2.589363303 | NG11: 2.589363303 | NH11: 2.589363303 | NI11: 2.589363303 | NJ11: 2.589363303 | NK11: 2.589363303 | NL11: 2.589363303 | NM11: 2.589363303 | NN11: 2.589363303 | NO11: 2.589363303 | NP11: 2.589363303 | NQ11: 2.589363303 | NR11: 2.589363303 | NS11: 2.589363303 | NT11: 2.589363303 | NU11: 2.589363303 | NV11: 2.589363303 | NW11: 2.589363303 | NX11: 2.589363303 | NY11: 2.589363303 | NZ11: 2.589363303 | OA11: 2.589363303 | OB11: 2.589363303 | OC11: 2.589363303 | OD11: 2.589363303 | OE11: 2.589363303 | OF11: =$B$6/50 -> 2.589363303 | OG11: 2.589363303 | OH11: 2.589363303 | OI11: 2.589363303 | OJ11: 2.589363303 | OK11: 2.589363303 | OL11: 2.589363303 | OM11: 2.589363303 | ON11: 2.589363303 | OO11: 2.589363303 | OP11: 2.589363303 | OQ11: 2.589363303 | OR11: 2.589363303 | OS11: 2.589363303 | OT11: 2.589363303 | OU11: 2.589363303 | OV11: 2.589363303 | OW11: 2.589363303 | OX11: 2.589363303 | OY11: 2.589363303 | OZ11: 2.589363303 | PA11: 2.589363303 | PB11: 2.589363303 | PC11: 2.589363303 | PD11: 2.589363303 | PE11: 2.589363303 | PF11: 2.589363303 | PG11: 2.589363303 | PH11: 2.589363303 | PI11: 2.589363303 | PJ11: 2.589363303 | PK11: 2.589363303 | PL11: 2.589363303 | PM11: 2.589363303 | PN11: 2.589363303 | PO11: 2.589363303 | PP11: 2.589363303 | PQ11: 2.589363303 | PR11: 2.589363303 | PS11: 2.589363303 | PT11: 2.589363303 | PU11: 2.589363303 | PV11: 2.589363303 | PW11: 2.589363303 | PX11: 2.589363303 | PY11: 2.589363303 | PZ11: 2.589363303 | QA11: 2.589363303 | QB11: 2.589363303 | QC11: 2.589363303 | QD11: 2.589363303 | QE11: 2.589363303 | QF11: 2.589363303 | QG11: 2.589363303 | QH11: 2.589363303 | QI11: 2.589363303 | QJ11: 2.589363303 | QK11: 2.589363303 | QL11: 2.589363303 | QM11: 2.589363303 | QN11: 2.589363303 | QO11: 2.589363303 | QP11: 2.589363303 | QQ11: 2.589363303 | QR11: =$B$6/50 -> 2.589363303 | QS11: 2.589363303 | QT11: 2.589363303 | QU11: 2.589363303 | QV11: 2.589363303 | QW11: 2.589363303 | QX11: 2.589363303 | QY11: 2.589363303 | QZ11: 2.589363303 | RA11: 2.589363303 | RB11: 2.589363303 | RC11: 2.589363303 | RD11: 2.589363303 | RE11: 2.589363303 | RF11: 2.589363303 | RG11: 2.589363303 | RH11: 2.589363303 | RI11: 2.589363303 | RJ11: 2.589363303 | RK11: 2.589363303 | RL11: 2.589363303 | RM11: 2.589363303 | RN11: 2.589363303 | RO11: 2.589363303 | RP11: 2.589363303 | RQ11: 2.589363303 | RR11: 2.589363303 | RS11: 2.589363303 | RT11: 2.589363303 | RU11: 2.589363303 | RV11: 2.589363303 | RW11: 2.589363303 | RX11: 2.589363303 | RY11: 2.589363303 | RZ11: 2.589363303 | SA11: 2.589363303 | SB11: 2.589363303 | SC11: 2.589363303 | SD11: 2.589363303 | SE11: 2.589363303 | SF11: 2.589363303 | SG11: 2.589363303 | SH11: 2.589363303 | SI11: 2.589363303 | SJ11: 2.589363303 | SK11: 2.589363303 | SL11: 2.589363303 | SM11: 2.589363303 | SN11: 2.589363303 | SO11: 2.589363303 | SP11: 2.589363303 | SQ11: 2.589363303 | SR11: 2.589363303 | SS11: 2.589363303 | ST11: 2.589363303 | SU11: 2.589363303 | SV11: 2.589363303 | SW11: 2.589363303 | SX11: 2.589363303 | SY11: 2.589363303 | SZ11: 2.589363303 | TA11: 2.589363303 | TB11: 2.589363303 | TC11: 2.589363303 | TD11: =$B$6/50 -> 2.589363303 | TE11: 2.589363303 | TF11: 2.589363303 | TG11: 2.589363303 | TH11: 2.589363303 | TI11: 2.589363303 | TJ11: 2.589363303 | TK11: 2.589363303 | TL11: 2.589363303 | TM11: 2.589363303 | TN11: 2.589363303 | TO11: 2.589363303 | TP11: 2.589363303 | TQ11: 2.589363303 | TR11: 2.589363303 | TS11: 2.589363303 | TT11: 2.589363303 | TU11: 2.589363303 | TV11: 2.589363303 | TW11: 2.589363303 | TX11: 2.589363303 | TY11: 2.589363303 | TZ11: 2.589363303 | UA11: 2.589363303 | UB11: 2.589363303 | UC11: 2.589363303 | UD11: 2.589363303 | UE11: 2.589363303 | UF11: 2.589363303 | UG11: 2.589363303 | UH11: 2.589363303 | UI11: 2.589363303 | UJ11: 2.589363303 | UK11: 2.589363303 | UL11: 2.589363303 | UM11: 2.589363303 | UN11: 2.589363303 | UO11: 2.589363303 | UP11: 2.589363303 | UQ11: 2.589363303 | UR11: 2.589363303 | US11: 2.589363303 | UT11: 2.589363303 | UU11: 2.589363303 | UV11: 2.589363303 | UW11: 2.589363303 | UX11: 2.589363303 | UY11: 2.589363303 | UZ11: 2.589363303 | VA11: 2.589363303 | VB11: 2.589363303 | VC11: 2.589363303 | VD11: 2.589363303 | VE11: 2.589363303 | VF11: 2.589363303 | VG11: 2.589363303 | VH11: 2.589363303 | VI11: 2.589363303 | VJ11: 2.589363303 | VK11: 2.589363303 | VL11: 2.589363303 | VM11: 2.589363303 | VN11: 2.589363303 | VO11: 2.589363303 | VP11: =$B$6/50 -> 2.589363303 | VQ11: 2.589363303 | VR11: 2.589363303 | VS11: 2.589363303 | VT11: 2.589363303 | VU11: 2.589363303 | VV11: 2.589363303 | VW11: 2.589363303 | VX11: 2.589363303 | VY11: 2.589363303 | VZ11: 2.589363303 | WA11: 2.589363303 | WB11: 2.589363303 | WC11: 2.589363303 | WD11: 2.589363303 | WE11: 2.589363303 | WF11: 2.589363303 | WG11: 2.589363303 | WH11: 2.589363303 | WI11: 2.589363303 | WJ11: 2.589363303 | WK11: 2.589363303 | WL11: 2.589363303 | WM11: 2.589363303 | WN11: 2.589363303 | WO11: 2.589363303 | WP11: 2.589363303 | WQ11: 2.589363303 | WR11: 2.589363303 | WS11: 2.589363303 | WT11: 2.589363303 | WU11: 2.589363303 | WV11: 2.589363303 | WW11: 2.589363303 | WX11: 2.589363303 | WY11: 2.589363303 | WZ11: 2.589363303 | XA11: 2.589363303 | XB11: 2.589363303 | XC11: 2.589363303 | XD11: 2.589363303 | XE11: 2.589363303 | XF11: 2.589363303 | XG11: 2.589363303 | XH11: 2.589363303 | XI11: 2.589363303 | XJ11: 2.589363303 | XK11: 2.589363303 | XL11: 2.589363303 | XM11: 2.589363303 | XN11: 2.589363303 | XO11: 2.589363303 | XP11: 2.589363303 | XQ11: 2.589363303 | XR11: 2.589363303 | XS11: 2.589363303 | XT11: 2.589363303 | XU11: 2.589363303 | XV11: 2.589363303 | XW11: 2.589363303 | XX11: 2.589363303 | XY11: 2.589363303 | XZ11: 2.589363303 | YA11: 2.589363303 | YB11: =$B$6/50 -> 2.589363303 | YC11: 2.589363303 | YD11: 2.589363303 | YE11: 2.589363303 | YF11: 2.589363303 | YG11: 2.589363303 | YH11: 2.589363303 | YI11: 2.589363303 | YJ11: 2.589363303 | YK11: 2.589363303 | YL11: 2.589363303 | YM11: 2.589363303 | YN11: 2.589363303 | YO11: 2.589363303 | YP11: 2.589363303 | YQ11: 2.589363303 | YR11: 2.589363303 | YS11: 2.589363303 | YT11: 2.589363303 | YU11: 2.589363303 | YV11: 2.589363303 | YW11: 2.589363303 | YX11: 2.589363303 | YY11: 2.589363303 | YZ11: 2.589363303 | ZA11: 2.589363303 | ZB11: 2.589363303 | ZC11: 2.589363303 | ZD11: 2.589363303 | ZE11: 2.589363303 | ZF11: 2.589363303 | ZG11: 2.589363303 | ZH11: 2.589363303 | ZI11: 2.589363303 | ZJ11: 2.589363303 | ZK11: 2.589363303 | ZL11: 2.589363303 | ZM11: 2.589363303 | ZN11: 2.589363303 | ZO11: 2.589363303 | ZP11: 2.589363303 | ZQ11: 2.589363303 | ZR11: 2.589363303 | ZS11: 2.589363303 | ZT11: 2.589363303 | ZU11: 2.589363303 | ZV11: 2.589363303 | ZW11: 2.589363303 | ZX11: 2.589363303 | ZY11: 2.589363303 | ZZ11: 2.589363303 | AAA11: 2.589363303 | AAB11: 2.589363303 | AAC11: 2.589363303 | AAD11: 2.589363303 | AAE11: 2.589363303 | AAF11: 2.589363303 | AAG11: 2.589363303 | AAH11: 2.589363303 | AAI11: 2.589363303 | AAJ11: 2.589363303 | AAK11: 2.589363303 | AAL11: 2.589363303 | AAM11: 2.589363303 | AAN11: =$B$6/50 -> 2.589363303 | AAO11: 2.589363303 | AAP11: 2.589363303 | AAQ11: 2.589363303 | AAR11: 2.589363303 | AAS11: 2.589363303 | AAT11: 2.589363303 | AAU11: 2.589363303 | AAV11: 2.589363303 | AAW11: 2.589363303 | AAX11: 2.589363303 | AAY11: 2.589363303 | AAZ11: 2.589363303 | ABA11: 2.589363303 | ABB11: 2.589363303 | ABC11: 2.589363303 | ABD11: 2.589363303 | ABE11: 2.589363303 | ABF11: 2.589363303 | ABG11: 2.589363303 | ABH11: 2.589363303 | ABI11: 2.589363303 | ABJ11: 2.589363303 | ABK11: 2.589363303 | ABL11: 2.589363303 | ABM11: 2.589363303 | ABN11: 2.589363303 | ABO11: 2.589363303 | ABP11: 2.589363303 | ABQ11: 2.589363303 | ABR11: 2.589363303 | ABS11: 2.589363303 | ABT11: 2.589363303 | ABU11: 2.589363303 | ABV11: 2.589363303 | ABW11: 2.589363303 | ABX11: 2.589363303 | ABY11: 2.589363303 | ABZ11: 2.589363303 | ACA11: 2.589363303 | ACB11: 2.589363303 | ACC11: 2.589363303 | ACD11: 2.589363303 | ACE11: 2.589363303 | ACF11: 2.589363303 | ACG11: 2.589363303 | ACH11: 2.589363303 | ACI11: 2.589363303 | ACJ11: 2.589363303 | ACK11: 2.589363303 | ACL11: 2.589363303 | ACM11: 2.589363303 | ACN11: 2.589363303 | ACO11: 2.589363303 | ACP11: 2.589363303 | ACQ11: 2.589363303 | ACR11: 2.589363303 | ACS11: 2.589363303 | ACT11: 2.589363303 | ACU11: 2.589363303 | ACV11: 2.589363303 | ACW11: 2.589363303 | ACX11: 2.589363303 | ACY11: 2.589363303 | ACZ11: =$B$6/50 -> 2.589363303 | ADA11: 2.589363303 | ADB11: 2.589363303 | ADC11: 2.589363303 | ADD11: 2.589363303 | ADE11: 2.589363303 | ADF11: 2.589363303 | ADG11: 2.589363303 | ADH11: 2.589363303 | ADI11: 2.589363303 | ADJ11: 2.589363303 | ADK11: 2.589363303 | ADL11: 2.589363303 | ADM11: 2.589363303 | ADN11: 2.589363303 | ADO11: 2.589363303 | ADP11: 2.589363303 | ADQ11: 2.589363303 | ADR11: 2.589363303 | ADS11: 2.589363303 | ADT11: 2.589363303 | ADU11: 2.589363303 | ADV11: 2.589363303 | ADW11: 2.589363303 | ADX11: 2.589363303 | ADY11: 2.589363303 | ADZ11: 2.589363303 | AEA11: 2.589363303 | AEB11: 2.589363303 | AEC11: 2.589363303 | AED11: 2.589363303
A12: Mass of nitrogen | B12: =B6/K91/1000 -> 18.95652993 | C12: kg
J13: ∆t | K13: 0.06 | L13: 0.06 | M13: 0.06 | N13: 0.06 | O13: 0.06 | P13: 0.06 | Q13: 0.06 | R13: 0.06 | S13: 0.06 | T13: 0.06 | U13: 0.06 | V13: 0.06 | W13: 0.06 | X13: 0.06 | Y13: 0.06 | Z13: 0.06 | AA13: 0.06 | AB13: 0.06 | AC13: 0.06 | AD13: 0.06 | AE13: 0.06 | AF13: 0.06 | AG13: 0.06 | AH13: 0.06 | AI13: 0.06 | AJ13: 0.06 | AK13: 0.06 | AL13: 0.06 | AM13: 0.06 | AN13: 0.06 | AO13: 0.06 | AP13: 0.06 | AQ13: 0.06 | AR13: 0.06 | AS13: 0.06 | AT13: 0.06 | AU13: 0.06 | AV13: 0.06 | AW13: 0.06 | AX13: 0.06 | AY13: 0.06 | AZ13: 0.06 | BA13: 0.06 | BB13: 0.06 | BC13: 0.06 | BD13: 0.06 | BE13: 0.06 | BF13: 0.06 | BG13: 0.06 | BH13: 0.06 | BI13: 0 | BJ13: 0 | BK13: 0 | BL13: 0 | BM13: 0 | BN13: 0 | BO13: 0 | BP13: 0 | BQ13: 0 | BR13: 0 | BS13: 0 | BT13: 0 | BU13: 0 | BV13: 0 | BW13: 0 | BX13: 0 | BY13: 0 | BZ13: 0 | CA13: 0 | CB13: 0 | CC13: 0 | CD13: 0 | CE13: 0 | CF13: 0 | CG13: 0 | CH13: 0 | CI13: 0 | CJ13: 0 | CK13: 0 | CL13: 0 | CM13: 0 | CN13: 0 | CO13: 0 | CP13: 0 | CQ13: 0 | CR13: 0 | CS13: 0 | CT13: 0 | CU13: 0 | CV13: 0 | CW13: 0 | CX13: 0 | CY13: 0 | CZ13: 0 | DA13: 0 | DB13: 0 | DC13: 0 | DD13: 0 | DE13: 0 | DF13: 0 | DG13: 0 | DH13: 0 | DI13: 0 | DJ13: 0 | DK13: 0 | DL13: 0 | DM13: 0 | DN13: 0 | DO13: 0 | DP13: 0 | DQ13: 0 | DR13: 0 | DS13: 0 | DT13: 0 | DU13: 0 | DV13: 0 | DW13: 0 | DX13: 0 | DY13: 0 | DZ13: 0 | EA13: 0 | EB13: 0 | EC13: 0 | ED13: 0 | EE13: 0 | EF13: 0 | EG13: 0 | EH13: 0 | EI13: 0 | EJ13: 0 | EK13: 0 | EL13: 0 | EM13: 0 | EN13: 0 | EO13: 0 | EP13: 0 | EQ13: 0 | ER13: 0 | ES13: 0 | ET13: 0 | EU13: 0 | EV13: 0 | EW13: 0 | EX13: 0 | EY13: 0 | EZ13: 0 | FA13: 0 | FB13: 0 | FC13: 0 | FD13: 0 | FE13: 0 | FF13: 0 | FG13: 0 | FH13: 0 | FI13: 0 | FJ13: 0 | FK13: 0 | FL13: 0 | FM13: 0 | FN13: 0 | FO13: 0 | FP13: 0 | FQ13: 0 | FR13: 0 | FS13: 0 | FT13: 0 | FU13: 0 | FV13: 0 | FW13: 0 | FX13: 0 | FY13: 0 | FZ13: 0 | GA13: 0 | GB13: 0 | GC13: 0 | GD13: 0 | GE13: 0 | GF13: 0 | GG13: 0 | GH13: 0 | GI13: 0 | GJ13: 0 | GK13: 0 | GL13: 0 | GM13: 0 | GN13: 0 | GO13: 0 | GP13: 0 | GQ13: 0 | GR13: 0 | GS13: 0 | GT13: 0 | GU13: 0 | GV13: 0 | GW13: 0 | GX13: 0 | GY13: 0 | GZ13: 0 | HA13: 0 | HB13: 0 | HC13: 0 | HD13: 0 | HE13: 0 | HF13: 0 | HG13: 0 | HH13: 0 | HI13: 0 | HJ13: 0 | HK13: 0 | HL13: 0 | HM13: 0 | HN13: 0 | HO13: 0 | HP13: 0 | HQ13: 0 | HR13: 0 | HS13: 0 | HT13: 0 | HU13: 0 | HV13: 0 | HW13: 0 | HX13: 0 | HY13: 0 | HZ13: 0 | IA13: 0 | IB13: 0 | IC13: 0 | ID13: 0 | IE13: 0 | IF13: 0 | IG13: 0 | IH13: 0 | II13: 0 | IJ13: 0 | IK13: 0 | IL13: 0 | IM13: 0 | IN13: 0 | IO13: 0 | IP13: 0 | IQ13: 0 | IR13: 0 | IS13: 0 | IT13: 0 | IU13: 0 | IV13: 0 | IW13: 0 | IX13: 0 | IY13: 0 | IZ13: 0 | JA13: 0 | JB13: 0 | JC13: 0 | JD13: 0 | JE13: 0 | JF13: 0 | JG13: 0 | JH13: 0 | JI13: 0 | JJ13: 0 | JK13: 0 | JL13: 0 | JM13: 0 | JN13: 0 | JO13: 0 | JP13: 0 | JQ13: 0 | JR13: 0 | JS13: 0 | JT13: 0 | JU13: 0 | JV13: 0 | JW13: 0 | JX13: 0 | JY13: 0 | JZ13: 0 | KA13: 0 | KB13: 0 | KC13: 0 | KD13: 0 | KE13: 0 | KF13: 0 | KG13: 0 | KH13: 0 | KI13: 0 | KJ13: 0 | KK13: 0 | KL13: 0 | KM13: 0 | KN13: 0 | KO13: 0 | KP13: 0 | KQ13: 0 | KR13: 0 | KS13: 0 | KT13: 0 | KU13: 0 | KV13: 0 | KW13: 0 | KX13: 0 | KY13: 0 | KZ13: 0 | LA13: 0 | LB13: 0 | LC13: 0 | LD13: 0 | LE13: 0 | LF13: 0 | LG13: 0 | LH13: 0 | LI13: 0 | LJ13: 0 | LK13: 0 | LL13: 0 | LM13: 0 | LN13: 0 | LO13: 0 | LP13: 0 | LQ13: 0 | LR13: 0 | LS13: 0 | LT13: 0 | LU13: 0 | LV13: 0 | LW13: 0 | LX13: 0 | LY13: 0 | LZ13: 0 | MA13: 0 | MB13: 0 | MC13: 0 | MD13: 0 | ME13: 0 | MF13: 0 | MG13: 0 | MH13: 0 | MI13: 0 | MJ13: 0 | MK13: 0 | ML13: 0 | MM13: 0 | MN13: 0 | MO13: 0 | MP13: 0 | MQ13: 0 | MR13: 0 | MS13: 0 | MT13: 0 | MU13: 0 | MV13: 0 | MW13: 0 | MX13: 0 | MY13: 0 | MZ13: 0 | NA13: 0 | NB13: 0 | NC13: 0 | ND13: 0 | NE13: 0 | NF13: 0 | NG13: 0 | NH13: 0 | NI13: 0 | NJ13: 0 | NK13: 0 | NL13: 0 | NM13: 0 | NN13: 0 | NO13: 0 | NP13: 0 | NQ13: 0 | NR13: 0 | NS13: 0 | NT13: 0 | NU13: 0 | NV13: 0 | NW13: 0 | NX13: 0 | NY13: 0 | NZ13: 0 | OA13: 0 | OB13: 0 | OC13: 0 | OD13: 0 | OE13: 0 | OF13: 0 | OG13: 0 | OH13: 0 | OI13: 0 | OJ13: 0 | OK13: 0 | OL13: 0 | OM13: 0 | ON13: 0 | OO13: 0 | OP13: 0 | OQ13: 0 | OR13: 0 | OS13: 0 | OT13: 0 | OU13: 0 | OV13: 0 | OW13: 0 | OX13: 0 | OY13: 0 | OZ13: 0 | PA13: 0 | PB13: 0 | PC13: 0 | PD13: 0 | PE13: 0 | PF13: 0 | PG13: 0 | PH13: 0 | PI13: 0 | PJ13: 0 | PK13: 0 | PL13: 0 | PM13: 0 | PN13: 0 | PO13: 0 | PP13: 0 | PQ13: 0 | PR13: 0 | PS13: 0 | PT13: 0 | PU13: 0 | PV13: 0 | PW13: 0 | PX13: 0 | PY13: 0 | PZ13: 0 | QA13: 0 | QB13: 0 | QC13: 0 | QD13: 0 | QE13: 0 | QF13: 0 | QG13: 0 | QH13: 0 | QI13: 0 | QJ13: 0 | QK13: 0 | QL13: 0 | QM13: 0 | QN13: 0 | QO13: 0 | QP13: 0 | QQ13: 0 | QR13: 0 | QS13: 0 | QT13: 0 | QU13: 0 | QV13: 0 | QW13: 0 | QX13: 0 | QY13: 0 | QZ13: 0 | RA13: 0 | RB13: 0 | RC13: 0 | RD13: 0 | RE13: 0 | RF13: 0 | RG13: 0 | RH13: 0 | RI13: 0 | RJ13: 0 | RK13: 0 | RL13: 0 | RM13: 0 | RN13: 0 | RO13: 0 | RP13: 0 | RQ13: 0 | RR13: 0 | RS13: 0 | RT13: 0 | RU13: 0 | RV13: 0 | RW13: 0 | RX13: 0 | RY13: 0 | RZ13: 0 | SA13: 0 | SB13: 0 | SC13: 0 | SD13: 0 | SE13: 0 | SF13: 0 | SG13: 0 | SH13: 0 | SI13: 0 | SJ13: 0 | SK13: 0 | SL13: 0 | SM13: 0 | SN13: 0 | SO13: 0 | SP13: 0 | SQ13: 0 | SR13: 0 | SS13: 0 | ST13: 0 | SU13: 0 | SV13: 0 | SW13: 0 | SX13: 0 | SY13: 0 | SZ13: 0 | TA13: 0 | TB13: 0 | TC13: 0 | TD13: 0 | TE13: 0 | TF13: 0 | TG13: 0 | TH13: 0 | TI13: 0 | TJ13: 0 | TK13: 0 | TL13: 0 | TM13: 0 | TN13: 0 | TO13: 0 | TP13: 0 | TQ13: 0 | TR13: 0 | TS13: 0 | TT13: 0 | TU13: 0 | TV13: 0 | TW13: 0 | TX13: 0 | TY13: 0 | TZ13: 0 | UA13: 0 | UB13: 0 | UC13: 0 | UD13: 0 | UE13: 0 | UF13: 0 | UG13: 0 | UH13: 0 | UI13: 0 | UJ13: 0 | UK13: 0 | UL13: 0 | UM13: 0 | UN13: 0 | UO13: 0 | UP13: 0 | UQ13: 0 | UR13: 0 | US13: 0 | UT13: 0 | UU13: 0 | UV13: 0 | UW13: 0 | UX13: 0 | UY13: 0 | UZ13: 0 | VA13: 0 | VB13: 0 | VC13: 0 | VD13: 0 | VE13: 0 | VF13: 0 | VG13: 0 | VH13: 0 | VI13: 0 | VJ13: 0 | VK13: 0 | VL13: 0 | VM13: 0 | VN13: 0 | VO13: 0 | VP13: 0 | VQ13: 0 | VR13: 0 | VS13: 0 | VT13: 0 | VU13: 0 | VV13: 0 | VW13: 0 | VX13: 0 | VY13: 0 | VZ13: 0 | WA13: 0 | WB13: 0 | WC13: 0 | WD13: 0 | WE13: 0 | WF13: 0 | WG13: 0 | WH13: 0 | WI13: 0 | WJ13: 0 | WK13: 0 | WL13: 0 | WM13: 0 | WN13: 0 | WO13: 0 | WP13: 0 | WQ13: 0 | WR13: 0 | WS13: 0 | WT13: 0 | WU13: 0 | WV13: 0 | WW13: 0 | WX13: 0 | WY13: 0 | WZ13: 0 | XA13: 0 | XB13: 0 | XC13: 0 | XD13: 0 | XE13: 0 | XF13: 0 | XG13: 0 | XH13: 0 | XI13: 0 | XJ13: 0 | XK13: 0 | XL13: 0 | XM13: 0 | XN13: 0 | XO13: 0 | XP13: 0 | XQ13: 0 | XR13: 0 | XS13: 0 | XT13: 0 | XU13: 0 | XV13: 0 | XW13: 0 | XX13: 0 | XY13: 0 | XZ13: 0 | YA13: 0 | YB13: 0 | YC13: 0 | YD13: 0 | YE13: 0 | YF13: 0 | YG13: 0 | YH13: 0 | YI13: 0 | YJ13: 0 | YK13: 0 | YL13: 0 | YM13: 0 | YN13: 0 | YO13: 0 | YP13: 0 | YQ13: 0 | YR13: 0 | YS13: 0 | YT13: 0 | YU13: 0 | YV13: 0 | YW13: 0 | YX13: 0 | YY13: 0 | YZ13: 0 | ZA13: 0 | ZB13: 0 | ZC13: 0 | ZD13: 0 | ZE13: 0 | ZF13: 0 | ZG13: 0 | ZH13: 0 | ZI13: 0 | ZJ13: 0 | ZK13: 0 | ZL13: 0 | ZM13: 0 | ZN13: 0 | ZO13: 0 | ZP13: 0 | ZQ13: 0 | ZR13: 0 | ZS13: 0 | ZT13: 0 | ZU13: 0 | ZV13: 0 | ZW13: 0 | ZX13: 0 | ZY13: 0 | ZZ13: 0 | AAA13: 0 | AAB13: 0 | AAC13: 0 | AAD13: 0 | AAE13: 0 | AAF13: 0 | AAG13: 0 | AAH13: 0 | AAI13: 0 | AAJ13: 0 | AAK13: 0 | AAL13: 0 | AAM13: 0 | AAN13: 0 | AAO13: 0 | AAP13: 0 | AAQ13: 0 | AAR13: 0 | AAS13: 0 | AAT13: 0 | AAU13: 0 | AAV13: 0 | AAW13: 0 | AAX13: 0 | AAY13: 0 | AAZ13: 0 | ABA13: 0 | ABB13: 0 | ABC13: 0 | ABD13: 0 | ABE13: 0 | ABF13: 0 | ABG13: 0 | ABH13: 0 | ABI13: 0 | ABJ13: 0 | ABK13: 0 | ABL13: 0 | ABM13: 0 | ABN13: 0 | ABO13: 0 | ABP13: 0 | ABQ13: 0 | ABR13: 0 | ABS13: 0 | ABT13: 0 | ABU13: 0 | ABV13: 0 | ABW13: 0 | ABX13: 0 | ABY13: 0 | ABZ13: 0 | ACA13: 0 | ACB13: 0 | ACC13: 0 | ACD13: 0 | ACE13: 0 | ACF13: 0 | ACG13: 0 | ACH13: 0 | ACI13: 0 | ACJ13: 0 | ACK13: 0 | ACL13: 0 | ACM13: 0 | ACN13: 0 | ACO13: 0 | ACP13: 0 | ACQ13: 0 | ACR13: 0 | ACS13: 0 | ACT13: 0 | ACU13: 0 | ACV13: 0 | ACW13: 0 | ACX13: 0 | ACY13: 0 | ACZ13: 0 | ADA13: 0 | ADB13: 0 | ADC13: 0 | ADD13: 0 | ADE13: 0 | ADF13: 0 | ADG13: 0 | ADH13: 0 | ADI13: 0 | ADJ13: 0 | ADK13: 0 | ADL13: 0 | ADM13: 0 | ADN13: 0 | ADO13: 0 | ADP13: 0 | ADQ13: 0 | ADR13: 0 | ADS13: 0 | ADT13: 0 | ADU13: 0 | ADV13: 0 | ADW13: 0 | ADX13: 0 | ADY13: 0 | ADZ13: 0 | AEA13: 0 | AEB13: 0 | AEC13: 0 | AED13: 0
A14: Start pressure | B14: 210 | C14: bar | D14: End pressure | E14: ='Cycle calculation'!AED7 -> 188.0858535 | F14: bar | J14: ∆V | K14: 0.0001 | L14: 0.0001 | M14: 0.0001 | N14: 0.0001 | O14: 0.0001 | P14: 0.0001 | Q14: 0.0001 | R14: 0.0001 | S14: 0.0001 | T14: 0.0001 | U14: 0.0001 | V14: 0.0001 | W14: 0.0001 | X14: 0.0001 | Y14: 0.0001 | Z14: 0.0001 | AA14: 0.0001 | AB14: 0.0001 | AC14: 0.0001 | AD14: 0.0001 | AE14: 0.0001 | AF14: 0.0001 | AG14: 0.0001 | AH14: 0.0001 | AI14: 0.0001 | AJ14: 0.0001 | AK14: 0.0001 | AL14: 0.0001 | AM14: 0.0001 | AN14: 0.0001 | AO14: 0.0001 | AP14: 0.0001 | AQ14: 0.0001 | AR14: 0.0001 | AS14: 0.0001 | AT14: 0.0001 | AU14: 0.0001 | AV14: 0.0001 | AW14: 0.0001 | AX14: 0.0001 | AY14: 0.0001 | AZ14: 0.0001 | BA14: 0.0001 | BB14: 0.0001 | BC14: 0.0001 | BD14: 0.0001 | BE14: 0.0001 | BF14: 0.0001 | BG14: 0.0001 | BH14: 0.0001 | BI14: 0 | BJ14: 0 | BK14: 0 | BL14: 0 | BM14: 0 | BN14: 0 | BO14: 0 | BP14: 0 | BQ14: 0 | BR14: 0 | BS14: 0 | BT14: 0 | BU14: 0 | BV14: 0 | BW14: 0 | BX14: 0 | BY14: 0 | BZ14: 0 | CA14: 0 | CB14: 0 | CC14: 0 | CD14: 0 | CE14: 0 | CF14: 0 | CG14: 0 | CH14: 0 | CI14: 0 | CJ14: 0 | CK14: 0 | CL14: 0 | CM14: 0 | CN14: 0 | CO14: 0 | CP14: 0 | CQ14: 0 | CR14: 0 | CS14: 0 | CT14: 0 | CU14: 0 | CV14: 0 | CW14: 0 | CX14: 0 | CY14: 0 | CZ14: 0 | DA14: 0 | DB14: 0 | DC14: 0 | DD14: 0 | DE14: 0 | DF14: 0 | DG14: 0 | DH14: 0 | DI14: 0 | DJ14: 0 | DK14: 0 | DL14: 0 | DM14: 0 | DN14: 0 | DO14: 0 | DP14: 0 | DQ14: 0 | DR14: 0 | DS14: 0 | DT14: 0 | DU14: 0 | DV14: 0 | DW14: 0 | DX14: 0 | DY14: 0 | DZ14: 0 | EA14: 0 | EB14: 0 | EC14: 0 | ED14: 0 | EE14: 0 | EF14: 0 | EG14: 0 | EH14: 0 | EI14: 0 | EJ14: 0 | EK14: 0 | EL14: 0 | EM14: 0 | EN14: 0 | EO14: 0 | EP14: 0 | EQ14: 0 | ER14: 0 | ES14: 0 | ET14: 0 | EU14: 0 | EV14: 0 | EW14: 0 | EX14: 0 | EY14: 0 | EZ14: 0 | FA14: 0 | FB14: 0 | FC14: 0 | FD14: 0 | FE14: 0 | FF14: 0 | FG14: 0 | FH14: 0 | FI14: 0 | FJ14: 0 | FK14: 0 | FL14: 0 | FM14: 0 | FN14: 0 | FO14: 0 | FP14: 0 | FQ14: 0 | FR14: 0 | FS14: 0 | FT14: 0 | FU14: 0 | FV14: 0 | FW14: 0 | FX14: 0 | FY14: 0 | FZ14: 0 | GA14: 0 | GB14: 0 | GC14: 0 | GD14: 0 | GE14: 0 | GF14: 0 | GG14: 0 | GH14: 0 | GI14: 0 | GJ14: 0 | GK14: 0 | GL14: 0 | GM14: 0 | GN14: 0 | GO14: 0 | GP14: 0 | GQ14: 0 | GR14: 0 | GS14: 0 | GT14: 0 | GU14: 0 | GV14: 0 | GW14: 0 | GX14: 0 | GY14: 0 | GZ14: 0 | HA14: 0 | HB14: 0 | HC14: 0 | HD14: 0 | HE14: 0 | HF14: 0 | HG14: 0 | HH14: 0 | HI14: 0 | HJ14: 0 | HK14: 0 | HL14: 0 | HM14: 0 | HN14: 0 | HO14: 0 | HP14: 0 | HQ14: 0 | HR14: 0 | HS14: 0 | HT14: 0 | HU14: 0 | HV14: 0 | HW14: 0 | HX14: 0 | HY14: 0 | HZ14: 0 | IA14: 0 | IB14: 0 | IC14: 0 | ID14: 0 | IE14: 0 | IF14: 0 | IG14: 0 | IH14: 0 | II14: 0 | IJ14: 0 | IK14: 0 | IL14: 0 | IM14: 0 | IN14: 0 | IO14: 0 | IP14: 0 | IQ14: 0 | IR14: 0 | IS14: 0 | IT14: 0 | IU14: 0 | IV14: 0 | IW14: 0 | IX14: 0 | IY14: 0 | IZ14: 0 | JA14: 0 | JB14: 0 | JC14: 0 | JD14: 0 | JE14: 0 | JF14: 0 | JG14: 0 | JH14: 0 | JI14: 0 | JJ14: 0 | JK14: 0 | JL14: 0 | JM14: 0 | JN14: 0 | JO14: 0 | JP14: 0 | JQ14: 0 | JR14: 0 | JS14: 0 | JT14: 0 | JU14: 0 | JV14: 0 | JW14: 0 | JX14: 0 | JY14: 0 | JZ14: 0 | KA14: 0 | KB14: 0 | KC14: 0 | KD14: 0 | KE14: 0 | KF14: 0 | KG14: 0 | KH14: 0 | KI14: 0 | KJ14: 0 | KK14: 0 | KL14: 0 | KM14: 0 | KN14: 0 | KO14: 0 | KP14: 0 | KQ14: 0 | KR14: 0 | KS14: 0 | KT14: 0 | KU14: 0 | KV14: 0 | KW14: 0 | KX14: 0 | KY14: 0 | KZ14: 0 | LA14: 0 | LB14: 0 | LC14: 0 | LD14: 0 | LE14: 0 | LF14: 0 | LG14: 0 | LH14: 0 | LI14: 0 | LJ14: 0 | LK14: 0 | LL14: 0 | LM14: 0 | LN14: 0 | LO14: 0 | LP14: 0 | LQ14: 0 | LR14: 0 | LS14: 0 | LT14: 0 | LU14: 0 | LV14: 0 | LW14: 0 | LX14: 0 | LY14: 0 | LZ14: 0 | MA14: 0 | MB14: 0 | MC14: 0 | MD14: 0 | ME14: 0 | MF14: 0 | MG14: 0 | MH14: 0 | MI14: 0 | MJ14: 0 | MK14: 0 | ML14: 0 | MM14: 0 | MN14: 0 | MO14: 0 | MP14: 0 | MQ14: 0 | MR14: 0 | MS14: 0 | MT14: 0 | MU14: 0 | MV14: 0 | MW14: 0 | MX14: 0 | MY14: 0 | MZ14: 0 | NA14: 0 | NB14: 0 | NC14: 0 | ND14: 0 | NE14: 0 | NF14: 0 | NG14: 0 | NH14: 0 | NI14: 0 | NJ14: 0 | NK14: 0 | NL14: 0 | NM14: 0 | NN14: 0 | NO14: 0 | NP14: 0 | NQ14: 0 | NR14: 0 | NS14: 0 | NT14: 0 | NU14: 0 | NV14: 0 | NW14: 0 | NX14: 0 | NY14: 0 | NZ14: 0 | OA14: 0 | OB14: 0 | OC14: 0 | OD14: 0 | OE14: 0 | OF14: 0 | OG14: 0 | OH14: 0 | OI14: 0 | OJ14: 0 | OK14: 0 | OL14: 0 | OM14: 0 | ON14: 0 | OO14: 0 | OP14: 0 | OQ14: 0 | OR14: 0 | OS14: 0 | OT14: 0 | OU14: 0 | OV14: 0 | OW14: 0 | OX14: 0 | OY14: 0 | OZ14: 0 | PA14: 0 | PB14: 0 | PC14: 0 | PD14: 0 | PE14: 0 | PF14: 0 | PG14: 0 | PH14: 0 | PI14: 0 | PJ14: 0 | PK14: 0 | PL14: 0 | PM14: 0 | PN14: 0 | PO14: 0 | PP14: 0 | PQ14: 0 | PR14: 0 | PS14: 0 | PT14: 0 | PU14: 0 | PV14: 0 | PW14: 0 | PX14: 0 | PY14: 0 | PZ14: 0 | QA14: 0 | QB14: 0 | QC14: 0 | QD14: 0 | QE14: 0 | QF14: 0 | QG14: 0 | QH14: 0 | QI14: 0 | QJ14: 0 | QK14: 0 | QL14: 0 | QM14: 0 | QN14: 0 | QO14: 0 | QP14: 0 | QQ14: 0 | QR14: 0 | QS14: 0 | QT14: 0 | QU14: 0 | QV14: 0 | QW14: 0 | QX14: 0 | QY14: 0 | QZ14: 0 | RA14: 0 | RB14: 0 | RC14: 0 | RD14: 0 | RE14: 0 | RF14: 0 | RG14: 0 | RH14: 0 | RI14: 0 | RJ14: 0 | RK14: 0 | RL14: 0 | RM14: 0 | RN14: 0 | RO14: 0 | RP14: 0 | RQ14: 0 | RR14: 0 | RS14: 0 | RT14: 0 | RU14: 0 | RV14: 0 | RW14: 0 | RX14: 0 | RY14: 0 | RZ14: 0 | SA14: 0 | SB14: 0 | SC14: 0 | SD14: 0 | SE14: 0 | SF14: 0 | SG14: 0 | SH14: 0 | SI14: 0 | SJ14: 0 | SK14: 0 | SL14: 0 | SM14: 0 | SN14: 0 | SO14: 0 | SP14: 0 | SQ14: 0 | SR14: 0 | SS14: 0 | ST14: 0 | SU14: 0 | SV14: 0 | SW14: 0 | SX14: 0 | SY14: 0 | SZ14: 0 | TA14: 0 | TB14: 0 | TC14: 0 | TD14: 0 | TE14: 0 | TF14: 0 | TG14: 0 | TH14: 0 | TI14: 0 | TJ14: 0 | TK14: 0 | TL14: 0 | TM14: 0 | TN14: 0 | TO14: 0 | TP14: 0 | TQ14: 0 | TR14: 0 | TS14: 0 | TT14: 0 | TU14: 0 | TV14: 0 | TW14: 0 | TX14: 0 | TY14: 0 | TZ14: 0 | UA14: 0 | UB14: 0 | UC14: 0 | UD14: 0 | UE14: 0 | UF14: 0 | UG14: 0 | UH14: 0 | UI14: 0 | UJ14: 0 | UK14: 0 | UL14: 0 | UM14: 0 | UN14: 0 | UO14: 0 | UP14: 0 | UQ14: 0 | UR14: 0 | US14: 0 | UT14: 0 | UU14: 0 | UV14: 0 | UW14: 0 | UX14: 0 | UY14: 0 | UZ14: 0 | VA14: 0 | VB14: 0 | VC14: 0 | VD14: 0 | VE14: 0 | VF14: 0 | VG14: 0 | VH14: 0 | VI14: 0 | VJ14: 0 | VK14: 0 | VL14: 0 | VM14: 0 | VN14: 0 | VO14: 0 | VP14: 0 | VQ14: 0 | VR14: 0 | VS14: 0 | VT14: 0 | VU14: 0 | VV14: 0 | VW14: 0 | VX14: 0 | VY14: 0 | VZ14: 0 | WA14: 0 | WB14: 0 | WC14: 0 | WD14: 0 | WE14: 0 | WF14: 0 | WG14: 0 | WH14: 0 | WI14: 0 | WJ14: 0 | WK14: 0 | WL14: 0 | WM14: 0 | WN14: 0 | WO14: 0 | WP14: 0 | WQ14: 0 | WR14: 0 | WS14: 0 | WT14: 0 | WU14: 0 | WV14: 0 | WW14: 0 | WX14: 0 | WY14: 0 | WZ14: 0 | XA14: 0 | XB14: 0 | XC14: 0 | XD14: 0 | XE14: 0 | XF14: 0 | XG14: 0 | XH14: 0 | XI14: 0 | XJ14: 0 | XK14: 0 | XL14: 0 | XM14: 0 | XN14: 0 | XO14: 0 | XP14: 0 | XQ14: 0 | XR14: 0 | XS14: 0 | XT14: 0 | XU14: 0 | XV14: 0 | XW14: 0 | XX14: 0 | XY14: 0 | XZ14: 0 | YA14: 0 | YB14: 0 | YC14: 0 | YD14: 0 | YE14: 0 | YF14: 0 | YG14: 0 | YH14: 0 | YI14: 0 | YJ14: 0 | YK14: 0 | YL14: 0 | YM14: 0 | YN14: 0 | YO14: 0 | YP14: 0 | YQ14: 0 | YR14: 0 | YS14: 0 | YT14: 0 | YU14: 0 | YV14: 0 | YW14: 0 | YX14: 0 | YY14: 0 | YZ14: 0 | ZA14: 0 | ZB14: 0 | ZC14: 0 | ZD14: 0 | ZE14: 0 | ZF14: 0 | ZG14: 0 | ZH14: 0 | ZI14: 0 | ZJ14: 0 | ZK14: 0 | ZL14: 0 | ZM14: 0 | ZN14: 0 | ZO14: 0 | ZP14: 0 | ZQ14: 0 | ZR14: 0 | ZS14: 0 | ZT14: 0 | ZU14: 0 | ZV14: 0 | ZW14: 0 | ZX14: 0 | ZY14: 0 | ZZ14: 0 | AAA14: 0 | AAB14: 0 | AAC14: 0 | AAD14: 0 | AAE14: 0 | AAF14: 0 | AAG14: 0 | AAH14: 0 | AAI14: 0 | AAJ14: 0 | AAK14: 0 | AAL14: 0 | AAM14: 0 | AAN14: 0 | AAO14: 0 | AAP14: 0 | AAQ14: 0 | AAR14: 0 | AAS14: 0 | AAT14: 0 | AAU14: 0 | AAV14: 0 | AAW14: 0 | AAX14: 0 | AAY14: 0 | AAZ14: 0 | ABA14: 0 | ABB14: 0 | ABC14: 0 | ABD14: 0 | ABE14: 0 | ABF14: 0 | ABG14: 0 | ABH14: 0 | ABI14: 0 | ABJ14: 0 | ABK14: 0 | ABL14: 0 | ABM14: 0 | ABN14: 0 | ABO14: 0 | ABP14: 0 | ABQ14: 0 | ABR14: 0 | ABS14: 0 | ABT14: 0 | ABU14: 0 | ABV14: 0 | ABW14: 0 | ABX14: 0 | ABY14: 0 | ABZ14: 0 | ACA14: 0 | ACB14: 0 | ACC14: 0 | ACD14: 0 | ACE14: 0 | ACF14: 0 | ACG14: 0 | ACH14: 0 | ACI14: 0 | ACJ14: 0 | ACK14: 0 | ACL14: 0 | ACM14: 0 | ACN14: 0 | ACO14: 0 | ACP14: 0 | ACQ14: 0 | ACR14: 0 | ACS14: 0 | ACT14: 0 | ACU14: 0 | ACV14: 0 | ACW14: 0 | ACX14: 0 | ACY14: 0 | ACZ14: 0 | ADA14: 0 | ADB14: 0 | ADC14: 0 | ADD14: 0 | ADE14: 0 | ADF14: 0 | ADG14: 0 | ADH14: 0 | ADI14: 0 | ADJ14: 0 | ADK14: 0 | ADL14: 0 | ADM14: 0 | ADN14: 0 | ADO14: 0 | ADP14: 0 | ADQ14: 0 | ADR14: 0 | ADS14: 0 | ADT14: 0 | ADU14: 0 | ADV14: 0 | ADW14: 0 | ADX14: 0 | ADY14: 0 | ADZ14: 0 | AEA14: 0 | AEB14: 0 | AEC14: 0 | AED14: 0
J15: Völ | K15: =$B$6-K27*1000 -> 44.6784411 | L15: =K15-K14*1000 -> 44.5784411 | M15: =L15-L14*1000 -> 44.4784411 | N15: 44.3784411 | O15: 44.2784411 | P15: 44.1784411 | Q15: 44.0784411 | R15: 43.9784411 | S15: 43.8784411 | T15: 43.7784411 | U15: 43.6784411 | V15: 43.5784411 | W15: 43.4784411 | X15: 43.3784411 | Y15: 43.2784411 | Z15: 43.1784411 | AA15: 43.0784411 | AB15: 42.9784411 | AC15: 42.8784411 | AD15: 42.7784411 | AE15: 42.6784411 | AF15: 42.5784411 | AG15: 42.4784411 | AH15: 42.3784411 | AI15: 42.2784411 | AJ15: 42.1784411 | AK15: 42.0784411 | AL15: 41.9784411 | AM15: 41.8784411 | AN15: 41.7784411 | AO15: 41.6784411 | AP15: 41.5784411 | AQ15: 41.4784411 | AR15: 41.3784411 | AS15: 41.2784411 | AT15: 41.1784411 | AU15: 41.0784411 | AV15: 40.9784411 | AW15: 40.8784411 | AX15: 40.7784411 | AY15: 40.6784411 | AZ15: 40.5784411 | BA15: 40.4784411 | BB15: 40.3784411 | BC15: 40.2784411 | BD15: 40.1784411 | BE15: 40.0784411 | BF15: 39.9784411 | BG15: 39.8784411 | BH15: 39.7784411 | BI15: 39.6784411 | BJ15: 39.6784411 | BK15: 39.6784411 | BL15: 39.6784411 | BM15: 39.6784411 | BN15: 39.6784411 | BO15: 39.6784411 | BP15: 39.6784411 | BQ15: 39.6784411 | BR15: 39.6784411 | BS15: 39.6784411 | BT15: 39.6784411 | BU15: 39.6784411 | BV15: 39.6784411 | BW15: 39.6784411 | BX15: 39.6784411 | BY15: =BX15-BX14*1000 -> 39.6784411 | BZ15: 39.6784411 | CA15: 39.6784411 | CB15: 39.6784411 | CC15: 39.6784411 | CD15: 39.6784411 | CE15: 39.6784411 | CF15: 39.6784411 | CG15: 39.6784411 | CH15: 39.6784411 | CI15: 39.6784411 | CJ15: 39.6784411 | CK15: 39.6784411 | CL15: 39.6784411 | CM15: 39.6784411 | CN15: 39.6784411 | CO15: 39.6784411 | CP15: 39.6784411 | CQ15: 39.6784411 | CR15: 39.6784411 | CS15: 39.6784411 | CT15: 39.6784411 | CU15: 39.6784411 | CV15: 39.6784411 | CW15: 39.6784411 | CX15: 39.6784411 | CY15: 39.6784411 | CZ15: 39.6784411 | DA15: 39.6784411 | DB15: 39.6784411 | DC15: 39.6784411 | DD15: 39.6784411 | DE15: 39.6784411 | DF15: 39.6784411 | DG15: 39.6784411 | DH15: 39.6784411 | DI15: 39.6784411 | DJ15: 39.6784411 | DK15: 39.6784411 | DL15: 39.6784411 | DM15: 39.6784411 | DN15: 39.6784411 | DO15: 39.6784411 | DP15: 39.6784411 | DQ15: 39.6784411 | DR15: 39.6784411 | DS15: 39.6784411 | DT15: 39.6784411 | DU15: 39.6784411 | DV15: 39.6784411 | DW15: 39.6784411 | DX15: 39.6784411 | DY15: 39.6784411 | DZ15: 39.6784411 | EA15: 39.6784411 | EB15: 39.6784411 | EC15: 39.6784411 | ED15: 39.6784411 | EE15: 39.6784411 | EF15: 39.6784411 | EG15: 39.6784411 | EH15: 39.6784411 | EI15: 39.6784411 | EJ15: 39.6784411 | EK15: =EJ15-EJ14*1000 -> 39.6784411 | EL15: 39.6784411 | EM15: 39.6784411 | EN15: 39.6784411 | EO15: 39.6784411 | EP15: 39.6784411 | EQ15: 39.6784411 | ER15: 39.6784411 | ES15: 39.6784411 | ET15: 39.6784411 | EU15: 39.6784411 | EV15: 39.6784411 | EW15: 39.6784411 | EX15: 39.6784411 | EY15: 39.6784411 | EZ15: 39.6784411 | FA15: 39.6784411 | FB15: 39.6784411 | FC15: 39.6784411 | FD15: 39.6784411 | FE15: 39.6784411 | FF15: 39.6784411 | FG15: 39.6784411 | FH15: 39.6784411 | FI15: 39.6784411 | FJ15: 39.6784411 | FK15: 39.6784411 | FL15: 39.6784411 | FM15: 39.6784411 | FN15: 39.6784411 | FO15: 39.6784411 | FP15: 39.6784411 | FQ15: 39.6784411 | FR15: 39.6784411 | FS15: 39.6784411 | FT15: 39.6784411 | FU15: 39.6784411 | FV15: 39.6784411 | FW15: 39.6784411 | FX15: 39.6784411 | FY15: 39.6784411 | FZ15: 39.6784411 | GA15: 39.6784411 | GB15: 39.6784411 | GC15: 39.6784411 | GD15: 39.6784411 | GE15: 39.6784411 | GF15: 39.6784411 | GG15: 39.6784411 | GH15: 39.6784411 | GI15: 39.6784411 | GJ15: 39.6784411 | GK15: 39.6784411 | GL15: 39.6784411 | GM15: 39.6784411 | GN15: 39.6784411 | GO15: 39.6784411 | GP15: 39.6784411 | GQ15: 39.6784411 | GR15: 39.6784411 | GS15: 39.6784411 | GT15: 39.6784411 | GU15: 39.6784411 | GV15: 39.6784411 | GW15: =GV15-GV14*1000 -> 39.6784411 | GX15: 39.6784411 | GY15: 39.6784411 | GZ15: 39.6784411 | HA15: 39.6784411 | HB15: 39.6784411 | HC15: 39.6784411 | HD15: 39.6784411 | HE15: 39.6784411 | HF15: 39.6784411 | HG15: 39.6784411 | HH15: 39.6784411 | HI15: 39.6784411 | HJ15: 39.6784411 | HK15: 39.6784411 | HL15: 39.6784411 | HM15: 39.6784411 | HN15: 39.6784411 | HO15: 39.6784411 | HP15: 39.6784411 | HQ15: 39.6784411 | HR15: 39.6784411 | HS15: 39.6784411 | HT15: 39.6784411 | HU15: 39.6784411 | HV15: 39.6784411 | HW15: 39.6784411 | HX15: 39.6784411 | HY15: 39.6784411 | HZ15: 39.6784411 | IA15: 39.6784411 | IB15: 39.6784411 | IC15: 39.6784411 | ID15: 39.6784411 | IE15: 39.6784411 | IF15: 39.6784411 | IG15: 39.6784411 | IH15: 39.6784411 | II15: 39.6784411 | IJ15: 39.6784411 | IK15: 39.6784411 | IL15: 39.6784411 | IM15: 39.6784411 | IN15: 39.6784411 | IO15: 39.6784411 | IP15: 39.6784411 | IQ15: 39.6784411 | IR15: 39.6784411 | IS15: 39.6784411 | IT15: 39.6784411 | IU15: 39.6784411 | IV15: 39.6784411 | IW15: 39.6784411 | IX15: 39.6784411 | IY15: 39.6784411 | IZ15: 39.6784411 | JA15: 39.6784411 | JB15: 39.6784411 | JC15: 39.6784411 | JD15: 39.6784411 | JE15: 39.6784411 | JF15: 39.6784411 | JG15: 39.6784411 | JH15: 39.6784411 | JI15: =JH15-JH14*1000 -> 39.6784411 | JJ15: 39.6784411 | JK15: 39.6784411 | JL15: 39.6784411 | JM15: 39.6784411 | JN15: 39.6784411 | JO15: 39.6784411 | JP15: 39.6784411 | JQ15: 39.6784411 | JR15: 39.6784411 | JS15: 39.6784411 | JT15: 39.6784411 | JU15: 39.6784411 | JV15: 39.6784411 | JW15: 39.6784411 | JX15: 39.6784411 | JY15: 39.6784411 | JZ15: 39.6784411 | KA15: 39.6784411 | KB15: 39.6784411 | KC15: 39.6784411 | KD15: 39.6784411 | KE15: 39.6784411 | KF15: 39.6784411 | KG15: 39.6784411 | KH15: 39.6784411 | KI15: 39.6784411 | KJ15: 39.6784411 | KK15: 39.6784411 | KL15: 39.6784411 | KM15: 39.6784411 | KN15: 39.6784411 | KO15: 39.6784411 | KP15: 39.6784411 | KQ15: 39.6784411 | KR15: 39.6784411 | KS15: 39.6784411 | KT15: 39.6784411 | KU15: 39.6784411 | KV15: 39.6784411 | KW15: 39.6784411 | KX15: 39.6784411 | KY15: =KX15-KX14*1000 -> 39.6784411 | KZ15: 39.6784411 | LA15: 39.6784411 | LB15: 39.6784411 | LC15: 39.6784411 | LD15: 39.6784411 | LE15: 39.6784411 | LF15: 39.6784411 | LG15: 39.6784411 | LH15: 39.6784411 | LI15: 39.6784411 | LJ15: 39.6784411 | LK15: 39.6784411 | LL15: 39.6784411 | LM15: 39.6784411 | LN15: 39.6784411 | LO15: 39.6784411 | LP15: 39.6784411 | LQ15: 39.6784411 | LR15: 39.6784411 | LS15: 39.6784411 | LT15: 39.6784411 | LU15: 39.6784411 | LV15: 39.6784411 | LW15: 39.6784411 | LX15: 39.6784411 | LY15: 39.6784411 | LZ15: 39.6784411 | MA15: 39.6784411 | MB15: 39.6784411 | MC15: 39.6784411 | MD15: 39.6784411 | ME15: 39.6784411 | MF15: 39.6784411 | MG15: 39.6784411 | MH15: 39.6784411 | MI15: 39.6784411 | MJ15: 39.6784411 | MK15: 39.6784411 | ML15: 39.6784411 | MM15: 39.6784411 | MN15: 39.6784411 | MO15: 39.6784411 | MP15: 39.6784411 | MQ15: 39.6784411 | MR15: 39.6784411 | MS15: 39.6784411 | MT15: 39.6784411 | MU15: 39.6784411 | MV15: 39.6784411 | MW15: 39.6784411 | MX15: 39.6784411 | MY15: 39.6784411 | MZ15: 39.6784411 | NA15: 39.6784411 | NB15: 39.6784411 | NC15: 39.6784411 | ND15: 39.6784411 | NE15: 39.6784411 | NF15: 39.6784411 | NG15: 39.6784411 | NH15: 39.6784411 | NI15: 39.6784411 | NJ15: 39.6784411 | NK15: =NJ15-NJ14*1000 -> 39.6784411 | NL15: 39.6784411 | NM15: 39.6784411 | NN15: 39.6784411 | NO15: 39.6784411 | NP15: 39.6784411 | NQ15: 39.6784411 | NR15: 39.6784411 | NS15: 39.6784411 | NT15: 39.6784411 | NU15: 39.6784411 | NV15: 39.6784411 | NW15: 39.6784411 | NX15: 39.6784411 | NY15: 39.6784411 | NZ15: 39.6784411 | OA15: 39.6784411 | OB15: 39.6784411 | OC15: 39.6784411 | OD15: 39.6784411 | OE15: 39.6784411 | OF15: 39.6784411 | OG15: 39.6784411 | OH15: 39.6784411 | OI15: 39.6784411 | OJ15: 39.6784411 | OK15: 39.6784411 | OL15: 39.6784411 | OM15: 39.6784411 | ON15: 39.6784411 | OO15: 39.6784411 | OP15: 39.6784411 | OQ15: 39.6784411 | OR15: 39.6784411 | OS15: 39.6784411 | OT15: 39.6784411 | OU15: 39.6784411 | OV15: 39.6784411 | OW15: 39.6784411 | OX15: 39.6784411 | OY15: 39.6784411 | OZ15: 39.6784411 | PA15: 39.6784411 | PB15: 39.6784411 | PC15: 39.6784411 | PD15: 39.6784411 | PE15: 39.6784411 | PF15: 39.6784411 | PG15: 39.6784411 | PH15: 39.6784411 | PI15: 39.6784411 | PJ15: 39.6784411 | PK15: 39.6784411 | PL15: 39.6784411 | PM15: 39.6784411 | PN15: 39.6784411 | PO15: 39.6784411 | PP15: 39.6784411 | PQ15: 39.6784411 | PR15: 39.6784411 | PS15: 39.6784411 | PT15: 39.6784411 | PU15: 39.6784411 | PV15: 39.6784411 | PW15: =PV15-PV14*1000 -> 39.6784411 | PX15: 39.6784411 | PY15: 39.6784411 | PZ15: 39.6784411 | QA15: 39.6784411 | QB15: 39.6784411 | QC15: 39.6784411 | QD15: 39.6784411 | QE15: 39.6784411 | QF15: 39.6784411 | QG15: 39.6784411 | QH15: 39.6784411 | QI15: 39.6784411 | QJ15: 39.6784411 | QK15: 39.6784411 | QL15: 39.6784411 | QM15: 39.6784411 | QN15: 39.6784411 | QO15: 39.6784411 | QP15: 39.6784411 | QQ15: 39.6784411 | QR15: 39.6784411 | QS15: 39.6784411 | QT15: 39.6784411 | QU15: 39.6784411 | QV15: 39.6784411 | QW15: 39.6784411 | QX15: 39.6784411 | QY15: 39.6784411 | QZ15: 39.6784411 | RA15: 39.6784411 | RB15: 39.6784411 | RC15: 39.6784411 | RD15: 39.6784411 | RE15: 39.6784411 | RF15: 39.6784411 | RG15: 39.6784411 | RH15: 39.6784411 | RI15: 39.6784411 | RJ15: 39.6784411 | RK15: 39.6784411 | RL15: 39.6784411 | RM15: 39.6784411 | RN15: 39.6784411 | RO15: 39.6784411 | RP15: 39.6784411 | RQ15: 39.6784411 | RR15: 39.6784411 | RS15: 39.6784411 | RT15: 39.6784411 | RU15: 39.6784411 | RV15: 39.6784411 | RW15: 39.6784411 | RX15: 39.6784411 | RY15: 39.6784411 | RZ15: 39.6784411 | SA15: 39.6784411 | SB15: 39.6784411 | SC15: 39.6784411 | SD15: 39.6784411 | SE15: 39.6784411 | SF15: 39.6784411 | SG15: 39.6784411 | SH15: 39.6784411 | SI15: =SH15-SH14*1000 -> 39.6784411 | SJ15: 39.6784411 | SK15: 39.6784411 | SL15: 39.6784411 | SM15: 39.6784411 | SN15: 39.6784411 | SO15: 39.6784411 | SP15: 39.6784411 | SQ15: 39.6784411 | SR15: 39.6784411 | SS15: 39.6784411 | ST15: 39.6784411 | SU15: 39.6784411 | SV15: 39.6784411 | SW15: 39.6784411 | SX15: 39.6784411 | SY15: 39.6784411 | SZ15: 39.6784411 | TA15: 39.6784411 | TB15: 39.6784411 | TC15: 39.6784411 | TD15: 39.6784411 | TE15: 39.6784411 | TF15: 39.6784411 | TG15: 39.6784411 | TH15: 39.6784411 | TI15: 39.6784411 | TJ15: 39.6784411 | TK15: 39.6784411 | TL15: 39.6784411 | TM15: 39.6784411 | TN15: 39.6784411 | TO15: 39.6784411 | TP15: 39.6784411 | TQ15: 39.6784411 | TR15: 39.6784411 | TS15: 39.6784411 | TT15: 39.6784411 | TU15: 39.6784411 | TV15: 39.6784411 | TW15: 39.6784411 | TX15: 39.6784411 | TY15: 39.6784411 | TZ15: 39.6784411 | UA15: 39.6784411 | UB15: 39.6784411 | UC15: 39.6784411 | UD15: 39.6784411 | UE15: 39.6784411 | UF15: 39.6784411 | UG15: 39.6784411 | UH15: 39.6784411 | UI15: 39.6784411 | UJ15: 39.6784411 | UK15: 39.6784411 | UL15: 39.6784411 | UM15: 39.6784411 | UN15: 39.6784411 | UO15: 39.6784411 | UP15: 39.6784411 | UQ15: 39.6784411 | UR15: 39.6784411 | US15: 39.6784411 | UT15: 39.6784411 | UU15: =UT15-UT14*1000 -> 39.6784411 | UV15: 39.6784411 | UW15: 39.6784411 | UX15: 39.6784411 | UY15: 39.6784411 | UZ15: 39.6784411 | VA15: 39.6784411 | VB15: 39.6784411 | VC15: 39.6784411 | VD15: 39.6784411 | VE15: 39.6784411 | VF15: 39.6784411 | VG15: 39.6784411 | VH15: 39.6784411 | VI15: 39.6784411 | VJ15: 39.6784411 | VK15: 39.6784411 | VL15: 39.6784411 | VM15: 39.6784411 | VN15: 39.6784411 | VO15: 39.6784411 | VP15: 39.6784411 | VQ15: 39.6784411 | VR15: 39.6784411 | VS15: 39.6784411 | VT15: 39.6784411 | VU15: 39.6784411 | VV15: 39.6784411 | VW15: 39.6784411 | VX15: 39.6784411 | VY15: 39.6784411 | VZ15: 39.6784411 | WA15: 39.6784411 | WB15: 39.6784411 | WC15: 39.6784411 | WD15: 39.6784411 | WE15: 39.6784411 | WF15: 39.6784411 | WG15: 39.6784411 | WH15: 39.6784411 | WI15: 39.6784411 | WJ15: 39.6784411 | WK15: 39.6784411 | WL15: 39.6784411 | WM15: 39.6784411 | WN15: 39.6784411 | WO15: 39.6784411 | WP15: 39.6784411 | WQ15: 39.6784411 | WR15: 39.6784411 | WS15: 39.6784411 | WT15: 39.6784411 | WU15: 39.6784411 | WV15: 39.6784411 | WW15: 39.6784411 | WX15: 39.6784411 | WY15: 39.6784411 | WZ15: 39.6784411 | XA15: 39.6784411 | XB15: 39.6784411 | XC15: 39.6784411 | XD15: 39.6784411 | XE15: 39.6784411 | XF15: 39.6784411 | XG15: =XF15-XF14*1000 -> 39.6784411 | XH15: 39.6784411 | XI15: 39.6784411 | XJ15: 39.6784411 | XK15: 39.6784411 | XL15: 39.6784411 | XM15: 39.6784411 | XN15: 39.6784411 | XO15: 39.6784411 | XP15: 39.6784411 | XQ15: 39.6784411 | XR15: 39.6784411 | XS15: 39.6784411 | XT15: 39.6784411 | XU15: 39.6784411 | XV15: 39.6784411 | XW15: 39.6784411 | XX15: 39.6784411 | XY15: 39.6784411 | XZ15: 39.6784411 | YA15: 39.6784411 | YB15: 39.6784411 | YC15: 39.6784411 | YD15: 39.6784411 | YE15: 39.6784411 | YF15: 39.6784411 | YG15: 39.6784411 | YH15: 39.6784411 | YI15: 39.6784411 | YJ15: 39.6784411 | YK15: 39.6784411 | YL15: 39.6784411 | YM15: 39.6784411 | YN15: 39.6784411 | YO15: 39.6784411 | YP15: 39.6784411 | YQ15: 39.6784411 | YR15: 39.6784411 | YS15: 39.6784411 | YT15: 39.6784411 | YU15: 39.6784411 | YV15: 39.6784411 | YW15: 39.6784411 | YX15: 39.6784411 | YY15: 39.6784411 | YZ15: 39.6784411 | ZA15: 39.6784411 | ZB15: 39.6784411 | ZC15: 39.6784411 | ZD15: 39.6784411 | ZE15: 39.6784411 | ZF15: 39.6784411 | ZG15: 39.6784411 | ZH15: 39.6784411 | ZI15: 39.6784411 | ZJ15: 39.6784411 | ZK15: 39.6784411 | ZL15: 39.6784411 | ZM15: 39.6784411 | ZN15: 39.6784411 | ZO15: 39.6784411 | ZP15: 39.6784411 | ZQ15: 39.6784411 | ZR15: 39.6784411 | ZS15: =ZR15-ZR14*1000 -> 39.6784411 | ZT15: 39.6784411 | ZU15: 39.6784411 | ZV15: 39.6784411 | ZW15: 39.6784411 | ZX15: 39.6784411 | ZY15: 39.6784411 | ZZ15: 39.6784411 | AAA15: 39.6784411 | AAB15: 39.6784411 | AAC15: 39.6784411 | AAD15: 39.6784411 | AAE15: 39.6784411 | AAF15: 39.6784411 | AAG15: 39.6784411 | AAH15: 39.6784411 | AAI15: 39.6784411 | AAJ15: 39.6784411 | AAK15: 39.6784411 | AAL15: 39.6784411 | AAM15: 39.6784411 | AAN15: 39.6784411 | AAO15: 39.6784411 | AAP15: 39.6784411 | AAQ15: 39.6784411 | AAR15: 39.6784411 | AAS15: 39.6784411 | AAT15: 39.6784411 | AAU15: 39.6784411 | AAV15: 39.6784411 | AAW15: 39.6784411 | AAX15: 39.6784411 | AAY15: 39.6784411 | AAZ15: 39.6784411 | ABA15: 39.6784411 | ABB15: 39.6784411 | ABC15: 39.6784411 | ABD15: 39.6784411 | ABE15: 39.6784411 | ABF15: 39.6784411 | ABG15: 39.6784411 | ABH15: 39.6784411 | ABI15: 39.6784411 | ABJ15: 39.6784411 | ABK15: 39.6784411 | ABL15: 39.6784411 | ABM15: 39.6784411 | ABN15: 39.6784411 | ABO15: 39.6784411 | ABP15: 39.6784411 | ABQ15: 39.6784411 | ABR15: 39.6784411 | ABS15: 39.6784411 | ABT15: 39.6784411 | ABU15: 39.6784411 | ABV15: 39.6784411 | ABW15: 39.6784411 | ABX15: 39.6784411 | ABY15: 39.6784411 | ABZ15: 39.6784411 | ACA15: 39.6784411 | ACB15: 39.6784411 | ACC15: 39.6784411 | ACD15: 39.6784411 | ACE15: =ACD15-ACD14*1000 -> 39.6784411 | ACF15: 39.6784411 | ACG15: 39.6784411 | ACH15: 39.6784411 | ACI15: 39.6784411 | ACJ15: 39.6784411 | ACK15: 39.6784411 | ACL15: 39.6784411 | ACM15: 39.6784411 | ACN15: 39.6784411 | ACO15: 39.6784411 | ACP15: 39.6784411 | ACQ15: 39.6784411 | ACR15: 39.6784411 | ACS15: 39.6784411 | ACT15: 39.6784411 | ACU15: 39.6784411 | ACV15: 39.6784411 | ACW15: 39.6784411 | ACX15: 39.6784411 | ACY15: 39.6784411 | ACZ15: 39.6784411 | ADA15: 39.6784411 | ADB15: 39.6784411 | ADC15: 39.6784411 | ADD15: 39.6784411 | ADE15: 39.6784411 | ADF15: 39.6784411 | ADG15: 39.6784411 | ADH15: 39.6784411 | ADI15: 39.6784411 | ADJ15: 39.6784411 | ADK15: 39.6784411 | ADL15: 39.6784411 | ADM15: 39.6784411 | ADN15: 39.6784411 | ADO15: 39.6784411 | ADP15: 39.6784411 | ADQ15: 39.6784411 | ADR15: 39.6784411 | ADS15: 39.6784411 | ADT15: 39.6784411 | ADU15: 39.6784411 | ADV15: 39.6784411 | ADW15: 39.6784411 | ADX15: 39.6784411 | ADY15: 39.6784411 | ADZ15: 39.6784411 | AEA15: 39.6784411 | AEB15: 39.6784411 | AEC15: 39.6784411 | AED15: 39.6784411
A16: Min. temperature during cycle | B16: =MIN(K9:AED9) -> 10.95492467 | C16: °C | D16: Max. temperature during cycle | E16: =MAX(K9:AED9) -> 20 | F16: °C | J16: Alpha T | K16: =(1 + $K$76 * (1 - (K8 / $K$77) ^ 0.5)) ^ 2 -> 0.5139930333 | L16: =(1 + m * (1 - (L8 / Tc) ^ 0.5)) ^ 2 -> 0.5142622139 | M16: 0.5145876499 | N16: 0.5148731756 | O16: 0.5152930307 | P16: 0.5157108279 | Q16: 0.5161265777 | R16: 0.5165402908 | S16: 0.5169519776 | T16: 0.5173616486 | U16: 0.5177693142 | V16: 0.5181747337 | W16: 0.5185781696 | X16: 0.5189796322 | Y16: 0.5193788828 | Z16: 0.5197761815 | AA16: 0.5201712913 | AB16: 0.5205644704 | AC16: 0.5209554832 | AD16: 0.5213445863 | AE16: 0.5217324087 | AF16: 0.5221180903 | AG16: 0.522501643 | AH16: 0.5228830787 | AI16: 0.5232624091 | AJ16: 0.5236398856 | AK16: 0.5240161074 | AL16: 0.5243902488 | AM16: 0.5247620838 | AN16: 0.525131863 | AO16: 0.5255004049 | AP16: 0.5258669054 | AQ16: 0.5262313758 | AR16: 0.5265946198 | AS16: 0.5269556156 | AT16: 0.5273148275 | AU16: 0.5276732621 | AV16: 0.528029699 | AW16: 0.5283853648 | AX16: 0.5287395044 | AY16: 0.5290916789 | AZ16: 0.5294430947 | BA16: 0.5297925642 | BB16: 0.5301412808 | BC16: 0.5304880693 | BD16: 0.5308341109 | BE16: 0.5311782425 | BF16: 0.5315211785 | BG16: 0.531862678 | BH16: 0.5322029872 | BI16: 0.5325414229 | BJ16: 0.5325414229 | BK16: 0.5325414229 | BL16: 0.5325414229 | BM16: 0.5325414229 | BN16: 0.5325414229 | BO16: 0.5325414229 | BP16: 0.5325414229 | BQ16: 0.5325414229 | BR16: 0.5325414229 | BS16: 0.5325414229 | BT16: 0.5325414229 | BU16: 0.5325414229 | BV16: 0.5325414229 | BW16: =(1 + m * (1 - (BW8 / Tc) ^ 0.5)) ^ 2 -> 0.5325414229 | BX16: 0.5325414229 | BY16: 0.5325414229 | BZ16: 0.5325414229 | CA16: 0.5325414229 | CB16: 0.5325414229 | CC16: 0.5325414229 | CD16: 0.5325414229 | CE16: 0.5325414229 | CF16: 0.5325414229 | CG16: 0.5325414229 | CH16: 0.5325414229 | CI16: 0.5325414229 | CJ16: 0.5325414229 | CK16: 0.5325414229 | CL16: 0.5325414229 | CM16: 0.5325414229 | CN16: 0.5325414229 | CO16: 0.5325414229 | CP16: 0.5325414229 | CQ16: 0.5325414229 | CR16: 0.5325414229 | CS16: 0.5325414229 | CT16: 0.5325414229 | CU16: 0.5325414229 | CV16: 0.5325414229 | CW16: 0.5325414229 | CX16: 0.5325414229 | CY16: 0.5325414229 | CZ16: 0.5325414229 | DA16: 0.5325414229 | DB16: 0.5325414229 | DC16: 0.5325414229 | DD16: 0.5325414229 | DE16: 0.5325414229 | DF16: 0.5325414229 | DG16: 0.5325414229 | DH16: =(1 + m * (1 - (DH8 / Tc) ^ 0.5)) ^ 2 -> 0.5325414229 | DI16: =(1 + m * (1 - (DI8 / Tc) ^ 0.5)) ^ 2 -> 0.5325414229 | DJ16: =(1 + m * (1 - (DJ8 / Tc) ^ 0.5)) ^ 2 -> 0.5325414229 | DK16: =(1 + m * (1 - (DK8 / Tc) ^ 0.5)) ^ 2 -> 0.5325414229 | DL16: 0.5325414229 | DM16: 0.5325414229 | DN16: 0.5325414229 | DO16: 0.5325414229 | DP16: 0.5325414229 | DQ16: 0.5325414229 | DR16: 0.5325414229 | DS16: 0.5325414229 | DT16: 0.5325414229 | DU16: 0.5325414229 | DV16: 0.5325414229 | DW16: 0.5325414229 | DX16: 0.5325414229 | DY16: 0.5325414229 | DZ16: 0.5325414229 | EA16: 0.5325414229 | EB16: 0.5325414229 | EC16: 0.5325414229 | ED16: 0.5325414229 | EE16: 0.5325414229 | EF16: 0.5325414229 | EG16: 0.5325414229 | EH16: 0.5325414229 | EI16: 0.5325414229 | EJ16: 0.5325414229 | EK16: 0.5325414229 | EL16: 0.5325414229 | EM16: 0.5325414229 | EN16: 0.5325414229 | EO16: 0.5325414229 | EP16: 0.5325414229 | EQ16: 0.5325414229 | ER16: 0.5325414229 | ES16: 0.5325414229 | ET16: 0.5325414229 | EU16: 0.5325414229 | EV16: 0.5325414229 | EW16: 0.5325414229 | EX16: 0.5325414229 | EY16: 0.5325414229 | EZ16: 0.5325414229 | FA16: 0.5325414229 | FB16: 0.5325414229 | FC16: 0.5325414229 | FD16: 0.5325414229 | FE16: 0.5325414229 | FF16: 0.5325414229 | FG16: 0.5325414229 | FH16: 0.5325414229 | FI16: 0.5325414229 | FJ16: 0.5325414229 | FK16: 0.5325414229 | FL16: 0.5325414229 | FM16: 0.5325414229 | FN16: 0.5325414229 | FO16: 0.5325414229 | FP16: 0.5325414229 | FQ16: 0.5325414229 | FR16: 0.5325414229 | FS16: 0.5325414229 | FT16: 0.5325414229 | FU16: 0.5325414229 | FV16: 0.5325414229 | FW16: =(1 + m * (1 - (FW8 / Tc) ^ 0.5)) ^ 2 -> 0.5325414229 | FX16: 0.5325414229 | FY16: 0.5325414229 | FZ16: 0.5325414229 | GA16: 0.5325414229 | GB16: 0.5325414229 | GC16: 0.5325414229 | GD16: 0.5325414229 | GE16: 0.5325414229 | GF16: 0.5325414229 | GG16: 0.5325414229 | GH16: 0.5325414229 | GI16: 0.5325414229 | GJ16: 0.5325414229 | GK16: 0.5325414229 | GL16: 0.5325414229 | GM16: 0.5325414229 | GN16: 0.5325414229 | GO16: 0.5325414229 | GP16: 0.5325414229 | GQ16: 0.5325414229 | GR16: 0.5325414229 | GS16: 0.5325414229 | GT16: 0.5325414229 | GU16: 0.5325414229 | GV16: 0.5325414229 | GW16: 0.5325414229 | GX16: 0.5325414229 | GY16: 0.5325414229 | GZ16: 0.5325414229 | HA16: 0.5325414229 | HB16: 0.5325414229 | HC16: 0.5325414229 | HD16: 0.5325414229 | HE16: 0.5325414229 | HF16: 0.5325414229 | HG16: 0.5325414229 | HH16: 0.5325414229 | HI16: 0.5325414229 | HJ16: 0.5325414229 | HK16: 0.5325414229 | HL16: 0.5325414229 | HM16: 0.5325414229 | HN16: 0.5325414229 | HO16: 0.5325414229 | HP16: 0.5325414229 | HQ16: 0.5325414229 | HR16: 0.5325414229 | HS16: 0.5325414229 | HT16: 0.5325414229 | HU16: 0.5325414229 | HV16: 0.5325414229 | HW16: 0.5325414229 | HX16: 0.5325414229 | HY16: 0.5325414229 | HZ16: 0.5325414229 | IA16: 0.5325414229 | IB16: 0.5325414229 | IC16: 0.5325414229 | ID16: 0.5325414229 | IE16: 0.5325414229 | IF16: 0.5325414229 | IG16: 0.5325414229 | IH16: 0.5325414229 | II16: =(1 + m * (1 - (II8 / Tc) ^ 0.5)) ^ 2 -> 0.5325414229 | IJ16: 0.5325414229 | IK16: 0.5325414229 | IL16: 0.5325414229 | IM16: 0.5325414229 | IN16: 0.5325414229 | IO16: 0.5325414229 | IP16: 0.5325414229 | IQ16: 0.5325414229 | IR16: 0.5325414229 | IS16: 0.5325414229 | IT16: 0.5325414229 | IU16: 0.5325414229 | IV16: 0.5325414229 | IW16: 0.5325414229 | IX16: 0.5325414229 | IY16: 0.5325414229 | IZ16: 0.5325414229 | JA16: 0.5325414229 | JB16: 0.5325414229 | JC16: 0.5325414229 | JD16: 0.5325414229 | JE16: 0.5325414229 | JF16: 0.5325414229 | JG16: 0.5325414229 | JH16: 0.5325414229 | JI16: 0.5325414229 | JJ16: 0.5325414229 | JK16: 0.5325414229 | JL16: 0.5325414229 | JM16: 0.5325414229 | JN16: 0.5325414229 | JO16: 0.5325414229 | JP16: 0.5325414229 | JQ16: 0.5325414229 | JR16: 0.5325414229 | JS16: 0.5325414229 | JT16: 0.5325414229 | JU16: 0.5325414229 | JV16: 0.5325414229 | JW16: 0.5325414229 | JX16: 0.5325414229 | JY16: 0.5325414229 | JZ16: 0.5325414229 | KA16: 0.5325414229 | KB16: 0.5325414229 | KC16: 0.5325414229 | KD16: 0.5325414229 | KE16: 0.5325414229 | KF16: 0.5325414229 | KG16: 0.5325414229 | KH16: 0.5325414229 | KI16: 0.5325414229 | KJ16: 0.5325414229 | KK16: 0.5325414229 | KL16: 0.5325414229 | KM16: 0.5325414229 | KN16: 0.5325414229 | KO16: 0.5325414229 | KP16: 0.5325414229 | KQ16: 0.5325414229 | KR16: 0.5325414229 | KS16: 0.5325414229 | KT16: 0.5325414229 | KU16: =(1 + m * (1 - (KU8 / Tc) ^ 0.5)) ^ 2 -> 0.5325414229 | KV16: 0.5325414229 | KW16: 0.5325414229 | KX16: 0.5325414229 | KY16: 0.5325414229 | KZ16: 0.5325414229 | LA16: 0.5325414229 | LB16: 0.5325414229 | LC16: 0.5325414229 | LD16: 0.5325414229 | LE16: 0.5325414229 | LF16: 0.5325414229 | LG16: 0.5325414229 | LH16: 0.5325414229 | LI16: 0.5325414229 | LJ16: 0.5325414229 | LK16: 0.5325414229 | LL16: 0.5325414229 | LM16: 0.5325414229 | LN16: 0.5325414229 | LO16: 0.5325414229 | LP16: 0.5325414229 | LQ16: 0.5325414229 | LR16: 0.5325414229 | LS16: 0.5325414229 | LT16: 0.5325414229 | LU16: 0.5325414229 | LV16: 0.5325414229 | LW16: 0.5325414229 | LX16: 0.5325414229 | LY16: 0.5325414229 | LZ16: 0.5325414229 | MA16: 0.5325414229 | MB16: 0.5325414229 | MC16: 0.5325414229 | MD16: 0.5325414229 | ME16: 0.5325414229 | MF16: 0.5325414229 | MG16: 0.5325414229 | MH16: 0.5325414229 | MI16: 0.5325414229 | MJ16: 0.5325414229 | MK16: 0.5325414229 | ML16: 0.5325414229 | MM16: 0.5325414229 | MN16: 0.5325414229 | MO16: 0.5325414229 | MP16: 0.5325414229 | MQ16: 0.5325414229 | MR16: 0.5325414229 | MS16: 0.5325414229 | MT16: 0.5325414229 | MU16: 0.5325414229 | MV16: 0.5325414229 | MW16: 0.5325414229 | MX16: 0.5325414229 | MY16: 0.5325414229 | MZ16: 0.5325414229 | NA16: 0.5325414229 | NB16: 0.5325414229 | NC16: 0.5325414229 | ND16: 0.5325414229 | NE16: 0.5325414229 | NF16: 0.5325414229 | NG16: =(1 + m * (1 - (NG8 / Tc) ^ 0.5)) ^ 2 -> 0.5325414229 | NH16: 0.5325414229 | NI16: 0.5325414229 | NJ16: 0.5325414229 | NK16: 0.5325414229 | NL16: 0.5325414229 | NM16: 0.5325414229 | NN16: 0.5325414229 | NO16: 0.5325414229 | NP16: 0.5325414229 | NQ16: 0.5325414229 | NR16: 0.5325414229 | NS16: 0.5325414229 | NT16: 0.5325414229 | NU16: 0.5325414229 | NV16: 0.5325414229 | NW16: 0.5325414229 | NX16: 0.5325414229 | NY16: 0.5325414229 | NZ16: 0.5325414229 | OA16: 0.5325414229 | OB16: 0.5325414229 | OC16: 0.5325414229 | OD16: 0.5325414229 | OE16: 0.5325414229 | OF16: 0.5325414229 | OG16: 0.5325414229 | OH16: 0.5325414229 | OI16: 0.5325414229 | OJ16: 0.5325414229 | OK16: 0.5325414229 | OL16: 0.5325414229 | OM16: 0.5325414229 | ON16: 0.5325414229 | OO16: 0.5325414229 | OP16: 0.5325414229 | OQ16: 0.5325414229 | OR16: 0.5325414229 | OS16: 0.5325414229 | OT16: 0.5325414229 | OU16: 0.5325414229 | OV16: 0.5325414229 | OW16: 0.5325414229 | OX16: 0.5325414229 | OY16: 0.5325414229 | OZ16: 0.5325414229 | PA16: 0.5325414229 | PB16: 0.5325414229 | PC16: 0.5325414229 | PD16: 0.5325414229 | PE16: 0.5325414229 | PF16: 0.5325414229 | PG16: 0.5325414229 | PH16: 0.5325414229 | PI16: 0.5325414229 | PJ16: 0.5325414229 | PK16: 0.5325414229 | PL16: 0.5325414229 | PM16: 0.5325414229 | PN16: 0.5325414229 | PO16: 0.5325414229 | PP16: 0.5325414229 | PQ16: 0.5325414229 | PR16: 0.5325414229 | PS16: =(1 + m * (1 - (PS8 / Tc) ^ 0.5)) ^ 2 -> 0.5325414229 | PT16: 0.5325414229 | PU16: 0.5325414229 | PV16: 0.5325414229 | PW16: 0.5325414229 | PX16: 0.5325414229 | PY16: 0.5325414229 | PZ16: 0.5325414229 | QA16: 0.5325414229 | QB16: 0.5325414229 | QC16: 0.5325414229 | QD16: 0.5325414229 | QE16: 0.5325414229 | QF16: 0.5325414229 | QG16: 0.5325414229 | QH16: 0.5325414229 | QI16: 0.5325414229 | QJ16: 0.5325414229 | QK16: 0.5325414229 | QL16: 0.5325414229 | QM16: 0.5325414229 | QN16: 0.5325414229 | QO16: 0.5325414229 | QP16: 0.5325414229 | QQ16: 0.5325414229 | QR16: 0.5325414229 | QS16: 0.5325414229 | QT16: 0.5325414229 | QU16: 0.5325414229 | QV16: 0.5325414229 | QW16: 0.5325414229 | QX16: 0.5325414229 | QY16: 0.5325414229 | QZ16: 0.5325414229 | RA16: 0.5325414229 | RB16: 0.5325414229 | RC16: 0.5325414229 | RD16: 0.5325414229 | RE16: 0.5325414229 | RF16: 0.5325414229 | RG16: 0.5325414229 | RH16: 0.5325414229 | RI16: 0.5325414229 | RJ16: 0.5325414229 | RK16: 0.5325414229 | RL16: 0.5325414229 | RM16: 0.5325414229 | RN16: 0.5325414229 | RO16: 0.5325414229 | RP16: 0.5325414229 | RQ16: 0.5325414229 | RR16: 0.5325414229 | RS16: 0.5325414229 | RT16: 0.5325414229 | RU16: 0.5325414229 | RV16: 0.5325414229 | RW16: 0.5325414229 | RX16: 0.5325414229 | RY16: 0.5325414229 | RZ16: 0.5325414229 | SA16: 0.5325414229 | SB16: 0.5325414229 | SC16: 0.5325414229 | SD16: 0.5325414229 | SE16: =(1 + m * (1 - (SE8 / Tc) ^ 0.5)) ^ 2 -> 0.5325414229 | SF16: 0.5325414229 | SG16: 0.5325414229 | SH16: 0.5325414229 | SI16: 0.5325414229 | SJ16: 0.5325414229 | SK16: 0.5325414229 | SL16: 0.5325414229 | SM16: 0.5325414229 | SN16: 0.5325414229 | SO16: 0.5325414229 | SP16: 0.5325414229 | SQ16: 0.5325414229 | SR16: 0.5325414229 | SS16: 0.5325414229 | ST16: 0.5325414229 | SU16: 0.5325414229 | SV16: 0.5325414229 | SW16: 0.5325414229 | SX16: 0.5325414229 | SY16: 0.5325414229 | SZ16: 0.5325414229 | TA16: 0.5325414229 | TB16: 0.5325414229 | TC16: 0.5325414229 | TD16: 0.5325414229 | TE16: 0.5325414229 | TF16: 0.5325414229 | TG16: 0.5325414229 | TH16: 0.5325414229 | TI16: 0.5325414229 | TJ16: 0.5325414229 | TK16: 0.5325414229 | TL16: 0.5325414229 | TM16: 0.5325414229 | TN16: 0.5325414229 | TO16: 0.5325414229 | TP16: 0.5325414229 | TQ16: 0.5325414229 | TR16: 0.5325414229 | TS16: 0.5325414229 | TT16: 0.5325414229 | TU16: 0.5325414229 | TV16: 0.5325414229 | TW16: 0.5325414229 | TX16: 0.5325414229 | TY16: 0.5325414229 | TZ16: 0.5325414229 | UA16: 0.5325414229 | UB16: 0.5325414229 | UC16: 0.5325414229 | UD16: 0.5325414229 | UE16: 0.5325414229 | UF16: 0.5325414229 | UG16: 0.5325414229 | UH16: 0.5325414229 | UI16: 0.5325414229 | UJ16: 0.5325414229 | UK16: 0.5325414229 | UL16: 0.5325414229 | UM16: 0.5325414229 | UN16: 0.5325414229 | UO16: 0.5325414229 | UP16: 0.5325414229 | UQ16: =(1 + m * (1 - (UQ8 / Tc) ^ 0.5)) ^ 2 -> 0.5325414229 | UR16: 0.5325414229 | US16: 0.5325414229 | UT16: 0.5325414229 | UU16: 0.5325414229 | UV16: 0.5325414229 | UW16: 0.5325414229 | UX16: 0.5325414229 | UY16: 0.5325414229 | UZ16: 0.5325414229 | VA16: 0.5325414229 | VB16: 0.5325414229 | VC16: 0.5325414229 | VD16: 0.5325414229 | VE16: 0.5325414229 | VF16: 0.5325414229 | VG16: 0.5325414229 | VH16: 0.5325414229 | VI16: 0.5325414229 | VJ16: 0.5325414229 | VK16: 0.5325414229 | VL16: 0.5325414229 | VM16: 0.5325414229 | VN16: 0.5325414229 | VO16: 0.5325414229 | VP16: 0.5325414229 | VQ16: 0.5325414229 | VR16: 0.5325414229 | VS16: 0.5325414229 | VT16: 0.5325414229 | VU16: 0.5325414229 | VV16: 0.5325414229 | VW16: 0.5325414229 | VX16: 0.5325414229 | VY16: 0.5325414229 | VZ16: 0.5325414229 | WA16: 0.5325414229 | WB16: 0.5325414229 | WC16: 0.5325414229 | WD16: 0.5325414229 | WE16: 0.5325414229 | WF16: 0.5325414229 | WG16: 0.5325414229 | WH16: 0.5325414229 | WI16: 0.5325414229 | WJ16: 0.5325414229 | WK16: 0.5325414229 | WL16: 0.5325414229 | WM16: 0.5325414229 | WN16: 0.5325414229 | WO16: 0.5325414229 | WP16: 0.5325414229 | WQ16: 0.5325414229 | WR16: 0.5325414229 | WS16: 0.5325414229 | WT16: 0.5325414229 | WU16: 0.5325414229 | WV16: 0.5325414229 | WW16: 0.5325414229 | WX16: 0.5325414229 | WY16: 0.5325414229 | WZ16: 0.5325414229 | XA16: 0.5325414229 | XB16: 0.5325414229 | XC16: =(1 + m * (1 - (XC8 / Tc) ^ 0.5)) ^ 2 -> 0.5325414229 | XD16: 0.5325414229 | XE16: 0.5325414229 | XF16: 0.5325414229 | XG16: 0.5325414229 | XH16: 0.5325414229 | XI16: 0.5325414229 | XJ16: 0.5325414229 | XK16: 0.5325414229 | XL16: 0.5325414229 | XM16: 0.5325414229 | XN16: 0.5325414229 | XO16: 0.5325414229 | XP16: 0.5325414229 | XQ16: 0.5325414229 | XR16: 0.5325414229 | XS16: 0.5325414229 | XT16: 0.5325414229 | XU16: 0.5325414229 | XV16: 0.5325414229 | XW16: 0.5325414229 | XX16: 0.5325414229 | XY16: 0.5325414229 | XZ16: 0.5325414229 | YA16: 0.5325414229 | YB16: 0.5325414229 | YC16: 0.5325414229 | YD16: 0.5325414229 | YE16: 0.5325414229 | YF16: 0.5325414229 | YG16: 0.5325414229 | YH16: 0.5325414229 | YI16: 0.5325414229 | YJ16: 0.5325414229 | YK16: 0.5325414229 | YL16: 0.5325414229 | YM16: 0.5325414229 | YN16: 0.5325414229 | YO16: 0.5325414229 | YP16: 0.5325414229 | YQ16: 0.5325414229 | YR16: 0.5325414229 | YS16: 0.5325414229 | YT16: 0.5325414229 | YU16: 0.5325414229 | YV16: 0.5325414229 | YW16: 0.5325414229 | YX16: 0.5325414229 | YY16: 0.5325414229 | YZ16: 0.5325414229 | ZA16: 0.5325414229 | ZB16: 0.5325414229 | ZC16: 0.5325414229 | ZD16: 0.5325414229 | ZE16: 0.5325414229 | ZF16: 0.5325414229 | ZG16: 0.5325414229 | ZH16: 0.5325414229 | ZI16: 0.5325414229 | ZJ16: 0.5325414229 | ZK16: 0.5325414229 | ZL16: 0.5325414229 | ZM16: 0.5325414229 | ZN16: 0.5325414229 | ZO16: =(1 + m * (1 - (ZO8 / Tc) ^ 0.5)) ^ 2 -> 0.5325414229 | ZP16: 0.5325414229 | ZQ16: 0.5325414229 | ZR16: 0.5325414229 | ZS16: 0.5325414229 | ZT16: 0.5325414229 | ZU16: 0.5325414229 | ZV16: 0.5325414229 | ZW16: 0.5325414229 | ZX16: 0.5325414229 | ZY16: 0.5325414229 | ZZ16: 0.5325414229 | AAA16: 0.5325414229 | AAB16: 0.5325414229 | AAC16: 0.5325414229 | AAD16: 0.5325414229 | AAE16: 0.5325414229 | AAF16: 0.5325414229 | AAG16: 0.5325414229 | AAH16: 0.5325414229 | AAI16: 0.5325414229 | AAJ16: 0.5325414229 | AAK16: 0.5325414229 | AAL16: 0.5325414229 | AAM16: 0.5325414229 | AAN16: 0.5325414229 | AAO16: 0.5325414229 | AAP16: 0.5325414229 | AAQ16: 0.5325414229 | AAR16: 0.5325414229 | AAS16: 0.5325414229 | AAT16: 0.5325414229 | AAU16: 0.5325414229 | AAV16: 0.5325414229 | AAW16: 0.5325414229 | AAX16: 0.5325414229 | AAY16: 0.5325414229 | AAZ16: 0.5325414229 | ABA16: 0.5325414229 | ABB16: 0.5325414229 | ABC16: 0.5325414229 | ABD16: 0.5325414229 | ABE16: 0.5325414229 | ABF16: 0.5325414229 | ABG16: 0.5325414229 | ABH16: 0.5325414229 | ABI16: 0.5325414229 | ABJ16: 0.5325414229 | ABK16: 0.5325414229 | ABL16: 0.5325414229 | ABM16: 0.5325414229 | ABN16: 0.5325414229 | ABO16: 0.5325414229 | ABP16: 0.5325414229 | ABQ16: 0.5325414229 | ABR16: 0.5325414229 | ABS16: 0.5325414229 | ABT16: 0.5325414229 | ABU16: 0.5325414229 | ABV16: 0.5325414229 | ABW16: 0.5325414229 | ABX16: 0.5325414229 | ABY16: 0.5325414229 | ABZ16: 0.5325414229 | ACA16: =(1 + m * (1 - (ACA8 / Tc) ^ 0.5)) ^ 2 -> 0.5325414229 | ACB16: 0.5325414229 | ACC16: 0.5325414229 | ACD16: 0.5325414229 | ACE16: 0.5325414229 | ACF16: 0.5325414229 | ACG16: 0.5325414229 | ACH16: 0.5325414229 | ACI16: 0.5325414229 | ACJ16: 0.5325414229 | ACK16: 0.5325414229 | ACL16: 0.5325414229 | ACM16: 0.5325414229 | ACN16: 0.5325414229 | ACO16: 0.5325414229 | ACP16: 0.5325414229 | ACQ16: 0.5325414229 | ACR16: 0.5325414229 | ACS16: 0.5325414229 | ACT16: 0.5325414229 | ACU16: 0.5325414229 | ACV16: 0.5325414229 | ACW16: 0.5325414229 | ACX16: 0.5325414229 | ACY16: 0.5325414229 | ACZ16: 0.5325414229 | ADA16: 0.5325414229 | ADB16: 0.5325414229 | ADC16: 0.5325414229 | ADD16: 0.5325414229 | ADE16: 0.5325414229 | ADF16: 0.5325414229 | ADG16: 0.5325414229 | ADH16: 0.5325414229 | ADI16: 0.5325414229 | ADJ16: 0.5325414229 | ADK16: 0.5325414229 | ADL16: 0.5325414229 | ADM16: 0.5325414229 | ADN16: 0.5325414229 | ADO16: 0.5325414229 | ADP16: 0.5325414229 | ADQ16: 0.5325414229 | ADR16: 0.5325414229 | ADS16: 0.5325414229 | ADT16: 0.5325414229 | ADU16: 0.5325414229 | ADV16: 0.5325414229 | ADW16: 0.5325414229 | ADX16: 0.5325414229 | ADY16: 0.5325414229 | ADZ16: 0.5325414229 | AEA16: 0.5325414229 | AEB16: 0.5325414229 | AEC16: 0.5325414229 | AED16: 0.5325414229
J17: e | K17: =-$K$79 * K8 /K7 / 100000 -> -0.004141066667 | L17: =-Rs * L8 /L7 / 100000 -> -0.00414754309 | M17: -0.004154173107 | N17: -0.004160695643 | O17: -0.004167585513 | P17: -0.004174472018 | Q17: -0.004181355153 | R17: -0.004188234914 | S17: -0.004195111295 | T17: -0.004201984293 | U17: -0.004208853902 | V17: -0.004215719423 | W17: -0.004222581548 | X17: -0.004229440272 | Y17: -0.004236294898 | Z17: -0.004243146117 | AA17: -0.004249993232 | AB17: -0.004256836933 | AC17: -0.004263676526 | AD17: -0.004270512698 | AE17: -0.004277347195 | AF17: -0.004284177564 | AG17: -0.004291003803 | AH17: -0.004297825911 | AI17: -0.004304643889 | AJ17: -0.004311458418 | AK17: -0.004318271184 | AL17: -0.0043250798 | AM17: -0.004331883586 | AN17: -0.004338683224 | AO17: -0.004345481041 | AP17: -0.004352274697 | AQ17: -0.004359064191 | AR17: -0.004365851821 | AS17: -0.004372634601 | AT17: -0.004379413846 | AU17: -0.004386192463 | AV17: -0.004392966877 | AW17: -0.004399740645 | AX17: -0.004406511542 | AY17: -0.004413278257 | AZ17: -0.004420044309 | BA17: -0.004426806186 | BB17: -0.004433567383 | BC17: -0.004440324411 | BD17: -0.004447080743 | BE17: -0.004453832913 | BF17: -0.004460583019 | BG17: -0.004467330323 | BH17: -0.004474075541 | BI17: -0.004480816609 | BJ17: -0.004480816609 | BK17: -0.004480816609 | BL17: -0.004480816609 | BM17: -0.004480816609 | BN17: -0.004480816609 | BO17: -0.004480816609 | BP17: -0.004480816609 | BQ17: -0.004480816609 | BR17: -0.004480816609 | BS17: -0.004480816609 | BT17: -0.004480816609 | BU17: -0.004480816609 | BV17: -0.004480816609 | BW17: =-Rs * BW8 /BW7 / 100000 -> -0.004480816609 | BX17: -0.004480816609 | BY17: -0.004480816609 | BZ17: -0.004480816609 | CA17: -0.004480816609 | CB17: -0.004480816609 | CC17: -0.004480816609 | CD17: -0.004480816609 | CE17: -0.004480816609 | CF17: -0.004480816609 | CG17: -0.004480816609 | CH17: -0.004480816609 | CI17: -0.004480816609 | CJ17: -0.004480816609 | CK17: -0.004480816609 | CL17: -0.004480816609 | CM17: -0.004480816609 | CN17: -0.004480816609 | CO17: -0.004480816609 | CP17: -0.004480816609 | CQ17: -0.004480816609 | CR17: -0.004480816609 | CS17: -0.004480816609 | CT17: -0.004480816609 | CU17: -0.004480816609 | CV17: -0.004480816609 | CW17: -0.004480816609 | CX17: -0.004480816609 | CY17: -0.004480816609 | CZ17: -0.004480816609 | DA17: -0.004480816609 | DB17: -0.004480816609 | DC17: -0.004480816609 | DD17: -0.004480816609 | DE17: -0.004480816609 | DF17: -0.004480816609 | DG17: -0.004480816609 | DH17: =-Rs * DH8 /DH7 / 100000 -> -0.004480816609 | DI17: =-Rs * DI8 /DI7 / 100000 -> -0.004480816609 | DJ17: =-Rs * DJ8 /DJ7 / 100000 -> -0.004480816609 | DK17: =-Rs * DK8 /DK7 / 100000 -> -0.004480816609 | DL17: -0.004480816609 | DM17: -0.004480816609 | DN17: -0.004480816609 | DO17: -0.004480816609 | DP17: -0.004480816609 | DQ17: -0.004480816609 | DR17: -0.004480816609 | DS17: -0.004480816609 | DT17: -0.004480816609 | DU17: -0.004480816609 | DV17: -0.004480816609 | DW17: -0.004480816609 | DX17: -0.004480816609 | DY17: -0.004480816609 | DZ17: -0.004480816609 | EA17: -0.004480816609 | EB17: -0.004480816609 | EC17: -0.004480816609 | ED17: -0.004480816609 | EE17: -0.004480816609 | EF17: -0.004480816609 | EG17: -0.004480816609 | EH17: -0.004480816609 | EI17: -0.004480816609 | EJ17: -0.004480816609 | EK17: -0.004480816609 | EL17: -0.004480816609 | EM17: -0.004480816609 | EN17: -0.004480816609 | EO17: -0.004480816609 | EP17: -0.004480816609 | EQ17: -0.004480816609 | ER17: -0.004480816609 | ES17: -0.004480816609 | ET17: -0.004480816609 | EU17: -0.004480816609 | EV17: -0.004480816609 | EW17: -0.004480816609 | EX17: -0.004480816609 | EY17: -0.004480816609 | EZ17: -0.004480816609 | FA17: -0.004480816609 | FB17: -0.004480816609 | FC17: -0.004480816609 | FD17: -0.004480816609 | FE17: -0.004480816609 | FF17: -0.004480816609 | FG17: -0.004480816609 | FH17: -0.004480816609 | FI17: -0.004480816609 | FJ17: -0.004480816609 | FK17: -0.004480816609 | FL17: -0.004480816609 | FM17: -0.004480816609 | FN17: -0.004480816609 | FO17: -0.004480816609 | FP17: -0.004480816609 | FQ17: -0.004480816609 | FR17: -0.004480816609 | FS17: -0.004480816609 | FT17: -0.004480816609 | FU17: -0.004480816609 | FV17: -0.004480816609 | FW17: =-Rs * FW8 /FW7 / 100000 -> -0.004480816609 | FX17: -0.004480816609 | FY17: -0.004480816609 | FZ17: -0.004480816609 | GA17: -0.004480816609 | GB17: -0.004480816609 | GC17: -0.004480816609 | GD17: -0.004480816609 | GE17: -0.004480816609 | GF17: -0.004480816609 | GG17: -0.004480816609 | GH17: -0.004480816609 | GI17: -0.004480816609 | GJ17: -0.004480816609 | GK17: -0.004480816609 | GL17: -0.004480816609 | GM17: -0.004480816609 | GN17: -0.004480816609 | GO17: -0.004480816609 | GP17: -0.004480816609 | GQ17: -0.004480816609 | GR17: -0.004480816609 | GS17: -0.004480816609 | GT17: -0.004480816609 | GU17: -0.004480816609 | GV17: -0.004480816609 | GW17: -0.004480816609 | GX17: -0.004480816609 | GY17: -0.004480816609 | GZ17: -0.004480816609 | HA17: -0.004480816609 | HB17: -0.004480816609 | HC17: -0.004480816609 | HD17: -0.004480816609 | HE17: -0.004480816609 | HF17: -0.004480816609 | HG17: -0.004480816609 | HH17: -0.004480816609 | HI17: -0.004480816609 | HJ17: -0.004480816609 | HK17: -0.004480816609 | HL17: -0.004480816609 | HM17: -0.004480816609 | HN17: -0.004480816609 | HO17: -0.004480816609 | HP17: -0.004480816609 | HQ17: -0.004480816609 | HR17: -0.004480816609 | HS17: -0.004480816609 | HT17: -0.004480816609 | HU17: -0.004480816609 | HV17: -0.004480816609 | HW17: -0.004480816609 | HX17: -0.004480816609 | HY17: -0.004480816609 | HZ17: -0.004480816609 | IA17: -0.004480816609 | IB17: -0.004480816609 | IC17: -0.004480816609 | ID17: -0.004480816609 | IE17: -0.004480816609 | IF17: -0.004480816609 | IG17: -0.004480816609 | IH17: -0.004480816609 | II17: =-Rs * II8 /II7 / 100000 -> -0.004480816609 | IJ17: -0.004480816609 | IK17: -0.004480816609 | IL17: -0.004480816609 | IM17: -0.004480816609 | IN17: -0.004480816609 | IO17: -0.004480816609 | IP17: -0.004480816609 | IQ17: -0.004480816609 | IR17: -0.004480816609 | IS17: -0.004480816609 | IT17: -0.004480816609 | IU17: -0.004480816609 | IV17: -0.004480816609 | IW17: -0.004480816609 | IX17: -0.004480816609 | IY17: -0.004480816609 | IZ17: -0.004480816609 | JA17: -0.004480816609 | JB17: -0.004480816609 | JC17: -0.004480816609 | JD17: -0.004480816609 | JE17: -0.004480816609 | JF17: -0.004480816609 | JG17: -0.004480816609 | JH17: -0.004480816609 | JI17: -0.004480816609 | JJ17: -0.004480816609 | JK17: -0.004480816609 | JL17: -0.004480816609 | JM17: -0.004480816609 | JN17: -0.004480816609 | JO17: -0.004480816609 | JP17: -0.004480816609 | JQ17: -0.004480816609 | JR17: -0.004480816609 | JS17: -0.004480816609 | JT17: -0.004480816609 | JU17: -0.004480816609 | JV17: -0.004480816609 | JW17: -0.004480816609 | JX17: -0.004480816609 | JY17: -0.004480816609 | JZ17: -0.004480816609 | KA17: -0.004480816609 | KB17: -0.004480816609 | KC17: -0.004480816609 | KD17: -0.004480816609 | KE17: -0.004480816609 | KF17: -0.004480816609 | KG17: -0.004480816609 | KH17: -0.004480816609 | KI17: -0.004480816609 | KJ17: -0.004480816609 | KK17: -0.004480816609 | KL17: -0.004480816609 | KM17: -0.004480816609 | KN17: -0.004480816609 | KO17: -0.004480816609 | KP17: -0.004480816609 | KQ17: -0.004480816609 | KR17: -0.004480816609 | KS17: -0.004480816609 | KT17: -0.004480816609 | KU17: =-Rs * KU8 /KU7 / 100000 -> -0.004480816609 | KV17: -0.004480816609 | KW17: -0.004480816609 | KX17: =-Rs * KX8 /KX7 / 100000 -> -0.004480816609 | KY17: =-Rs * KY8 /KY7 / 100000 -> -0.004480816609 | KZ17: -0.004480816609 | LA17: -0.004480816609 | LB17: -0.004480816609 | LC17: -0.004480816609 | LD17: -0.004480816609 | LE17: -0.004480816609 | LF17: -0.004480816609 | LG17: -0.004480816609 | LH17: -0.004480816609 | LI17: -0.004480816609 | LJ17: -0.004480816609 | LK17: -0.004480816609 | LL17: -0.004480816609 | LM17: -0.004480816609 | LN17: -0.004480816609 | LO17: -0.004480816609 | LP17: -0.004480816609 | LQ17: -0.004480816609 | LR17: -0.004480816609 | LS17: -0.004480816609 | LT17: -0.004480816609 | LU17: -0.004480816609 | LV17: -0.004480816609 | LW17: -0.004480816609 | LX17: -0.004480816609 | LY17: -0.004480816609 | LZ17: -0.004480816609 | MA17: -0.004480816609 | MB17: -0.004480816609 | MC17: -0.004480816609 | MD17: -0.004480816609 | ME17: -0.004480816609 | MF17: -0.004480816609 | MG17: -0.004480816609 | MH17: -0.004480816609 | MI17: -0.004480816609 | MJ17: -0.004480816609 | MK17: -0.004480816609 | ML17: -0.004480816609 | MM17: -0.004480816609 | MN17: -0.004480816609 | MO17: -0.004480816609 | MP17: -0.004480816609 | MQ17: -0.004480816609 | MR17: -0.004480816609 | MS17: -0.004480816609 | MT17: -0.004480816609 | MU17: -0.004480816609 | MV17: -0.004480816609 | MW17: -0.004480816609 | MX17: -0.004480816609 | MY17: -0.004480816609 | MZ17: -0.004480816609 | NA17: -0.004480816609 | NB17: -0.004480816609 | NC17: -0.004480816609 | ND17: -0.004480816609 | NE17: -0.004480816609 | NF17: -0.004480816609 | NG17: =-Rs * NG8 /NG7 / 100000 -> -0.004480816609 | NH17: -0.004480816609 | NI17: -0.004480816609 | NJ17: -0.004480816609 | NK17: -0.004480816609 | NL17: -0.004480816609 | NM17: -0.004480816609 | NN17: -0.004480816609 | NO17: -0.004480816609 | NP17: -0.004480816609 | NQ17: -0.004480816609 | NR17: -0.004480816609 | NS17: -0.004480816609 | NT17: -0.004480816609 | NU17: -0.004480816609 | NV17: -0.004480816609 | NW17: -0.004480816609 | NX17: -0.004480816609 | NY17: -0.004480816609 | NZ17: -0.004480816609 | OA17: -0.004480816609 | OB17: -0.004480816609 | OC17: -0.004480816609 | OD17: -0.004480816609 | OE17: -0.004480816609 | OF17: -0.004480816609 | OG17: -0.004480816609 | OH17: -0.004480816609 | OI17: -0.004480816609 | OJ17: -0.004480816609 | OK17: -0.004480816609 | OL17: -0.004480816609 | OM17: -0.004480816609 | ON17: -0.004480816609 | OO17: -0.004480816609 | OP17: -0.004480816609 | OQ17: -0.004480816609 | OR17: -0.004480816609 | OS17: -0.004480816609 | OT17: -0.004480816609 | OU17: -0.004480816609 | OV17: -0.004480816609 | OW17: -0.004480816609 | OX17: -0.004480816609 | OY17: -0.004480816609 | OZ17: -0.004480816609 | PA17: -0.004480816609 | PB17: -0.004480816609 | PC17: -0.004480816609 | PD17: -0.004480816609 | PE17: -0.004480816609 | PF17: -0.004480816609 | PG17: -0.004480816609 | PH17: -0.004480816609 | PI17: -0.004480816609 | PJ17: -0.004480816609 | PK17: -0.004480816609 | PL17: -0.004480816609 | PM17: -0.004480816609 | PN17: -0.004480816609 | PO17: -0.004480816609 | PP17: -0.004480816609 | PQ17: -0.004480816609 | PR17: -0.004480816609 | PS17: =-Rs * PS8 /PS7 / 100000 -> -0.004480816609 | PT17: -0.004480816609 | PU17: -0.004480816609 | PV17: -0.004480816609 | PW17: -0.004480816609 | PX17: -0.004480816609 | PY17: -0.004480816609 | PZ17: -0.004480816609 | QA17: -0.004480816609 | QB17: -0.004480816609 | QC17: -0.004480816609 | QD17: -0.004480816609 | QE17: -0.004480816609 | QF17: -0.004480816609 | QG17: -0.004480816609 | QH17: -0.004480816609 | QI17: -0.004480816609 | QJ17: -0.004480816609 | QK17: -0.004480816609 | QL17: -0.004480816609 | QM17: -0.004480816609 | QN17: -0.004480816609 | QO17: -0.004480816609 | QP17: -0.004480816609 | QQ17: -0.004480816609 | QR17: -0.004480816609 | QS17: -0.004480816609 | QT17: -0.004480816609 | QU17: -0.004480816609 | QV17: -0.004480816609 | QW17: -0.004480816609 | QX17: -0.004480816609 | QY17: -0.004480816609 | QZ17: -0.004480816609 | RA17: -0.004480816609 | RB17: -0.004480816609 | RC17: -0.004480816609 | RD17: -0.004480816609 | RE17: -0.004480816609 | RF17: -0.004480816609 | RG17: -0.004480816609 | RH17: -0.004480816609 | RI17: -0.004480816609 | RJ17: -0.004480816609 | RK17: -0.004480816609 | RL17: -0.004480816609 | RM17: -0.004480816609 | RN17: -0.004480816609 | RO17: -0.004480816609 | RP17: -0.004480816609 | RQ17: -0.004480816609 | RR17: -0.004480816609 | RS17: -0.004480816609 | RT17: -0.004480816609 | RU17: -0.004480816609 | RV17: -0.004480816609 | RW17: -0.004480816609 | RX17: -0.004480816609 | RY17: -0.004480816609 | RZ17: -0.004480816609 | SA17: -0.004480816609 | SB17: -0.004480816609 | SC17: -0.004480816609 | SD17: -0.004480816609 | SE17: =-Rs * SE8 /SE7 / 100000 -> -0.004480816609 | SF17: -0.004480816609 | SG17: -0.004480816609 | SH17: -0.004480816609 | SI17: -0.004480816609 | SJ17: -0.004480816609 | SK17: -0.004480816609 | SL17: -0.004480816609 | SM17: -0.004480816609 | SN17: -0.004480816609 | SO17: -0.004480816609 | SP17: -0.004480816609 | SQ17: -0.004480816609 | SR17: -0.004480816609 | SS17: -0.004480816609 | ST17: -0.004480816609 | SU17: -0.004480816609 | SV17: -0.004480816609 | SW17: -0.004480816609 | SX17: -0.004480816609 | SY17: -0.004480816609 | SZ17: -0.004480816609 | TA17: -0.004480816609 | TB17: -0.004480816609 | TC17: -0.004480816609 | TD17: -0.004480816609 | TE17: -0.004480816609 | TF17: -0.004480816609 | TG17: -0.004480816609 | TH17: -0.004480816609 | TI17: -0.004480816609 | TJ17: -0.004480816609 | TK17: -0.004480816609 | TL17: -0.004480816609 | TM17: -0.004480816609 | TN17: -0.004480816609 | TO17: -0.004480816609 | TP17: -0.004480816609 | TQ17: -0.004480816609 | TR17: -0.004480816609 | TS17: -0.004480816609 | TT17: -0.004480816609 | TU17: -0.004480816609 | TV17: -0.004480816609 | TW17: -0.004480816609 | TX17: -0.004480816609 | TY17: -0.004480816609 | TZ17: -0.004480816609 | UA17: -0.004480816609 | UB17: -0.004480816609 | UC17: -0.004480816609 | UD17: -0.004480816609 | UE17: -0.004480816609 | UF17: -0.004480816609 | UG17: -0.004480816609 | UH17: -0.004480816609 | UI17: -0.004480816609 | UJ17: -0.004480816609 | UK17: -0.004480816609 | UL17: -0.004480816609 | UM17: -0.004480816609 | UN17: -0.004480816609 | UO17: -0.004480816609 | UP17: -0.004480816609 | UQ17: =-Rs * UQ8 /UQ7 / 100000 -> -0.004480816609 | UR17: -0.004480816609 | US17: -0.004480816609 | UT17: -0.004480816609 | UU17: -0.004480816609 | UV17: -0.004480816609 | UW17: -0.004480816609 | UX17: -0.004480816609 | UY17: -0.004480816609 | UZ17: -0.004480816609 | VA17: -0.004480816609 | VB17: -0.004480816609 | VC17: -0.004480816609 | VD17: -0.004480816609 | VE17: -0.004480816609 | VF17: -0.004480816609 | VG17: -0.004480816609 | VH17: -0.004480816609 | VI17: -0.004480816609 | VJ17: -0.004480816609 | VK17: -0.004480816609 | VL17: -0.004480816609 | VM17: -0.004480816609 | VN17: -0.004480816609 | VO17: -0.004480816609 | VP17: -0.004480816609 | VQ17: -0.004480816609 | VR17: -0.004480816609 | VS17: -0.004480816609 | VT17: -0.004480816609 | VU17: -0.004480816609 | VV17: -0.004480816609 | VW17: -0.004480816609 | VX17: -0.004480816609 | VY17: -0.004480816609 | VZ17: -0.004480816609 | WA17: -0.004480816609 | WB17: -0.004480816609 | WC17: -0.004480816609 | WD17: -0.004480816609 | WE17: -0.004480816609 | WF17: -0.004480816609 | WG17: -0.004480816609 | WH17: -0.004480816609 | WI17: -0.004480816609 | WJ17: -0.004480816609 | WK17: -0.004480816609 | WL17: -0.004480816609 | WM17: -0.004480816609 | WN17: -0.004480816609 | WO17: -0.004480816609 | WP17: -0.004480816609 | WQ17: -0.004480816609 | WR17: -0.004480816609 | WS17: -0.004480816609 | WT17: -0.004480816609 | WU17: -0.004480816609 | WV17: -0.004480816609 | WW17: -0.004480816609 | WX17: -0.004480816609 | WY17: -0.004480816609 | WZ17: -0.004480816609 | XA17: -0.004480816609 | XB17: -0.004480816609 | XC17: =-Rs * XC8 /XC7 / 100000 -> -0.004480816609 | XD17: -0.004480816609 | XE17: -0.004480816609 | XF17: -0.004480816609 | XG17: -0.004480816609 | XH17: -0.004480816609 | XI17: -0.004480816609 | XJ17: -0.004480816609 | XK17: -0.004480816609 | XL17: -0.004480816609 | XM17: -0.004480816609 | XN17: -0.004480816609 | XO17: -0.004480816609 | XP17: -0.004480816609 | XQ17: -0.004480816609 | XR17: -0.004480816609 | XS17: -0.004480816609 | XT17: -0.004480816609 | XU17: -0.004480816609 | XV17: -0.004480816609 | XW17: -0.004480816609 | XX17: -0.004480816609 | XY17: -0.004480816609 | XZ17: -0.004480816609 | YA17: -0.004480816609 | YB17: -0.004480816609 | YC17: -0.004480816609 | YD17: -0.004480816609 | YE17: -0.004480816609 | YF17: -0.004480816609 | YG17: -0.004480816609 | YH17: -0.004480816609 | YI17: -0.004480816609 | YJ17: -0.004480816609 | YK17: -0.004480816609 | YL17: -0.004480816609 | YM17: -0.004480816609 | YN17: -0.004480816609 | YO17: -0.004480816609 | YP17: -0.004480816609 | YQ17: -0.004480816609 | YR17: -0.004480816609 | YS17: -0.004480816609 | YT17: -0.004480816609 | YU17: -0.004480816609 | YV17: -0.004480816609 | YW17: -0.004480816609 | YX17: -0.004480816609 | YY17: -0.004480816609 | YZ17: -0.004480816609 | ZA17: -0.004480816609 | ZB17: -0.004480816609 | ZC17: -0.004480816609 | ZD17: -0.004480816609 | ZE17: -0.004480816609 | ZF17: -0.004480816609 | ZG17: -0.004480816609 | ZH17: -0.004480816609 | ZI17: -0.004480816609 | ZJ17: -0.004480816609 | ZK17: -0.004480816609 | ZL17: -0.004480816609 | ZM17: -0.004480816609 | ZN17: -0.004480816609 | ZO17: =-Rs * ZO8 /ZO7 / 100000 -> -0.004480816609 | ZP17: -0.004480816609 | ZQ17: -0.004480816609 | ZR17: -0.004480816609 | ZS17: -0.004480816609 | ZT17: -0.004480816609 | ZU17: -0.004480816609 | ZV17: -0.004480816609 | ZW17: -0.004480816609 | ZX17: -0.004480816609 | ZY17: -0.004480816609 | ZZ17: -0.004480816609 | AAA17: -0.004480816609 | AAB17: -0.004480816609 | AAC17: -0.004480816609 | AAD17: -0.004480816609 | AAE17: -0.004480816609 | AAF17: -0.004480816609 | AAG17: -0.004480816609 | AAH17: -0.004480816609 | AAI17: -0.004480816609 | AAJ17: -0.004480816609 | AAK17: -0.004480816609 | AAL17: -0.004480816609 | AAM17: -0.004480816609 | AAN17: -0.004480816609 | AAO17: -0.004480816609 | AAP17: -0.004480816609 | AAQ17: -0.004480816609 | AAR17: -0.004480816609 | AAS17: -0.004480816609 | AAT17: -0.004480816609 | AAU17: -0.004480816609 | AAV17: -0.004480816609 | AAW17: -0.004480816609 | AAX17: -0.004480816609 | AAY17: -0.004480816609 | AAZ17: -0.004480816609 | ABA17: -0.004480816609 | ABB17: -0.004480816609 | ABC17: -0.004480816609 | ABD17: -0.004480816609 | ABE17: -0.004480816609 | ABF17: -0.004480816609 | ABG17: -0.004480816609 | ABH17: -0.004480816609 | ABI17: -0.004480816609 | ABJ17: -0.004480816609 | ABK17: -0.004480816609 | ABL17: -0.004480816609 | ABM17: -0.004480816609 | ABN17: -0.004480816609 | ABO17: -0.004480816609 | ABP17: -0.004480816609 | ABQ17: -0.004480816609 | ABR17: -0.004480816609 | ABS17: -0.004480816609 | ABT17: -0.004480816609 | ABU17: -0.004480816609 | ABV17: -0.004480816609 | ABW17: -0.004480816609 | ABX17: -0.004480816609 | ABY17: -0.004480816609 | ABZ17: -0.004480816609 | ACA17: =-Rs * ACA8 /ACA7 / 100000 -> -0.004480816609 | ACB17: -0.004480816609 | ACC17: -0.004480816609 | ACD17: -0.004480816609 | ACE17: -0.004480816609 | ACF17: -0.004480816609 | ACG17: -0.004480816609 | ACH17: -0.004480816609 | ACI17: -0.004480816609 | ACJ17: -0.004480816609 | ACK17: -0.004480816609 | ACL17: -0.004480816609 | ACM17: -0.004480816609 | ACN17: -0.004480816609 | ACO17: -0.004480816609 | ACP17: -0.004480816609 | ACQ17: -0.004480816609 | ACR17: -0.004480816609 | ACS17: -0.004480816609 | ACT17: -0.004480816609 | ACU17: -0.004480816609 | ACV17: -0.004480816609 | ACW17: -0.004480816609 | ACX17: -0.004480816609 | ACY17: -0.004480816609 | ACZ17: -0.004480816609 | ADA17: -0.004480816609 | ADB17: -0.004480816609 | ADC17: -0.004480816609 | ADD17: -0.004480816609 | ADE17: -0.004480816609 | ADF17: -0.004480816609 | ADG17: -0.004480816609 | ADH17: -0.004480816609 | ADI17: -0.004480816609 | ADJ17: -0.004480816609 | ADK17: -0.004480816609 | ADL17: -0.004480816609 | ADM17: -0.004480816609 | ADN17: -0.004480816609 | ADO17: -0.004480816609 | ADP17: -0.004480816609 | ADQ17: -0.004480816609 | ADR17: -0.004480816609 | ADS17: -0.004480816609 | ADT17: -0.004480816609 | ADU17: -0.004480816609 | ADV17: -0.004480816609 | ADW17: -0.004480816609 | ADX17: -0.004480816609 | ADY17: -0.004480816609 | ADZ17: -0.004480816609 | AEA17: -0.004480816609 | AEB17: -0.004480816609 | AEC17: -0.004480816609 | AED17: -0.004480816609
